Workbook

Sheet Construction - Do Not Delete (hidden)
B3: Lane Width | D3: Shoulder Width | F3: RHR
B4: 9 | D4: 0 | F4: 1
B5: 9.5 | D5: 1 | F5: 2
B6: 10 | D6: 2 | F6: 3
B7: 10.5 | D7: 3 | F7: 4
B8: 11 | D8: 4 | F8: 5
B9: 11.5 | D9: 5 | F9: 6
B10: 12 | D10: 6 | F10: 7
D11: 7
D12: 8
H15: Centerline | J15: Passing | L15: Local | N15: EB
D16: Shoulder Type | F16: Spiral | H16: Rumble Strips | J16: Lane | L16: HSM | N16: Site
D17: Paved | F17: NP | H17: NP | J17: NP | L17: Local | N17: Project
D18: Gravel | F18: P | H18: P | J18: P1
D19: Composite | F19: 1 | J19: P2
D20: Turf
F22: TWLTL | H22: Lighting | J22: SpEnforce
F23: NP | H23: NP | J23: NP
F24: P | H24: P | J24: P
B28: Itype2 | D28: Itype | F28: Lapproach | H28: Rapproach | J28: Ilight | L28: Differ | N28: Phasing2
B29: 3ST | D29: 3ST | F29: 0 | H29: 0 | J29: NP | L29: Y | N29: N/A
B30: 3SG | D30: 4ST | F30: 1 | H30: 1 | J30: P | L30: N | N30: Permissive
B31: 4ST | D31: 4SG | F31: 2 | H31: 2 | N31: Protected
B32: 4SG | F32: 3 | H32: 3 | N32: Protected / Permissive
F33: 4 | H33: 4 | N33: Permissive / Protected
B36: Num | D36: Mwidth | F36: Division | H36: Sslope | J36: Shld2 | L36: Iapproach
B37: 1 | D37: 10 | F37: Divided | H37: 1:2 or Steeper | J37: 0 | L37: 0
B38: 2 | D38: 20 | F38: Undivided | H38: 1:4 | J38: 1 | L38: 1
B39: 3 | D39: 30 | H39: 1:5 | J39: 2 | L39: 2
B40: 4 | D40: 40 | H40: 1:6 | J40: 3
B41: 5 | D41: 50 | H41: 1:7 or Flatter | J41: 4
B42: 6 | D42: 60 | J42: 5
B43: 7 | D43: 70 | J43: 6
B44: 8 | D44: 80 | J44: 7
B45: 9 | D45: 90 | J45: 8
B46: 10 | D46: 100 | J46: 9
J47: 10
B50: Urban / Suburban Fields:
B53: Rtype | D53: UMedWidth | F53: PresOrNot | H53: OnStreetType | J53: OffsetFO | L53: Posted
B54: 2U | D54: NP | F54: NP | H54: None | J54: 2 | L54: Posted Speed 30 mph or Lower
B55: 3T | D55: 10 | F55: P | H55: Parallel (Residential) | J55: 5 | L55: Posted Speed Greater than 30 mph
B56: 4U | D56: 15 | H56: Parallel (Comm/Ind) | J56: 10
B57: 4D | D57: 20 | H57: Angle (Residential) | J57: 15
B58: 5T | D58: 30 | H58: Angle (Comm/Ind) | J58: 20
D59: 40 | J59: 25
D60: 50 | J60: ≥ 30
D61: 60
D62: 70
D63: 80
D64: 90
D65: 100
B69: Tlanes | F69: Phasing | H69: UnsigApproach | J69: RtApproach | L69: Shld3
B70: 0 | F70: Permissive | H70: 0 | J70: 0 | L70: 0
B71: 1 | F71: Protected | H71: 1 | J71: 1 | L71: 1
B72: 2 | F72: Protected / Permissive | H72: 2 | J72: 2 | L72: 2
B73: 3 | F73: Permissive / Protected | J73: 3 | L73: 3
B74: 4 | J74: 4 | L74: 4
L75: 5
L76: 6
L77: 7
L78: 8

Sheet Tables (hidden)
B2: Tables Affiliated with Crash Statistics: | Y2: Tables Affiliated with Crash Modification Factors: | AM2: Additional CMF's
B5: Table 10-3: Distribution for Crash Severity Level on Rural Two-Lane Two-Way Roadway Segments plus Locally-Derived Values | Y5: Table 10-10: Crash Modification Factors for Shoulder Types and Shoulder Widths on Roadway Segments (CMFtra) | AM5: Rural 2-Lane Segments | AO5: Rural 2-Lane Intersections | AQ5: Rural Divided Multilane Segments | AS5: Rural Undivided Multilane Segments | AU5: Rural Multilane Intersections | AW5: Urban & Suburban Segments | AY5: Urban & Suburban Intersections
AM6: N/A (1.000) | AN6: 1 | AO6: N/A (1.000) | AP6: 1 | AQ6: N/A (1.000) | AR6: 1 | AS6: N/A (1.000) | AT6: 1 | AU6: N/A (1.000) | AV6: 1 | AW6: N/A (1.000) | AX6: 1 | AY6: N/A (1.000) | AZ6: 1
B7: Crash severity level | E7: Percentage of total roadway segment crashes | Y7: Shoulder Type | Z7: Shoulder width (ft) | AM7: Edgelines (0.921) | AN7: 0.921 | AO7: Painted Left-turn channelization (0.670) | AP7: 0.67 | AQ7: Edgelines (0.921) | AR7: 0.921 | AS7: Edgelines (0.921) | AT7: 0.921 | AU7: Add left- or right-turn bypass lanes (0.850) | AV7: 0.85 | AW7: Improve pavement friction (0.799) | AX7: 0.799 | AY7: Stop Control to Roundabout (0.560) | AZ7: 0.56
E8: HSM-Provided Values | H8: Locally-Derived Values (Michigan) | Z8: 0 | AA8: 1 | AB8: 2 | AC8: 3 | AD8: 4 | AE8: 5 | AF8: 6 | AG8: 7 | AH8: 8 | AM8: Wide (6") Edgelines (0.929) | AN8: 0.929 | AO8: Raised/Curb Left-turn channelization (0.870) | AP8: 0.87 | AQ8: Wide (6") Edgelines (0.929) | AR8: 0.929 | AS8: Wide (6") Edgelines (0.929) | AT8: 0.929 | AU8: Convert to roundabout (0.330) | AV8: 0.33 | AY8: Signalized Int. to Roundabout (0.520) | AZ8: 0.52
B9: Fatal | E9: 1.3 | H9: 0.5 | Y9: Paved | Z9: 1 | AA9: 1 | AB9: 1 | AC9: 1 | AD9: 1 | AE9: =+(AD9+AF9)/2 -> 1 | AF9: 1 | AG9: =+(AF9+AH9)/2 -> 1 | AH9: 1 | AM9: Shoulder Rumble Strips (0.840) | AN9: 0.84 | AO9: Add left- or right-turn bypass lanes (0.950) | AP9: 0.95 | AQ9: Shoulder Rumble Strips (0.840) | AR9: 0.84 | AS9: Shoulder Rumble Strips (0.840) | AT9: 0.84 | AU9: Convert to roundabout from minor-road stop control (0.560) | AV9: 0.56 | AY9: Add 3" Retroreflective Backplates (0.850) | AZ9: 0.85
B10: Incapacitating Injury | E10: 5.4 | H10: 1.8 | Y10: Gravel | Z10: 1 | AA10: 1 | AB10: 1.01 | AC10: 1.01 | AD10: 1.01 | AE10: =+(AD10+AF10)/2 -> 1.015 | AF10: 1.02 | AG10: =+(AF10+AH10)/2 -> 1.02 | AH10: 1.02 | AM10: Improve pavement friction (0.799) | AN10: 0.799 | AO10: Convert to roundabout (0.330) | AP10: 0.33 | AQ10: Improve pavement friction (0.799) | AR10: 0.799 | AS10: Improve pavement friction (0.799) | AT10: 0.799 | AU10: Convert minor-road stop control to all-way (0.520) | AV10: 0.52 | AY10: Add signal (add'l primary head) (0.720) | AZ10: 0.72
B11: Nonincapacitating Injury | E11: 10.9 | H11: 3.3 | Y11: Composite | Z11: 1 | AA11: 1.01 | AB11: 1.02 | AC11: 1.02 | AD11: 1.03 | AE11: =+(AD11+AF11)/2 -> 1.035 | AF11: 1.04 | AG11: =+(AF11+AH11)/2 -> 1.05 | AH11: 1.06 | AO11: Convert to roundabout from minor-road stop control (0.560) | AP11: 0.56 | AU11: Add flashing beacons at stop controlled intersections (0.950) | AV11: 0.95 | AY11: Convert to roundabout from minor-road stop control (0.560) | AZ11: 0.56
B12: Possible Injury | E12: 14.5 | H12: 5.3 | Y12: Turf | Z12: 1 | AA12: 1.01 | AB12: 1.03 | AC12: 1.04 | AD12: 1.05 | AE12: =+(AD12+AF12)/2 -> 1.065 | AF12: 1.08 | AG12: =+(AF12+AH12)/2 -> 1.095 | AH12: 1.11 | AO12: Convert minor-road stop control to all-way (0.520) | AP12: 0.52 | AU12: Replace 8" red signal heads with 12" (0.970) | AV12: 0.97 | AY12: Add flashing beacons at stop controlled intersections (0.950) | AZ12: 0.95
B13: Total Fatal Plus Injury | E13: =SUM(E9:E12) -> 32.1 | H13: =SUM(H9:H12) -> 10.9 | Y13: Note: The values for composite shoulders in this exhibit represent a shoulder for which 50 percent of the shoulder width is paved and 50 percent of the shoulder width is turf. | AO13: Add flashing beacons at stop controlled intersections (0.950) | AP13: 0.95 | AU13: Improve pavement friction (3ST) (0.819) | AV13: 0.819 | AY13: Replace 8" red signal heads with 12" (0.970) | AZ13: 0.97
B14: Property Damage Only | E14: =100-E13 -> 67.9 | H14: =100-H13 -> 89.1 | AO14: Replace 8" red signal heads with 12" (0.970) | AP14: 0.97 | AU14: Improve pavement friction (3SG) (0.667) | AV14: 0.667 | AY14: Improve pavement friction (3ST) (0.819) | AZ14: 0.819
B15: TOTAL | E15: =SUM(E13:E14) -> 100 | H15: =SUM(H13:H14) -> 100 | AO15: Improve pavement friction (3ST) (0.819) | AP15: 0.819 | AU15: Improve pavement friction (4SG) (0.797) | AV15: 0.797 | AY15: Improve pavement friction (3SG) (0.667) | AZ15: 0.667
B16: Note: HSM-provided crash severity data based on HSIS data for Washington (2002-2006) | Y16: Table 10-13: CMF for Installation of Left-Turn Lanes on Intersection Approaches (CMF2i) | AO16: Improve pavement friction (3SG) (0.667) | AP16: 0.667 | AY16: Improve pavement friction (4SG) (0.797) | AZ16: 0.797
AO17: Improve pavement friction (4SG) (0.797) | AP17: 0.797
B18: Table 10-4: Default Distribution by Collision Type for Specific Crash Severity Levels on Rural Two-Lane Two-Way Roadway Segments plus Locally-Derived Values | Y18: Intersection type | AA18: Intersection traffic control | AC18: Number of approaches with left-turn lanes a
E20: Percentage of total roadway segment crashes by crash severity level | AC20: 1 | AD20: 2 | AE20: 3 | AF20: 4
E21: HSM-Provided Values | I21: Locally-Derived Values (Michigan)
B22: Collision type | E22: Total fatal and injury | F22: Property damage only | G22: TOTAL (all severity levels combined) | I22: Total fatal and injury | J22: Property damage only | K22: TOTAL (all severity levels combined) | Y22: Three-leg intersection | AA22: Minor road stop control b | AC22: 0.56 | AD22: 0.31 | AE22: 0.31 | AF22: 0.31
B24: SINGLE-VEHICLE CRASHES | Y24: Four-leg intersection | AA24: Minor road stop control b | AC24: 0.72 | AD24: 0.52 | AE24: 0.52 | AF24: 0.52
B25: Collision with animal | E25: 3.8 | F25: 18.4 | G25: 12.1 | I25: 11.5 | J25: 74.8 | K25: 67.7
B26: Collision with bicycle | E26: 0.4 | F26: 0.1 | G26: 0.2 | I26: 0.7 | J26: 0 | K26: 0 | AA26: Traffic signal | AC26: 0.82 | AD26: 0.67 | AE26: 0.55 | AF26: 0.45
B27: Collision with pedestrian | E27: 0.7 | F27: 0.1 | G27: 0.3 | I27: 1.3 | J27: 0 | K27: 0.2 | Y27: Note: | Z27: a Stop-controlled approaches are not considered in determing the number of approaches with left-turn lanes
B28: Overturned | E28: 3.7 | F28: 1.5 | G28: 2.5 | I28: 15.5 | J28: 2.5 | K28: 4
B29: Ran off road | E29: 54.5 | F29: 50.5 | G29: 52.1 | I29: 26.7 | J29: 11.2 | K29: 12.9 | Z29: b Stop signs present on minor road approaches only.
B30: Other single-vehicle crash | E30: 0.7 | F30: 2.9 | G30: 2.1 | I30: 2.9 | J30: 1.3 | K30: 1.5
B31: Total single-vehicle crashes | E31: =SUM(E25:E30) -> 63.8 | F31: =SUM(F25:F30) -> 73.5 | G31: =SUM(G25:H30) -> 69.3 | I31: =SUM(I25:I30) -> 58.6 | J31: =SUM(J25:J30) -> 89.8 | K31: =SUM(K25:L30) -> 86.3
B32: MULTIPLE-VEHICLE CRASHES | Y32: Table 10-14: CMF for Installation of Right-Turn Lanes on Intersection Approaches (CMF3i)
B33: Angle collision | E33: 10 | F33: 7.2 | G33: 8.5 | I33: 6.1 | J33: 1.2 | K33: 1.7
B34: Head-on collision | E34: 3.4 | F34: 0.3 | G34: 1.6 | I34: 9 | J34: 0.3 | K34: 1.3 | Y34: Intersection type | AA34: Intersection traffic control | AC34: Number of approaches with left-turn lanes a
B35: Rear-end collision | E35: 16.4 | F35: 12.2 | G35: 14.2 | I35: 16.4 | J35: 4.2 | K35: 5.5
B36: Sideswipe collision | E36: 3.8 | F36: 3.8 | G36: 3.7 | I36: 5.7 | J36: 2.4 | K36: 2.8 | AC36: 1 | AD36: 2 | AE36: 3 | AF36: 4
B37: Other multiple-vehicle collision | E37: 2.6 | F37: 3 | G37: 2.7 | I37: 4.2 | J37: 2 | K37: 2.3
B38: Total multiple-vehicle crashes | E38: =SUM(E33:E37) -> 36.2 | F38: =SUM(F33:F37) -> 26.5 | G38: =SUM(G33:H37) -> 30.7 | I38: =SUM(I33:I37) -> 41.4 | J38: =SUM(J33:J37) -> 10.1 | K38: =SUM(K33:L37) -> 13.6 | Y38: Three-leg intersection | AA38: Minor road stop control b | AC38: 0.86 | AD38: 0.74 | AE38: 0.74 | AF38: 0.74
B39: TOTAL CRASHES | E39: =+E31+E38 -> 100 | F39: =+F31+F38 -> 100 | G39: 100 | I39: =+I31+I38 -> 100 | J39: =+J31+J38 -> 99.9 | K39: 100
B40: Note: HSM-provided values based on crash data for Washington (2002-2006); includes approximately 70 percent opposite-direction sideswipe and 30 percent same-direction sideswipe collisions. | Y40: Four-leg intersection | AA40: Minor road stop control b | AC40: 0.86 | AD40: 0.74 | AE40: 0.74 | AF40: 0.74
B42: Table 10-5: Default Distribution for Crash Severity Level at Rural Two-Lane Two-Way Intersections plus Locally-Derived Values | AA42: Traffic signal | AC42: 0.96 | AD42: 0.92 | AE42: 0.88 | AF42: 0.85
Y43: Note: | Z43: a Stop-controlled approaches are not considered in determing the number of approaches with right-turn lanes
B44: Collision type | E44: Percentage of total crashes
E45: HSM-Provided Values | K45: Locally-Derived Values | Z45: b Stop signs present on minor road approaches only.
E46: 3ST | G46: 4ST | I46: 4SG | K46: 3ST | M46: 4ST | O46: 4SG
Y47: Table 12-24: Crash Modification Factor (CMF1i) for Installation of Left-Turn Lanes on Intersection Approaches
B49: Fatal | E49: 1.7 | G49: 1.8 | I49: 0.9 | K49: 0.5 | M49: 0.7 | O49: 0.2 | Y49: Intersection Type | Z49: Intersection traffic control | AB49: Number of approaches with left-turn lanes a
B50: Incapacitating injury | E50: 4 | G50: 4.3 | I50: 2.1 | K50: 2.8 | M50: 4 | O50: 2.5
B51: Nonincapacitating injury | E51: 16.6 | G51: 16.2 | I51: 10.5 | K51: 5.5 | M51: 6.8 | O51: 5.7 | AB51: One approach | AC51: Two approaches | AD51: Three approaches | AE51: Four approaches
B52: Possible injury | E52: 19.2 | G52: 20.8 | I52: 20.5 | K52: 9.8 | M52: 12 | O52: 15.1
B53: Total fatal plus injury | E53: =SUM(E49:E52) -> 41.5 | G53: =SUM(G49:G52) -> 43.1 | I53: =SUM(I49:I52) -> 34 | K53: =SUM(K49:K52) -> 18.6 | M53: =SUM(M49:M52) -> 23.5 | O53: =SUM(O49:O52) -> 23.5 | Y53: 3ST | Z53: Minor-road STOP controlb | AB53: 0.67 | AC53: 0.45 | AD53: -- | AE53: --
B54: Property damage only | E54: =100-E53 -> 58.5 | G54: =100-G53 -> 56.9 | I54: =100-I53 -> 66 | K54: =100-K53 -> 81.4 | M54: =100-M53 -> 76.5 | O54: =100-O53 -> 76.5 | Y54: 3SG | Z54: Traffic signal | AB54: 0.93 | AC54: 0.86 | AD54: 0.8 | AE54: 0.8
B55: TOTAL | E55: =SUM(E53:E54) -> 100 | G55: =SUM(G53:G54) -> 100 | I55: =SUM(I53:I54) -> 100 | K55: =SUM(K53:K54) -> 100 | M55: =SUM(M53:M54) -> 100 | O55: =SUM(O53:O54) -> 100 | Y55: 4ST | Z55: Minor-road STOP controla | AB55: 0.73 | AC55: 0.53 | AD55: -- | AE55: --
B56: Note: HSM-Provided values based on HSIS data for California (2002-2006) | Y56: 4SG | Z56: Traffic signal | AB56: 0.9 | AC56: 0.81 | AD56: 0.73 | AE56: 0.66
Y57: a STOP-controlled approaches are not considered in determining the number of approaches with left-turn lanes.
B58: Table 10-6: Default Distribution for Collision Type and Manner of Collision at Rural Two-Way Intersections plus Locally-Derived Values | Y58: b Stop signs present on minor-road approaches only.
B60: Collision type | E60: Percentage of total crashes by collision type ( HSM Default Values) | N60: Percentage of total crashes by collision type (Locally Derived Values)
E61: Three-leg stop-controlled intersections | H61: Four-leg stop-controlled intersections | K61: Four-leg signalized intersections | N61: Three-leg stop-controlled intersections | Q61: Four-leg stop-controlled intersections | T61: Four-leg signalized intersections
Y62: Table 12-26: Crash Modification Factor (CMF3i) for Installation of Right-Turn Lanes on Intersection Approaches
E63: Fatal and Injury | F63: Property damage only | G63: Total | H63: Fatal and injury | I63: Property damage only | J63: Total | K63: Fatal and injury | L63: Property damage only | M63: Total | N63: Fatal and Injury | O63: Property damage only | P63: Total | Q63: Fatal and injury | R63: Property damage only | S63: Total | T63: Fatal and injury | U63: Property damage only | V63: Total
Y64: Intersection Type | Z64: Intersection traffic control | AB64: Number of approaches with right-turn lanes a
B65: SINGLE-VEHICLE CRASHES | N65: SINGLE-VEHICLE CRASHES
B66: Collision with animal | E66: 0.8 | F66: 2.6 | G66: 1.9 | H66: 0.6 | I66: 1.4 | J66: 1 | K66: 0 | L66: 0.3 | M66: 0.2 | N66: 3.9 | O66: 39.4 | P66: 32.8 | Q66: 1.5 | R66: 28.8 | S66: 22.3 | T66: 0.2 | U66: 4.4 | V66: 3.4 | AB66: One approach | AC66: Two approaches | AD66: Three approaches | AE66: Four approaches
B67: Collision with bicycle | E67: 0.1 | F67: 0.1 | G67: 0.1 | H67: 0.1 | I67: 0.1 | J67: 0.1 | K67: 0.1 | L67: 0.1 | M67: 0.1 | N67: 1 | O67: 0.1 | P67: 0.3 | Q67: 1.2 | R67: 0.1 | S67: 0.4 | T67: 1.9 | U67: 0.3 | V67: 0.6
B68: Collision with pedestrian | E68: 0.1 | F68: 0.1 | G68: 0.1 | H68: 0.1 | I68: 0.1 | J68: 0.1 | K68: 0.1 | L68: 0.1 | M68: 0.1 | N68: 1.5 | O68: 0 | P68: 0.3 | Q68: 1.5 | R68: 0 | S68: 0.4 | T68: 4.7 | U68: 0.1 | V68: 1.2 | Y68: 3ST | Z68: Minor-road STOP controlb | AB68: 0.86 | AC68: 0.74 | AD68: -- | AE68: --
B69: Overturned | E69: 2.2 | F69: 0.7 | G69: 1.3 | H69: 0.6 | I69: 0.4 | J69: 0.5 | K69: 0.3 | L69: 0.3 | M69: 0.3 | N69: 9.6 | O69: 2.6 | P69: 3.9 | Q69: 3.1 | R69: 1.4 | S69: 1.8 | T69: 0.3 | U69: 0.3 | V69: 0.3 | Y69: 3SG | Z69: Traffic signal | AB69: 0.96 | AC69: 0.92 | AD69: -- | AE69: --
B70: Ran off road | E70: 24 | F70: 24.7 | G70: 24.4 | H70: 9.4 | I70: 14.4 | J70: 12.2 | K70: 3.2 | L70: 8.1 | M70: 6.4 | N70: 18.8 | O70: 17.7 | P70: 17.9 | Q70: 8.5 | R70: 11.8 | S70: 11 | T70: 3.7 | U70: 5 | V70: 4.7 | Y70: 4ST | Z70: Minor-road STOP controla | AB70: 0.86 | AC70: 0.74 | AD70: -- | AE70: --
B71: Other single-vehicle crash | E71: 1.1 | F71: 2 | G71: 1.6 | H71: 0.4 | I71: 1 | J71: 0.8 | K71: 0.3 | L71: 1.8 | M71: 0.5 | N71: 2.9 | O71: 2.5 | P71: 2.6 | Q71: 1.5 | R71: 1.7 | S71: 1.6 | T71: 1.1 | U71: 0.6 | V71: 0.7 | Y71: 4SG | Z71: Traffic signal | AB71: 0.96 | AC71: 0.92 | AD71: 0.88 | AE71: 0.85
B72: Total single-vehicle crashes | E72: =SUM(E66:E71) -> 28.3 | F72: 30.2 | G72: 29.4 | H72: 11.2 | I72: 17.4 | J72: 14.7 | K72: 4 | L72: 10.7 | M72: 7.6 | N72: 37.7 | O72: 62.3 | P72: 57.8 | Q72: 17.3 | R72: 43.8 | S72: 37.5 | T72: 11.9 | U72: 10.7 | V72: 10.9 | Y72: a STOP-controlled approaches are not considered in determining the number of approaches with right-turn lanes.
B73: MULTIPLE-VEHICLE CRASHES | N73: MULTIPLE-VEHICLE CRASHES | Y73: b Stop signs present on minor-road approaches only.
B74: Angle collision | E74: 27.5 | F74: 21 | G74: 23.7 | H74: 53.2 | I74: 35.4 | J74: 43.1 | K74: 33.6 | L74: 24.2 | M74: 27.4 | N74: 16.7 | O74: 7.7 | P74: 9.4 | Q74: 41.6 | R74: 18.1 | S74: 23.8 | T74: 33 | U74: 21.2 | V74: 24
B75: Head-on collision | E75: 8.1 | F75: 3.2 | G75: 5.2 | H75: 6 | I75: 2.5 | J75: 4 | K75: 8 | L75: 4 | M75: 5.4 | N75: 8.9 | O75: 1.5 | P75: 2.9 | Q75: 9 | R75: 2.6 | S75: 4.1 | T75: 14.6 | U75: 6.1 | V75: 8.1 | Y75: Table 12-19: Values of fpk Used in Determing the CMF for On-Street Parking
B76: Rear-end collision | E76: 26 | F76: 29.2 | G76: 27.8 | H76: 21 | I76: 26.6 | J76: 24.2 | K76: 40.3 | L76: 43.8 | M76: 42.6 | N76: 26.6 | O76: 15.7 | P76: 17.7 | Q76: 20.7 | R76: 17.4 | S76: 18.1 | T76: 31.9 | U76: 37.5 | V76: 36.3
B77: Sideswipe collision | E77: 5.1 | F77: 13.1 | G77: 9.7 | H77: 4.4 | I77: 14.4 | J77: 10.1 | K77: 5.1 | L77: 15.3 | M77: 11.8 | N77: 4.5 | O77: 6.9 | P77: 6.4 | Q77: 4.7 | R77: 8.3 | S77: 7.4 | T77: 2.7 | U77: 11.5 | V77: 9.4 | Y77: Road Type | Z77: Type of Parking and Land Use
B78: Other multiple-vehicle collision | E78: 5 | F78: 3.3 | G78: 4.2 | H78: 4.2 | I78: 3.7 | J78: 3.9 | K78: 9 | L78: 2 | M78: 5.2 | N78: 5.6 | O78: 5.9 | P78: 5.8 | Q78: 6.7 | R78: 9.8 | S78: 9.1 | T78: 5.9 | U78: 13 | V78: 11.3 | Z78: Parallel Parking | AB78: Angle Parking
B79: Total multiple-vehicle crashes | E79: =SUM(E74:E78) -> 71.7 | F79: 69.8 | G79: 70.6 | H79: 88.8 | I79: 82.6 | J79: 85.3 | K79: 96 | L79: 89.3 | M79: 92.4 | N79: 62.3 | O79: 37.7 | P79: 42.2 | Q79: 82.7 | R79: 56.2 | S79: 62.5 | T79: 88.1 | U79: 89.3 | V79: 89.1 | Z79: Residential/ Other | AA79: Commercial or Industrial/ Institutional | AB79: Residential/ Other | AC79: Commercial or Industrial/ Institutional
B80: TOTAL CRASHES | E80: =+E72+E79 -> 100 | F80: 100 | G80: 100 | H80: 100 | I80: 100 | J80: 100 | K80: 100 | L80: 100 | M80: 100 | N80: 100 | O80: 100 | P80: 100 | Q80: 100 | R80: 100 | S80: 100 | T80: 100 | U80: 100 | V80: 100
B81: Note: HSM-Provided values based on HSIS data for California (2002-2006)
Y82: 2U | Z82: 1.465 | AA82: 2.074 | AB82: 3.428 | AC82: 4.853
B83: Table 10-12: Nighttime Crash Proportions for Unlighted Roadway Segments plus Locally-Derived Values | Y83: 3T | Z83: 1.465 | AA83: 2.074 | AB83: 3.428 | AC83: 4.853
Y84: 4U | Z84: 1.1 | AA84: 1.709 | AB84: 2.574 | AC84: 3.999
B85: Roadway Type | C85: HSM Default Values | I85: Locally Derived Values | Y85: 4D | Z85: 1.1 | AA85: 1.709 | AB85: 2.574 | AC85: 3.999
F86: Proportion of crashes that occur at night | I86: Proportion of total nighttime crashes by severity level | L86: Proportion of crashes that occur at night | Y86: 5T | Z86: 1.1 | AA86: 1.709 | AB86: 2.574 | AC86: 3.999
C87: Proportion of total nighttime crashes by severity level
Y88: Table 12-20: Fixed-Object Offset Factor
C89: Fatal and Injury pinr | E89: PDO ppnr | F89: pnr | I89: Fatal and Injury pinr | K89: PDO ppnr | L89: pnr
B90: 2U | C90: 0.382 | E90: 0.618 | F90: 0.37 | I90: 0.27 | K90: 0.65 | L90: 0.463 | Y90: Offset to fixed objects | AA90: Fixed-Object Offset Factor
B91: Note: HSM-provided values based on HSIS data for Washington (2002-2006) | Y91: (Ofo) (ft) | AA91: (foffset)
Y92: 2 | AA92: 0.232
B93: Table 10-15: Nighttime Crash Proportions for Unlighted Intersections | Y93: 5 | AA93: 0.133
Y94: 10 | AA94: 0.087
B95: Intersection Type | E95: Proportion of crashes that occur at night, pni | Y95: 15 | AA95: 0.068
E96: HSM Provided Values | G96: Locally-Derived Values | Y96: 20 | AA96: 0.057
B97: 3ST | E97: 0.26 | G97: 0.248 | Y97: 25 | AA97: 0.049
B98: 4ST | E98: 0.244 | G98: 0.208 | Y98: ≥ 30 | AA98: 0.044
B99: 4SG | E99: 0.286 | G99: 0.188 | Y99: Note: Values from 2 to 30 can be estimated using the following equation:
B100: Note: HSM-Provided values based on HSIS data for California (2002-2006)
Y101: y=0.3566 x-0.614
B102: Table 12-11: Distribution of Multiple-Vehicle Collisions for Intersections by Collision Type
D104: Proportion of crashes by severity level for specific intersection types | Y104: Table 12-22: CMFs for Median Widths on Divided Roadway Segments without a Median Barrier (CMF3r)
D105: HSM-Provided Values
B106: Collision type | D106: 3ST | F106: 3SG | H106: 4ST | J106: 4SG
D107: FI | E107: PDO | F107: FI | G107: PDO | H107: FI | I107: PDO | J107: FI | K107: PDO
B108: Rear-end collision | D108: 0.421 | E108: 0.44 | F108: 0.549 | G108: 0.546 | H108: 0.338 | I108: 0.374 | J108: 0.45 | K108: 0.483 | Y108: Median Width (ft) | AA108: CMF
B109: Head-on collision | D109: 0.045 | E109: 0.023 | F109: 0.038 | G109: 0.02 | H109: 0.041 | I109: 0.03 | J109: 0.049 | K109: 0.03 | Y109: 10 | AA109: 1.01
B110: Angle collision | D110: 0.343 | E110: 0.262 | F110: 0.28 | G110: 0.204 | H110: 0.44 | I110: 0.335 | J110: 0.347 | K110: 0.244 | Y110: 15 | AA110: 1
B111: Sideswipe | D111: 0.126 | E111: 0.04 | F111: 0.076 | G111: 0.032 | H111: 0.121 | I111: 0.044 | J111: 0.099 | K111: 0.032 | Y111: 20 | AA111: 0.99
B112: Other multiple-vehicle collision | D112: 0.065 | E112: 0.235 | F112: 0.057 | G112: 0.198 | H112: 0.06 | I112: 0.217 | J112: 0.055 | K112: 0.211 | Y112: 30 | AA112: 0.98
B113: Source: HSIS data for Washington (2002-2006) | Y113: 40 | AA113: 0.97
B114: Collision type | D114: Locally-Derived Values | Y114: 50 | AA114: 0.96
D115: 3ST | F115: 3SG | H115: 4ST | J115: 4SG | Y115: 60 | AA115: 0.95
D116: FI | E116: PDO | F116: FI | G116: PDO | H116: FI | I116: PDO | J116: FI | K116: PDO | Y116: 70 | AA116: 0.94
B117: Rear-end collision | D117: 0.518 | E117: 0.464 | F117: 0.598 | G117: 0.575 | H117: 0.338 | I117: 0.361 | J117: 0.469 | K117: 0.493 | Y117: 80 | AA117: 0.93
B118: Head-on collision | D118: 0.085 | E118: 0.026 | F118: 0.095 | G118: 0.03 | H118: 0.086 | I118: 0.034 | J118: 0.099 | K118: 0.038 | Y118: 90 | AA118: 0.93
B119: Angle collision | D119: 0.244 | E119: 0.171 | F119: 0.208 | G119: 0.139 | H119: 0.446 | I119: 0.285 | J119: 0.335 | K119: 0.194 | Y119: 100 | AA119: 0.92
B120: Sideswipe | D120: 0.091 | E120: 0.254 | F120: 0.063 | G120: 0.206 | H120: 0.079 | I120: 0.225 | J120: 0.057 | K120: 0.209
B121: Other multiple-vehicle collision | D121: 0.061 | E121: 0.085 | F121: 0.037 | G121: 0.05 | H121: 0.05 | I121: 0.095 | J121: 0.04 | K121: 0.065
B122: Note: HSM-Provided values based on HSIS data for California (2002-2006) | Y122: Tables Affiliated with SPF Computation:
Y124: Table 12-10: SPF Coefficients for Multiple-Vehicle Collisions at Intersections
B125: Table 12-13: Distribution of Single-Vehicle Crashes for Intersections by Collision Type
Y126: Intersection type | Z126: Coefficients use in Eqn. 12-21 | AC126: Overdispersion parameter (k)
D127: Proportion of crashes by severity level for specific intersection types | Z127: Intercept | AA127: AADTmaj | AB127: AADTmin
D128: HSM-Provided Values | Z128: (a) | AA128: (b) | AB128: (c)
B129: Collision type | D129: 3ST | F129: 3SG | H129: 4ST | J129: 4SG | Y129: Total crashes
D130: FI | E130: PDO | F130: FI | G130: PDO | H130: FI | I130: PDO | J130: FI | K130: PDO | Y130: 3ST | Z130: -13.36 | AA130: 1.11 | AB130: 0.41 | AC130: 0.8
B131: Collision with parked vehicle | D131: 0.001 | E131: 0.003 | F131: 0.001 | G131: 0.001 | H131: 0.001 | I131: 0.001 | J131: 0.001 | K131: 0.001 | Y131: 3SG | Z131: -12.13 | AA131: 1.11 | AB131: 0.26 | AC131: 0.33
B132: Collision with animal | D132: 0.003 | E132: 0.018 | F132: 0.001 | G132: 0.003 | H132: 0.001 | I132: 0.026 | J132: 0.002 | K132: 0.002 | Y132: 4ST | Z132: -8.9 | AA132: 0.82 | AB132: 0.25 | AC132: 0.4
B133: Collision with fixed object | D133: 0.762 | E133: 0.8341 | F133: 0.653 | G133: 0.895 | H133: 0.679 | I133: 0.847 | J133: 0.744 | K133: 0.87 | Y133: 4SG | Z133: -10.99 | AA133: 1.07 | AB133: 0.23 | AC133: 0.39
B134: Collision with other object | D134: 0.09 | E134: 0.092 | F134: 0.091 | G134: 0.069 | H134: 0.089 | I134: 0.07 | J134: 0.072 | K134: 0.07 | Y134: Fatal-and-injury crashes
B135: Other single-vehicle collision | D135: 0.039 | E135: 0.023 | F135: 0.045 | G135: 0.018 | H135: 0.051 | I135: 0.007 | J135: 0.04 | K135: 0.023 | Y135: 3ST | Z135: -14.01 | AA135: 1.16 | AB135: 0.3 | AC135: 0.69
B136: Noncollision | D136: 0.105 | E136: 0.03 | F136: 0.209 | G136: 0.014 | H136: 0.179 | I136: 0.049 | J136: 0.141 | K136: 0.034 | Y136: 3SG | Z136: -11.58 | AA136: 1.02 | AB136: 0.17 | AC136: 0.3
B137: Source: HSM-Provided values base on HSIS data for California (2002-2006) | Y137: 4ST | Z137: -11.13 | AA137: 0.93 | AB137: 0.28 | AC137: 0.48
B138: Collision type | D138: Locally-Derived Values | Y138: 4SG | Z138: -13.14 | AA138: 1.18 | AB138: 0.22 | AC138: 0.33
D139: 3ST | F139: 3SG | H139: 4ST | J139: 4SG | Y139: Property-damage-only crashes
D140: FI | E140: PDO | F140: FI | G140: PDO | H140: FI | I140: PDO | J140: FI | K140: PDO | Y140: 3ST | Z140: -15.38 | AA140: 1.2 | AB140: 0.51 | AC140: 0.77
B141: Collision with parked vehicle | D141: 0.002 | E141: 0.001 | F141: 0 | G141: 0.002 | H141: 0.002 | I141: 0 | J141: 0 | K141: 0.001 | Y141: 3SG | Z141: -13.24 | AA141: 1.14 | AB141: 0.3 | AC141: 0.36
B142: Collision with animal | D142: 0.042 | E142: 0.415 | F142: 0.017 | G142: 0.254 | H142: 0.037 | I142: 0.39 | J142: 0.03 | K142: 0.18 | Y142: 4ST | Z142: -8.74 | AA142: 0.77 | AB142: 0.23 | AC142: 0.4
B143: Collision with fixed object | D143: 0.701 | E143: 0.469 | F143: 0.729 | G143: 0.589 | H143: 0.697 | I143: 0.499 | J143: 0.697 | K143: 0.641 | Y143: 4SG | Z143: -11.02 | AA143: 1.02 | AB143: 0.24 | AC143: 0.44
B144: Collision with other object | D144: 0.019 | E144: 0.036 | F144: 0.008 | G144: 0.05 | H144: 0.025 | I144: 0.04 | J144: 0.009 | K144: 0.055
B145: Other single-vehicle collision | D145: 0.133 | E145: 0.061 | F145: 0.158 | G145: 0.08 | H145: 0.126 | I145: 0.054 | J145: 0.179 | K145: 0.107 | Y145: Table 12-12: SPF Coefficients for Single-Vehicle Crashes at Intersections
B146: Noncollision | D146: 0.104 | E146: 0.018 | F146: 0.088 | G146: 0.025 | H146: 0.114 | I146: 0.018 | J146: 0.084 | K146: 0.016
Y147: Intersection type | Z147: Coefficients use in Eqn. 12-24 | AC147: Overdispersion parameter (k)
Z148: Intercept | AA148: AADTmaj | AB148: AADTmin
Z149: (a) | AA149: (b) | AB149: (c)
B150: Table 12-27: Nighttime Crash Proportions for Unlighted Intersections | Y150: Total crashes
Y151: 3ST | Z151: -6.81 | AA151: 0.16 | AB151: 0.51 | AC151: 1.14
D152: Proportion of crashes that occur at night, pni | Y152: 3SG | Z152: -9.02 | AA152: 0.42 | AB152: 0.4 | AC152: 0.36
D153: HSM-Provided Values | F153: Locally-Derived Values | Y153: 4ST | Z153: -5.33 | AA153: 0.33 | AB153: 0.12 | AC153: 0.65
B154: Intersection Type | Y154: 4SG | Z154: -10.21 | AA154: 0.68 | AB154: 0.27 | AC154: 0.36
B155: 3ST | D155: 0.238 | F155: 0.238 | I155: Replace these values with Michigan-Specific! | Y155: Fatal-and-injury crashes
B156: 4ST | D156: 0.229 | F156: 0.229 | Y156: 3ST | Z156: -- | AA156: -- | AB156: -- | AC156: --
B157: 3SG | D157: 0.235 | F157: 0.235 | Y157: 3SG | Z157: -9.75 | AA157: 0.27 | AB157: 0.51 | AC157: 0.24
B158: 4SG | D158: 0.235 | F158: 0.235 | Y158: 4ST | Z158: -- | AA158: -- | AB158: -- | AC158: --
Y159: 4SG | Z159: -9.25 | AA159: 0.43 | AB159: 0.29 | AC159: 0.09
Y160: Property-damage-only crashes
B161: Table 12-4: Distribution of Multiple-Vehicle Nondriveway Collisions for Roadway Segments by Manner of Collision Type | Y161: 3ST | Z161: -8.36 | AA161: 0.25 | AB161: 0.55 | AC161: 1.29
Y162: 3SG | Z162: -9.08 | AA162: 0.45 | AB162: 0.33 | AC162: 0.53
D163: Proportion of crashes by severity level for specific road types | Y163: 4ST | Z163: -7.04 | AA163: 0.36 | AB163: 0.25 | AC163: 0.54
D164: HSM-Provided Values | Y164: 4SG | Z164: -11.34 | AA164: 0.78 | AB164: 0.25 | AC164: 0.44
B165: Collision type | D165: 2U | F165: 3T | H165: 4U | J165: 4D | L165: 5T | Y165: Note: Where no models are available, Equations 12-27 is used.
D166: FI | E166: PDO | F166: FI | G166: PDO | H166: FI | I166: PDO | J166: FI | K166: PDO | L166: FI | M166: PDO | Y166: Equation 12-27:
B167: Rear-end collision | D167: 0.73 | E167: 0.778 | F167: 0.845 | G167: 0.842 | H167: 0.511 | I167: 0.506 | J167: 0.832 | K167: 0.662 | L167: 0.846 | M167: 0.651 | Y167: Nbisv(FI) = Nbisv(TOTAL) x fbisv
B168: Head-on collision | D168: 0.068 | E168: 0.004 | F168: 0.034 | G168: 0.02 | H168: 0.077 | I168: 0.004 | J168: 0.02 | K168: 0.007 | L168: 0.021 | M168: 0.004
B169: Angle collision | D169: 0.085 | E169: 0.079 | F169: 0.069 | G169: 0.02 | H169: 0.181 | I169: 0.13 | J169: 0.04 | K169: 0.036 | L169: 0.05 | M169: 0.059 | Y169: Table 12-14: SPF for Vehicle-Pedestrian Collisions at Signalized Intersections
B170: Sideswipe, same direction | D170: 0.015 | E170: 0.031 | F170: 0.001 | G170: 0.078 | H170: 0.093 | I170: 0.249 | J170: 0.05 | K170: 0.223 | L170: 0.061 | M170: 0.248
B171: Sideswipe, opposite direction | D171: 0.073 | E171: 0.055 | F171: 0.017 | G171: 0.02 | H171: 0.082 | I171: 0.031 | J171: 0.01 | K171: 0.001 | L171: 0.004 | M171: 0.009 | Y171: Intersection type | Z171: Coefficients use in Eqn. 12-29 | AE171: Overdispersion parameter (k)
B172: Other multiple-vehicle collision | D172: 0.029 | E172: 0.053 | F172: 0.034 | G172: 0.02 | H172: 0.056 | I172: 0.08 | J172: 0.048 | K172: 0.071 | L172: 0.018 | M172: 0.029 | Z172: Intercept | AA172: AADTtot | AB172: AADTmin/AADTmaj | AC172: PedVol | AD172: nlanesx
B173: Source: HSIS data for Washington (2002-2006) | Z173: (a) | AA173: (b) | AB173: (c) | AC173: (d) | AD173: (e)
B174: Collision type | D174: Locally-Derived Values | Y174: Total crashes
D175: 2U | F175: 3T | H175: 4U | J175: 4D | L175: 5T | Y175: 3SG | Z175: -6.6 | AA175: 0.05 | AB175: 0.24 | AC175: 0.41 | AD175: 0.09 | AE175: 0.52
D176: FI | E176: PDO | F176: FI | G176: PDO | H176: FI | I176: PDO | J176: FI | K176: PDO | L176: FI | M176: PDO | Y176: 4SG | Z176: -9.53 | AA176: 0.4 | AB176: 0.26 | AC176: 0.45 | AD176: 0.04 | AE176: 0.24
B177: Rear-end collision | D177: 0.468 | E177: 0.534 | F177: 0.515 | G177: 0.527 | H177: 0.455 | I177: 0.47 | J177: 0.588 | K177: 0.553 | L177: 0.484 | M177: 0.515
B178: Head-on collision | D178: 0.141 | E178: 0.046 | F178: 0.126 | G178: 0.052 | H178: 0.145 | I178: 0.056 | J178: 0.023 | K178: 0.008 | L178: 0.134 | M178: 0.049
B179: Angle collision | D179: 0.283 | E179: 0.205 | F179: 0.278 | G179: 0.215 | H179: 0.303 | I179: 0.219 | J179: 0.282 | K179: 0.157 | L179: 0.294 | M179: 0.194 | Y179: Table 12-3: SPF Coefficients for Multiple-Vehicle Nondriveway Collisions on Roadway Segments
B180: Sideswipe, same direction | D180: 0.031 | E180: 0.125 | F180: 0.027 | G180: 0.135 | H180: 0.044 | I180: 0.192 | J180: 0.069 | K180: 0.235 | L180: 0.042 | M180: 0.185
B181: Sideswipe, opposite direction | D181: 0.033 | E181: 0.037 | F181: 0.019 | G181: 0.03 | H181: 0.016 | I181: 0.028 | J181: 0.006 | K181: 0.011 | L181: 0.015 | M181: 0.022 | Y181: Road type | Z181: Coefficients use in Eqn. 12-10 | AB181: Overdispersion parameter (k)
B182: Other multiple-vehicle collision | D182: 0.044 | E182: 0.053 | F182: 0.036 | G182: 0.041 | H182: 0.036 | I182: 0.035 | J182: 0.033 | K182: 0.036 | L182: 0.031 | M182: 0.035 | Z182: Intercept | AA182: AADT
B183: Note: HSM-Provided values based on HSIS data for Washington (2002-2006) | Z183: (a) | AA183: (b)
Y184: Total crashes
Y185: 2U | Z185: -15.22 | AA185: 1.68 | AB185: 0.84
B186: Table 12-6: Distribution of Single-Vehicle Collisions for Roadway Segments by Collision Type | Y186: 3T | Z186: -12.4 | AA186: 1.41 | AB186: 0.66
Y187: 4U | Z187: -11.63 | AA187: 1.33 | AB187: 1.01
D188: Proportion of crashes by severity level for specific road types | Y188: 4D | Z188: -12.34 | AA188: 1.36 | AB188: 1.32
D189: HSM-Provided Values | Y189: 5T | Z189: -9.7 | AA189: 1.17 | AB189: 0.81
B190: Collision type | D190: 2U | F190: 3T | H190: 4U | J190: 4D | L190: 5T | Y190: Fatal-and-injury crashes
D191: FI | E191: PDO | F191: FI | G191: PDO | H191: FI | I191: PDO | J191: FI | K191: PDO | L191: FI | M191: PDO | Y191: 2U | Z191: -16.22 | AA191: 1.66 | AB191: 0.65
B192: Collision with animal | D192: 0.026 | E192: 0.066 | F192: 0.001 | G192: 0.001 | H192: 0.001 | I192: 0.001 | J192: 0.001 | K192: 0.063 | L192: 0.016 | M192: 0.049 | Y192: 3T | Z192: -16.45 | AA192: 1.69 | AB192: 0.59
B193: Collision with fixed object | D193: 0.723 | E193: 0.759 | F193: 0.688 | G193: 0.963 | H193: 0.612 | I193: 0.809 | J193: 0.5 | K193: 0.813 | L193: 0.398 | M193: 0.768 | Y193: 4U | Z193: -12.08 | AA193: 1.25 | AB193: 0.99
B194: Collision with other object | D194: 0.01 | E194: 0.013 | F194: 0.001 | G194: 0.001 | H194: 0.02 | I194: 0.029 | J194: 0.028 | K194: 0.016 | L194: 0.005 | M194: 0.061 | Y194: 4D | Z194: -12.76 | AA194: 1.28 | AB194: 1.31
B195: Other single-vehicle collision | D195: 0.241 | E195: 0.162 | F195: 0.31 | G195: 0.035 | H195: 0.367 | I195: 0.161 | J195: 0.471 | K195: 0.108 | L195: 0.581 | M195: 0.122 | Y195: 5T | Z195: -10.47 | AA195: 1.12 | AB195: 0.62
B196: Source: HSIS data for Washington (2002-2006) | Y196: Property-damage-only crashes
B197: Collision type | D197: Locally-Derived Values | Y197: 2U | Z197: -15.62 | AA197: 1.69 | AB197: 0.87
D198: 2U | F198: 3T | H198: 4U | J198: 4D | L198: 5T | Y198: 3T | Z198: -11.95 | AA198: 1.33 | AB198: 0.59
D199: FI | E199: PDO | F199: FI | G199: PDO | H199: FI | I199: PDO | J199: FI | K199: PDO | L199: FI | M199: PDO | Y199: 4U | Z199: -12.53 | AA199: 1.38 | AB199: 1.08
B200: Collision with animal | D200: 0.103 | E200: 0.682 | F200: 0.085 | G200: 0.602 | H200: 0.053 | I200: 0.439 | J200: 0.064 | K200: 0.383 | L200: 0.061 | M200: 0.457 | Y200: 4D | Z200: -12.81 | AA200: 1.38 | AB200: 1.34
B201: Collision with fixed object | D201: 0.602 | E201: 0.247 | F201: 0.65 | G201: 0.301 | H201: 0.668 | I201: 0.439 | J201: 0.64 | K201: 0.475 | L201: 0.666 | M201: 0.415 | Y201: 5T | Z201: -9.97 | AA201: 1.17 | AB201: 0.88
B202: Collision with other object | D202: 0.024 | E202: 0.024 | F202: 0.018 | G202: 0.038 | H202: 0.014 | I202: 0.052 | J202: 0.013 | K202: 0.046 | L202: 0.017 | M202: 0.056
B203: Other single-vehicle collision | D203: 0.271 | E203: 0.048 | F203: 0.247 | G203: 0.059 | H203: 0.265 | I203: 0.07 | J203: 0.284 | K203: 0.096 | L203: 0.257 | M203: 0.071 | Y203: Table 12-5: SPF Coefficients for Single-Vehicle Collisions on Roadway Segments
Y205: Road type | Z205: Coefficients use in Eqn. 12-11 | AB205: Overdispersion parameter (k)
Z206: Intercept | AA206: AADT
B207: Table 12-8: Pedestrian Crash Adjustment Factor for Roadway Segments | Z207: (a) | AA207: (b)
Y208: Total crashes
D209: Pedestrian Crash Adjustment Factor (fpedr) | Y209: 2U | Z209: -5.47 | AA209: 0.56 | AB209: 0.81
D210: HSM-Provided Values | H210: Locally-Derived Values | Y210: 3T | Z210: -5.74 | AA210: 0.54 | AB210: 1.37
B211: Road type | D211: Posted Speed 30 mph or Lower | F211: Posted Speed Greater than 30 mph | H211: Posted Speed 30 mph or Lower | J211: Posted Speed Greater than 30 mph | Y211: 4U | Z211: -7.99 | AA211: 0.81 | AB211: 0.91
... 127 more rows

Sheet Calibration Factors (hidden)
B2: Seg/Rur; 2-lane | D2: Seg/Rur; Multilane undivided | F2: Seg/Rur; Multilane divided | H2: Seg/Urb; 2-lane arterial | J2: Seg/Urb; Multilane divided | L2: Seg/Urb; One-way arterial | N2: Int/Rur; 3-leg minor-rd STOP | P2: Int/Rur; 3-leg signalized | R2: Int/Rur; 4-leg minor-rd STOP | T2: Int/Rur; 4-leg signalized | V2: Int/Urb; 3-leg minor-rd STOP | X2: Int/Urb; 3-leg signalized | Z2: Int/Urb; 4-leg minor-rd STOP | AB2: Int/Urb; 4-leg signalized | AD2: Seg/Urb; Multilane undivided
B3: Total | C3: KA | D3: Total | E3: KA | F3: Total | G3: KA | H3: Total | I3: KA | J3: Total | K3: KA | L3: Total | M3: KA | N3: Total | O3: KA | P3: Total | Q3: KA | R3: Total | S3: KA | T3: Total | U3: KA | V3: Total | W3: KA | X3: Total | Y3: KA | Z3: Total | AA3: KA | AB3: Total | AC3: KA | AD3: Total | AE3: KA
A4: 2005 | B4: 1.394361 | C4: 0.569092 | D4: 1.188175 | E4: 0.485768 | F4: 1.389342 | G4: 1.13659 | H4: 2.797524 | I4: 1.775254 | J4: 1.4317 | K4: 0.808278 | L4: 0.486769 | M4: 0.232724 | N4: 2.027178 | O4: 0.618952 | P4: 1.273292 | Q4: 0.618952 | R4: 1.799977 | S4: 0.851026 | T4: 2.070054 | U4: 1.209216 | V4: 1.54358 | W4: 0.720624 | X4: 1.483212 | Y4: 0.704727 | Z4: 1.657639 | AA4: 0.839789 | AB4: 1.937834 | AC4: 0.936626 | AD4: 0.887528 | AE4: 0.4484
A5: 2006 | B5: 1.358421 | C5: 0.527798 | D5: 1.219386 | E5: 0.481219 | F5: 1.293727 | G5: 0.866198 | H5: 2.676821 | I5: 1.569271 | J5: 1.3509 | K5: 0.752157 | L5: 0.535497 | M5: 0.322401 | N5: 1.847823 | O5: 0.747099 | P5: 1.397195 | Q5: 0.747099 | R5: 1.680257 | S5: 0.784145 | T5: 1.849131 | U5: 1.000213 | V5: 1.39182 | W5: 0.673937 | X5: 1.423381 | Y5: 0.70093 | Z5: 1.581931 | AA5: 0.812887 | AB5: 1.791863 | AC5: 0.878481 | AD5: 0.811509 | AE5: 0.4032
A6: 2007 | B6: 1.44242 | C6: 0.546016 | D6: 1.312394 | E6: 0.5714 | F6: 1.635164 | G6: 1.405463 | H6: 2.722696 | I6: 1.647329 | J6: 1.3067 | K6: 0.770946 | L6: 0.529742 | M6: 0.208313 | N6: 1.849128 | O6: 0.596554 | P6: 1.204493 | Q6: 0.596554 | R6: 1.680056 | S6: 0.775625 | T6: 1.869876 | U6: 0.991171 | V6: 1.417799 | W6: 0.656899 | X6: 1.332655 | Y6: 0.6302 | Z6: 1.553218 | AA6: 0.773641 | AB6: 1.771052 | AC6: 0.817133 | AD6: 0.797879 | AE6: 0.3757
A7: 2008 | B7: 1.492774 | C7: 0.540187 | D7: 1.237153 | E7: 0.530459 | F7: 1.774831 | G7: 1.482437 | H7: 2.949124 | I7: 1.577198 | J7: 1.3614 | K7: 0.742846 | L7: 0.476368 | M7: 0.271402 | N7: 1.943317 | O7: 0.572169 | P7: 1.223622 | Q7: 0.572169 | R7: 1.719744 | S7: 0.733321 | T7: 1.761661 | U7: 1.017209 | V7: 1.449687 | W7: 0.654022 | X7: 1.383056 | Y7: 0.624471 | Z7: 1.510804 | AA7: 0.732726 | AB7: 1.734538 | AC7: 0.771213 | AD7: 0.780672 | AE7: 0.366
A8: 2009 | B8: 1.419522 | C8: 0.479339 | D8: 1.187294 | E8: 0.432671 | F8: 1.656013 | G8: 0.767266 | H8: 2.772559 | I8: 1.46681 | J8: 1.3027 | K8: 0.772438 | L8: 0.446217 | M8: 0.242334 | N8: 1.826811 | O8: 0.444391 | P8: 1.21515 | Q8: 0.444391 | R8: 1.63137 | S8: 0.722482 | T8: 1.783137 | U8: 1.143322 | V8: 1.347915 | W8: 0.635374 | X8: 1.339419 | Y8: 0.580841 | Z8: 1.445442 | AA8: 0.703127 | AB8: 1.667189 | AC8: 0.801938 | AD8: 0.749738 | AE8: 0.3688
A9: 2010 | B9: 1.278012 | C9: 0.424111 | D9: 1.050345 | E9: 0.420697 | F9: 1.512825 | G9: 1.035771 | H9: 2.566515 | I9: 1.343123 | J9: 1.3017 | K9: 0.693757 | L9: 0.502569 | M9: 0.306594 | N9: 1.72489 | O9: 0.519669 | P9: 1.160094 | Q9: 0.519669 | R9: 1.528896 | S9: 0.72104 | T9: 1.628367 | U9: 1.000418 | V9: 1.302107 | W9: 0.633467 | X9: 1.34588 | Y9: 0.598708 | Z9: 1.42491 | AA9: 0.707561 | AB9: 1.698057 | AC9: 0.787409 | AD9: 0.732563 | AE9: 0.37

Sheet Crash Costs (hidden)
B3: Crash Costs (Rural 2-Lane): | H3: Crash Costs (Urban & Suburban 2-Lane):
C4: Segment | D4: 3ST | E4: 4ST | F4: 4SG | I4: Segment | J4: 3ST | K4: 3SG | L4: 4ST | M4: 4SG
B5: K | C5: =INDIRECT(ADDRESS(ROW()+12,2+MATCH(Inputs!$B$2,$C$16:$G$16,0))) ->  | H5: K | I5: =INDIRECT(ADDRESS(31,36+MATCH(Inputs!$B$2,Tables!$AL$30:$AR$30,0),,,"Tables")) ->  | P5: =INDIRECT(ADDRESS(9,IF(Inputs!$B$3="HSM",5,8),,,"Tables"))+INDIRECT(ADDRESS(10,IF(Inputs!$B$3="HSM",5,8),,,"Tables"))+INDIRECT(ADDRESS(11,IF(Inputs!$B$3="HSM",5,8),,,"Tables"))+INDIRECT(ADDRESS(12,IF(Inputs!$B$3="HSM",5,8),,,"Tables")) -> 10.9
B6: A | C6: =INDIRECT(ADDRESS(ROW()+12,2+MATCH(Inputs!$B$2,$C$16:$G$16,0))) ->  | H6: A | I6: =INDIRECT(ADDRESS(32,36+MATCH(Inputs!$B$2,Tables!$AL$30:$AR$30,0),,,"Tables")) -> 
B7: B | C7: =INDIRECT(ADDRESS(ROW()+12,2+MATCH(Inputs!$B$2,$C$16:$G$16,0))) ->  | H7: B | I7: =INDIRECT(ADDRESS(33,36+MATCH(Inputs!$B$2,Tables!$AL$30:$AR$30,0),,,"Tables")) -> 
B8: C | C8: =INDIRECT(ADDRESS(ROW()+12,2+MATCH(Inputs!$B$2,$C$16:$G$16,0))) ->  | H8: C | I8: =INDIRECT(ADDRESS(34,36+MATCH(Inputs!$B$2,Tables!$AL$30:$AR$30,0),,,"Tables")) -> 
B9: O | C9: =INDIRECT(ADDRESS(ROW()+12,2+MATCH(Inputs!$B$2,$C$16:$G$16,0))) ->  | H9: O | I9: =INDIRECT(ADDRESS(35,36+MATCH(Inputs!$B$2,Tables!$AL$30:$AR$30,0),,,"Tables")) -> 
B11: KABC | C11: =ROUND((INDIRECT(ADDRESS(9,IF(Inputs!$B$3="HSM",5,8),,,"Tables"))*$C5+INDIRECT(ADDRESS(10,IF(Inputs!$B$3="HSM",5,8),,,"Tables"))*$C6+INDIRECT(ADDRESS(11,IF(Inputs!$B$3="HSM",5,8),,,"Tables"))*$C7+INDIRECT(ADDRESS(12,IF(Inputs!$B$3="HSM",5,8),,,"Tables"))*$C8)/(INDIRECT(ADDRESS(9,IF(Inputs!$B$3="HSM",5,8),,,"Tables"))+INDIRECT(ADDRESS(10,IF(Inputs!$B$3="HSM",5,8),,,"Tables"))+INDIRECT(ADDRESS(11,IF(Inputs!$B$3="HSM",5,8),,,"Tables"))+INDIRECT(ADDRESS(12,IF(Inputs!$B$3="HSM",5,8),,,"Tables"))),-3) ->  | D11: =ROUND((INDIRECT(ADDRESS(49,IF(Inputs!$B$3="HSM",5,11),,,"Tables"))*$C5+INDIRECT(ADDRESS(50,IF(Inputs!$B$3="HSM",5,11),,,"Tables"))*$C6+INDIRECT(ADDRESS(51,IF(Inputs!$B$3="HSM",5,11),,,"Tables"))*$C7+INDIRECT(ADDRESS(52,IF(Inputs!$B$3="HSM",5,11),,,"Tables"))*$C8)/(INDIRECT(ADDRESS(49,IF(Inputs!$B$3="HSM",5,11),,,"Tables"))+INDIRECT(ADDRESS(50,IF(Inputs!$B$3="HSM",5,11),,,"Tables"))+INDIRECT(ADDRESS(51,IF(Inputs!$B$3="HSM",5,11),,,"Tables"))+INDIRECT(ADDRESS(52,IF(Inputs!$B$3="HSM",5,11),,,"Tables"))),-3) ->  | E11: =ROUND((INDIRECT(ADDRESS(49,IF(Inputs!$B$3="HSM",7,13),,,"Tables"))*$C5+INDIRECT(ADDRESS(50,IF(Inputs!$B$3="HSM",7,13),,,"Tables"))*$C6+INDIRECT(ADDRESS(51,IF(Inputs!$B$3="HSM",7,13),,,"Tables"))*$C7+INDIRECT(ADDRESS(52,IF(Inputs!$B$3="HSM",7,13),,,"Tables"))*$C8)/(INDIRECT(ADDRESS(49,IF(Inputs!$B$3="HSM",7,13),,,"Tables"))+INDIRECT(ADDRESS(50,IF(Inputs!$B$3="HSM",7,13),,,"Tables"))+INDIRECT(ADDRESS(51,IF(Inputs!$B$3="HSM",7,13),,,"Tables"))+INDIRECT(ADDRESS(52,IF(Inputs!$B$3="HSM",7,13),,,"Tables"))),-3) ->  | F11: =ROUND((INDIRECT(ADDRESS(49,IF(Inputs!$B$3="HSM",9,15),,,"Tables"))*$C5+INDIRECT(ADDRESS(50,IF(Inputs!$B$3="HSM",9,15),,,"Tables"))*$C6+INDIRECT(ADDRESS(51,IF(Inputs!$B$3="HSM",9,15),,,"Tables"))*$C7+INDIRECT(ADDRESS(52,IF(Inputs!$B$3="HSM",9,15),,,"Tables"))*$C8)/(INDIRECT(ADDRESS(49,IF(Inputs!$B$3="HSM",9,15),,,"Tables"))+INDIRECT(ADDRESS(50,IF(Inputs!$B$3="HSM",9,15),,,"Tables"))+INDIRECT(ADDRESS(51,IF(Inputs!$B$3="HSM",9,15),,,"Tables"))+INDIRECT(ADDRESS(52,IF(Inputs!$B$3="HSM",9,15),,,"Tables"))),-3) ->  | H11: KABC | I11: =ROUND((Tables!L9*I5+Tables!L10*I6+Tables!L11*I7+Tables!L12*I8)/(Tables!L9+Tables!L10+Tables!L11+Tables!L12),-3) ->  | J11: =ROUND((Tables!L49*I5+Tables!L50*I6+Tables!L51*I7+Tables!L52*I8)/(Tables!L49+Tables!L50+Tables!L51+Tables!L52),-3) ->  | K11: =ROUND((Tables!M49*I5+Tables!M50*I6+Tables!M51*I7+Tables!M52*I8)/(Tables!M49+Tables!M50+Tables!M51+Tables!M52),-3) ->  | L11: =ROUND((Tables!N49*I5+Tables!N50*I6+Tables!N51*I7+Tables!N52*I8)/(Tables!N49+Tables!N50+Tables!N51+Tables!N52),-3) ->  | M11: =ROUND((Tables!P49*I5+Tables!P50*I6+Tables!P51*I7+Tables!P52*I8)/(Tables!P49+Tables!P50+Tables!P51+Tables!P52),-3) -> 
D14: ="'Tables'!$AK$30:"&ADDRESS(30,SUMPRODUCT(MAX((Tables!$AL$30:$AR$30<>"")*(COLUMN(Tables!$AL$30:$AR$30))))) -> 
B16: Crash Costs: | C16: National Safety Council | D16: MDOT
B17: K | C17: 1410000 | D17: 1410000
B18: A | C18: 69200 | D18: 69200
B19: B | C19: 22300 | D19: 22300
B20: C | C20: 12600 | D20: 12600
B21: O | C21: 2400 | D21: 2400

Sheet Formats (hidden)
A1: Rural 2-Lane Segments
A2: Example 1 | B2: SH 321 | C2: MP 0.0 to MP 1.5 | D2: Anywhere, USA | E2: 1.5 | F2: 10000 | G2: 12 | H2: 6 | I2: Paved | J2: 6 | K2: Paved | L2: 0 | M2: 0 | N2: NP | O2: 0 | P2: 0 | Q2: 5 | R2: NP | S2: NP | T2: NP | U2: 3 | V2: NP | W2: NP | X2: N/A (1.000) | Y2: N/A (1.000) | Z2: N/A (1.000) | AB2: 1 | AC2: =AVERAGE(INDIRECT(ADDRESS(MATCH(sYear,'Calibration Factors'!$A:$A,0),2,,,"Calibration Factors")&":"&ADDRESS(MATCH(eYear,'Calibration Factors'!$A:$A,0),2))) -> 1.3982298 | AE2: =BN2 -> 0.1573333333 | AF2: =1/(1+AE2*FW2) -> 0.5314557267 | AG2: =IF(AD2=0,0,AF2*FW2+((1-AF2)*AD2)) -> 0 | AH2: =IF(AD2="","",AD2-AG2) ->  | AI2: =AE2*FW2^2 -> 4.940220596 | AJ2: =SQRT(AE2*FW2) -> 0.9389484978 | AK2: =CHOOSE(MATCH($F2,{0,400,2001}),(CHOOSE(MATCH(G2,{9,9.5,10,10.5,11,11.5,12},0),1.05,1.035,1.02,1.015,1.01,1.005,1)-1)*(IF( Inputs!$B$3="HSM", ((Tables!$G$29+Tables!$G$34+Tables!$G$36)/100),((Tables!$K$29+Tables!$K$34+Tables!$K$36)/100)))+1,(CHOOSE(MATCH(G2,{9,9.5,10,10.5,11,11.5,12},0),($F2-400)*0.000281+1.05,((($F2-400)*0.000281+1.05)+(($F2-400)*0.000175+1.02))/2,($F2-400)*0.000175+1.02,((($F2-400)*0.000175+1.02)+(($F2-400)*0.000025+1.01))/2,($F2-400)*0.000025+1.01,((($F2-400)*0.000025+1.01)+1)/2,1)-1)*(IF( Inputs!$B$3="HSM", ((Tables!$G$29+Tables!$G$34+Tables!$G$36)/100),((Tables!$K$29+Tables!$K$34+Tables!$K$36)/100)))+1,(CHOOSE(MATCH(G2,{9,9.5,10,10.5,11,11.5,12},0),1.5,1.4,1.3,1.175,1.05,1.025,1)-1)*(IF( Inputs!$B$3="HSM", ((Tables!$G$29+Tables!$G$34+Tables!$G$36)/100),((Tables!$K$29+Tables!$K$34+Tables!$K$36)/100)))+1) -> 1 | AL2: =($BD2+$BG2)/2 -> 1 | AM2: =+BL2 -> 1 | AN2: =IF($O2>=0.02,(1.06+3*($O2-0.02)),IF($O2<0.01,1,(1+6*($O2-0.01)))) -> 1 | AO2: =IF($P2>6,1.16,(IF($P2<=3,1,1.1))) -> 1 | AP2: =IF($Q2>5,(0.322+$Q2*(0.05-0.005*LN($F2)))/(0.322+5*(0.05-0.005*LN($F2))),1) -> 1 | AQ2: =IF(T2="P",1,IF($R2="P",0.94,1)) -> 1 | AR2: =IF($S2="P1",0.75,IF($S2="P2", 0.65, 1)) -> 1 | AS2: =IF($T2="NP",1,IF($Q2<=5,1,(1-(0.7*0.5*((0.0047*$Q2)+($Q2*$Q2*0.0024))/(1.199+(0.0047*$Q2)+(0.0024*$Q2*$Q2)))))) -> 1 | AT2: =EXP($U2*0.0668-0.6869)/EXP(-0.4865) -> 1 | AU2: =IF($V2="P",(1-((1-(0.72*IF(Inputs!$B$3="HSM",Tables!$C$90,Tables!$I$90))-(0.83*IF(Inputs!$B$3="HSM",Tables!$E$90,Tables!$K$90)))*IF(Inputs!$B$3="HSM",Tables!$F$90,Tables!$L$90))),1) -> 1 | AV2: =IF($W2="P",0.93,1) -> 1 | AW2: =OFFSET(Tables!$AM$1,MATCH(X2,Tables!$AM:$AM,0)-1,1) -> 1 | AX2: =OFFSET(Tables!$AM$1,MATCH(Y2,Tables!$AM:$AM,0)-1,1) -> 1 | AY2: =OFFSET(Tables!$AM$1,MATCH(Z2,Tables!$AM:$AM,0)-1,1) -> 1 | AZ2: =IF(AA2="",1,AA2) -> 1 | BA2: =+AK2*AL2*AM2*AN2*AO2*AP2*AQ2*AR2*AS2*AT2*AU2*AV2*AW2*AX2*AY2*AZ2 -> 1 | BB2: =CHOOSE(MATCH($F2,{0,400,2001}),CHOOSE($H2+1,1.1,1.085,1.07,1.045,1.02,1.01,1,0.99,0.98),CHOOSE($H2+1,($F2-400)*0.00025+1.1,((($F2-400)*0.00025+1.1)+(($F2-400)*0.000143+1.07))/2,($F2-400)*0.000143+1.07,((($F2-400)*0.000143+1.07)+(($F2-400)*0.00008125+1.02))/2,($F2-400)*0.00008125+1.02,((($F2-400)*0.00008125+1.02)+1)/2,1,(1+((($F2-400)*-0.00006875)+0.98))/2,(($F2-400)*-0.00006875)+0.98),CHOOSE($H2+1,1.5,1.4,1.3,1.225,1.15,1.075,1,0.935,0.87)) -> 1 | BC2: =IF($I2="Paved",(HLOOKUP($H2,Tables!$Z$8:$AH$12,2,FALSE)),(IF($I2="Gravel",(HLOOKUP($H2,Tables!$Z$8:$AH$12,3,FALSE)),(IF($I2="Turf",(HLOOKUP($H2,Tables!$Z$8:$AH$12,5,FALSE)),HLOOKUP($H2,Tables!$Z$8:$AH$12,4,FALSE)))))) -> 1 | BD2: =(+$BB2*$BC2-1)*(IF(Inputs!$B$3="HSM",((Tables!$G$29+Tables!$G$34+Tables!$G$36)/100),((Tables!$K$29+Tables!$K$34+Tables!$K$36)/100)))+1 -> 1 | BE2: =CHOOSE(MATCH($F2,{0,400,2001}),CHOOSE($J2+1,1.1,1.085,1.07,1.045,1.02,1.01,1,0.99,0.98),CHOOSE($J2+1,($F2-400)*0.00025+1.1,((($F2-400)*0.00025+1.1)+(($F2-400)*0.000143+1.07))/2,($F2-400)*0.000143+1.07,((($F2-400)*0.000143+1.07)+(($F2-400)*0.00008125+1.02))/2,($F2-400)*0.00008125+1.02,((($F2-400)*0.00008125+1.02)+1)/2,1,(1+((($F2-400)*-0.00006875)+0.98))/2,(($F2-400)*-0.00006875)+0.98),CHOOSE($J2+1,1.5,1.4,1.3,1.225,1.15,1.075,1,0.935,0.87)) -> 1 | BF2: =IF($K2="Paved",(HLOOKUP($J2,Tables!$Z$8:$AH$12,2,FALSE)),(IF($K2="Gravel",(HLOOKUP($J2,Tables!$Z$8:$AH$12,3,FALSE)),(IF($K2="Turf",(HLOOKUP($J2,Tables!$Z$8:$AH$12,5,FALSE)),HLOOKUP($J2,Tables!$Z$8:$AH$12,4,FALSE)))))) -> 1 | BG2: =(+$BE2*$BF2-1)*(IF(Inputs!$B$3="HSM",((Tables!$G$29+Tables!$G$34+Tables!$G$36)/100),((Tables!$K$29+Tables!$K$34+Tables!$K$36)/100)))+1 -> 1 | BH2: =IF($M2>0,IF($M2<=100,100,$M2),0) -> 0 | BI2: =IF($L2>0,IF($L2<=100/5280,100/5280,$L2),0) -> 0 | BJ2: =IF(N2="P",1,IF(N2="NP",0,0.5)) -> 0 | BK2: =IF( $BI2>0, ((1.55*$BI2)+(80.2/$BH2)-(0.012*(IF($BJ2="Present",TRUE,FALSE))))/(1.55*$BI2), 1) -> 1 | BL2: =IF($BK2<1,1,$BK2) -> 1 | BM2: =+F2*E2*365*0.000001*EXP(-0.312) -> 4.007598867 | BN2: =0.236/E2 -> 0.1573333333 | BO2: =+Tables!$E$15/100 -> 1 | BP2: =+BM2*BO2 -> 4.007598867 | BQ2: =+BA2 -> 1 | BR2: =IF(Inputs!$B$3<>"HSM",$AC2,$AB2) -> 1.3982298 | BS2: =+BP2*BQ2*BR2 -> 5.603544162 | BT2: -- | BU2: -- | BV2: =+IF(Inputs!$B$3="HSM",(Tables!$E$13/100),(Tables!$H$13/100)) -> 0.109 | BW2: =+BM2*BV2 -> 0.4368282765 | BX2: =+BA2 -> 1 | BY2: =IF(Inputs!$B$3<>"HSM",$AC2,$AB2) -> 1.3982298 | BZ2: =+BW2*BX2*BY2 -> 0.6107863137 | CA2: -- | CB2: -- | CC2: =+IF(Inputs!$B$3="HSM",(Tables!$E$14/100),(Tables!$H$14/100)) -> 0.891 | CD2: =+BM2*CC2 -> 3.570770591 | CE2: =+BA2 -> 1 | CF2: =IF(Inputs!$B$3<>"HSM",$AC2,$AB2) -> 1.3982298 | CG2: =+CD2*CE2*CF2 -> 4.992757849 | CH2: =+DX2+FH2 -> 0.999 | CI2: =+$BS2 -> 5.603544162 | CJ2: =+DZ2+FJ2 -> 1 | CK2: =+$BZ2 -> 0.6107863137 | CL2: 2 | CM2: =+$CG2 -> 4.992757849 | CN2: =IF(Inputs!$B$3="HSM",(Tables!$G$25/100),(Tables!$K$25/100)) -> 0.677 | CO2: =+$BS2*CN2 -> 3.793599398 | CP2: =IF(Inputs!$B$3="HSM",Tables!$E$25/100,Tables!$I$25/100) -> 0.115 | CQ2: =+$BZ2*CP2 -> 0.07024042608 | CR2: =IF(Inputs!$B$3="HSM",Tables!$F$25/100,Tables!$J$25/100) -> 0.748 | CS2: =+$CG2*CR2 -> 3.734582871 | CT2: =IF(Inputs!$B$3="HSM",(Tables!$G$26/100),(Tables!$K$26/100)) -> 0 | CU2: =+$BS2*CT2 -> 0 | CV2: =IF(Inputs!$B$3="HSM",Tables!$E$26/100,Tables!$I$26/100) -> 0.007 | CW2: =+$BZ2*CV2 -> 0.004275504196 | CX2: =IF(Inputs!$B$3="HSM",Tables!$F$26/100,Tables!$J$26/100) -> 0 | CY2: =+$CG2*CX2 -> 0 | CZ2: =IF(Inputs!$B$3="HSM",(Tables!$G$27/100),(Tables!$K$27/100)) -> 0.002 | DA2: =+$BS2*CZ2 -> 0.01120708832 | DB2: =IF(Inputs!$B$3="HSM",Tables!$E$27/100,Tables!$I$27/100) -> 0.013 | DC2: =+$BZ2*DB2 -> 0.007940222078 | DD2: =IF(Inputs!$B$3="HSM",Tables!$F$27/100,Tables!$J$27/100) -> 0 | DE2: =+$CG2*DD2 -> 0 | DF2: =IF(Inputs!$B$3="HSM",(Tables!$G$28/100),(Tables!$K$28/100)) -> 0.04 | DG2: =+$BS2*DF2 -> 0.2241417665 | DH2: =IF(Inputs!$B$3="HSM",Tables!$E$28/100,Tables!$I$28/100) -> 0.155 | DI2: =+$BZ2*DH2 -> 0.09467187862 | DJ2: =IF(Inputs!$B$3="HSM",Tables!$F$28/100,Tables!$J$28/100) -> 0.025 | DK2: =+$CG2*DJ2 -> 0.1248189462 | DL2: =IF(Inputs!$B$3="HSM",(Tables!$G$29/100),(Tables!$K$29/100)) -> 0.129 | DM2: =+$BS2*DL2 -> 0.7228571969 | DN2: =IF(Inputs!$B$3="HSM",Tables!$E$29/100,Tables!$I$29/100) -> 0.267 | DO2: =+$BZ2*DN2 -> 0.1630799458 | DP2: =IF(Inputs!$B$3="HSM",Tables!$F$29/100,Tables!$J$29/100) -> 0.112 | DQ2: =+$CG2*DP2 -> 0.559188879 | DR2: =IF(Inputs!$B$3="HSM",(Tables!$G$30/100),(Tables!$K$30/100)) -> 0.015 | DS2: =+$BS2*DR2 -> 0.08405316244 | DT2: =IF(Inputs!$B$3="HSM",Tables!$E$30/100,Tables!$I$30/100) -> 0.029 | DU2: =+$BZ2*DT2 -> 0.0177128031 | DV2: =IF(Inputs!$B$3="HSM",Tables!$F$30/100,Tables!$J$30/100) -> 0.013 | DW2: =+$CG2*DV2 -> 0.06490585203 | DX2: =CN2+CT2+CZ2+DF2+DL2+DR2 -> 0.863 | DY2: =+$BS2*DX2 -> 4.835858612 | DZ2: =CP2+CV2+DB2+DH2+DN2+DT2 -> 0.586 | EA2: =+$BZ2*DZ2 -> 0.3579207798 | EB2: =CR2+CX2+DD2+DJ2+DP2+DV2 -> 0.898 | EC2: =+$CG2*EB2 -> 4.483496548 | ED2: =IF(Inputs!$B$3="HSM",(Tables!$G$33/100),(Tables!$K$33/100)) -> 0.017 | EE2: =+$BS2*ED2 -> 0.09526025076 | EF2: =IF(Inputs!$B$3="HSM",Tables!$E$33/100,Tables!$I$33/100) -> 0.061 | EG2: =+$BZ2*EF2 -> 0.03725796514 | EH2: =IF(Inputs!$B$3="HSM",Tables!$F$33/100,Tables!$J$33/100) -> 0.012 | EI2: =+$CG2*EH2 -> 0.05991309418 | EJ2: =IF(Inputs!$B$3="HSM",(Tables!$G$34/100),(Tables!$K$34/100)) -> 0.013 | EK2: =+$BS2*EJ2 -> 0.07284607411 | EL2: =IF(Inputs!$B$3="HSM",Tables!$E$34/100,Tables!$I$34/100) -> 0.09 | EM2: =+$BZ2*EL2 -> 0.05497076823 | EN2: =IF(Inputs!$B$3="HSM",Tables!$F$34/100,Tables!$J$34/100) -> 0.003 | EO2: =+$CG2*EN2 -> 0.01497827355 | EP2: =IF(Inputs!$B$3="HSM",(Tables!$G$35/100),(Tables!$K$35/100)) -> 0.055 | EQ2: =+$BS2*EP2 -> 0.3081949289 | ER2: =IF(Inputs!$B$3="HSM",Tables!$E$35/100,Tables!$I$35/100) -> 0.164 | ES2: =+$BZ2*ER2 -> 0.1001689554 | ET2: =IF(Inputs!$B$3="HSM",Tables!$F$35/100,Tables!$J$35/100) -> 0.042 | EU2: =+$CG2*ET2 -> 0.2096958296 | EV2: =IF(Inputs!$B$3="HSM",(Tables!$G$36/100),(Tables!$K$36/100)) -> 0.028 | EW2: =+$BS2*EV2 -> 0.1568992365 | EX2: =IF(Inputs!$B$3="HSM",Tables!$E$36/100,Tables!$I$36/100) -> 0.057 | EY2: =+$BZ2*EX2 -> 0.03481481988 | EZ2: =IF(Inputs!$B$3="HSM",Tables!$F$36/100,Tables!$J$36/100) -> 0.024 | FA2: =+$CG2*EZ2 -> 0.1198261884 | FB2: =IF(Inputs!$B$3="HSM",(Tables!$G$37/100),(Tables!$K$37/100)) -> 0.023 | FC2: =+$BS2*FB2 -> 0.1288815157 | FD2: =IF(Inputs!$B$3="HSM",Tables!$E$37/100,Tables!$I$37/100) -> 0.042 | FE2: =+$BZ2*FD2 -> 0.02565302518 | FF2: =IF(Inputs!$B$3="HSM",Tables!$F$37/100,Tables!$J$37/100) -> 0.02 | FG2: =+$CG2*FF2 -> 0.09985515697 | FH2: =ED2+EJ2+EP2+EV2+FB2 -> 0.136 | FI2: =+$BS2*FH2 -> 0.7620820061 | FJ2: =EF2+EL2+ER2+EX2+FD2 -> 0.414 | FK2: =+$BZ2*FJ2 -> 0.2528655339 | FL2: =EH2+EN2+ET2+EZ2+FF2 -> 0.101 | FM2: =EI2+EO2+EU2+FA2+FG2 -> 0.5042685427 | FN2: =+CC2 -> 0.891 | FO2: =+CG2 -> 4.992757849 | FP2: =+$E2 -> 1.5 | FQ2: =+FO2/FP2 -> 3.328505232 | FR2: =+BV2 -> 0.109 | FS2: =+BZ2 -> 0.6107863137 | FT2: =+$E2 -> 1.5 | FU2: =+FS2/FT2 -> 0.4071908758 | FV2: =+BO2 -> 1 | FW2: =+BS2 -> 5.603544162 | FX2: =+$E2 -> 1.5 | FY2: =+FW2/FX2 -> 3.735696108
A4: Rural 2-Lane Intersections
A5: Example 1 | B5: SH 321 | C5: 1st Street | D5: Anywhere, USA | E5: 4SG | F5: 8000 | G5: 1000 | H5: N | I5: 0 | J5: 0 | K5: 0 | L5: 0 | M5: NP | N5: N/A (1.000) | O5: N/A (1.000) | P5: N/A (1.000) | R5: 1 | S5: =AVERAGE(INDIRECT(ADDRESS(MATCH(sYear,'Calibration Factors'!$A:$A,0),CHOOSE(MATCH(E5,{"3ST","4ST","4SG"},0),14,18,20),,,"Calibration Factors")&":"&ADDRESS(MATCH(eYear,'Calibration Factors'!$A:$A,0),CHOOSE(MATCH(E5,{"3ST","4ST","4SG"},0),14,18,20)))) -> 1.7784344 | U5: =AK5 -> 0.11 | V5: =1/(1+U5*EL5) -> 0.4969181236 | W5: =IF(T5=0,0,V5*EL5+((1-V5)*T5)) -> 0 | X5: =IF(T5="","",T5-W5) ->  | Y5: =U5*EL5^2 -> 9.317834357 | Z5: =SQRT(U5*EL5) -> 1.006182866 | AA5: =IF(+$E5="3ST",(EXP(0.004*$I5)),(IF(+$E5="4ST",(IF($H5="N",(EXP(0.0054*$I5)),(((EXP(0.0054*$I5))+(EXP(0.0054*$J5)))/2))),1))) -> 1 | AB5: =IF($E5="3ST",(IF($K5=0,1,(HLOOKUP($K5,Tables!$AC$20:$AF$26,3,FALSE)))),(IF($E5="4ST",(IF($K5=0,1,(HLOOKUP($K5,Tables!$AC$20:$AF$26,5,FALSE)))),(IF($K5=0,1,(HLOOKUP($K5,Tables!$AC$20:$AF$26,7,FALSE))))))) -> 1 | AC5: =IF($E5="3ST",(IF($L5=0,1,(HLOOKUP($L5,Tables!$AC$36:$AF$42,3,FALSE)))),(IF($E5="4ST",(IF($L5=0,1,(HLOOKUP($L5,Tables!$AC$36:$AF$42,5,FALSE)))),(IF($L5=0,1,(HLOOKUP($L5,Tables!$AC$36:$AF$42,7,FALSE))))))) -> 1 | AD5: =IF(($M5="NP"),1,(1-0.38*(IF(Inputs!$B$3="HSM",(VLOOKUP( $E5,Tables!$B$97:$F$99,4,FALSE)),(VLOOKUP($E5,Tables!$B$97:$H$99,6,FALSE)))))) -> 1 | AE5: =OFFSET(Tables!$AO$1,MATCH(N5,Tables!$AO:$AO,0)-1,1) -> 1 | AF5: =OFFSET(Tables!$AO$1,MATCH(O5,Tables!$AO:$AO,0)-1,1) -> 1 | AG5: =OFFSET(Tables!$AO$1,MATCH(P5,Tables!$AO:$AO,0)-1,1) -> 1 | AH5: =IF(Q5="",1,Q5) -> 1 | AI5: =+AA5*AB5*AC5*AD5*AE5*AF5*AG5*AH5 -> 1 | AJ5: =IF($E5="3ST",(EXP(-9.86+0.79*(LN($F5))+(0.49*(LN($G5))))),IF($E5="4ST",(EXP(-8.56+0.6*(LN($F5))+(0.61*(LN($G5))))),(EXP(-5.13+(0.6*(LN($F5)))+(0.2*(LN($G5))))))) -> 5.175154264 | AK5: =IF($E5="3ST",0.54,(IF($E5="4ST",0.24,0.11))) -> 0.11 | AL5: =IF($E5="3ST",IF(Inputs!$B$3="HSM",Tables!$E$55,Tables!$K$55),(IF($E5="4ST",(IF(Inputs!$B$3="HSM",Tables!$G$55,Tables!$M$55)),(IF(Inputs!$B$3="HSM",Tables!$I$55,Tables!$O$55)))))/100 -> 1 | AM5: =+AJ5*AL5 -> 5.175154264 | AN5: =+$AI5 -> 1 | AO5: =IF(Inputs!$B$3<>"HSM",$S5,$R5) -> 1.7784344 | AP5: =+AM5*AN5*AO5 -> 9.203672369 | AQ5: =IF($E5="3ST",IF(Inputs!$B$3="HSM",Tables!$E$53,Tables!$K$53),(IF($E5="4ST",(IF(Inputs!$B$3="HSM",Tables!$G$53,Tables!$M$53)),(IF(Inputs!$B$3="HSM",Tables!$I$53,Tables!$O$53)))))/100 -> 0.235 | AR5: =+AJ5*AQ5 -> 1.216161252 | AS5: =+$AI5 -> 1 | AT5: =IF(Inputs!$B$3<>"HSM",$S5,$R5) -> 1.7784344 | AU5: =+AR5*AS5*AT5 -> 2.162863007 | AV5: =IF($E5="3ST",IF(Inputs!$B$3="HSM",Tables!$E$54,Tables!$K$54),(IF($E5="4ST",(IF(Inputs!$B$3="HSM",Tables!$G$54,Tables!$M$54)),(IF(Inputs!$B$3="HSM",Tables!$I$54,Tables!$O$54)))))/100 -> 0.765 | AW5: =+AJ5*AV5 -> 3.958993012 | AX5: =+$AI5 -> 1 | AY5: =IF(Inputs!$B$3<>"HSM",$S5,$R5) -> 1.7784344 | AZ5: =+AW5*AX5*AY5 -> 7.040809362 | BA5: =IF(Inputs!$B$3="HSM",(IF($E5="3ST",Tables!$G$80,(IF($E5="4ST",Tables!$J$80,Tables!$M$80)))/100),(IF($E5="3ST",Tables!$P$80,(IF($E5="4ST",+Tables!$S$80,+Tables!$V$80)))/100)) -> 1 | BB5: =+AP5 -> 9.203672369 | BC5: =IF(Inputs!$B$3="HSM",(IF($E5="3ST",Tables!$E$80,(IF($E5="4ST",Tables!$H$80,Tables!$K$80)))/100),(IF($E5="3ST",Tables!$N$80,(IF($E5="4ST",+Tables!$Q$80,+Tables!$T$80)))/100)) -> 1 | BD5: =+AU5 -> 2.162863007 | BE5: =IF(Inputs!$B$3="HSM",(IF($E5="3ST",Tables!$F$80,(IF($E5="4ST",Tables!$I$80,Tables!$L$80)))/100),(IF($E5="3ST",Tables!$O$80,(IF($E5="4ST",+Tables!$R$80,+Tables!$U$80)))/100)) -> 1 | BF5: =+AZ5 -> 7.040809362 | BG5: =IF(Inputs!$B$3="HSM",(IF($E5="3ST",Tables!$G$66,(IF($E5="4ST",Tables!$J$66,Tables!$M$66)))/100),(IF($E5="3ST",Tables!$P$66,(IF($E5="4ST",+Tables!$S$66,+Tables!$V$66)))/100)) -> 0.034 | BH5: =IF(Inputs!$B$3="HSM",(IF($E5="3ST",Tables!$G$67,(IF($E5="4ST",Tables!$J$67,Tables!$M$67)))/100),(IF($E5="3ST",Tables!$P$67,(IF($E5="4ST",+Tables!$S$67,+Tables!$V$67)))/100)) -> 0.006 | BI5: =IF(Inputs!$B$3="HSM",(IF($E5="3ST",Tables!$G$68,(IF($E5="4ST",Tables!$J$68,Tables!$M$68)))/100),(IF($E5="3ST",Tables!$P$68,(IF($E5="4ST",+Tables!$S$68,+Tables!$V$68)))/100)) -> 0.012 | BJ5: =IF(Inputs!$B$3="HSM",(IF($E5="3ST",Tables!$G$69,(IF($E5="4ST",Tables!$J$69,Tables!$M$69)))/100),(IF($E5="3ST",Tables!$P$69,(IF($E5="4ST",+Tables!$S$69,+Tables!$V$69)))/100)) -> 0.003 | BK5: =IF(Inputs!$B$3="HSM",(IF($E5="3ST",Tables!$G$70,(IF($E5="4ST",Tables!$J$70,Tables!$M$70)))/100),(IF($E5="3ST",Tables!$P$70,(IF($E5="4ST",+Tables!$S$70,+Tables!$V$70)))/100)) -> 0.047 | BL5: =IF(Inputs!$B$3="HSM",(IF($E5="3ST",Tables!$G$71,(IF($E5="4ST",Tables!$J$71,Tables!$M$71)))/100),(IF($E5="3ST",Tables!$P$71,(IF($E5="4ST",+Tables!$S$71,+Tables!$V$71)))/100)) -> 0.007 | BM5: =IF(Inputs!$B$3="HSM",(IF($E5="3ST",Tables!$G$72,(IF($E5="4ST",Tables!$J$72,Tables!$M$72)))/100),(IF($E5="3ST",Tables!$P$72,(IF($E5="4ST",+Tables!$S$72,+Tables!$V$72)))/100)) -> 0.109 | BN5: =BG5*$BB5 -> 0.3129248605 | BO5: 0.05522203421 | BP5: 0.1104440684 | BQ5: 0.02761101711 | BR5: 0.4325726013 | BS5: 0.06442570658 | BT5: 1.003200288 | BU5: =IF(Inputs!$B$3="HSM",(IF($E5="3ST",Tables!$E$66,(IF($E5="4ST",Tables!$H$66,Tables!$K$66)))/100),(IF($E5="3ST",Tables!$N$66,(IF($E5="4ST",+Tables!$Q$66,+Tables!$T$66)))/100)) -> 0.002 | BV5: =IF(Inputs!$B$3="HSM",(IF($E5="3ST",Tables!$E$67,(IF($E5="4ST",Tables!$H$67,Tables!$K$67)))/100),(IF($E5="3ST",Tables!$N$67,(IF($E5="4ST",+Tables!$Q$67,+Tables!$T$67)))/100)) -> 0.019 | BW5: =IF(Inputs!$B$3="HSM",(IF($E5="3ST",Tables!$E$68,(IF($E5="4ST",Tables!$H$68,Tables!$K$68)))/100),(IF($E5="3ST",Tables!$N$68,(IF($E5="4ST",+Tables!$Q$68,+Tables!$T$68)))/100)) -> 0.047 | BX5: =IF(Inputs!$B$3="HSM",(IF($E5="3ST",Tables!$E$69,(IF($E5="4ST",Tables!$H$69,Tables!$K$69)))/100),(IF($E5="3ST",Tables!$N$69,(IF($E5="4ST",+Tables!$Q$69,+Tables!$T$69)))/100)) -> 0.003 | BY5: =IF(Inputs!$B$3="HSM",(IF($E5="3ST",Tables!$E$70,(IF($E5="4ST",Tables!$H$70,Tables!$K$70)))/100),(IF($E5="3ST",Tables!$N$70,(IF($E5="4ST",+Tables!$Q$70,+Tables!$T$70)))/100)) -> 0.037 | BZ5: =IF(Inputs!$B$3="HSM",(IF($E5="3ST",Tables!$E$71,(IF($E5="4ST",Tables!$H$71,Tables!$K$71)))/100),(IF($E5="3ST",Tables!$N$71,(IF($E5="4ST",+Tables!$Q$71,+Tables!$T$71)))/100)) -> 0.011 | CA5: =IF(Inputs!$B$3="HSM",(IF($E5="3ST",Tables!$E$72,(IF($E5="4ST",Tables!$H$72,Tables!$K$72)))/100),(IF($E5="3ST",Tables!$N$72,(IF($E5="4ST",+Tables!$Q$72,+Tables!$T$72)))/100)) -> 0.119 | CB5: =BU5*$BD5 -> 0.004325726013 | CC5: 0.04109439713 | CD5: 0.1016545613 | CE5: 0.00648858902 | CF5: 0.08002593124 | CG5: 0.02379149307 | CH5: 0.2573806978 | CI5: =IF(Inputs!$B$3="HSM",(IF($E5="3ST",Tables!$F$66,(IF($E5="4ST",Tables!$I$66,Tables!$L$66)))/100),(IF($E5="3ST",Tables!$O$66,(IF($E5="4ST",+Tables!$R$66,+Tables!$U$66)))/100)) -> 0.044 | CJ5: =IF(Inputs!$B$3="HSM",(IF($E5="3ST",Tables!$F$67,(IF($E5="4ST",Tables!$I$67,Tables!$L$67)))/100),(IF($E5="3ST",Tables!$O$67,(IF($E5="4ST",+Tables!$R$67,+Tables!$U$67)))/100)) -> 0.003 | CK5: =IF(Inputs!$B$3="HSM",(IF($E5="3ST",Tables!$F$68,(IF($E5="4ST",Tables!$I$68,Tables!$L$68)))/100),(IF($E5="3ST",Tables!$O$68,(IF($E5="4ST",+Tables!$R$68,+Tables!$U$68)))/100)) -> 0.001 | CL5: =IF(Inputs!$B$3="HSM",(IF($E5="3ST",Tables!$F$69,(IF($E5="4ST",Tables!$I$69,Tables!$L$69)))/100),(IF($E5="3ST",Tables!$O$69,(IF($E5="4ST",+Tables!$R$69,+Tables!$U$69)))/100)) -> 0.003 | CM5: =IF(Inputs!$B$3="HSM",(IF($E5="3ST",Tables!$F$70,(IF($E5="4ST",Tables!$I$70,Tables!$L$70)))/100),(IF($E5="3ST",Tables!$O$70,(IF($E5="4ST",+Tables!$R$70,+Tables!$U$70)))/100)) -> 0.05 | CN5: =IF(Inputs!$B$3="HSM",(IF($E5="3ST",Tables!$F$71,(IF($E5="4ST",Tables!$I$71,Tables!$L$71)))/100),(IF($E5="3ST",Tables!$O$71,(IF($E5="4ST",+Tables!$R$71,+Tables!$U$71)))/100)) -> 0.006 | CO5: =IF(Inputs!$B$3="HSM",(IF($E5="3ST",Tables!$F$72,(IF($E5="4ST",Tables!$I$72,Tables!$L$72)))/100),(IF($E5="3ST",Tables!$O$72,(IF($E5="4ST",+Tables!$R$72,+Tables!$U$72)))/100)) -> 0.107 | CP5: =CI5*$BF5 -> 0.3097956119 | CQ5: 0.02112242809 | CR5: 0.007040809362 | CS5: 0.02112242809 | CT5: 0.3520404681 | CU5: 0.04224485617 | CV5: 0.7533666017 | CW5: =IF(Inputs!$B$3="HSM",(IF($E5="3ST",Tables!$G$74,(IF($E5="4ST",Tables!$J$74,Tables!$M$74)))/100),(IF($E5="3ST",Tables!$P$74,(IF($E5="4ST",+Tables!$S$74,+Tables!$V$74)))/100)) -> 0.24 | CX5: =IF(Inputs!$B$3="HSM",(IF($E5="3ST",Tables!$G$75,(IF($E5="4ST",Tables!$J$75,Tables!$M$75)))/100),(IF($E5="3ST",Tables!$P$75,(IF($E5="4ST",+Tables!$S$75,+Tables!$V$75)))/100)) -> 0.081 | CY5: =IF(Inputs!$B$3="HSM",(IF($E5="3ST",Tables!$G$76,(IF($E5="4ST",Tables!$J$76,Tables!$M$76)))/100),(IF($E5="3ST",Tables!$P$76,(IF($E5="4ST",+Tables!$S$76,+Tables!$V$76)))/100)) -> 0.363 | CZ5: =IF(Inputs!$B$3="HSM",(IF($E5="3ST",Tables!$G$77,(IF($E5="4ST",Tables!$J$77,Tables!$M$77)))/100),(IF($E5="3ST",Tables!$P$77,(IF($E5="4ST",+Tables!$S$77,+Tables!$V$77)))/100)) -> 0.094 | DA5: =IF(Inputs!$B$3="HSM",(IF($E5="3ST",Tables!$G$78,(IF($E5="4ST",Tables!$J$78,Tables!$M$78)))/100),(IF($E5="3ST",Tables!$P$78,(IF($E5="4ST",+Tables!$S$78,+Tables!$V$78)))/100)) -> 0.113 | DB5: =IF(Inputs!$B$3="HSM",(IF($E5="3ST",Tables!$G$79,(IF($E5="4ST",Tables!$J$79,Tables!$M$79)))/100),(IF($E5="3ST",Tables!$P$79,(IF($E5="4ST",+Tables!$S$79,+Tables!$V$79)))/100)) -> 0.891 | DC5: =+$CW5*$BB5 -> 2.208881368 | DD5: =+$CX5*$BB5 -> 0.7454974619 | DE5: =+$CY5*$BB5 -> 3.34093307 | DF5: =+$CZ5*$BB5 -> 0.8651452026 | DG5: =+$DA5*$BB5 -> 1.040014978 | DH5: =+$DB5*$BB5 -> 8.20047208 | DI5: =IF(Inputs!$B$3="HSM",(IF($E5="3ST",Tables!$E$74,(IF($E5="4ST",Tables!$H$74,Tables!$K$74)))/100),(IF($E5="3ST",Tables!$N$74,(IF($E5="4ST",+Tables!$Q$74,+Tables!$T$74)))/100)) -> 0.33 | DJ5: =IF(Inputs!$B$3="HSM",(IF($E5="3ST",Tables!$E$75,(IF($E5="4ST",Tables!$H$75,Tables!$K$75)))/100),(IF($E5="3ST",Tables!$N$75,(IF($E5="4ST",+Tables!$Q$75,+Tables!$T$75)))/100)) -> 0.146 | DK5: =IF(Inputs!$B$3="HSM",(IF($E5="3ST",Tables!$E$76,(IF($E5="4ST",Tables!$H$76,Tables!$K$76)))/100),(IF($E5="3ST",Tables!$N$76,(IF($E5="4ST",+Tables!$Q$76,+Tables!$T$76)))/100)) -> 0.319 | DL5: =IF(Inputs!$B$3="HSM",(IF($E5="3ST",Tables!$E$77,(IF($E5="4ST",Tables!$H$77,Tables!$K$77)))/100),(IF($E5="3ST",Tables!$N$77,(IF($E5="4ST",+Tables!$Q$77,+Tables!$T$77)))/100)) -> 0.027 | DM5: =IF(Inputs!$B$3="HSM",(IF($E5="3ST",Tables!$E$78,(IF($E5="4ST",Tables!$H$78,Tables!$K$78)))/100),(IF($E5="3ST",Tables!$N$78,(IF($E5="4ST",+Tables!$Q$78,+Tables!$T$78)))/100)) -> 0.059 | DN5: =IF(Inputs!$B$3="HSM",(IF($E5="3ST",Tables!$E$79,(IF($E5="4ST",Tables!$H$79,Tables!$K$79)))/100),(IF($E5="3ST",Tables!$N$79,(IF($E5="4ST",+Tables!$Q$79,+Tables!$T$79)))/100)) -> 0.881 | DO5: =+$BD5*$DI5 -> 0.7137447922 | DP5: =+$BD5*$DJ5 -> 0.315777999 | DQ5: =+$BD5*$DK5 -> 0.6899532991 | DR5: =+$BD5*$DL5 -> 0.05839730118 | DS5: =+$BD5*$DM5 -> 0.1276089174 | DT5: =+$BD5*$DN5 -> 1.905482309 | DU5: =IF(Inputs!$B$3="HSM",(IF($E5="3ST",Tables!$F$74,(IF($E5="4ST",Tables!$I$74,Tables!$L$74)))/100),(IF($E5="3ST",Tables!$O$74,(IF($E5="4ST",+Tables!$R$74,+Tables!$U$74)))/100)) -> 0.212 | DV5: =IF(Inputs!$B$3="HSM",(IF($E5="3ST",Tables!$F$75,(IF($E5="4ST",Tables!$I$75,Tables!$L$75)))/100),(IF($E5="3ST",Tables!$O$75,(IF($E5="4ST",+Tables!$R$75,+Tables!$U$75)))/100)) -> 0.061 | DW5: =IF(Inputs!$B$3="HSM",(IF($E5="3ST",Tables!$F$76,(IF($E5="4ST",Tables!$I$76,Tables!$L$76)))/100),(IF($E5="3ST",Tables!$O$76,(IF($E5="4ST",+Tables!$R$76,+Tables!$U$76)))/100)) -> 0.375 | DX5: =IF(Inputs!$B$3="HSM",(IF($E5="3ST",Tables!$F$77,(IF($E5="4ST",Tables!$I$77,Tables!$L$77)))/100),(IF($E5="3ST",Tables!$O$77,(IF($E5="4ST",+Tables!$R$77,+Tables!$U$77)))/100)) -> 0.115 | DY5: =IF(Inputs!$B$3="HSM",(IF($E5="3ST",Tables!$F$78,(IF($E5="4ST",Tables!$I$78,Tables!$L$78)))/100),(IF($E5="3ST",Tables!$O$78,(IF($E5="4ST",+Tables!$R$78,+Tables!$U$78)))/100)) -> 0.13 | DZ5: =IF(Inputs!$B$3="HSM",(IF($E5="3ST",Tables!$F$79,(IF($E5="4ST",Tables!$I$79,Tables!$L$79)))/100),(IF($E5="3ST",Tables!$O$79,(IF($E5="4ST",+Tables!$R$79,+Tables!$U$79)))/100)) -> 0.893 | EA5: =+$BF5*$DU5 -> 1.492651585 | EB5: =+$BF5*$DV5 -> 0.4294893711 | EC5: =+$BF5*$DW5 -> 2.640303511 | ED5: =+$BF5*$DX5 -> 0.8096930766 | EE5: =+$BF5*$DY5 -> 0.9153052171 | EF5: =+$BF5*$DZ5 -> 6.28744276 | EG5: =+$AL5 -> 1 | EH5: =+$AQ5 -> 0.235 | EI5: =+$AV5 -> 0.765 | EJ5: =+$AZ5 -> 7.040809362 | EK5: =+$AU5 -> 2.162863007 | EL5: =+$AP5 -> 9.203672369
A7: Rural Divided Multilane Segments
A8: Example 1 | B8: SH 123 | C8: MP 0.0 to MP 1.5 | D8: Anywhere, USA | E8: 1.5 | F8: 10000 | G8: 12 | H8: 8 | I8: Paved | J8: 30 | K8: NP | L8: NP | M8: N/A (1.000) | N8: N/A (1.000) | O8: N/A (1.000) | Q8: 1 | R8: =AVERAGE(INDIRECT(ADDRESS(MATCH(sYear,'Calibration Factors'!$A:$A,0),6,,,"Calibration Factors")&":"&ADDRESS(MATCH(eYear,'Calibration Factors'!$A:$A,0),6))) -> 1.574512 | T8: =+BI8 -> 0.1416402186 | U8: =1/(1+T8*EX8) ->  | V8: =IF(S8=0,0,U8*EX8+((1-U8)*S8)) -> 0 | W8: =IF(S8="","",S8-V8) ->  | X8: =T8*EX8^2 ->  | Y8: =SQRT(T8*EX8) ->  | Z8: =(IF($F8<400,OFFSET($AC$4,ROW()-4,MATCH($G8,$AG$4:$AM$4,0)),IF($F8<=2000,OFFSET($AM$4,ROW()-4,MATCH($G8,$AN$4:$AT$4,0)),OFFSET($AT$4,ROW()-4,MATCH($G8,$AU$4:$BA$4,0))))-1)*IF(Inputs!$B$3="HSM",Tables!$E$293,Tables!$I$293)+1 ->  | AA8: =IF(I8="Paved",VLOOKUP(H8,Tables!$Y$275:$AC$285,3,FALSE),1) -> 1 | AB8: =VLOOKUP(J8,Tables!$Y$294:$AB$303,3,FALSE) -> 1 | AC8: =IF($K8="P",(1-(IF(Tables!$D$314="No",((1-(0.72*Tables!$E$318)-(0.83*Tables!$F$318))*Tables!$G$318),((1-(0.72*Tables!$I$318)-(0.83*Tables!$J$318))*Tables!$K$318)))),1) -> 1 | AD8: =IF($L8="P",0.94,1) -> 1 | AE8: =OFFSET(Tables!$AQ$1,MATCH(M8,Tables!$AQ:$AQ,0)-1,1) -> 1 | AF8: =OFFSET(Tables!$AQ$1,MATCH(N8,Tables!$AQ:$AQ,0)-1,1) -> 1 | AG8: =OFFSET(Tables!$AQ$1,MATCH(O8,Tables!$AQ:$AQ,0)-1,1) -> 1 | AH8: =IF(P8="",1,P8) -> 1 | AI8: =Z8*AA8*AB8*AC8*AD8*AE8*AF8*AG8*AH8 ->  | AJ8: 1.03 | AK8: =+(AJ8+AL8)/2 -> 1.02 | AL8: 1.01 | AM8: =+(AL8+AN8)/2 -> 1.01 | AN8: 1.01 | AO8: =+(AN8+AP8)/2 -> 1.005 | AP8: 1 | AQ8: =1.03+0.000138*(F8-400) -> 2.3548 | AR8: =+(AQ8+AS8)/2 -> 2.1024 | AS8: =1.01+0.0000875*(F8-400) -> 1.85 | AT8: =+(AS8+AU8)/2 -> 1.49 | AU8: =1.01+0.0000125*(F8-400) -> 1.13 | AV8: =+(AU8+AW8)/2 -> 1.065 | AW8: 1 | AX8: 1.25 | AY8: =+(AX8+AZ8)/2 -> 1.2 | AZ8: 1.15 | BA8: =+(AZ8+BB8)/2 -> 1.09 | BB8: 1.03 | BC8: =+(BB8+BD8)/2 -> 1.015 | BD8: 1 | BE8: -9.025 | BF8: 1.049 | BG8: 1.549 | BH8: =EXP($BE8+$BF8*LN($F8)+LN($E8)) -> 2.835199084 | BI8: =1/(EXP($BG8+LN($E8))) -> 0.1416402186 | BJ8: =+$AI8 ->  | BK8: =IF(Inputs!$B$3<>"HSM",$R8,$P8) -> 1.574512 | BL8: =+BH8*BJ8*BK8 ->  | BM8: -8.837 | BN8: 0.958 | BO8: 1.687 | BP8: =EXP($BM8+$BN8*LN($F8)+LN($E8)) -> 1.479895067 | BQ8: =1/(EXP($BO8+LN($E8))) -> 0.1233826092 | BR8: =+$AI8 ->  | BS8: =IF(Inputs!$B$3<>"HSM",$R8,$P8) -> 1.574512 | BT8: =+BP8*BR8*BS8 ->  | BU8: -8.505 | BV8: 0.874 | BW8: 1.74 | BX8: =EXP($BU8+$BV8*LN($F8)+LN($E8)) -> 0.9515173036 | BY8: =1/(EXP($BW8+LN($E8))) -> 0.1170136004 | BZ8: =+$AI8 ->  | CA8: =IF(Inputs!$B$3<>"HSM",$R8,$P8) -> 1.574512 | CB8: =+BX8*BZ8*CA8 ->  | CC8: -- | CD8: -- | CE8: -- | CF8: -- | CG8: -- | CH8: -- | CI8: -- | CJ8: =+BL8-BT8 ->  | CK8: =IF(Inputs!$B$3="HSM",SUM(Tables!$E$287:$E$292),SUM(Tables!$I$287:$I$292)) -> 1 | CL8: =+BL8 ->  | CM8: =IF(Inputs!$B$3="HSM",SUM(Tables!$F$287:$F$292),SUM(Tables!$J$287:$J$292)) -> 0.999 | CN8: =+BT8 ->  | CO8: =IF(Inputs!$B$3="HSM",SUM(Tables!$G$287:$G$292),SUM(Tables!$K$287:$K$292)) -> 1 | CP8: =+CB8 ->  | CQ8: =IF(Inputs!$B$3="HSM",SUM(Tables!$H$287:$H$292),SUM(Tables!$L$287:$L$292)) -> 1.002 | CR8: =+CJ8 ->  | CS8: =IF(Inputs!$B$3="HSM",Tables!$E$287,Tables!$I$287) -> 0.009 | CT8: =+CS8*$CL8 ->  | CU8: =IF(Inputs!$B$3="HSM",Tables!$F$287,Tables!$J$287) -> 0.018 | CV8: =+CU8*$CN8 ->  | CW8: =IF(Inputs!$B$3="HSM",Tables!$G$287,Tables!$K$287) -> 0.033 | CX8: =+$CP8*CW8 ->  | CY8: =IF(Inputs!$B$3="HSM",Tables!$H$287,Tables!$L$287) -> 0.006 | CZ8: =+$CR8*CY8 ->  | DA8: =IF(Inputs!$B$3="HSM",Tables!$E$288,Tables!$I$288) -> 0.12 | DB8: =+DA8*$CL8 ->  | DC8: =IF(Inputs!$B$3="HSM",Tables!$F$288,Tables!$J$288) -> 0.059 | DD8: =+DC8*$CN8 ->  | DE8: =IF(Inputs!$B$3="HSM",Tables!$G$288,Tables!$K$288) -> 0.055 | DF8: =+$CP8*DE8 ->  | DG8: =IF(Inputs!$B$3="HSM",Tables!$H$288,Tables!$L$288) -> 0.139 | DH8: =+$CR8*DG8 ->  | DI8: =IF(Inputs!$B$3="HSM",Tables!$E$289,Tables!$I$289) -> 0.136 | DJ8: =+DI8*$CL8 ->  | DK8: =IF(Inputs!$B$3="HSM",Tables!$F$289,Tables!$J$289) -> 0.195 | DL8: =+DK8*$CN8 ->  | DM8: =IF(Inputs!$B$3="HSM",Tables!$G$289,Tables!$K$289) -> 0.143 | DN8: =+$CP8*DM8 ->  | DO8: =IF(Inputs!$B$3="HSM",Tables!$H$289,Tables!$L$289) -> 0.118 | DP8: =+$CR8*DO8 ->  | DQ8: =IF(Inputs!$B$3="HSM",Tables!$E$290,Tables!$I$290) -> 0.046 | DR8: =+DQ8*$CL8 ->  | DS8: =IF(Inputs!$B$3="HSM",Tables!$F$290,Tables!$J$290) -> 0.086 | DT8: =+DS8*$CN8 ->  | DU8: =IF(Inputs!$B$3="HSM",Tables!$G$290,Tables!$K$290) -> 0.143 | DV8: =+$CP8*DU8 ->  | DW8: =IF(Inputs!$B$3="HSM",Tables!$H$290,Tables!$L$290) -> 0.034 | DX8: =+$CR8*DW8 ->  | DY8: =IF(Inputs!$B$3="HSM",Tables!$E$291,Tables!$I$291) -> 0.626 | DZ8: =+DY8*$CL8 ->  | EA8: =IF(Inputs!$B$3="HSM",Tables!$F$291,Tables!$J$291) -> 0.605 | EB8: =+EA8*$CN8 ->  | EC8: =IF(Inputs!$B$3="HSM",Tables!$G$291,Tables!$K$291) -> 0.604 | ED8: =+$CP8*EC8 ->  | EE8: =IF(Inputs!$B$3="HSM",Tables!$H$291,Tables!$L$291) -> 0.633 | EF8: =+$CR8*EE8 ->  | EG8: =IF(Inputs!$B$3="HSM",Tables!$E$292,Tables!$I$292) -> 0.063 | EH8: =+EG8*$CL8 ->  | EI8: =IF(Inputs!$B$3="HSM",Tables!$F$292,Tables!$J$292) -> 0.036 | EJ8: =+EI8*$CN8 ->  | EK8: =IF(Inputs!$B$3="HSM",Tables!$G$292,Tables!$K$292) -> 0.022 | EL8: =+$CP8*EK8 ->  | EM8: =IF(Inputs!$B$3="HSM",Tables!$H$292,Tables!$L$292) -> 0.072 | EN8: =+$CR8*EM8 ->  | EO8: =+CJ8 ->  | EP8: =+$E8 -> 1.5 | EQ8: =+EO8/EP8 ->  | ER8: =+CB8 ->  | ES8: =+$E8 -> 1.5 | ET8: =+ER8/ES8 ->  | EU8: =+BT8 ->  | EV8: =+$E8 -> 1.5 | EW8: =+EU8/EV8 ->  | EX8: =+BL8 ->  | EY8: =+$E8 -> 1.5 | EZ8: =+EX8/EY8 -> 
A10: Rural Undivided Multilane Segments
A11: Example 1 | B11: SH 123 | C11: MP 1.5 to MP 1.6 | D11: Anywhere, USA | E11: 0.1 | F11: 8000 | G11: 12 | H11: 6 | I11: Paved | J11: 1:7 or flatter | K11: NP | L11: NP | M11: N/A (1.000) | N11: N/A (1.000) | O11: N/A (1.000) | Q11: 1 | R11: =AVERAGE(INDIRECT(ADDRESS(MATCH(sYear,'Calibration Factors'!$A:$A,0),4,,,"Calibration Factors")&":"&ADDRESS(MATCH(eYear,'Calibration Factors'!$A:$A,0),4))) -> 1.2013144 | T11: =+CL11 -> 1.873081795 | U11: =1/(1+T11*GA11) ->  | V11: =IF(S11=0,0,U11*GA11+((1-U11)*S11)) -> 0 | W11: =IF(S11="","",S11-V11) ->  | X11: =T11*GA11^2 ->  | Y11: =SQRT(T11*GA11) ->  | Z11: =(IF($F11<400,OFFSET($AK$4,ROW()-4,MATCH($G11,$AL$4:$AR$4,0)),IF($F11<=2000,OFFSET($AR$4,ROW()-4,MATCH($G11,$AS$4:$AY$4,0)),OFFSET($AY$4,ROW()-4,MATCH($G11,$AZ$4:$BF$4,0))))-1)*IF(Inputs!$B$3="HSM",Tables!$E$276,Tables!$I$276)+1 ->  | AA11: =(AJ11*AK11-1)*IF(Inputs!$B$3="HSM",Tables!$E$276,Tables!$I$276)+1 ->  | AB11: =HLOOKUP(J11,Tables!$Y$267:$AD$268,2,FALSE) -> 1 | AC11: =IF($K11="P",(1-(IF(Inputs!$B$3="HSM",((1-(0.72*Tables!$E$306)-(0.83*Tables!$F$306))*Tables!$G$306),((1-(0.72*Tables!$I$306)-(0.83*Tables!$J$306))*Tables!$K$306)))),1) -> 1 | AD11: =IF($L11="P",0.95,1) -> 1 | AE11: =OFFSET(Tables!$AS$1,MATCH(M11,Tables!$AS:$AS,0)-1,1) -> 1 | AF11: =OFFSET(Tables!$AS$1,MATCH(N11,Tables!$AS:$AS,0)-1,1) -> 1 | AG11: =OFFSET(Tables!$AS$1,MATCH(O11,Tables!$AS:$AS,0)-1,1) -> 1 | AH11: =IF(P11="",1,P11) -> 1 | AI11: =Z11*AA11*AB11*AC11*AD11*AE11*AF11*AG11*AH11 ->  | AJ11: =IF($F11<400,OFFSET($BF$4,ROW()-4,MATCH($H11,$BG$4:$BO$4,0)),IF($F11<=2000,OFFSET($BO$4,ROW()-4,MATCH($H11,$BP$4:$BX$4,0)),OFFSET($BX$4,ROW()-4,MATCH($H11,$BY$4:$CG$4,0)))) ->  | AK11: =IF($I11="Paved",(HLOOKUP($H11,Tables!$Z$254:$AJ$258,2,FALSE)),(IF($I11="Gravel",(HLOOKUP($H11,Tables!$Z$254:$AJ$258,3,FALSE)),(IF($I11="Turf",(HLOOKUP($H11,Tables!$Z$254:$AJ$258,5,FALSE)),HLOOKUP($H11,Tables!$Z$254:$AJ$258,4,FALSE)))))) -> 1 | AL11: 1.04 | AM11: =+(AL11+AN11)/2 -> 1.03 | AN11: 1.02 | AO11: =+(AN11+AP11)/2 -> 1.015 | AP11: 1.01 | AQ11: =+(AP11+AR11)/2 -> 1.005 | AR11: 1 | AS11: =1.04+0.000213*(F11-400) -> 2.6588 | AT11: =+(AS11+AU11)/2 -> 2.3372 | AU11: =1.02+0.000131*(F11-400) -> 2.0156 | AV11: =+(AU11+AW11)/2 -> 1.58424 | AW11: =1.01+0.0000188*(F11-400) -> 1.15288 | AX11: =+(AW11+AY11)/2 -> 1.07644 | AY11: 1 | AZ11: 1.38 | BA11: =+(AZ11+BB11)/2 -> 1.305 | BB11: 1.23 | BC11: =+(BB11+BD11)/2 -> 1.135 | BD11: 1.04 | BE11: =+(BD11+BF11)/2 -> 1.02 | BF11: 1 | BG11: 1.1 | BH11: =+(BG11+BI11)/2 -> 1.085 | BI11: 1.07 | BJ11: =+(BI11+BK11)/2 -> 1.045 | BK11: 1.02 | BL11: =+(BK11+BM11)/2 -> 1.01 | BM11: 1 | BN11: =+(BM11+BO11)/2 -> 0.99 | BO11: 0.98 | BP11: =($F11-400)*0.00025+1.1 -> 3 | BQ11: =+(BP11+BR11)/2 -> 2.5784 | BR11: =($F11-400)*0.000143+1.07 -> 2.1568 | BS11: =+(BR11+BT11)/2 -> 1.89715 | BT11: =($F11-400)*0.00008125+1.02 -> 1.6375 | BU11: =+(BT11+BV11)/2 -> 1.31875 | BV11: 1 | BW11: =+(BV11+BX11)/2 -> 0.72875 | BX11: =($F11-400)*-0.00006875+0.98 -> 0.4575 | BY11: 1.5 | BZ11: =+(BY11+CA11)/2 -> 1.4 | CA11: 1.3 | CB11: =+(CA11+CC11)/2 -> 1.225 | CC11: 1.15 | CD11: =+(CC11+CE11)/2 -> 1.075 | CE11: 1 | CF11: =+(CE11+CG11)/2 -> 0.935 | CG11: 0.87 | CH11: -9.653 | CI11: 1.176 | CJ11: 1.675 | CK11: =EXP($CH11+$CI11*LN($F11)+LN($E11)) -> 0.2499131974 | CL11: =1/(EXP($CJ11+LN($E11))) -> 1.873081795 | CM11: =+$AI11 ->  | CN11: =IF(Inputs!$B$3<>"HSM",$R11,$Q11) -> 1.2013144 | CO11: =+CK11*CM11*CN11 ->  | CP11: -9.41 | CQ11: 1.094 | CR11: 1.796 | CS11: =EXP($CP11+$CQ11*LN($F11)+LN($E11)) -> 0.152499834 | CT11: =1/(EXP($CR11+LN($E11))) -> 1.659614079 | CU11: =+$AI11 ->  | CV11: =IF(Inputs!$B$3<>"HSM",$R11,$Q11) -> 1.2013144 | CW11: =+CS11*CU11*CV11 ->  | CX11: -8.577 | CY11: 0.938 | CZ11: 2.003 | DA11: =EXP($CX11+$CY11*LN($F11)+LN($E11)) -> 0.08632858778 | DB11: =1/(EXP($CZ11+LN($E11))) -> 1.349298858 | DC11: =+$AI11 ->  | DD11: =IF(Inputs!$B$3<>"HSM",$R11,$Q11) -> 1.2013144 | DE11: =+DA11*DC11*DD11 ->  | DF11: -- | DG11: -- | DH11: -- | DI11: -- | DJ11: -- | DK11: -- | DL11: -- | DM11: =+CO11-CW11 ->  | DN11: =IF(Inputs!$B$3="HSM",SUM(Tables!$E$270:$E$275),SUM(Tables!$I$270:$I$275)) -> 1 | DO11: =+CO11 ->  | DP11: =IF(Inputs!$B$3="HSM",SUM(Tables!$F$270:$F$275),SUM(Tables!$J$270:$J$275)) -> 1.001 | DQ11: =+CW11 ->  | DR11: =IF(Inputs!$B$3="HSM",SUM(Tables!$G$270:$G$275),SUM(Tables!$K$270:$K$275)) -> 1 | DS11: =+DE11 ->  | DT11: =IF(Inputs!$B$3="HSM",SUM(Tables!$H$270:$H$275),SUM(Tables!$L$270:$L$275)) -> 1 | DU11: =+DM11 ->  | DV11: =IF(Inputs!$B$3="HSM",Tables!$E$270,Tables!$I$270) -> 0.045 | DW11: =+DV11*$DO11 ->  | DX11: =IF(Inputs!$B$3="HSM",Tables!$F$270,Tables!$J$270) -> 0.108 | DY11: =+DX11*$DQ11 ->  | DZ11: =IF(Inputs!$B$3="HSM",Tables!$G$270,Tables!$K$270) -> 0.138 | EA11: =+$DS11*DZ11 ->  | EB11: =IF(Inputs!$B$3="HSM",Tables!$H$270,Tables!$L$270) -> 0.022 | EC11: =+$DU11*EB11 ->  | ED11: =IF(Inputs!$B$3="HSM",Tables!$E$271,Tables!$I$271) -> 0.155 | EE11: =+ED11*$DO11 ->  | EF11: =IF(Inputs!$B$3="HSM",Tables!$F$271,Tables!$J$271) -> 0.062 | EG11: =+EF11*$DQ11 ->  | EH11: =IF(Inputs!$B$3="HSM",Tables!$G$271,Tables!$K$271) -> 0.061 | EI11: =+$DS11*EH11 ->  | EJ11: =IF(Inputs!$B$3="HSM",Tables!$H$271,Tables!$L$271) -> 0.189 | EK11: =+$DU11*EJ11 ->  | EL11: =IF(Inputs!$B$3="HSM",Tables!$E$272,Tables!$I$272) -> 0.205 | EM11: =+EL11*$DO11 ->  | EN11: =IF(Inputs!$B$3="HSM",Tables!$F$272,Tables!$J$272) -> 0.266 | EO11: =+EN11*$DQ11 ->  | EP11: =IF(Inputs!$B$3="HSM",Tables!$G$272,Tables!$K$272) -> 0.188 | EQ11: =+$DS11*EP11 ->  | ER11: =IF(Inputs!$B$3="HSM",Tables!$H$272,Tables!$L$272) -> 0.184 | ES11: =+$DU11*ER11 ->  | ET11: =IF(Inputs!$B$3="HSM",Tables!$E$273,Tables!$I$273) -> 0.149 | EU11: =+ET11*$DO11 ->  | EV11: =IF(Inputs!$B$3="HSM",Tables!$F$273,Tables!$J$273) -> 0.18 | EW11: =+EV11*$DQ11 ->  | EX11: =IF(Inputs!$B$3="HSM",Tables!$G$273,Tables!$K$273) -> 0.184 | EY11: =+$DS11*EX11 ->  | EZ11: =IF(Inputs!$B$3="HSM",Tables!$H$273,Tables!$L$273) -> 0.138 | FA11: =+$DU11*EZ11 ->  | FB11: =IF(Inputs!$B$3="HSM",Tables!$E$274,Tables!$I$274) -> 0.321 | FC11: =+FB11*$DO11 ->  | FD11: =IF(Inputs!$B$3="HSM",Tables!$F$274,Tables!$J$274) -> 0.242 | FE11: =+FD11*$DQ11 ->  | FF11: =IF(Inputs!$B$3="HSM",Tables!$G$274,Tables!$K$274) -> 0.299 | FG11: =+$DS11*FF11 ->  | FH11: =IF(Inputs!$B$3="HSM",Tables!$H$274,Tables!$L$274) -> 0.349 | FI11: =+$DU11*FH11 ->  | FJ11: =IF(Inputs!$B$3="HSM",Tables!$E$275,Tables!$I$275) -> 0.125 | FK11: =+FJ11*$DO11 ->  | FL11: =IF(Inputs!$B$3="HSM",Tables!$F$275,Tables!$J$275) -> 0.143 | FM11: =+FL11*$DQ11 ->  | FN11: =IF(Inputs!$B$3="HSM",Tables!$G$275,Tables!$K$275) -> 0.13 | FO11: =+$DS11*FN11 ->  | FP11: =IF(Inputs!$B$3="HSM",Tables!$H$275,Tables!$L$275) -> 0.118 | FQ11: =+$DU11*FP11 ->  | FR11: =+DM11 ->  | FS11: =+$E11 -> 0.1 | FT11: =+FR11/FS11 ->  | FU11: =+DE11 ->  | FV11: =+$E11 -> 0.1 | FW11: =+FU11/FV11 ->  | FX11: =+CW11 ->  | FY11: =+$E11 -> 0.1 | FZ11: =+FX11/FY11 ->  | GA11: =+CO11 ->  | GB11: =+$E11 -> 0.1 | GC11: =+GA11/GB11 -> 
A13: Rural Multilane Intersections
A14: Example 1 | B14: SH-123 | C14: 2nd St | D14: Anywhere, USA | E14: 3ST | F14: 5000 | G14: 800 | H14: 0 | I14: 0 | J14: 0 | K14: NP | L14: N/A (1.000) | M14: N/A (1.000) | N14: N/A (1.000) | Q14: 1 | R14: =AVERAGE(INDIRECT(ADDRESS(MATCH(sYear,'Calibration Factors'!$A:$A,0),CHOOSE(MATCH(E14,{"3ST","4ST","4SG"},0),14,18,20),,,"Calibration Factors")&":"&ADDRESS(MATCH(eYear,'Calibration Factors'!$A:$A,0),CHOOSE(MATCH(E14,{"3ST","4ST","4SG"},0),14,18,20)))) -> 1.8383938 | T14: =+AT14 -> 0.236 | U14: =1/(1+T14*EC14) -> 0.9353554636 | V14: =IF(S14=0,0,U14*EC14+((1-U14)*S14)) -> 0 | W14: =IF(S14="","",S14-V14) ->  | X14: =T14*EC14^2 -> 0.02023942976 | Y14: =SQRT(T14*EC14) -> 0.2628921201 | Z14: =IF($E14="4SG","--",IF($E14="3ST",(((0.016*$H14)/(0.98+0.16*$H14))+1),(((0.053*$H14)/(1.43+0.53*$H14))+1))) -> 1 | AA14: =IF($E14="4SG","--",IF($I14=0,1,IF($E14="3ST",0.56,(IF($I14=1,0.72,0.52))))) -> 1 | AB14: =IF($E14="4SG","--",IF($J14=0,1,IF($E14="3ST",0.86,(IF($J14=1,0.86,0.74))))) -> 1 | AC14: =IF($E14="4SG","--",(IF(($K14="NP"),1,(1-0.38*(IF($E14="3ST",(IF(Inputs!$B$3="HSM",Tables!$G$362,Tables!$K$362)),(IF(Inputs!$B$3="HSM",Tables!$G$363,Tables!$K$363)))))))) -> 1 | AD14: =OFFSET(Tables!$AU$1,MATCH(L14,Tables!$AU:$AU,0)-1,1) -> 1 | AE14: =OFFSET(Tables!$AU$1,MATCH(M14,Tables!$AU:$AU,0)-1,1) -> 1 | AF14: =OFFSET(Tables!$AU$1,MATCH(N14,Tables!$AU:$AU,0)-1,1) -> 1 | AG14: =IF(O14="",1,O14) -> 1 | AH14: =IF($E14="4SG",1,Z14*AA14*AB14*AC14*AD14*AE14*AF14*AG14) -> 1 | AI14: =IF($E14="4SG","--",IF($E14="3ST",(((0.017*$H14)/(0.52+0.17*$H14))+1),(((0.048*$H14)/(0.72+0.48*$H14))+1))) -> 1 | AJ14: =IF($E14="4SG","--",IF($I14=0,1,IF($E14="3ST",0.45,(IF($I14=1,0.65,0.42))))) -> 1 | AK14: =IF($E14="4SG","--",IF($J14=0,1,IF($E14="3ST",0.77,(IF($J14=1,0.77,0.59))))) -> 1 | AL14: =IF($E14="4SG","--",(IF(($K14="NP"),1,(1-0.38*(IF($E14="3ST",(IF(Inputs!$B$3="HSM",Tables!$G$362,Tables!$K$362)),(IF(Inputs!$B$3="HSM",Tables!$G$363,Tables!$K$363)))))))) -> 1 | AM14: =OFFSET(Tables!$AU$1,MATCH(L14,Tables!$AU:$AU,0)-1,1) -> 1 | AN14: =OFFSET(Tables!$AU$1,MATCH(M14,Tables!$AU:$AU,0)-1,1) -> 1 | AO14: =OFFSET(Tables!$AU$1,MATCH(N14,Tables!$AU:$AU,0)-1,1) -> 1 | AP14: =IF(P14="",1,P14) -> 1 | AQ14: =IF($E14="4SG",1,AI14*AJ14*AK14*AL14*AM14*AN14*AO14*AP14) -> 1 | AR14: =IF($E14="3ST",-12.526,(IF($E14="4ST",-10.008,-7.182))) -> -12.526 | AS14: =IF($E14="3ST",1.204,(IF($E14="4ST",0.848,0.722))) -> 1.204 | AT14: =IF($E14="3ST",0.236,(IF($E14="4ST",0.448,0.337))) -> 0.236 | AU14: =EXP($AR14+$AS14*LN($F14)+$AT14*LN($G14)) -> 0.4997081606 | AV14: =IF($E14="3ST",0.46,(IF($E14="4ST",0.494,0.277))) -> 0.46 | AW14: =+$AH14 -> 1 | AX14: =IF(Inputs!$B$3<>"HSM",$R14,$Q14) -> 1.8383938 | AY14: =+$AU14*$AW14*$AX14 -> 0.9186603842 | AZ14: =IF($E14="3ST",-12.664,(IF($E14="4ST",-11.554,-6.393))) -> -12.664 | BA14: =IF($E14="3ST",1.107,(IF($E14="4ST",0.888,0.638))) -> 1.107 | BB14: =IF($E14="3ST",0.272,(IF($E14="4ST",0.525,0.232))) -> 0.272 | BC14: =EXP($AZ14+$BA14*LN($F14)+$BB14*LN($G14)) -> 0.2423789794 | BD14: =IF($E14="3ST",0.569,(IF($E14="4ST",0.742,0.218))) -> 0.569 | BE14: =+$AQ14 -> 1 | BF14: =IF(Inputs!$B$3<>"HSM",$R14,$Q14) -> 1.8383938 | BG14: =+$BC14*$BE14*$BF14 -> 0.445588013 | BH14: =IF($E14="3ST",-11.989,(IF($E14="4ST",-10.734,-12.011))) -> -11.989 | BI14: =IF($E14="3ST",1.013,(IF($E14="4ST",0.828,"--"))) -> 1.013 | BJ14: =IF($E14="3ST",0.228,(IF($E14="4ST",0.412,1.279))) -> 0.228 | BK14: =IF(E14="4SG",(EXP(BH14+BJ14*LN(F14+G14))),(EXP($BH14+$BI14*LN($F14)+$BJ14*LN($G14)))) -> 0.1592958963 | BL14: =IF($E14="3ST",0.566,(IF($E14="4ST",0.655,0.566))) -> 0.566 | BM14: =+$AQ14 -> 1 | BN14: =IF(Inputs!$B$3<>"HSM",$R14,$Q14) -> 1.8383938 | BO14: =+$BK14*$BM14*$BN14 -> 0.2928485881 | BP14: -- | BQ14: -- | BR14: -- | BS14: -- | BT14: -- | BU14: -- | BV14: -- | BW14: =+$AY14-$BG14 -> 0.4730723712 | BX14: =IF(Inputs!$B$3="HSM",IF($E14="3ST",SUM(Tables!$E$328:$E$333),IF($E14="4ST",SUM(Tables!$E$336:$E$341),SUM(Tables!$E$344:$E$349))),IF($E14="3ST",SUM(Tables!$I$328:$I$333),IF($E14="4ST",SUM(Tables!$I$336:$I$341),SUM(Tables!$I$344:$I$349)))) -> 1 | BY14: =+AY14 -> 0.9186603842 | BZ14: =IF(Inputs!$B$3="HSM",IF($E14="3ST",SUM(Tables!$F$328:$F$333),IF($E14="4ST",SUM(Tables!$F$336:$F$341),SUM(Tables!$F$344:$F$349))),IF($E14="3ST",SUM(Tables!$J$328:$J$333),IF($E14="4ST",SUM(Tables!$J$336:$J$341),SUM(Tables!$J$344:$J$349)))) -> 1 | CA14: =+BG14 -> 0.445588013 | CB14: =IF(Inputs!$B$3="HSM",IF($E14="3ST",SUM(Tables!$G$328:$G$333),IF($E14="4ST",SUM(Tables!$G$336:$G$341),SUM(Tables!$G$344:$G$349))),IF($E14="3ST",SUM(Tables!$K$328:$K$333),IF($E14="4ST",SUM(Tables!$K$336:$K$341),SUM(Tables!$K$344:$K$349)))) -> 1 | CC14: =+BO14 -> 0.2928485881 | CD14: =IF(Inputs!$B$3="HSM",IF($E14="3ST",SUM(Tables!$H$328:$H$333),IF($E14="4ST",SUM(Tables!$H$336:$H$341),SUM(Tables!$H$344:$H$349))),IF($E14="3ST",SUM(Tables!$L$328:$L$333),IF($E14="4ST",SUM(Tables!$L$336:$L$341),SUM(Tables!$L$344:$L$349)))) -> 1 | CE14: =+BW14 -> 0.4730723712 | CF14: =IF(Inputs!$B$3="HSM",(IF($E14="3ST",Tables!$E$328,(IF($E14="4ST",Tables!$E$336,Tables!$E$344)))),(IF($E14="3ST",Tables!$I$328,(IF($E14="4ST",Tables!$I$336,Tables!$I$344))))) -> 0.05 | CG14: =+CF14*$BY14 -> 0.04593301921 | CH14: =IF(Inputs!$B$3="HSM",(IF($E14="3ST",Tables!$F$328,(IF($E14="4ST",Tables!$F$336,Tables!$F$344)))),(IF($E14="3ST",Tables!$J$328,(IF($E14="4ST",Tables!$J$336,Tables!$J$344))))) -> 0.103 | CI14: =+CH14*$CA14 -> 0.04589556534 | CJ14: =IF(Inputs!$B$3="HSM",(IF($E14="3ST",Tables!$G$328,(IF($E14="4ST",Tables!$G$336,Tables!$G$344)))),(IF($E14="3ST",Tables!$K$328,(IF($E14="4ST",Tables!$K$336,Tables!$K$344))))) -> 0.146 | CK14: =+CJ14*$CC14 -> 0.04275589387 | CL14: =IF(Inputs!$B$3="HSM",(IF($E14="3ST",Tables!$H$328,(IF($E14="4ST",Tables!$H$336,Tables!$H$344)))),(IF($E14="3ST",Tables!$L$328,(IF($E14="4ST",Tables!$L$336,Tables!$L$344))))) -> 0.028 | CM14: =+CL14*$CE14 -> 0.01324602639 | CN14: =IF(Inputs!$B$3="HSM",(IF($E14="3ST",Tables!$E$329,(IF($E14="4ST",Tables!$E$337,Tables!$E$345)))),(IF($E14="3ST",Tables!$I$329,(IF($E14="4ST",Tables!$I$337,Tables!$I$345))))) -> 0.096 | CO14: =+CN14*$BY14 -> 0.08819139689 | CP14: =IF(Inputs!$B$3="HSM",(IF($E14="3ST",Tables!$F$329,(IF($E14="4ST",Tables!$F$337,Tables!$F$345)))),(IF($E14="3ST",Tables!$J$329,(IF($E14="4ST",Tables!$J$337,Tables!$J$345))))) -> 0.049 | CQ14: =+CP14*$CA14 -> 0.02183381264 | CR14: =IF(Inputs!$B$3="HSM",(IF($E14="3ST",Tables!$G$329,(IF($E14="4ST",Tables!$G$337,Tables!$G$345)))),(IF($E14="3ST",Tables!$K$329,(IF($E14="4ST",Tables!$K$337,Tables!$K$345))))) -> 0.051 | CS14: =+CR14*$CC14 -> 0.01493527799 | CT14: =IF(Inputs!$B$3="HSM",(IF($E14="3ST",Tables!$H$329,(IF($E14="4ST",Tables!$H$337,Tables!$H$345)))),(IF($E14="3ST",Tables!$L$329,(IF($E14="4ST",Tables!$L$337,Tables!$L$345))))) -> 0.115 | CU14: =+CT14*$CE14 -> 0.05440332269 | CV14: =IF(Inputs!$B$3="HSM",(IF($E14="3ST",Tables!$E$330,(IF($E14="4ST",Tables!$E$338,Tables!$E$346)))),(IF($E14="3ST",Tables!$I$330,(IF($E14="4ST",Tables!$I$338,Tables!$I$346))))) -> 0.293 | CW14: =+CV14*$BY14 -> 0.2691674926 | CX14: =IF(Inputs!$B$3="HSM",(IF($E14="3ST",Tables!$F$330,(IF($E14="4ST",Tables!$F$338,Tables!$F$346)))),(IF($E14="3ST",Tables!$J$330,(IF($E14="4ST",Tables!$J$338,Tables!$J$346))))) -> 0.299 | CY14: =+CX14*$CA14 -> 0.1332308159 | CZ14: =IF(Inputs!$B$3="HSM",(IF($E14="3ST",Tables!$G$330,(IF($E14="4ST",Tables!$G$338,Tables!$G$346)))),(IF($E14="3ST",Tables!$K$330,(IF($E14="4ST",Tables!$K$338,Tables!$K$346))))) -> 0.198 | DA14: =+CZ14*$CC14 -> 0.05798402045 | DB14: =IF(Inputs!$B$3="HSM",(IF($E14="3ST",Tables!$H$330,(IF($E14="4ST",Tables!$H$338,Tables!$H$346)))),(IF($E14="3ST",Tables!$L$330,(IF($E14="4ST",Tables!$L$338,Tables!$L$346))))) -> 0.291 | DC14: =+DB14*$CE14 -> 0.13766406 | DD14: =IF(Inputs!$B$3="HSM",(IF($E14="3ST",Tables!$E$331,(IF($E14="4ST",Tables!$E$339,Tables!$E$347)))),(IF($E14="3ST",Tables!$I$331,(IF($E14="4ST",Tables!$I$339,Tables!$I$347))))) -> 0.161 | DE14: =+DD14*$BY14 -> 0.1479043219 | DF14: =IF(Inputs!$B$3="HSM",(IF($E14="3ST",Tables!$F$331,(IF($E14="4ST",Tables!$F$339,Tables!$F$347)))),(IF($E14="3ST",Tables!$J$331,(IF($E14="4ST",Tables!$J$339,Tables!$J$347))))) -> 0.194 | DG14: =+DF14*$CA14 -> 0.08644407452 | DH14: =IF(Inputs!$B$3="HSM",(IF($E14="3ST",Tables!$G$331,(IF($E14="4ST",Tables!$G$339,Tables!$G$347)))),(IF($E14="3ST",Tables!$K$331,(IF($E14="4ST",Tables!$K$339,Tables!$K$347))))) -> 0.206 | DI14: =+DH14*$CC14 -> 0.06032680916 | DJ14: =IF(Inputs!$B$3="HSM",(IF($E14="3ST",Tables!$H$331,(IF($E14="4ST",Tables!$H$339,Tables!$H$347)))),(IF($E14="3ST",Tables!$L$331,(IF($E14="4ST",Tables!$L$339,Tables!$L$347))))) -> 0.147 | DK14: =+DJ14*$CE14 -> 0.06954163857 | DL14: =IF(Inputs!$B$3="HSM",(IF($E14="3ST",Tables!$E$332,(IF($E14="4ST",Tables!$E$340,Tables!$E$348)))),(IF($E14="3ST",Tables!$I$332,(IF($E14="4ST",Tables!$I$340,Tables!$I$348))))) -> 0.307 | DM14: =+DL14*$BY14 -> 0.282028738 | DN14: =IF(Inputs!$B$3="HSM",(IF($E14="3ST",Tables!$F$332,(IF($E14="4ST",Tables!$F$340,Tables!$F$348)))),(IF($E14="3ST",Tables!$J$332,(IF($E14="4ST",Tables!$J$340,Tables!$J$348))))) -> 0.266 | DO14: =+DN14*$CA14 -> 0.1185264115 | DP14: =IF(Inputs!$B$3="HSM",(IF($E14="3ST",Tables!$G$332,(IF($E14="4ST",Tables!$G$340,Tables!$G$348)))),(IF($E14="3ST",Tables!$K$332,(IF($E14="4ST",Tables!$K$340,Tables!$K$348))))) -> 0.3 | DQ14: =+DP14*$CC14 -> 0.08785457644 | DR14: =IF(Inputs!$B$3="HSM",(IF($E14="3ST",Tables!$H$332,(IF($E14="4ST",Tables!$H$340,Tables!$H$348)))),(IF($E14="3ST",Tables!$L$332,(IF($E14="4ST",Tables!$L$340,Tables!$L$348))))) -> 0.324 | DS14: =+DR14*$CE14 -> 0.1532754483 | DT14: =IF(Inputs!$B$3="HSM",(IF($E14="3ST",Tables!$E$333,(IF($E14="4ST",Tables!$E$341,Tables!$E$349)))),(IF($E14="3ST",Tables!$I$333,(IF($E14="4ST",Tables!$I$341,Tables!$I$349))))) -> 0.093 | DU14: =+DT14*$BY14 -> 0.08543541573 | DV14: =IF(Inputs!$B$3="HSM",(IF($E14="3ST",Tables!$F$333,(IF($E14="4ST",Tables!$F$341,Tables!$F$349)))),(IF($E14="3ST",Tables!$J$333,(IF($E14="4ST",Tables!$J$341,Tables!$J$349))))) -> 0.089 | DW14: =+DV14*$CA14 -> 0.03965733316 | DX14: =IF(Inputs!$B$3="HSM",(IF($E14="3ST",Tables!$G$333,(IF($E14="4ST",Tables!$G$341,Tables!$G$349)))),(IF($E14="3ST",Tables!$K$333,(IF($E14="4ST",Tables!$K$341,Tables!$K$349))))) -> 0.099 | DY14: =+DX14*$CC14 -> 0.02899201023 | DZ14: =IF(Inputs!$B$3="HSM",(IF($E14="3ST",Tables!$H$333,(IF($E14="4ST",Tables!$H$341,Tables!$H$349)))),(IF($E14="3ST",Tables!$L$333,(IF($E14="4ST",Tables!$L$341,Tables!$L$349))))) -> 0.095 | EA14: =+DZ14*$CE14 -> 0.04494187527 | EB14: =+BW14 -> 0.4730723712 | EC14: =+BO14 -> 0.2928485881 | ED14: =+BG14 -> 0.445588013 | EE14: =+AY14 -> 0.9186603842
A16: Urban & Suburban Segments
A17: Example 1 | B17: SH 321 | C17: MP 0.0 to MP 1.5 | D17: Anywhere, USA | E17: 5T | F17: 1.5 | G17: 11000 | H17: None | I17: 0 | J17: 15 | K17: NP | L17: NP | M17: 0 | N17: 0 | O17: 0 | P17: 0 | Q17: 0 | R17: 0 | S17: 0 | T17: Posted Speed Greater than 30 mph | U17: 0 | V17: 30 | W17: N/A (1.000) | X17: N/A (1.000) | Y17: N/A (1.000) | AA17: 1 | AB17: =AVERAGE(INDIRECT(ADDRESS(MATCH(sYear,'Calibration Factors'!$A:$A,0),CHOOSE(MATCH(E17,{"2U","3T","4U","4D","5T"},0),8,4,30,10,30),,,"Calibration Factors")&":"&ADDRESS(MATCH(eYear,'Calibration Factors'!$A:$A,0),CHOOSE(MATCH(E17,{"2U","3T","4U","4D","5T"},0),8,4,30,10,30)))) -> 0.7744722 | AF17: =BO17 -> 0.81 | AG17: =+DY17 -> 0.52 | AH17: =+HC17 -> 0.1 | AI17: =1/(1+AF17*BU17) -> 0.2447555141 | AJ17: =1/(1+AG17*EE17) -> 0.5741940245 | AK17: =1/(1+AH17*HI17) -> 1 | AL17: =IF(AC17=0,0,AI17*BU17+((1-AI17)*AC17)) -> 0 | AM17: =IF(AD17=0,0,AJ17*EE17+((1-AJ17)*AD17)) -> 0 | AN17: =IF(AE17=0,0,AK17*HI17+((1-AK17)*AE17)) -> 0 | AO17: =SUM(AL17:AN17) -> 0 | AP17: =IF(AC17&AD17&AE17="","",(AC17+AD17+AE17)-AO17) ->  | AQ17: =AF17*BU17^2 -> 11.75506778 | AR17: =AG17*EE17^2 -> 1.057554658 | AS17: =AH17*HI17^2 -> 0 | AT17: =SQRT(AF17*BU17) -> 1.756618851 | AU17: =SQRT(AG17*EE17) -> 0.86114551 | AV17: =SQRT(AH17*HI17) -> 0 | AW17: =1+$I17*(IF($H17="None",1,(IF($H17="Parallel (Residential)",VLOOKUP($E17,Tables!$Y$82:$AC$86,2,FALSE),(IF($H17="Parallel (Comm/Ind)",VLOOKUP($E17,Tables!$Y$82:$AC$86,3,FALSE),(IF($H17="Angle (Residential)",(VLOOKUP($E17,Tables!$Y$82:$AC$86,4,FALSE)),(VLOOKUP($E17,Tables!$Y$82:$AC$86,5,FALSE)))))))))-1) -> 1 | AX17: =$BI17 -> 1 | AY17: =IF(J17="NP", 1, IF(E17="2U",1,(IF(E17="4U",1,(VLOOKUP(J17,Tables!$Y$109:$AA$119,3,FALSE)))))) -> 1 | AZ17: =IF($K17="P",(1-($BL17*(1-(0.72*$BJ17)-(0.83*$BK17)))),1) -> 1 | BA17: =IF($L17="P",0.95,1) -> 1 | BB17: =OFFSET(Tables!$AW$1,MATCH(W17,Tables!$AW:$AW,0)-1,1) -> 1 | BC17: =OFFSET(Tables!$AW$1,MATCH(X17,Tables!$AW:$AW,0)-1,1) -> 1 | BD17: =OFFSET(Tables!$AW$1,MATCH(Y17,Tables!$AW:$AW,0)-1,1) -> 1 | BE17: =IF(Z17="",1,Z17) -> 1 | BF17: =$AW17*$AX17*$AY17*$AZ17*$BA17*$BB17*$BC17*$BD17*$BE17 -> 1 | BG17: =POWER($V17,-0.614)*0.3566 -> 0.04418032318 | BH17: =$BG17*$U17*(IF(Inputs!$B$3="HSM",(VLOOKUP($E17,Tables!$B$243:$H$247,4,FALSE)),(VLOOKUP($E17,Tables!$B$243:$H$247,6,FALSE))))+(1-(IF(Inputs!$B$3="HSM",(VLOOKUP($E17,Tables!$B$243:$H$247,4,FALSE)),(VLOOKUP($E17,Tables!$B$243:$H$247,6,FALSE))))) -> 0.984 | BI17: =IF(+BH17<1,1,BH17) -> 1 | BJ17: =IF(Inputs!$B$3="HSM",(VLOOKUP($E17,Tables!$B$257:$N$261,4,FALSE)),(VLOOKUP($E17,Tables!$B$257:$N$261,9,FALSE))) -> 0.432 | BK17: =IF(Inputs!$B$3="HSM",(VLOOKUP($E17,Tables!$B$257:$N$261,6,FALSE)),(VLOOKUP($E17,Tables!$B$257:$N$261,11,FALSE))) -> 0.568 | BL17: =IF(Inputs!$B$3="HSM",(VLOOKUP($E17,Tables!$B$257:$N$261,7,FALSE)),(VLOOKUP($E17,Tables!$B$257:$N$261,12,FALSE))) -> 0.274 | BM17: =VLOOKUP($E17,Tables!$Y$185:$AB$189,2, FALSE) -> -9.7 | BN17: =VLOOKUP($E17,Tables!$Y$185:$AB$189,3, FALSE) -> 1.17 | BO17: =VLOOKUP($E17,Tables!$Y$185:$AB$189,4, FALSE) -> 0.81 | BP17: =EXP($BM17+($BN17*LN($G17))+LN($F17)) -> 4.918857331 | BQ17: 1 | BR17: =BP17*BQ17 -> 4.918857331 | BS17: =+BF17 -> 1 | BT17: =IF(Inputs!$B$3<>"HSM",$AB17,$AA17) -> 0.7744722 | BU17: =+BR17*BS17*BT17 -> 3.809518258 | BV17: =VLOOKUP($E17,Tables!$Y$191:$AB$195,2, FALSE) -> -10.47 | BW17: =VLOOKUP($E17,Tables!$Y$191:$AB$195,3, FALSE) -> 1.12 | BX17: =VLOOKUP($E17,Tables!$Y$191:$AB$195,4, FALSE) -> 0.62 | BY17: =EXP($BV17+($BW17*LN($G17))+LN($F17)) -> 1.430170583 | BZ17: =BY17/(BY17+CH17) -> 0.2758217924 | CA17: =BP17*BZ17 -> 1.356728046 | CB17: =+BF17 -> 1 | CC17: =IF(Inputs!$B$3<>"HSM",$AB17,$AA17) -> 0.7744722 | CD17: =+CA17*CB17*CC17 -> 1.050748154 | CE17: =VLOOKUP(E17,Tables!$Y$197:$AB$201,2, FALSE) -> -9.97 | CF17: =VLOOKUP(E17,Tables!$Y$197:$AB$201,3, FALSE) -> 1.17 | CG17: =VLOOKUP(E17,Tables!$Y$197:$AB$201,4, FALSE) -> 0.88 | CH17: =EXP($CE17+($CF17*LN(G17))+LN(F17)) -> 3.754954822 | CI17: =BQ17-BZ17 -> 0.7241782076 | CJ17: =BP17*CI17 -> 3.562129285 | CK17: =+BF17 -> 1 | CL17: =IF(Inputs!$B$3<>"HSM",$AB17,$AA17) -> 0.7744722 | CM17: =+CJ17*CK17*CL17 -> 2.758770104 | CN17: 1 | CO17: =+CD17 -> 1.050748154 | CP17: 1 | CQ17: =+CM17 -> 2.758770104 | CR17: =+BU17 -> 3.809518258 | CS17: =IF(Inputs!$B$3="HSM", HLOOKUP($E17,Tables!$D$165:$M$172,3,FALSE),HLOOKUP($E17,Tables!$D$175:$M$182,3,FALSE)) -> 0.484 | CT17: =+$CO17*$CS17 -> 0.5085621067 | CU17: =IF(Inputs!$B$3="HSM",IF($E17="2U",Tables!$E$167,IF($E17="3T",Tables!$G$167,IF($E17="4U",Tables!$I$167,IF($E17="4D",Tables!$K$167,Tables!$M$167)))),IF($E17="2U",Tables!$E$177,IF($E17="3T",Tables!$G$177,IF($E17="4U",Tables!$I$177,IF($E17="4D",Tables!$K$177,Tables!$M$177))))) -> 0.515 | CV17: =+$CQ17*CU17 -> 1.420766604 | CW17: =+CT17+CV17 -> 1.92932871 | CX17: =IF(Inputs!$B$3="HSM", HLOOKUP($E17,Tables!$D$165:$M$172,4,FALSE),HLOOKUP($E17,Tables!$D$175:$M$182,4,FALSE)) -> 0.134 | CY17: =+$CO17*$CX17 -> 0.1408002527 | CZ17: =IF(Inputs!$B$3="HSM",IF($E17="2U",Tables!$E$168,IF($E17="3T",Tables!$G$168,IF($E17="4U",Tables!$I$168,IF($E17="4D",Tables!$K$168,Tables!$M$168)))),IF($E17="2U",Tables!$E$178,IF($E17="3T",Tables!$G$178,IF($E17="4U",Tables!$I$178,IF($E17="4D",Tables!$K$178,Tables!$M$178))))) -> 0.049 | DA17: =+$CQ17*CZ17 -> 0.1351797351 | DB17: =+CY17+DA17 -> 0.2759799878 | DC17: =IF(Inputs!$B$3="HSM", HLOOKUP($E17,Tables!$D$165:$M$172,5,FALSE),HLOOKUP($E17,Tables!$D$175:$M$182,5,FALSE)) -> 0.294 | DD17: =+$CO17*$DC17 -> 0.3089199574 | DE17: =IF(Inputs!$B$3="HSM",IF($E17="2U",Tables!$E$169,IF($E17="3T",Tables!$G$169,IF($E17="4U",Tables!$I$169,IF($E17="4D",Tables!$K$169,Tables!$M$169)))),IF($E17="2U",Tables!$E$179,IF($E17="3T",Tables!$G$179,IF($E17="4U",Tables!$I$179,IF($E17="4D",Tables!$K$179,Tables!$M$179))))) -> 0.194 | DF17: =+$CQ17*DE17 -> 0.5352014002 | DG17: =+DD17+DF17 -> 0.8441213576 | DH17: =IF(Inputs!$B$3="HSM", HLOOKUP($E17,Tables!$D$165:$M$172,6,FALSE),HLOOKUP($E17,Tables!$D$175:$M$182,6,FALSE)) -> 0.042 | DI17: =+$CO17*$DH17 -> 0.04413142248 | DJ17: =IF(Inputs!$B$3="HSM",IF($E17="2U",Tables!$E$170,IF($E17="3T",Tables!$G$170,IF($E17="4U",Tables!$I$170,IF($E17="4D",Tables!$K$170,Tables!$M$170)))),IF($E17="2U",Tables!$E$180,IF($E17="3T",Tables!$G$180,IF($E17="4U",Tables!$I$180,IF($E17="4D",Tables!$K$180,Tables!$M$180))))) -> 0.185 | DK17: =+$CQ17*DJ17 -> 0.5103724693 | DL17: =+DI17+DK17 -> 0.5545038917 | DM17: =IF(Inputs!$B$3="HSM", HLOOKUP($E17,Tables!$D$165:$M$172,7,FALSE),HLOOKUP($E17,Tables!$D$175:$M$182,7,FALSE)) -> 0.015 | DN17: =+$CO17*$DM17 -> 0.01576122232 | DO17: =IF(Inputs!$B$3="HSM",IF($E17="2U",Tables!$E$171,IF($E17="3T",Tables!$G$171,IF($E17="4U",Tables!$I$171,IF($E17="4D",Tables!$K$171,Tables!$M$171)))),IF($E17="2U",Tables!$E$181,IF($E17="3T",Tables!$G$181,IF($E17="4U",Tables!$I$181,IF($E17="4D",Tables!$K$181,Tables!$M$181))))) -> 0.022 | DP17: =+$CQ17*DO17 -> 0.06069294229 | DQ17: =+DN17+DP17 -> 0.07645416461 | DR17: =IF(Inputs!$B$3="HSM", HLOOKUP($E17,Tables!$D$165:$M$172,8,FALSE),HLOOKUP($E17,Tables!$D$175:$M$182,8,FALSE)) -> 0.031 | DS17: =+$CO17*$DR17 -> 0.03257319278 | DT17: =IF(Inputs!$B$3="HSM",IF($E17="2U",Tables!$E$172,IF($E17="3T",Tables!$G$172,IF($E17="4U",Tables!$I$172,IF($E17="4D",Tables!$K$172,Tables!$M$172)))),IF($E17="2U",Tables!$E$182,IF($E17="3T",Tables!$G$182,IF($E17="4U",Tables!$I$182,IF($E17="4D",Tables!$K$182,Tables!$M$182))))) -> 0.035 | DU17: =+$CQ17*DT17 -> 0.09655695364 | DV17: =+DS17+DU17 -> 0.1291301464 | DW17: =VLOOKUP($E17,Tables!$Y$209:$AB$213,2, FALSE) -> -4.82 | DX17: =VLOOKUP($E17,Tables!$Y$209:$AB$213,3, FALSE) -> 0.54 | DY17: =VLOOKUP($E17,Tables!$Y$209:$AB$213,4, FALSE) -> 0.52 | DZ17: =EXP($DW17+($DX17*LN($G17))+LN($F17)) -> 1.841382054 | EA17: 1 | EB17: =$DZ17*EA17 -> 1.841382054 | EC17: =+BF17 -> 1 | ED17: =IF(Inputs!$B$3<>"HSM",$AB17,$AA17) -> 0.7744722 | EE17: =+EB17*EC17*ED17 -> 1.426099211 | EF17: =VLOOKUP($E17,Tables!$Y$215:$AB$219,2, FALSE) -> -4.43 | EG17: =VLOOKUP($E17,Tables!$Y$215:$AB$219,3, FALSE) -> 0.35 | EH17: =VLOOKUP($E17,Tables!$Y$215:$AB$219,4, FALSE) -> 0.36 | EI17: =EXP($EF17+($EG17*LN($G17))+LN($F17)) -> 0.4641454998 | EJ17: =EI17/(EI17+ER17) -> 0.2651308178 | EK17: =$DZ17*EJ17 -> 0.48820713 | EL17: =+BF17 -> 1 | EM17: =IF(Inputs!$B$3<>"HSM",$AB17,$AA17) -> 0.7744722 | EN17: =+EK17*EL17*EM17 -> 0.37810285 | EO17: =VLOOKUP($E17,Tables!$Y$221:$AB$225,2, FALSE) -> -5.83 | EP17: =VLOOKUP($E17,Tables!$Y$221:$AB$225,3, FALSE) -> 0.61 | EQ17: =VLOOKUP($E17,Tables!$Y$221:$AB$225,4, FALSE) -> 0.55 | ER17: =EXP($EO17+($EP17*LN($G17))+LN($F17)) -> 1.286482751 | ES17: =EA17-EJ17 -> 0.7348691822 | ET17: =$DZ17*ES17 -> 1.353174924 | EU17: =+BF17 -> 1 | EV17: =IF(Inputs!$B$3<>"HSM",$AB17,$AA17) -> 0.7744722 | EW17: =+ET17*EU17*EV17 -> 1.047996361 | EX17: 1 | EY17: =+EN17 -> 0.37810285 | EZ17: 1 | FA17: =+EW17 -> 1.047996361 | FB17: =+EE17 -> 1.426099211 | FC17: =IF(Inputs!$B$3="HSM", HLOOKUP($E17,Tables!$D$190:$M$195,3,FALSE),HLOOKUP($E17,Tables!$D$198:$M$203,3,FALSE)) -> 0.061 | FD17: =+$EY17*$FC17 -> 0.02306427385 | FE17: =IF(Inputs!$B$3="HSM",IF($E17="2U",Tables!$E$192,IF($E17="3T",Tables!$G$192,IF($E17="4U",Tables!$I$192,IF($E17="4D",Tables!$K$192,Tables!$M$192)))),IF($E17="2U",Tables!$E$200,IF($E17="3T",Tables!$G$200,IF($E17="4U",Tables!$I$200,IF($E17="4D",Tables!$K$200,Tables!$M$200))))) -> 0.457 | FF17: =+$FA17*FE17 -> 0.4789343368 | FG17: =+FD17+FF17 -> 0.5019986106 | FH17: =IF(Inputs!$B$3="HSM", HLOOKUP($E17,Tables!$D$190:$M$195,4,FALSE),HLOOKUP($E17,Tables!$D$198:$M$203,4,FALSE)) -> 0.666 | FI17: =+$EY17*$FH17 -> 0.2518164981 | FJ17: =IF(Inputs!$B$3="HSM",IF($E17="2U",Tables!$E$193,IF($E17="3T",Tables!$G$193,IF($E17="4U",Tables!$I$193,IF($E17="4D",Tables!$K$193,Tables!$M$193)))),IF($E17="2U",Tables!$E$201,IF($E17="3T",Tables!$G$201,IF($E17="4U",Tables!$I$201,IF($E17="4D",Tables!$K$201,Tables!$M$201))))) -> 0.415 | FK17: =+$FA17*FJ17 -> 0.4349184896 | FL17: =+FI17+FK17 -> 0.6867349877 | FM17: =IF(Inputs!$B$3="HSM", HLOOKUP($E17,Tables!$D$190:$M$195,5,FALSE),HLOOKUP($E17,Tables!$D$198:$M$203,5,FALSE)) -> 0.017 | FN17: =+$EY17*$FM17 -> 0.00642774845 | FO17: =IF(Inputs!$B$3="HSM",IF($E17="2U",Tables!$E$194,IF($E17="3T",Tables!$G$194,IF($E17="4U",Tables!$I$194,IF($E17="4D",Tables!$K$194,Tables!$M$194)))),IF($E17="2U",Tables!$E$202,IF($E17="3T",Tables!$G$202,IF($E17="4U",Tables!$I$202,IF($E17="4D",Tables!$K$202,Tables!$M$202))))) -> 0.056 | FP17: =+$FA17*FO17 -> 0.05868779619 | FQ17: =+FN17+FP17 -> 0.06511554464 | FR17: =IF(Inputs!$B$3="HSM", HLOOKUP($E17,Tables!$D$190:$M$195,6,FALSE),HLOOKUP($E17,Tables!$D$198:$M$203,6,FALSE)) -> 0.257 | FS17: =+$EY17*$FR17 -> 0.09717243246 | FT17: =IF(Inputs!$B$3="HSM",IF($E17="2U",Tables!$E$195,IF($E17="3T",Tables!$G$195,IF($E17="4U",Tables!$I$195,IF($E17="4D",Tables!$K$195,Tables!$M$195)))),IF($E17="2U",Tables!$E$203,IF($E17="3T",Tables!$G$203,IF($E17="4U",Tables!$I$203,IF($E17="4D",Tables!$K$203,Tables!$M$203))))) -> 0.071 | FU17: =+$FA17*FT17 -> 0.0744077416 | FV17: =+FS17+FU17 -> 0.1715801741 | FW17: =+M17 -> 0 | FX17: =HLOOKUP(E17,Tables!$AA$230:$AE$238,3,FALSE) -> 0.165 | FY17: =HLOOKUP(E17,Tables!$AA$230:$AE$246,11,FALSE) -> 1.172 | FZ17: =POWER((G17/15000),FY17)*FW17*FX17 -> 0 | GA17: =+N17 -> 0 | GB17: =HLOOKUP(E17,Tables!$AA$230:$AE$238,4,FALSE) -> 0.053 | GC17: =HLOOKUP(E17,Tables!$AA$230:$AE$246,11,FALSE) -> 1.172 | GD17: =POWER((G17/15000),GC17)*GA17*GB17 -> 0 | GE17: =+O17 -> 0 | GF17: =HLOOKUP(E17,Tables!$AA$230:$AE$238,5,FALSE) -> 0.181 | GG17: =HLOOKUP(E17,Tables!$AA$230:$AE$246,11,FALSE) -> 1.172 | GH17: =POWER((G17/15000),GG17)*GE17*GF17 -> 0 | GI17: =+P17 -> 0 | GJ17: =HLOOKUP(E17,Tables!$AA$230:$AE$238,6,FALSE) -> 0.024 | GK17: =HLOOKUP(E17,Tables!$AA$230:$AE$246,11,FALSE) -> 1.172 | GL17: =POWER((G17/15000),GK17)*GI17*GJ17 -> 0 | GM17: =+Q17 -> 0 | GN17: =HLOOKUP(E17,Tables!$AA$230:$AE$238,7,FALSE) -> 0.087 | GO17: =HLOOKUP(E17,Tables!$AA$230:$AE$246,11,FALSE) -> 1.172 | GP17: =POWER((G17/15000),GO17)*GM17*GN17 -> 0 | GQ17: =+R17 -> 0 | GR17: =HLOOKUP(E17,Tables!$AA$230:$AE$238,8,FALSE) -> 0.016 | GS17: =HLOOKUP(E17,Tables!$AA$230:$AE$246,11,FALSE) -> 1.172 | GT17: =POWER((G17/15000),GS17)*GQ17*GR17 -> 0 | GU17: =+S17 -> 0 | GV17: =HLOOKUP(E17,Tables!$AA$230:$AE$238,9,FALSE) -> 0.027 | GW17: =HLOOKUP(E17,Tables!$AA$230:$AE$246,11,FALSE) -> 1.172 | GX17: =POWER((G17/15000),GW17)*GU17*GV17 -> 0 | GY17: -- | GZ17: -- | HA17: -- | HB17: =+FZ17+GD17+GH17+GL17+GP17+GT17+GX17 -> 0 | HC17: =HLOOKUP(E17,Tables!$AA$230:$AE$246,13,FALSE) -> 0.1 | HD17: =+HB17 -> 0 | HE17: 1 | HF17: =+$HD17*HE17 -> 0 | HG17: =+BF17 -> 1 | HH17: =IF(Inputs!$B$3<>"HSM",$AB17,$AA17) -> 0.7744722 | HI17: =+HF17*HG17*HH17 -> 0 | HJ17: -- | HK17: =HLOOKUP(E17,Tables!$AA$230:$AE$246,15,FALSE) -> 0.269 | HL17: =+$HD17*HK17 -> 0 | HM17: =+BF17 -> 1 | HN17: =IF(Inputs!$B$3<>"HSM",$AB17,$AA17) -> 0.7744722 | HO17: =+HL17*HM17*HN17 -> 0 | HP17: -- | HQ17: =HLOOKUP(E17,Tables!$AA$230:$AE$246,17,FALSE) -> 0.731 | HR17: =+$HD17*HQ17 -> 0 | HS17: =+BF17 -> 1 | HT17: =IF(Inputs!$B$3<>"HSM",$AB17,$AA17) -> 0.7744722 | HU17: =+HR17*HS17*HT17 -> 0 | HV17: =+BU17 -> 3.809518258 | HW17: =+EE17 -> 1.426099211 | HX17: =+HI17 -> 0 | HY17: =+HV17+HW17+HX17 -> 5.235617469 | HZ17: =IF(Inputs!$B$3="HSM", (IF($T17="Posted Speed 30 mph or Lower",VLOOKUP($E17,Tables!$B$212:$K$216,3,FALSE),VLOOKUP($E17,Tables!$B$212:$K$216,5,FALSE))),(IF($T17="Posted Speed 30 mph or Lower", VLOOKUP($E17,Tables!$B$212:$K$216,7,FALSE),VLOOKUP($E17,Tables!$B$212:$K$216,9,FALSE)))) -> 0.023 | IA17: =IF(Inputs!$B$3<>"HSM",$AB17,$AA17) -> 0.7744722 | IB17: =+$HY17*$HZ17*$IA17 -> 0.09326132413 | IC17: -- | ID17: -- | IE17: -- | IF17: -- | IG17: -- | IH17: =IF(Inputs!$B$3<>"HSM",$AB17,$AA17) -> 0.7744722 | II17: =+$HY17*$HZ17*$IA17 -> 0.09326132413 | IJ17: =+BU17 -> 3.809518258 | IK17: =+EE17 -> 1.426099211 | IL17: =+HI17 -> 0 | IM17: =+IJ17+IK17+IL17 -> 5.235617469 | IN17: =IF(Inputs!$B$3="HSM", (IF($T17="Posted Speed 30 mph or Lower",VLOOKUP($E17,Tables!$B$227:$K$231,3,FALSE),VLOOKUP($E17,Tables!$B$227:$K$231,5,FALSE))),(IF($T17="Posted Speed 30 mph or Lower", VLOOKUP($E17,Tables!$B$227:$K$231,7,FALSE),VLOOKUP($E17,Tables!$B$227:$K$231,9,FALSE)))) -> 0.012 | IO17: =IF(Inputs!$B$3<>"HSM",$AB17,$AA17) -> 0.7744722 | IP17: =+$IM17*$IN17*$IO17 -> 0.04865808215 | IQ17: -- | IR17: -- | IS17: -- | IT17: -- | IU17: -- | IV17: =IF(Inputs!$B$3<>"HSM",$AB17,$AA17) -> 0.7744722 | IW17: =+$IM17*$IN17*$IO17 -> 0.04865808215 | IX17: =+CT17 -> 0.5085621067 | IY17: =+CY17 -> 0.1408002527 | IZ17: =+DD17 -> 0.3089199574 | JA17: =+DI17 -> 0.04413142248 | JB17: =+DN17 -> 0.01576122232 | JC17: =+HO17 -> 0 | JD17: =+DS17 -> 0.03257319278 | JE17: =SUM(IX17:JD17) -> 1.050748154 | JF17: =+FD17 -> 0.02306427385 | JG17: =+FI17 -> 0.2518164981 | JH17: =+FN17 -> 0.00642774845 | JI17: =+FS17 -> 0.09717243246 | JJ17: =+II17 -> 0.09326132413 | JK17: =+IW17 -> 0.04865808215 | JL17: =SUM(JF17:JK17) -> 0.5204003592 | JM17: =+JE17+JL17 -> 1.571148513 | JN17: =+CV17 -> 1.420766604 | JO17: =+DA17 -> 0.1351797351 | JP17: =+DF17 -> 0.5352014002 | JQ17: =+DK17 -> 0.5103724693 | JR17: =+DP17 -> 0.06069294229 | JS17: =+HU17 -> 0 | JT17: =+DU17 -> 0.09655695364 | JU17: =SUM(JN17:JT17) -> 2.758770104 | JV17: =+FF17 -> 0.4789343368 | JW17: =+FK17 -> 0.4349184896 | JX17: =+FP17 -> 0.05868779619 | JY17: =+FU17 -> 0.0744077416 | JZ17: 0 | KA17: 0 | KB17: =SUM(JV17:KA17) -> 1.046948364 | KC17: =+JU17+KB17 -> 3.805718468 | KD17: =+CW17 -> 1.92932871 | KE17: =+DB17 -> 0.2759799878 | KF17: =+DG17 -> 0.8441213576 | KG17: =+DL17 -> 0.5545038917 | KH17: =+DQ17 -> 0.07645416461 | KI17: =+HI17 -> 0 | KJ17: =+DV17 -> 0.1291301464 | KK17: =SUM(KD17:KJ17) -> 3.809518258 | KL17: =+FG17 -> 0.5019986106 | KM17: =+FL17 -> 0.6867349877 | KN17: =+FQ17 -> 0.06511554464 | KO17: =+FV17 -> 0.1715801741 | KP17: =+IB17 -> 0.09326132413 | KQ17: =+IP17 -> 0.04865808215 | KR17: =SUM(KL17:KQ17) -> 1.567348723 | KS17: =+KK17+KR17 -> 5.376866982 | KT17: =+KC17 -> 3.805718468 | KU17: =+F17 -> 1.5 | KV17: =+KT17/KU17 -> 2.537145646 | KW17: =+JM17 -> 1.571148513 | KX17: =+F17 -> 1.5 | KY17: =+KW17/KX17 -> 1.047432342 | KZ17: =+KS17 -> 5.376866982 | LA17: =+F17 -> 1.5 | LB17: =+KZ17/LA17 -> 3.584577988
A19: Urban and Suburban Intersections
A20: Example 1 | B20: SH-321 | C20: 3rd Avenue | D20: Anywhere, USA | E20: 4ST | F20: 6200 | G20: 1200 | H20: NP | I20: N/A (1.000) | J20: N/A (1.000) | K20: N/A (1.000) | M20: 1 | N20: =AVERAGE(INDIRECT(ADDRESS(MATCH(sYear,'Calibration Factors'!$A:$A,0),CHOOSE(MATCH(E20,{"3ST","3SG","4ST","4SG"},0),22,24,26,28),,,"Calibration Factors")&":"&ADDRESS(MATCH(eYear,'Calibration Factors'!$A:$A,0),CHOOSE(MATCH(E20,{"3ST","3SG","4ST","4SG"},0),22,24,26,28)))) -> 1.503261 | O20: 0 | P20: 0 | Q20: 0 | R20: 0 | S20: 0 | T20: N/A | U20: N/A | V20: N/A | W20: N/A | X20: 0 | Y20: NP | Z20: 1 | AA20: 0 | AB20: 0 | AC20: NP | AD20: 0 | AG20: =IF(AE20=0,0,BY20) -> 0 | AH20: =IF(AF20=0,0,EG20) -> 0 | AI20: =1/(1+AG20*JX20) -> 1 | AJ20: =1/(1+AH20*EM20) -> 1 | AK20: =IF(AE20=0,0,AI20*JX20+((1-AI20)*AE20)) -> 0 | AL20: =IF(AF20=0,0,AJ20*EM20+((1-AJ20)*AF20)) -> 0 | AM20: =AK20+AL20 -> 0 | AN20: =IF(AE20&AF20="","",(AE20+AF20)-AM20) ->  | AO20: =AK20*JX20^2 -> 0 | AP20: =AL20*EM20^2 -> 0 | AQ20: =SQRT(AK20*JX20) -> 0 | AR20: =SQRT(AL20*EM20) -> 0 | AS20: =IF(S20>0,IF(E20="3ST",1,IF(E20="4ST",1,IF(T20="Permissive",1,IF(T20="Protected",0.94,0.99)))),1) -> 1 | AT20: =IF(S20>1,IF(E20="3ST",1,IF(E20="4ST",1,IF(U20="Permissive",1,IF(U20="Protected",0.94,0.99)))),1) -> 1 | AU20: =IF(S20>2,IF(E20="3ST",1,IF(E20="4ST",1,IF(V20="Permissive",1,IF(V20="Protected",0.94,0.99)))),1) -> 1 | AV20: =IF(S20>3,IF(E20="3ST",1,IF(E20="4ST",1,IF(W20="Permissive",1,IF(W20="Protected",0.94,0.99)))),1) -> 1 | AW20: =AS20*AT20*AU20*AV20 -> 1 | AX20: =IF(Inputs!$B$3="HSM",(IF($E20="3ST",Tables!$D$110,IF($E20="3SG",Tables!$F$110,IF($E20="4ST",Tables!$H$110,Tables!$J$110)))),(IF($E20="3ST",Tables!$D$119,IF($E20="3SG",Tables!$F$119,IF($E20="4ST",Tables!$H$119,Tables!$J$119))))) -> 0.446 | AY20: =IF(Inputs!$B$3="HSM",(IF($E20="3ST",Tables!$E$110,IF($E20="3SG",Tables!$G$110,IF($E20="4ST",Tables!$I$110,Tables!$K$110)))),(IF($E20="3ST",Tables!$E$119,IF($E20="3SG",Tables!$G$119,IF($E20="4ST",Tables!$I$119,Tables!$K$119))))) -> 0.285 | AZ20: =+CL20 -> 0.3572238202 | BA20: =+CV20 -> 0.6763359768 | BB20: =+EJ20 -> 0.2023957639 | BC20: =((+AX20*CL20)+(+AY20*CV20))/(+CL20+CV20+EH20) -> 0.2848626507 | BD20: =IF(Inputs!$B$3="HSM",(IF($E20="3ST",Tables!$D$108,IF($E20="3SG",Tables!$F$108,IF($E20="4ST",Tables!$H$108,Tables!$J$108)))),(IF($E20="3ST",Tables!$D$117,IF($E20="3SG",Tables!$F$117,IF($E20="4ST",Tables!$H$117,Tables!$J$117))))) -> 0.338 | BE20: =IF(Inputs!$B$3="HSM",(IF($E20="3ST",Tables!$E$108,IF($E20="3SG",Tables!$G$108,IF($E20="4ST",Tables!$I$108,Tables!$K$108)))),(IF($E20="3ST",Tables!$E$117,IF($E20="3SG",Tables!$G$117,IF($E20="4ST",Tables!$I$117,Tables!$K$117))))) -> 0.361 | BF20: =+CL20 -> 0.3572238202 | BG20: =+CV20 -> 0.6763359768 | BH20: =+EJ20 -> 0.2023957639 | BI20: =((+BD20*BF20)+(+BE20*BG20))/(+BF20+BG20+BH20) -> 0.2952362936 | BJ20: =1-(BC20*(1-0.74))-(BI20*(1-1.18)) -> 0.9790782437 | BK20: =IF(E20="3ST",IF(O20=0,1,IF(O20=1,Tables!$AB$53,Tables!$AC$53)),IF(E20="4ST",IF(O20=0,1,IF(O20=1,Tables!$AB$55,Tables!$AC$55)),IF(Q20=0,1,IF(Q20=1,VLOOKUP(E20,Tables!$Y$54:$AE$56,4,FALSE),IF(Q20=2,VLOOKUP(E20,Tables!$Y$54:$AE$56,5,FALSE),IF(Q20=3,VLOOKUP(E20,Tables!$Y$54:$AE$56,6,FALSE),VLOOKUP(E20,Tables!$Y$54:$AE$56,7,FALSE))))))) -> 1 | BL20: =IF($E20="3ST",1,IF($E20="4ST",1,AW20)) -> 1 | BM20: =IF(E20="3ST",POWER(0.86,P20),IF(E20="4ST",POWER(0.86,P20),POWER(0.96,R20))) -> 1 | BN20: =IF($E20="3ST",1,IF($E20="4ST",1,POWER(0.98,$X20))) -> 1 | BO20: =IF($H20="NP",1,(1-(IF(Inputs!$B$3="HSM",VLOOKUP($E20,Tables!$B$155:$G$158,3,FALSE),VLOOKUP($E20,Tables!$B$155:$G$158,5,FALSE)))*0.38)) -> 1 | BP20: =IF($Y20="NP",1,$BJ20) -> 1 | BQ20: =OFFSET(Tables!$AY$1,MATCH(I20,Tables!$AY:$AY,0)-1,1) -> 1 | BR20: =OFFSET(Tables!$AY$1,MATCH(J20,Tables!$AY:$AY,0)-1,1) -> 1 | BS20: =OFFSET(Tables!$AY$1,MATCH(K20,Tables!$AY:$AY,0)-1,1) -> 1 | BT20: =IF(L20="",1,L20) -> 1 | BU20: =+BK20*BL20*BM20*BN20*BO20*BP20*BQ20*BR20*BS20*BT20 -> 1 | BV20: =VLOOKUP($E20,Tables!$Y$130:$AC$133,2,FALSE) -> -8.9 | BW20: =VLOOKUP($E20,Tables!$Y$130:$AC$133,3,FALSE) -> 0.82 | BX20: =VLOOKUP($E20,Tables!$Y$130:$AC$133,4,FALSE) -> 0.25 | BY20: =VLOOKUP($E20,Tables!$Y$130:$AC$133,5,FALSE) -> 0.4 | BZ20: =EXP(BV20+(BW20*LN($F20))+(BX20*LN($G20))) -> 1.033559797 | CA20: 1 | CB20: =BZ20*CA20 -> 1.033559797 | CC20: =+BU20 -> 1 | CD20: =IF(Inputs!$B$3<>"HSM",$N20,$M20) -> 1.503261 | CE20: =CB20*CC20*CD20 -> 1.553710134 | CF20: =VLOOKUP($E20,Tables!$Y$135:$AC$138,2,FALSE) -> -11.13 | CG20: =VLOOKUP($E20,Tables!$Y$135:$AC$138,3,FALSE) -> 0.93 | CH20: =VLOOKUP($E20,Tables!$Y$135:$AC$138,4,FALSE) -> 0.28 | CI20: =VLOOKUP($E20,Tables!$Y$135:$AC$138,5,FALSE) -> 0.48 | CJ20: =EXP(CF20+(CG20*LN($F20))+(CH20*LN($G20))) -> 0.3592505457 | CK20: =+CJ20/(CJ20+CT20) -> 0.3456247246 | CL20: =BZ20*CK20 -> 0.3572238202 | CM20: =+BU20 -> 1 | CN20: =IF(Inputs!$B$3<>"HSM",$N20,$M20) -> 1.503261 | CO20: =CL20*CM20*CN20 -> 0.5370006372 | CP20: =VLOOKUP($E20,Tables!$Y$140:$AC$143,2,FALSE) -> -8.74 | CQ20: =VLOOKUP($E20,Tables!$Y$140:$AC$143,3,FALSE) -> 0.77 | CR20: =VLOOKUP($E20,Tables!$Y$140:$AC$143,4,FALSE) -> 0.23 | CS20: =VLOOKUP($E20,Tables!$Y$140:$AC$143,5,FALSE) -> 0.4 | CT20: =EXP(CP20+(CQ20*LN($F20))+(CR20*LN($G20))) -> 0.6801731995 | CU20: =CA20-CK20 -> 0.6543752754 | CV20: =BZ20*CU20 -> 0.6763359768 | CW20: =+BU20 -> 1 | CX20: =IF(Inputs!$B$3<>"HSM",$N20,$M20) -> 1.503261 | CY20: =CV20*CW20*CX20 -> 1.016709497 | CZ20: 1 | DA20: =CO20 -> 0.5370006372 | DB20: 1 | DC20: =CY20 -> 1.016709497 | DD20: =CE20 -> 1.553710134 | DE20: =IF(Inputs!$B$3="HSM", HLOOKUP($E20,Tables!$B$106:$K$112,3,FALSE),HLOOKUP($E20,Tables!$B$115:$K$121,3,FALSE)) -> 0.338 | DF20: =+DE20*$CO20 -> 0.1815062154 | DG20: =IF(Inputs!$B$3="HSM",IF(E20="3ST",Tables!$E$108,IF(E20="3SG",Tables!$G$108,IF(E20="4ST",Tables!$I$108,Tables!$K$108))),IF(E20="3ST",Tables!$E$117,IF(E20="3SG",Tables!$G$117,IF(E20="4ST",Tables!$I$117,Tables!$K$117)))) -> 0.361 | DH20: =+DG20*$CY20 -> 0.3670321283 | DI20: =+DF20+DH20 -> 0.5485383437 | DJ20: =IF(Inputs!$B$3="HSM", HLOOKUP($E20,Tables!$B$106:$K$112,4,FALSE),HLOOKUP($E20,Tables!$B$115:$K$121,4,FALSE)) -> 0.086 | DK20: =+DJ20*$CO20 -> 0.0461820548 | DL20: =IF(Inputs!$B$3="HSM",IF(E20="3ST",Tables!$E$109,IF(E20="3SG",Tables!$G$109,IF(E20="4ST",Tables!$I$109,Tables!$K$109))),IF(E20="3ST",Tables!$E$118,IF(E20="3SG",Tables!$G$118,IF(E20="4ST",Tables!$I$118,Tables!$K$118)))) -> 0.034 | DM20: =+DL20*$CY20 -> 0.03456812289 | DN20: =+DK20+DM20 -> 0.08075017769 | DO20: =IF(Inputs!$B$3="HSM", HLOOKUP($E20,Tables!$B$106:$K$112,5,FALSE),HLOOKUP($E20,Tables!$B$115:$K$121,5,FALSE)) -> 0.446 | DP20: =+DO20*$CO20 -> 0.2395022842 | DQ20: =IF(Inputs!$B$3="HSM",IF(E20="3ST",Tables!$E$110,IF(E20="3SG",Tables!$G$110,IF(E20="4ST",Tables!$I$110,Tables!$K$110))),IF(E20="3ST",Tables!$E$119,IF(E20="3SG",Tables!$G$119,IF(E20="4ST",Tables!$I$119,Tables!$K$119)))) -> 0.285 | DR20: =+DQ20*$CY20 -> 0.2897622066 | DS20: =+DP20+DR20 -> 0.5292644908 | DT20: =IF(Inputs!$B$3="HSM", HLOOKUP($E20,Tables!$B$106:$K$112,6,FALSE),HLOOKUP($E20,Tables!$B$115:$K$121,6,FALSE)) -> 0.079 | DU20: =+DT20*$CO20 -> 0.04242305034 | DV20: =IF(Inputs!$B$3="HSM",IF(E20="3ST",Tables!$E$111,IF(E20="3SG",Tables!$G$111,IF(E20="4ST",Tables!$I$111,Tables!$K$111))),IF(E20="3ST",Tables!$E$120,IF(E20="3SG",Tables!$G$120,IF(E20="4ST",Tables!$I$120,Tables!$K$120)))) -> 0.225 | DW20: =+DV20*$CY20 -> 0.2287596368 | DX20: =+DU20+DW20 -> 0.2711826871 | DY20: =IF(Inputs!$B$3="HSM", HLOOKUP($E20,Tables!$B$106:$K$112,7,FALSE),HLOOKUP($E20,Tables!$B$115:$K$121,7,FALSE)) -> 0.05 | DZ20: =+DY20*$CO20 -> 0.02685003186 | EA20: =IF(Inputs!$B$3="HSM",IF(E20="3ST",Tables!$E$112,IF(E20="3SG",Tables!$G$112,IF(E20="4ST",Tables!$I$112,Tables!$K$112))),IF(E20="3ST",Tables!$E$121,IF(E20="3SG",Tables!$G$121,IF(E20="4ST",Tables!$I$121,Tables!$K$121)))) -> 0.095 | EB20: =+EA20*$CY20 -> 0.09658740219 | EC20: =+DZ20+EB20 -> 0.1234374341 | ED20: =VLOOKUP($E20,Tables!$Y$151:$AC$154,2,FALSE) -> -5.33 | EE20: =VLOOKUP($E20,Tables!$Y$151:$AC$154,3,FALSE) -> 0.33 | EF20: =VLOOKUP($E20,Tables!$Y$151:$AC$154,4,FALSE) -> 0.12 | EG20: =VLOOKUP($E20,Tables!$Y$151:$AC$154,5,FALSE) -> 0.65 | EH20: =EXP($ED20+($EE20*LN($F20))+($EF20*LN($G20))) -> 0.2023957639 | EI20: 1 | EJ20: =$EH20*$EI20 -> 0.2023957639 | EK20: =$BU20 -> 1 | EL20: =IF(Inputs!$B$3<>"HSM",$N20,$M20) -> 1.503261 | EM20: =+$EH20*$BU20*$EL20 -> 0.3042536584 | EN20: =VLOOKUP($E20,Tables!$Y$156:$AC$159,2,FALSE) -> -- | EO20: =VLOOKUP($E20,Tables!$Y$156:$AC$159,3,FALSE) -> -- | EP20: =VLOOKUP($E20,Tables!$Y$156:$AC$159,4,FALSE) -> -- | EQ20: =VLOOKUP($E20,Tables!$Y$156:$AC$159,5,FALSE) -> -- | ER20: =IF(E20="3ST",EH20*0.31,IF(E20="4ST",EH20*0.28,(EXP(EN20+(EO20*LN(F20))+(EP20*LN(G20)))))) -> 0.05667081388 | ES20: =+ER20/(ER20+FB20) -> 0.3215528208 | ET20: =$EH20*$ES20 -> 0.0650809288 | EU20: =$BU20 -> 1 | EV20: =IF(Inputs!$B$3<>"HSM",$N20,$M20) -> 1.503261 | EW20: =+ET20*EU20*EV20 -> 0.09783362211 | EX20: =VLOOKUP($E20,Tables!$Y$161:$AC$164,2,FALSE) -> -7.04 | EY20: =VLOOKUP($E20,Tables!$Y$161:$AC$164,3,FALSE) -> 0.36 | EZ20: =VLOOKUP($E20,Tables!$Y$161:$AC$164,4,FALSE) -> 0.25 | FA20: =VLOOKUP($E20,Tables!$Y$161:$AC$164,5,FALSE) -> 0.54 | FB20: =EXP($EX20+($EY20*LN($F20))+($EZ20*LN($G20))) -> 0.1195702582 | FC20: =EI20-ES20 -> 0.6784471792 | FD20: =EH20*FC20 -> 0.1373148351 | FE20: =$BU20 -> 1 | FF20: =IF(Inputs!$B$3<>"HSM",$N20,$M20) -> 1.503261 | FG20: =+FD20*FE20*FF20 -> 0.2064200363 | FH20: 1 | FI20: =+EW20 -> 0.09783362211 | FJ20: 1 | FK20: =+FG20 -> 0.2064200363 | FL20: =+EM20 -> 0.3042536584 | FM20: =IF(Inputs!$B$3="HSM", HLOOKUP($E20,Tables!$B$129:$K$136,3,FALSE),HLOOKUP($E20,Tables!$B$139:$K$146,3,FALSE)) -> 0.002 | FN20: =+FM20*$FI20 -> 0.0001956672442 | FO20: =IF(Inputs!$B$3="HSM",IF($E20="3ST",Tables!$E$131,IF($E20="3SG",Tables!$G$131,IF($E20="4ST",Tables!$I$131,Tables!$K$131))),IF($E20="3ST",Tables!$E$141,IF($E20="3SG",Tables!$G$141,IF($E20="4ST",Tables!$I$141,Tables!$K$141)))) -> 0 | FP20: =+FO20*$FK20 -> 0 | FQ20: =+FN20+FP20 -> 0.0001956672442 | FR20: =IF(Inputs!$B$3="HSM", HLOOKUP($E20,Tables!$B$129:$K$136,4,FALSE),HLOOKUP($E20,Tables!$B$139:$K$146,4,FALSE)) -> 0.037 | FS20: =+FR20*$FI20 -> 0.003619844018 | FT20: =IF(Inputs!$B$3="HSM",IF($E20="3ST",Tables!$E$132,IF($E20="3SG",Tables!$G$132,IF($E20="4ST",Tables!$I$132,Tables!$K$132))),IF($E20="3ST",Tables!$E$142,IF($E20="3SG",Tables!$G$142,IF($E20="4ST",Tables!$I$142,Tables!$K$142)))) -> 0.39 | FU20: =+FT20*$FK20 -> 0.08050381415 | FV20: =+FS20+FU20 -> 0.08412365817 | FW20: =IF(Inputs!$B$3="HSM", HLOOKUP($E20,Tables!$B$129:$K$136,5,FALSE),HLOOKUP($E20,Tables!$B$139:$K$146,5,FALSE)) -> 0.697 | FX20: =+FW20*$FI20 -> 0.06819003461 | FY20: =IF(Inputs!$B$3="HSM",IF($E20="3ST",Tables!$E$133,IF($E20="3SG",Tables!$G$133,IF($E20="4ST",Tables!$I$133,Tables!$K$133))),IF($E20="3ST",Tables!$E$143,IF($E20="3SG",Tables!$G$143,IF($E20="4ST",Tables!$I$143,Tables!$K$143)))) -> 0.499 | FZ20: =+FY20*$FK20 -> 0.1030035981 | GA20: =+FX20+FZ20 -> 0.1711936327 | GB20: =IF(Inputs!$B$3="HSM", HLOOKUP($E20,Tables!$B$129:$K$136,6,FALSE),HLOOKUP($E20,Tables!$B$139:$K$146,6,FALSE)) -> 0.025 | GC20: =+GB20*$FI20 -> 0.002445840553 | GD20: =IF(Inputs!$B$3="HSM",IF($E20="3ST",Tables!$E$134,IF($E20="3SG",Tables!$G$134,IF($E20="4ST",Tables!$I$134,Tables!$K$134))),IF($E20="3ST",Tables!$E$144,IF($E20="3SG",Tables!$G$144,IF($E20="4ST",Tables!$I$144,Tables!$K$144)))) -> 0.04 | GE20: =+GD20*$FK20 -> 0.008256801451 | GF20: =+GC20+GE20 -> 0.010702642 | GG20: =IF(Inputs!$B$3="HSM", HLOOKUP($E20,Tables!$B$129:$K$136,7,FALSE),HLOOKUP($E20,Tables!$B$139:$K$146,7,FALSE)) -> 0.126 | GH20: =+GG20*$FI20 -> 0.01232703639 | GI20: =IF(Inputs!$B$3="HSM",IF($E20="3ST",Tables!$E$135,IF($E20="3SG",Tables!$G$135,IF($E20="4ST",Tables!$I$135,Tables!$K$135))),IF($E20="3ST",Tables!$E$145,IF($E20="3SG",Tables!$G$145,IF($E20="4ST",Tables!$I$145,Tables!$K$145)))) -> 0.054 | GJ20: =+GI20*$FK20 -> 0.01114668196 | GK20: =+GH20+GJ20 -> 0.02347371835 | GL20: =IF(Inputs!$B$3="HSM", HLOOKUP($E20,Tables!$B$129:$K$136,8,FALSE),HLOOKUP($E20,Tables!$B$139:$K$146,8,FALSE)) -> 0.114 | GM20: =+GL20*$FI20 -> 0.01115303292 | GN20: =IF(Inputs!$B$3="HSM",IF($E20="3ST",Tables!$E$136,IF($E20="3SG",Tables!$G$136,IF($E20="4ST",Tables!$I$136,Tables!$K$136))),IF($E20="3ST",Tables!$E$146,IF($E20="3SG",Tables!$G$146,IF($E20="4ST",Tables!$I$146,Tables!$K$146)))) -> 0.018 | GO20: =+GN20*$FK20 -> 0.003715560653 | GP20: =+GM20+GO20 -> 0.01486859357 | GQ20: =IF($E20="3SG","--",IF($E20="4SG","--",CE20)) -> 1.553710134 | GR20: =IF($E20="3SG","--",IF($E20="4SG","--",EM20)) -> 0.3042536584 | GS20: =IF($E20="3SG","--",IF($E20="4SG","--",(GQ20+GR20))) -> 1.857963792 | GT20: =IF($E20="3ST",0.021,IF($E20="4ST",0.022,"--")) -> 0.022 | GU20: =IF(Inputs!$B$3<>"HSM",$N20,$M20) -> 1.503261 | GV20: =IF(E20="3SG","--",IF(E20="4SG","--",GS20*GT20*GU20)) -> 0.06144609919 | GW20: -- | GX20: -- | GY20: -- | GZ20: -- | HA20: =IF(Inputs!$B$3<>"HSM",$N20,$M20) -> 1.503261 | HB20: =+GV20 -> 0.06144609919 | HC20: =IF($E20="3ST","--",IF($E20="4ST","--",IF($AB20=0,1,IF($AB20<3,2.78,4.15)))) -> -- | HD20: =IF($E20="3ST","--",IF($E20="4ST","--",IF($AC20="P",1.35,1))) -> -- | HE20: =IF(E20="3ST","--",IF(E20="4ST","--",IF(AD20=0,1,IF(AD20<9,1.12,1.56)))) -> -- | HF20: =IF(E20="3ST","--",IF(E20="4ST","--",HC20*HD20*HE20)) -> -- | HG20: =IF($E20="3ST","--",IF($E20="4ST","--",(VLOOKUP($E20,Tables!$Y$175:$AE$176,2,FALSE)))) -> -- | HH20: =IF($E20="3ST","--",IF($E20="4ST","--",(VLOOKUP($E20,Tables!$Y$175:$AE$176,3,FALSE)))) -> -- | HI20: =IF($E20="3ST","--",IF($E20="4ST","--",(VLOOKUP($E20,Tables!$Y$175:$AE$176,4,FALSE)))) -> -- | HJ20: =IF($E20="3ST","--",IF($E20="4ST","--",(VLOOKUP($E20,Tables!$Y$175:$AE$176,5,FALSE)))) -> -- | HK20: =IF($E20="3ST","--",IF($E20="4ST","--",(VLOOKUP($E20,Tables!$Y$175:$AE$176,6,FALSE)))) -> -- | HL20: =IF($E20="3ST","--",IF($E20="4ST","--",(VLOOKUP($E20,Tables!$Y$175:$AE$176,7,FALSE)))) -> -- | HM20: =IF($E20="3ST","--",IF($E20="4ST","--",EXP(+$HG20+($HH20*LN($F20+G20))+(HI20*LN($G20/$F20))+(HJ20*LN($Z20))+(HK20*$AA20)))) -> -- | HN20: =+HF20 -> -- | HO20: =IF(Inputs!$B$3<>"HSM",$N20,$M20) -> 1.503261 | HP20: =IF(E20="3ST","--",IF(E20="4ST","--",(HM20*HN20*HO20))) -> -- | HQ20: =IF($E20="3ST","--",IF($E20="4ST","--",(VLOOKUP($E20,Tables!$Y$175:$AE$176,2,FALSE)))) -> -- | HR20: =IF($E20="3ST","--",IF($E20="4ST","--",(VLOOKUP($E20,Tables!$Y$175:$AE$176,2,FALSE)))) -> -- | HS20: =IF($E20="3ST","--",IF($E20="4ST","--",(VLOOKUP($E20,Tables!$Y$175:$AE$176,2,FALSE)))) -> -- | HT20: =IF($E20="3ST","--",IF($E20="4ST","--",(VLOOKUP($E20,Tables!$Y$175:$AE$176,2,FALSE)))) -> -- | HU20: =IF($E20="3ST","--",IF($E20="4ST","--",(VLOOKUP($E20,Tables!$Y$175:$AE$176,2,FALSE)))) -> -- | HV20: =IF($E20="3ST","--",IF($E20="4ST","--",(VLOOKUP($E20,Tables!$Y$175:$AE$176,2,FALSE)))) -> -- | HW20: =IF($E20="3ST","--",IF($E20="4ST","--",(VLOOKUP($E20,Tables!$Y$175:$AE$176,2,FALSE)))) -> -- | HX20: =IF($E20="3ST","--",IF($E20="4ST","--",(VLOOKUP($E20,Tables!$Y$175:$AE$176,2,FALSE)))) -> -- | HY20: =IF(Inputs!$B$3<>"HSM",$N20,$M20) -> 1.503261 | HZ20: =HP20 -> -- | IA20: =+CE20 -> 1.553710134 | IB20: =+EM20 -> 0.3042536584 | IC20: =+IA20+IB20 -> 1.857963792 | ID20: =IF($E20="3ST",0.016,IF($E20="3SG",0.011,IF($E20="4ST",0.018,0.015))) -> 0.018 | IE20: =IF(Inputs!$B$3<>"HSM",$N20,$M20) -> 1.503261 | IF20: =+IC20*ID20*IE20 -> 0.05027408115 | IG20: -- | IH20: -- | II20: -- | IJ20: -- | IK20: =IF(Inputs!$B$3<>"HSM",$N20,$M20) -> 1.503261 | IL20: =IF20 -> 0.05027408115 | IM20: =+DF20 -> 0.1815062154 | IN20: =+DK20 -> 0.0461820548 | IO20: =+DP20 -> 0.2395022842 | IP20: =+DU20 -> 0.04242305034 | IQ20: =+DZ20 -> 0.02685003186 | IR20: =SUM(IM20:IQ20) -> 0.5364636366 | IS20: =+FN20 -> 0.0001956672442 | IT20: =+FS20 -> 0.003619844018 | IU20: =+FX20 -> 0.06819003461 | IV20: =+GC20 -> 0.002445840553 | IW20: =+GH20 -> 0.01232703639 | IX20: =+GM20 -> 0.01115303292 | IY20: =IF(E20="3ST",HB20,IF(E20="4ST",HB20,HZ20)) -> 0.06144609919 | IZ20: =+IL20 -> 0.05027408115 | JA20: =SUM(IS20:IZ20) -> 0.2096516361 | JB20: =+IR20+JA20 -> 0.7461152727 | JC20: =+DH20 -> 0.3670321283 | JD20: =+DM20 -> 0.03456812289 | JE20: =+DR20 -> 0.2897622066 | JF20: =+DW20 -> 0.2287596368 | JG20: =+EB20 -> 0.09658740219 | JH20: =SUM(JC20:JG20) -> 1.016709497 | JI20: =+FP20 -> 0 | JJ20: =+FU20 -> 0.08050381415 | JK20: =+FZ20 -> 0.1030035981 | JL20: =+GE20 -> 0.008256801451 | JM20: =+GJ20 -> 0.01114668196 | JN20: =+GO20 -> 0.003715560653 | JO20: 0 | JP20: 0 | JQ20: =SUM(JI20:JP20) -> 0.2066264563 | JR20: =+JH20+JQ20 -> 1.223335953 | JS20: =+DI20 -> 0.5485383437 | JT20: =+DN20 -> 0.08075017769 | JU20: =+DS20 -> 0.5292644908 | JV20: =+DX20 -> 0.2711826871 | JW20: =+EC20 -> 0.1234374341 | JX20: =SUM(JS20:JW20) -> 1.553173133 | JY20: =+FQ20 -> 0.0001956672442 | JZ20: =+FV20 -> 0.08412365817 | KA20: =+GA20 -> 0.1711936327 | KB20: =+GF20 -> 0.010702642 | KC20: =+GK20 -> 0.02347371835 | KD20: =+GP20 -> 0.01486859357 | KE20: =+IY20+JO20 -> 0.06144609919 | KF20: =+IZ20+JP20 -> 0.05027408115 | KG20: =SUM(JY20:KF20) -> 0.4162780924 | KH20: =+JX20+KG20 -> 1.969451226 | KI20: =+JR20 -> 1.223335953 | KJ20: =+JB20 -> 0.7461152727 | KK20: =+KH20 -> 1.969451226

Sheet Instructions
B2: Highway Safety Manual (1st Edition) • Volume 2 (Chapters 10 - 12) - Predictive Methods with Empirical Bayes Analysis
O3: Released: January 2013 (Updated: September 2013)
O4: Analysis years: 2005 - 2010
B8: Overview
B10: This spreadsheet has been developed to utilize the predictive models for rural two-lane, two-way roads, rural multilane highways, and urban and suburban arterials as contained in the Highway Safety Manual. The factors used in calibrating the Highway Safety Manual are reviewed and updated by the Michigan Department of Transportation's Safety Programs Unit. Only full years (January through December) may be used for analysis; partial years are not compatible with the current calibration factors.
B12: In the HSM, the predictive method is a function of traffic volumen and roadway characteristics. The expected number of crashes is a modification of the predicted number, weighted by the actual observed number of crashes.
B14: The page tabs shown at the bottom are color coded as follows:
D16: Instructions | G16: This sheet
D17: Inputs | G17: Project-wide inputs and formatting controls
D18: Segment or Intersection Types | G18: Inputs for individual segments or intersections
D19: Outputs | G19: Output and summary sheets
B21: Color Coding Used in the Worksheets
B23: Colors are used to distinguish between user-editable cells and those reserved for displaying data and calculations. The user-editable cells are described as follows:
B25: Color Used | D25: Description
B27: Dropdown | D27: User input required; constrained values chosen by a dropdown menu within the cell
B29: Input | D29: User input required; value may be typed directly in the cell
B31: Lane and shoulder width values, for example, are limited to those available in the dropdown as they were evaluated when developing the Safety Performance Functions included in the HSM.
B33: Segment and Intersection Worksheets
B35: The data required for each individual segment or intersection type varies. For a summary of the data needed to use the methodologies in this spreadheet, please see http://onlinepubs.trb.org/onlinepubs/nchrp/nchrp_rrd_329.pdf.
L37: Please note that segments are defined as the "center of intersection to center of intersection." Removing the length included in the intersections is inconsistent with the calculations in the HSM.
B39: Buttons are placed on each sheet to facilitate adding and deleting rows. Resetting a sheet requires confirmation from the user. Sheets without data will only display the "Reset Sheet" Button.
B41: Adds a row above the currently selected row. | L41: Adds a row below the currently selected row.
L46: Deletes the currently selected row.
B47: Resets the current sheet, leaving only a single row with sample data ("Set Sheet" if blank).
B52: The colored shading is used to provide a visual snapshot of the relative crash frequencies/rates. The highest value in a given column will be red, with a gradation through orange, yellow, and green indicating progressively smaller values. Zero or negative values (in the case of Excess Expected crashes) will be display the brightest level of green. The colored shading can be enabled/disabled via the toggle on the Inputs tab, "Use colored formatting for rankings." Please note, that because of rounding, two values may display difference colors even when they appear to show the same value (e.g. the right-most shaded column in the graphic, where all values display "3.4").
B62: All rows on the Segment or Intersection Type worksheets are included on the Summary and Output sheets; please delete any rows that do not apply.
B64: Spreadsheet developed by:
C65: Andrew H. Ceifetz, P.E., CAPM | J65: Opus International Consultants Inc.
C66: Email: Andrew.Ceifetz@opusinternational.com | J66: 27333 Meadowbrook Road, Suite 210
C67: Phone: (248) 539-2222 | J67: Novi, Michigan 48377
B68: Excel Macros
B70: This worksheet makes extensive use of the macro functionality built into Microsoft Excel. Macros must be enabled to use this worksheet. To enable macros, please see below:
B72: 1. Click the Excel Options button.
E105: Excel 2007 | L105: Excel 2010
B107: 2. Click the Trust Center button on the left. Then, at the bottom right, select Trust Center Settings.
B134: 3. In the new window that appears, choose Macro Settings from the sidebar and select Disable all macros with notification from the list of options that appear. This option keeps macros disabled but notifies users when macros attempt to run, allowing users to decide on a case-by-case basis which macros to enable. Click OK to exit this window.
B159: 4. For the new settings to take effect, it will be necessary to close Excel and reopen it. A security dialog box should appear beneath the Office ribbon the next time you attempt to run a spreadsheet that contains macros.
B173: 5. When the notification appears, click the Options button. Choose Enable this content from the options that appear to allow macros to run within the current spreadsheet. Click 5. When the notification appears, click the Options button. Choose Enable this content from the options that appear to allow macros to run within the current spreadsheet. Click OK to close the window. to close the window.
B201: Referenced from: Microsoft.com

Sheet Build History
A2: MDOT HSM Spreadsheet Build History
A3: Date: | B3: Notes:
A4: 2014-08-13 | B4: Original Spreadsheet
A5: 2014-01-14 | B5: Fix to enable calibration factor use

Sheet Inputs
E1: Rural 2-Lane | F1: Rural multilane | G1: Urban & Suburban | L1: 0 | M1: 0
A3: HSM or Locally Derived Values [Local Only]: | B3: Local
A4: Site-Specific or Project Level Empirical Bayes (EB): | B4: Site | D4: Total Observed Crashes: | E4: 25 | F4: 0 | G4: 0
A5: Hide Calculations: | B5: Y
A6: Use colored formatting for rankings: | B6: Y
A8: Display Empirical Bayes on Output? | B8: Y
A9: Display Excess Crashes on Output? | B9: Y
A10: Display Predicted Total Crashes on Output? | B10: Y
A11: Display Predicted Fatal & Injury Crashes on Output? | B11: Y
A12: Number of Outputs to Display: | B12: 10
A14: Analyst: | B14: DCK
A15: Organization: | B15: MDOT
A16: Date Performed: | B16: 2014-01-27
A18: Project Name: | B18: ads
A19: Control Section(s): | B19: 12345
A20: PR Number(s): | B20: 1234567
A21: Job Number(s): | B21: 12345A
A22: Job Description: | B22: Description
A24: Analysis Years
A25: Start: | B25: 2006
A26: End: | B26: 2010

Sheet Rural 2-Lane Segments
A1: Worksheet 1A -- General Information and Input Data for Rural Two-Lane Two-Way Roadway Segments | AD1: Empirical Bayes Analysis | AK1: Worksheet 1B -- Crash Modification Factors for Rural Two-Lane Two-Way Roadway Segments | BB1: Supplemental CMF Calculations for Shoulders: | BH1: Supplemental CMF Calculations for Horizontal Curves: | BM1: Worksheet 1C -- Roadway Segment Crashes for Rural Two-Lane Two-Way Roadway Segments | CH1: Worksheet 1D -- Crashes by Severity Level and Collision Type for Rural Two-Lane Two-Way Roadway Segments | FN1: Worksheet 1E -- Summary Results for Rural Two-Lane Two-Way Roadway Segments
H2: Right Shoulder | J2: Left Shoulder | BM2: Total | BT2: Fatal and Injury (FI) | CA2: Property Damage Only (PDO) | CH2: Total | CN2: Single-Vehicle | ED2: Multiple-Vehicle | FN2: Property Damage Only (PDO) | FR2: Fatal and Injury (FI) | FV2: Total
E3: N | F3: N | CN3: Collision with animal | CT3: Collision with bicycle | CZ3: Collision with pedestrian | DF3: Overturned | DL3: Ran off road | DR3: Other single-vehicle collision | DX3: Total single-vehicle crashes | ED3: Angle collision | EJ3: Head-on collision | EP3: Rear-end collision | EV3: Sideswipe collision | FB3: Other multiple-vehicle collision | FH3: Total multiple-vehicle crashes
A4: # | B4: Roadway | C4: Roadway Section | D4: Jurisdiction | E4: Length of segment, L (miles) | F4: AADT (vehicles/day) | G4: Lane width (feet) | H4: Width | I4: Type | J4: Width | K4: Type | L4: Length of horizontal curve (miles) | M4: Radius of curvature (feet) | N4: Spiral transition curve (present/not present) | O4: Superelevation variance above maximum allowed (feet/foot) | P4: Grade (%) | Q4: Driveway density (driveways/mile) | R4: Centerline rumble strips (present/not present) | S4: Passing lanes [present (1 lane) / present (2 lane) / not present)] | T4: Two-way left-turn lane (present/not present) | U4: Roadside hazard rating (1-7 scale) | V4: Segment lighting (present/not present) | W4: Auto speed enforcement (present/not present) | X4: Additional CMF - 1 | Y4: Additional CMF - 2 | Z4: Additional CMF - 3 | AA4: Additional CMF - Numeric | AB4: Calibration Factor, Cr | AC4: Calibration Factor, Cr | AD4: Observed Crashes Nobserved (crashes/year) | AE4: Ovedispersion Parameter, k | AF4: Weighted Adjustment, w (Equation A-5 from Part C Appendix) | AG4: Expected Average Crash Frequency, Nexpected (Equation A-4 from Part C Appendix) | AH4: Excess Expected Crashes Nobserved - Nexpected | AI4: Nw0 (Equation A-8) | AJ4: Nw1 (Equation A-9) | AK4: (1) CMF for Lane Width CMF 1r from Equation 10-11 | AL4: (2) CMF for Shoulder Width and Type CMF 2r from Equation 10-12 | AM4: (3) CMF for Horizontal Curves CMF 3r from Equation 10-13 | AN4: (4) CMF for Super-elevation CMF 4r from Equations 10-14, 10-15, or 10-16 | AO4: (5) CMF for Grades CMR 5r from Table 10-11 | AP4: (6) CMF for Driveway Density CMF 6r from Equation 10-17 | AQ4: (7) CMF for Centerline Rumble Strips CMF 7r from Section 10.7.1 | AR4: (8) CMF for Passing Lanes CMF 8r from Section 10.7.1 | AS4: (9) CMF for Two-Way Left-Turn Lane CMF 9r from Equation 10-18 & 10-19 | AT4: (10) CMF for Roadside Design CMF 10r from Equation 10-20 | AU4: (11) CMF for Lighting CMF 11r from Equation 10-21 | AV4: (12) CMF for Automated Speed Enforcement CMF 12r from Section 10.7.1 | AW4: Additional CMF - 1 | AX4: Additional CMF - 2 | AY4: Additional CMF - 3 | AZ4: Additional CMF - Numeric | BA4: (13) Combined CMF CMF comb (1)x(2)x … x(11)x(12) | BB4: Calculated Right Shoulder Width (CMFwra) : | BC4: Calculated Right Shoulder Type (CMF tra) : | BD4: Computed Right Shoulder CMF2r : | BE4: Calculated Left Shoulder Width (CMFwra) : | BF4: Calculated Left Shoulder Type (CMF tra) : | BG4: Computed Left Shoulder CMF2r : | BH4: Adjusted Curve Radius (if less than 100 ft): | BI4: Adjusted Curve Length (if less than 100 ft): | BJ4: Numeric Value for S: | BK4: Calculated Horizonatal Curve CMF: | BL4: Adjusted Horizontal Curve CMF: | BM4: (2) N spf rs from Equation 10-6 | BN4: (3) Overdispersion Parameter, k from Equation 10-7 | BO4: (4) Crash Severity Distribution from Table 10-3 (proportion) | BP4: (5) N spf rs by Severity Distribution (2)TOTAL x (4) | BQ4: (6) Combined CMFs (13) from Worksheet 1B | BR4: (7) Calibration Factor, Cr | BS4: (8) Predicted average crash frequency, N predicted rs (crashes/year) (5)x(6)x(7) | BT4: (2) N spf rs from Equation 10-6 | BU4: (3) Overdispersion Parameter, k from Equation 10-7 | BV4: (4) Crash Severity Distribution from Table 10-3 (proportion) | BW4: (5) N spf rs by Severity Distribution (2)TOTAL x (4) | BX4: (6) Combined CMFs (13) from Worksheet 1B | BY4: (7) Calibration Factor, Cr | BZ4: (8) Predicted average crash frequency, N predicted rs (crashes/year) (5)x(6)x(7) | CA4: (2) N spf rs from Equation 10-6 | CB4: (3) Overdispersion Parameter, k from Equation 10-7 | CC4: (4) Crash Severity Distribution from Table 10-3 (proportion) | CD4: (5) N spf rs by Severity Distribution (2)TOTAL x (4) | CE4: (6) Combined CMFs (13) from Worksheet 1B | CF4: (7) Calibration Factor, Cr | CG4: (8) Predicted average crash frequency, N predicted rs (crashes/year) (5)x(6)x(7) | CH4: (2) Proportion of Collision Type(TOTAL) from Table 10-4 | CI4: (3) N predicted rs (TOTAL) (crashes/year) (8)TOTAL from Worksheet 1C | CJ4: (4) Proportion of Collision Type(FI) from Table 10-4 | CK4: (5) N predicted rs (FI) (crashes/year) (8)FI from Worksheet 1C | CL4: (6) Proportion of Collision Type(PDO) from Table 10-4 | CM4: (7) N predicted rs (PDO) (crashes/year) (8)PDO from Worksheet 1C | CN4: (2) Proportion of Collision Type(TOTAL) from Table 10-4 | CO4: (3) N predicted rs (TOTAL) (crashes/year) (8)TOTAL from Worksheet 1C | CP4: (4) Proportion of Collision Type(FI) from Table 10-4 | CQ4: (5) N predicted rs (FI) (crashes/year) (8)FI from Worksheet 1C | CR4: (6) Proportion of Collision Type(PDO) from Table 10-4 | CS4: (7) N predicted rs (PDO) (crashes/year) (8)PDO from Worksheet 1C | CT4: (2) Proportion of Collision Type(TOTAL) from Table 10-4 | CU4: (3) N predicted rs (TOTAL) (crashes/year) (8)TOTAL from Worksheet 1C | CV4: (4) Proportion of Collision Type(FI) from Table 10-4 | CW4: (5) N predicted rs (FI) (crashes/year) (8)FI from Worksheet 1C | CX4: (6) Proportion of Collision Type(PDO) from Table 10-4 | CY4: (7) N predicted rs (PDO) (crashes/year) (8)PDO from Worksheet 1C | CZ4: (2) Proportion of Collision Type(TOTAL) from Table 10-4 | DA4: (3) N predicted rs (TOTAL) (crashes/year) (8)TOTAL from Worksheet 1C | DB4: (4) Proportion of Collision Type(FI) from Table 10-4 | DC4: (5) N predicted rs (FI) (crashes/year) (8)FI from Worksheet 1C | DD4: (6) Proportion of Collision Type(PDO) from Table 10-4 | DE4: (7) N predicted rs (PDO) (crashes/year) (8)PDO from Worksheet 1C | DF4: (2) Proportion of Collision Type(TOTAL) from Table 10-4 | DG4: (3) N predicted rs (TOTAL) (crashes/year) (8)TOTAL from Worksheet 1C | DH4: (4) Proportion of Collision Type(FI) from Table 10-4 | DI4: (5) N predicted rs (FI) (crashes/year) (8)FI from Worksheet 1C | DJ4: (6) Proportion of Collision Type(PDO) from Table 10-4 | DK4: (7) N predicted rs (PDO) (crashes/year) (8)PDO from Worksheet 1C | DL4: (2) Proportion of Collision Type(TOTAL) from Table 10-4 | DM4: (3) N predicted rs (TOTAL) (crashes/year) (8)TOTAL from Worksheet 1C | DN4: (4) Proportion of Collision Type(FI) from Table 10-4 | DO4: (5) N predicted rs (FI) (crashes/year) (8)FI from Worksheet 1C | DP4: (6) Proportion of Collision Type(PDO) from Table 10-4 | DQ4: (7) N predicted rs (PDO) (crashes/year) (8)PDO from Worksheet 1C | DR4: (2) Proportion of Collision Type(TOTAL) from Table 10-4 | DS4: (3) N predicted rs (TOTAL) (crashes/year) (8)TOTAL from Worksheet 1C | DT4: (4) Proportion of Collision Type(FI) from Table 10-4 | DU4: (5) N predicted rs (FI) (crashes/year) (8)FI from Worksheet 1C | DV4: (6) Proportion of Collision Type(PDO) from Table 10-4 | DW4: (7) N predicted rs (PDO) (crashes/year) (8)PDO from Worksheet 1C | DX4: (2) Proportion of Collision Type(TOTAL) from Table 10-4 | DY4: (3) N predicted rs (TOTAL) (crashes/year) (8)TOTAL from Worksheet 1C | DZ4: (4) Proportion of Collision Type(FI) from Table 10-4 | EA4: (5) N predicted rs (FI) (crashes/year) (8)FI from Worksheet 1C | EB4: (6) Proportion of Collision Type(PDO) from Table 10-4 | EC4: (7) N predicted rs (PDO) (crashes/year) (8)PDO from Worksheet 1C | ED4: (2) Proportion of Collision Type(TOTAL) from Table 10-4 | EE4: (3) N predicted rs (TOTAL) (crashes/year) (8)TOTAL from Worksheet 1C | EF4: (4) Proportion of Collision Type(FI) from Table 10-4 | EG4: (5) N predicted rs (FI) (crashes/year) (8)FI from Worksheet 1C | EH4: (6) Proportion of Collision Type(PDO) from Table 10-4 | EI4: (7) N predicted rs (PDO) (crashes/year) (8)PDO from Worksheet 1C | EJ4: (2) Proportion of Collision Type(TOTAL) from Table 10-4 | EK4: (3) N predicted rs (TOTAL) (crashes/year) (8)TOTAL from Worksheet 1C | EL4: (4) Proportion of Collision Type(FI) from Table 10-4 | EM4: (5) N predicted rs (FI) (crashes/year) (8)FI from Worksheet 1C | EN4: (6) Proportion of Collision Type(PDO) from Table 10-4 | EO4: (7) N predicted rs (PDO) (crashes/year) (8)PDO from Worksheet 1C | EP4: (2) Proportion of Collision Type(TOTAL) from Table 10-4 | EQ4: (3) N predicted rs (TOTAL) (crashes/year) (8)TOTAL from Worksheet 1C | ER4: (4) Proportion of Collision Type(FI) from Table 10-4 | ES4: (5) N predicted rs (FI) (crashes/year) (8)FI from Worksheet 1C | ET4: (6) Proportion of Collision Type(PDO) from Table 10-4 | EU4: (7) N predicted rs (PDO) (crashes/year) (8)PDO from Worksheet 1C | EV4: (2) Proportion of Collision Type(TOTAL) from Table 10-4 | EW4: (3) N predicted rs (TOTAL) (crashes/year) (8)TOTAL from Worksheet 1C | EX4: (4) Proportion of Collision Type(FI) from Table 10-4 | EY4: (5) N predicted rs (FI) (crashes/year) (8)FI from Worksheet 1C | EZ4: (6) Proportion of Collision Type(PDO) from Table 10-4 | FA4: (7) N predicted rs (PDO) (crashes/year) (8)PDO from Worksheet 1C | FB4: (2) Proportion of Collision Type(TOTAL) from Table 10-4 | FC4: (3) N predicted rs (TOTAL) (crashes/year) (8)TOTAL from Worksheet 1C | FD4: (4) Proportion of Collision Type(FI) from Table 10-4 | FE4: (5) N predicted rs (FI) (crashes/year) (8)FI from Worksheet 1C | FF4: (6) Proportion of Collision Type(PDO) from Table 10-4 | FG4: (7) N predicted rs (PDO) (crashes/year) (8)PDO from Worksheet 1C | FH4: (2) Proportion of Collision Type(TOTAL) from Table 10-4 | FI4: (3) N predicted rs (TOTAL) (crashes/year) (8)TOTAL from Worksheet 1C | FJ4: (4) Proportion of Collision Type(FI) from Table 10-4 | FK4: (5) N predicted rs (FI) (crashes/year) (8)FI from Worksheet 1C | FL4: (6) Proportion of Collision Type(PDO) from Table 10-4 | FM4: (7) N predicted rs (PDO) (crashes/year) (8)PDO from Worksheet 1C | FN4: Crash Severity Distribution (proportion) | FO4: Predicted average crash frequency (crashes/year) | FP4: Roadway segment length (miles) | FQ4: Crash rate (crashes/mile/year) | FR4: Crash Severity Distribution (proportion) | FS4: Predicted average crash frequency (crashes/year) | FT4: Roadway segment length (miles) | FU4: Crash rate (crashes/mile/year) | FV4: Crash Severity Distribution (proportion) | FW4: Predicted average crash frequency (crashes/year) | FX4: Roadway segment length (miles) | FY4: Crash rate (crashes/mile/year)
A5: Example 1 | B5: SH 321 | C5: MP 0.0 to MP 1.5 | D5: Anywhere, USA | E5: 1.5 | F5: 10000 | G5: 12 | H5: 6 | I5: Paved | J5: 6 | K5: Paved | L5: 0 | M5: 0 | N5: NP | O5: 0 | P5: 0 | Q5: 5 | R5: NP | S5: NP | T5: NP | U5: 3 | V5: NP | W5: NP | X5: N/A (1.000) | Y5: N/A (1.000) | Z5: N/A (1.000) | AB5: 1 | AC5: =AVERAGE(INDIRECT(ADDRESS(MATCH(sYear,'Calibration Factors'!$A:$A,0),2,,,"Calibration Factors")&":"&ADDRESS(MATCH(eYear,'Calibration Factors'!$A:$A,0),2))) -> 1.3982298 | AE5: =BN5 -> 0.1573333333 | AF5: =1/(1+AE5*FW5) -> 0.5314557267 | AG5: =IF(AD5=0,0,AF5*FW5+((1-AF5)*AD5)) -> 0 | AH5: =IF(AD5="","",AD5-AG5) ->  | AI5: =AE5*FW5^2 -> 4.940220596 | AJ5: =SQRT(AE5*FW5) -> 0.9389484978 | AK5: =CHOOSE(MATCH($F5,{0,400,2001}),(CHOOSE(MATCH(G5,{9,9.5,10,10.5,11,11.5,12},0),1.05,1.035,1.02,1.015,1.01,1.005,1)-1)*(IF( Inputs!$B$3="HSM", ((Tables!$G$29+Tables!$G$34+Tables!$G$36)/100),((Tables!$K$29+Tables!$K$34+Tables!$K$36)/100)))+1,(CHOOSE(MATCH(G5,{9,9.5,10,10.5,11,11.5,12},0),($F5-400)*0.000281+1.05,((($F5-400)*0.000281+1.05)+(($F5-400)*0.000175+1.02))/2,($F5-400)*0.000175+1.02,((($F5-400)*0.000175+1.02)+(($F5-400)*0.000025+1.01))/2,($F5-400)*0.000025+1.01,((($F5-400)*0.000025+1.01)+1)/2,1)-1)*(IF( Inputs!$B$3="HSM", ((Tables!$G$29+Tables!$G$34+Tables!$G$36)/100),((Tables!$K$29+Tables!$K$34+Tables!$K$36)/100)))+1,(CHOOSE(MATCH(G5,{9,9.5,10,10.5,11,11.5,12},0),1.5,1.4,1.3,1.175,1.05,1.025,1)-1)*(IF( Inputs!$B$3="HSM", ((Tables!$G$29+Tables!$G$34+Tables!$G$36)/100),((Tables!$K$29+Tables!$K$34+Tables!$K$36)/100)))+1) -> 1 | AL5: =($BD5+$BG5)/2 -> 1 | AM5: =+BL5 -> 1 | AN5: =IF($O5>=0.02,(1.06+3*($O5-0.02)),IF($O5<0.01,1,(1+6*($O5-0.01)))) -> 1 | AO5: =IF($P5>6,1.16,(IF($P5<=3,1,1.1))) -> 1 | AP5: =IF($Q5>5,(0.322+$Q5*(0.05-0.005*LN($F5)))/(0.322+5*(0.05-0.005*LN($F5))),1) -> 1 | AQ5: =IF(T5="P",1,IF($R5="P",0.94,1)) -> 1 | AR5: =IF($S5="P1",0.75,IF($S5="P2", 0.65, 1)) -> 1 | AS5: =IF($T5="NP",1,IF($Q5<=5,1,(1-(0.7*0.5*((0.0047*$Q5)+($Q5*$Q5*0.0024))/(1.199+(0.0047*$Q5)+(0.0024*$Q5*$Q5)))))) -> 1 | AT5: =EXP($U5*0.0668-0.6869)/EXP(-0.4865) -> 1 | AU5: =IF($V5="P",(1-((1-(0.72*IF(Inputs!$B$3="HSM",Tables!$C$90,Tables!$I$90))-(0.83*IF(Inputs!$B$3="HSM",Tables!$E$90,Tables!$K$90)))*IF(Inputs!$B$3="HSM",Tables!$F$90,Tables!$L$90))),1) -> 1 | AV5: =IF($W5="P",0.93,1) -> 1 | AW5: =OFFSET(Tables!$AM$1,MATCH(X5,Tables!$AM:$AM,0)-1,1) -> 1 | AX5: =OFFSET(Tables!$AM$1,MATCH(Y5,Tables!$AM:$AM,0)-1,1) -> 1 | AY5: =OFFSET(Tables!$AM$1,MATCH(Z5,Tables!$AM:$AM,0)-1,1) -> 1 | AZ5: =IF(AA5="",1,AA5) -> 1 | BA5: =+AK5*AL5*AM5*AN5*AO5*AP5*AQ5*AR5*AS5*AT5*AU5*AV5*AW5*AX5*AY5*AZ5 -> 1 | BB5: =CHOOSE(MATCH($F5,{0,400,2001}),CHOOSE($H5+1,1.1,1.085,1.07,1.045,1.02,1.01,1,0.99,0.98),CHOOSE($H5+1,($F5-400)*0.00025+1.1,((($F5-400)*0.00025+1.1)+(($F5-400)*0.000143+1.07))/2,($F5-400)*0.000143+1.07,((($F5-400)*0.000143+1.07)+(($F5-400)*0.00008125+1.02))/2,($F5-400)*0.00008125+1.02,((($F5-400)*0.00008125+1.02)+1)/2,1,(1+((($F5-400)*-0.00006875)+0.98))/2,(($F5-400)*-0.00006875)+0.98),CHOOSE($H5+1,1.5,1.4,1.3,1.225,1.15,1.075,1,0.935,0.87)) -> 1 | BC5: =IF($I5="Paved",(HLOOKUP($H5,Tables!$Z$8:$AH$12,2,FALSE)),(IF($I5="Gravel",(HLOOKUP($H5,Tables!$Z$8:$AH$12,3,FALSE)),(IF($I5="Turf",(HLOOKUP($H5,Tables!$Z$8:$AH$12,5,FALSE)),HLOOKUP($H5,Tables!$Z$8:$AH$12,4,FALSE)))))) -> 1 | BD5: =(+$BB5*$BC5-1)*(IF(Inputs!$B$3="HSM",((Tables!$G$29+Tables!$G$34+Tables!$G$36)/100),((Tables!$K$29+Tables!$K$34+Tables!$K$36)/100)))+1 -> 1 | BE5: =CHOOSE(MATCH($F5,{0,400,2001}),CHOOSE($J5+1,1.1,1.085,1.07,1.045,1.02,1.01,1,0.99,0.98),CHOOSE($J5+1,($F5-400)*0.00025+1.1,((($F5-400)*0.00025+1.1)+(($F5-400)*0.000143+1.07))/2,($F5-400)*0.000143+1.07,((($F5-400)*0.000143+1.07)+(($F5-400)*0.00008125+1.02))/2,($F5-400)*0.00008125+1.02,((($F5-400)*0.00008125+1.02)+1)/2,1,(1+((($F5-400)*-0.00006875)+0.98))/2,(($F5-400)*-0.00006875)+0.98),CHOOSE($J5+1,1.5,1.4,1.3,1.225,1.15,1.075,1,0.935,0.87)) -> 1 | BF5: =IF($K5="Paved",(HLOOKUP($J5,Tables!$Z$8:$AH$12,2,FALSE)),(IF($K5="Gravel",(HLOOKUP($J5,Tables!$Z$8:$AH$12,3,FALSE)),(IF($K5="Turf",(HLOOKUP($J5,Tables!$Z$8:$AH$12,5,FALSE)),HLOOKUP($J5,Tables!$Z$8:$AH$12,4,FALSE)))))) -> 1 | BG5: =(+$BE5*$BF5-1)*(IF(Inputs!$B$3="HSM",((Tables!$G$29+Tables!$G$34+Tables!$G$36)/100),((Tables!$K$29+Tables!$K$34+Tables!$K$36)/100)))+1 -> 1 | BH5: =IF($M5>0,IF($M5<=100,100,$M5),0) -> 0 | BI5: =IF($L5>0,IF($L5<=100/5280,100/5280,$L5),0) -> 0 | BJ5: =IF(N5="P",1,IF(N5="NP",0,0.5)) -> 0 | BK5: =IF( $BI5>0, ((1.55*$BI5)+(80.2/$BH5)-(0.012*(IF($BJ5="Present",TRUE,FALSE))))/(1.55*$BI5), 1) -> 1 | BL5: =IF($BK5<1,1,$BK5) -> 1 | BM5: =+F5*E5*365*0.000001*EXP(-0.312) -> 4.007598867 | BN5: =0.236/E5 -> 0.1573333333 | BO5: =+Tables!$E$15/100 -> 1 | BP5: =+BM5*BO5 -> 4.007598867 | BQ5: =+BA5 -> 1 | BR5: =IF(Inputs!$B$3<>"HSM",$AC5,$AB5) -> 1.3982298 | BS5: =+BP5*BQ5*BR5 -> 5.603544162 | BT5: -- | BU5: -- | BV5: =+IF(Inputs!$B$3="HSM",(Tables!$E$13/100),(Tables!$H$13/100)) -> 0.109 | BW5: =+BM5*BV5 -> 0.4368282765 | BX5: =+BA5 -> 1 | BY5: =IF(Inputs!$B$3<>"HSM",$AC5,$AB5) -> 1.3982298 | BZ5: =+BW5*BX5*BY5 -> 0.6107863137 | CA5: -- | CB5: -- | CC5: =+IF(Inputs!$B$3="HSM",(Tables!$E$14/100),(Tables!$H$14/100)) -> 0.891 | CD5: =+BM5*CC5 -> 3.570770591 | CE5: =+BA5 -> 1 | CF5: =IF(Inputs!$B$3<>"HSM",$AC5,$AB5) -> 1.3982298 | CG5: =+CD5*CE5*CF5 -> 4.992757849 | CH5: =+DX5+FH5 -> 0.999 | CI5: =+$BS5 -> 5.603544162 | CJ5: =+DZ5+FJ5 -> 1 | CK5: =+$BZ5 -> 0.6107863137 | CL5: 2 | CM5: =+$CG5 -> 4.992757849 | CN5: =IF(Inputs!$B$3="HSM",(Tables!$G$25/100),(Tables!$K$25/100)) -> 0.677 | CO5: =+$BS5*CN5 -> 3.793599398 | CP5: =IF(Inputs!$B$3="HSM",Tables!$E$25/100,Tables!$I$25/100) -> 0.115 | CQ5: =+$BZ5*CP5 -> 0.07024042608 | CR5: =IF(Inputs!$B$3="HSM",Tables!$F$25/100,Tables!$J$25/100) -> 0.748 | CS5: =+$CG5*CR5 -> 3.734582871 | CT5: =IF(Inputs!$B$3="HSM",(Tables!$G$26/100),(Tables!$K$26/100)) -> 0 | CU5: =+$BS5*CT5 -> 0 | CV5: =IF(Inputs!$B$3="HSM",Tables!$E$26/100,Tables!$I$26/100) -> 0.007 | CW5: =+$BZ5*CV5 -> 0.004275504196 | CX5: =IF(Inputs!$B$3="HSM",Tables!$F$26/100,Tables!$J$26/100) -> 0 | CY5: =+$CG5*CX5 -> 0 | CZ5: =IF(Inputs!$B$3="HSM",(Tables!$G$27/100),(Tables!$K$27/100)) -> 0.002 | DA5: =+$BS5*CZ5 -> 0.01120708832 | DB5: =IF(Inputs!$B$3="HSM",Tables!$E$27/100,Tables!$I$27/100) -> 0.013 | DC5: =+$BZ5*DB5 -> 0.007940222078 | DD5: =IF(Inputs!$B$3="HSM",Tables!$F$27/100,Tables!$J$27/100) -> 0 | DE5: =+$CG5*DD5 -> 0 | DF5: =IF(Inputs!$B$3="HSM",(Tables!$G$28/100),(Tables!$K$28/100)) -> 0.04 | DG5: =+$BS5*DF5 -> 0.2241417665 | DH5: =IF(Inputs!$B$3="HSM",Tables!$E$28/100,Tables!$I$28/100) -> 0.155 | DI5: =+$BZ5*DH5 -> 0.09467187862 | DJ5: =IF(Inputs!$B$3="HSM",Tables!$F$28/100,Tables!$J$28/100) -> 0.025 | DK5: =+$CG5*DJ5 -> 0.1248189462 | DL5: =IF(Inputs!$B$3="HSM",(Tables!$G$29/100),(Tables!$K$29/100)) -> 0.129 | DM5: =+$BS5*DL5 -> 0.7228571969 | DN5: =IF(Inputs!$B$3="HSM",Tables!$E$29/100,Tables!$I$29/100) -> 0.267 | DO5: =+$BZ5*DN5 -> 0.1630799458 | DP5: =IF(Inputs!$B$3="HSM",Tables!$F$29/100,Tables!$J$29/100) -> 0.112 | DQ5: =+$CG5*DP5 -> 0.559188879 | DR5: =IF(Inputs!$B$3="HSM",(Tables!$G$30/100),(Tables!$K$30/100)) -> 0.015 | DS5: =+$BS5*DR5 -> 0.08405316244 | DT5: =IF(Inputs!$B$3="HSM",Tables!$E$30/100,Tables!$I$30/100) -> 0.029 | DU5: =+$BZ5*DT5 -> 0.0177128031 | DV5: =IF(Inputs!$B$3="HSM",Tables!$F$30/100,Tables!$J$30/100) -> 0.013 | DW5: =+$CG5*DV5 -> 0.06490585203 | DX5: =CN5+CT5+CZ5+DF5+DL5+DR5 -> 0.863 | DY5: =+$BS5*DX5 -> 4.835858612 | DZ5: =CP5+CV5+DB5+DH5+DN5+DT5 -> 0.586 | EA5: =+$BZ5*DZ5 -> 0.3579207798 | EB5: =CR5+CX5+DD5+DJ5+DP5+DV5 -> 0.898 | EC5: =+$CG5*EB5 -> 4.483496548 | ED5: =IF(Inputs!$B$3="HSM",(Tables!$G$33/100),(Tables!$K$33/100)) -> 0.017 | EE5: =+$BS5*ED5 -> 0.09526025076 | EF5: =IF(Inputs!$B$3="HSM",Tables!$E$33/100,Tables!$I$33/100) -> 0.061 | EG5: =+$BZ5*EF5 -> 0.03725796514 | EH5: =IF(Inputs!$B$3="HSM",Tables!$F$33/100,Tables!$J$33/100) -> 0.012 | EI5: =+$CG5*EH5 -> 0.05991309418 | EJ5: =IF(Inputs!$B$3="HSM",(Tables!$G$34/100),(Tables!$K$34/100)) -> 0.013 | EK5: =+$BS5*EJ5 -> 0.07284607411 | EL5: =IF(Inputs!$B$3="HSM",Tables!$E$34/100,Tables!$I$34/100) -> 0.09 | EM5: =+$BZ5*EL5 -> 0.05497076823 | EN5: =IF(Inputs!$B$3="HSM",Tables!$F$34/100,Tables!$J$34/100) -> 0.003 | EO5: =+$CG5*EN5 -> 0.01497827355 | EP5: =IF(Inputs!$B$3="HSM",(Tables!$G$35/100),(Tables!$K$35/100)) -> 0.055 | EQ5: =+$BS5*EP5 -> 0.3081949289 | ER5: =IF(Inputs!$B$3="HSM",Tables!$E$35/100,Tables!$I$35/100) -> 0.164 | ES5: =+$BZ5*ER5 -> 0.1001689554 | ET5: =IF(Inputs!$B$3="HSM",Tables!$F$35/100,Tables!$J$35/100) -> 0.042 | EU5: =+$CG5*ET5 -> 0.2096958296 | EV5: =IF(Inputs!$B$3="HSM",(Tables!$G$36/100),(Tables!$K$36/100)) -> 0.028 | EW5: =+$BS5*EV5 -> 0.1568992365 | EX5: =IF(Inputs!$B$3="HSM",Tables!$E$36/100,Tables!$I$36/100) -> 0.057 | EY5: =+$BZ5*EX5 -> 0.03481481988 | EZ5: =IF(Inputs!$B$3="HSM",Tables!$F$36/100,Tables!$J$36/100) -> 0.024 | FA5: =+$CG5*EZ5 -> 0.1198261884 | FB5: =IF(Inputs!$B$3="HSM",(Tables!$G$37/100),(Tables!$K$37/100)) -> 0.023 | FC5: =+$BS5*FB5 -> 0.1288815157 | FD5: =IF(Inputs!$B$3="HSM",Tables!$E$37/100,Tables!$I$37/100) -> 0.042 | FE5: =+$BZ5*FD5 -> 0.02565302518 | FF5: =IF(Inputs!$B$3="HSM",Tables!$F$37/100,Tables!$J$37/100) -> 0.02 | FG5: =+$CG5*FF5 -> 0.09985515697 | FH5: =ED5+EJ5+EP5+EV5+FB5 -> 0.136 | FI5: =+$BS5*FH5 -> 0.7620820061 | FJ5: =EF5+EL5+ER5+EX5+FD5 -> 0.414 | FK5: =+$BZ5*FJ5 -> 0.2528655339 | FL5: =EH5+EN5+ET5+EZ5+FF5 -> 0.101 | FM5: =EI5+EO5+EU5+FA5+FG5 -> 0.5042685427 | FN5: =+CC5 -> 0.891 | FO5: =+CG5 -> 4.992757849 | FP5: =+$E5 -> 1.5 | FQ5: =+FO5/FP5 -> 3.328505232 | FR5: =+BV5 -> 0.109 | FS5: =+BZ5 -> 0.6107863137 | FT5: =+$E5 -> 1.5 | FU5: =+FS5/FT5 -> 0.4071908758 | FV5: =+BO5 -> 1 | FW5: =+BS5 -> 5.603544162 | FX5: =+$E5 -> 1.5 | FY5: =+FW5/FX5 -> 3.735696108

Sheet Rural 2-Lane Intersections
A1: Worksheet 2A -- General Information and Input Data for Rural Two-Lane Two-Way Roadway Intersections | T1: Empirical Bayes Analysis | AA1: Worksheet 2B -- Crash Modification Factors for Rural Two-Lane Two-Way Roadway Intersections | AJ1: Worksheet 2C -- Intersection Crashes for Rural Two-Lane Two-Way Roadway Intersections | BA1: Worksheet 2D -- Crashes by Severity Level and Collision Type for Rural Two-Lane Two-Way Road Intersections | EG1: Worksheet 2E -- Summary Results for Rural Two-Lane Two-Way Road Intersections
AJ2: Total | AQ2: Fatal and Injury (FI) | AV2: Property Damage Only (PDO) | BA2: Total | BG2: Single Vehicle | CW2: Multiple Vehicle | EG2: Crash Severity Distribution | EJ2: Predicted average crash frequency (crashes / year)
E3: N | F3: N | BG3: (2) Proportion of Collision Type(TOTAL) from Table 10-6 | BN3: (3) Npredicted int (TOTAL) (crashes/year) (8)TOTAL from Worksheet 2C | BU3: (4) Proportion of Collision Type(FI) from Table 10-6 | CB3: (5) Npredicted int (FI) (crashes/year) (8)FI from Worksheet 2C | CI3: (6) Proportion of Collision Type(PDO) from Table 10-6 | CP3: (7) Npredicted int (PDO) (crashes/year) (8)FI from Worksheet 2C | CW3: (2) Proportion of Collision Type(TOTAL) from Table 10-6 | DC3: (3) Npredicted int (TOTAL) (crashes/year) (8)TOTAL from Worksheet 2C | DI3: (4) Proportion of Collision Type(FI) from Table 10-6 | DO3: (5) Npredicted int (FI) (crashes/year) (8)FI from Worksheet 2C | DU3: (6) Proportion of Collision Type(PDO) from Table 10-6 | EA3: (7) Npredicted int (PDO) (crashes/year) (8)FI from Worksheet 2C
A4: # | B4: Major Roadway | C4: Minor Roadway | D4: Jurisdiction | E4: Intersection Type | F4: AADT major (vehicles/day) | G4: AADT minor (vehicles/day) | H4: [If 4ST, does skew differ for minor legs?] | I4: Skew for Leg 1 (All): | J4: Skew for Leg 2 (4ST only): | K4: Number of signalized or uncontrolled approaches with a left-turn lane (0, 1, 2, 3, 4) | L4: Number of signalized or uncontrolled approaches with a right-turn lane (0, 1, 2, 3, 4) | M4: Intersection lighting | N4: Additional CMF - 1 | O4: Additional CMF - 2 | P4: Additional CMF - 3 | Q4: Additional CMF - Numeric | R4: Calibration factor, Ci | S4: Calibration factor, Ci | T4: Observed Crashes Nobserved (crashes/year) | U4: Ovedispersion Parameter, k | V4: Weighted Adjustment, w (Equation A-5 from Part C Appendix) | W4: Expected Average Crash Frequency, Nexpected (Equation A-4 from Part C Appendix) | X4: Excess Expected Crashes Nobserved - Nexpected | Y4: Nw0 (Equation A-8) | Z4: Nw1 (Equation A-9) | AA4: (1) CMF for Intersection Skew Angle, CMF 1i, from Equations 10-22 or 12-23 | AB4: (2) CMF for Left-Turn Lanes, CMF 2i, from Table 10-13 | AC4: (3) CMF for Right-Turn Lanes, CMF 3i, from Table 10-14 | AD4: (4) CMF for Lighting, CMF 4i, from Equation 10-24 | AE4: Additional CMF - 1 | AF4: Additional CMF - 2 | AG4: Additional CMF - 3 | AH4: Additional CMF - Numeric | AI4: (5) Combined CMF, CMF COMB, (1)*(2)*(3)*(4) | AJ4: N spf 3ST, 4ST or 4SG from Equations 10-8, 10-9, or 10-10 | AK4: Overdispersion Parameter, k from Section 10.6.2 | AL4: Crash Severity Distribution from Table 10-5 | AM4: N spf 3ST, 4ST or 4SG by Severity Distribution (2)TOTAL * (4) | AN4: Combined CMFs from (5) of Worksheet 2B | AO4: Calibration Factor, Ci | AP4: Predicted average crash frequency, N predicted int (5)*(6)*(7) | AQ4: Crash Severity Distribution from Table 10-5 | AR4: N spf 3ST, 4ST or 4SG by Severity Distribution (2)TOTAL * (4) | AS4: Combined CMFs from (5) of Worksheet 2B | AT4: Calibration Factor, Ci | AU4: Predicted average crash frequency, N predicted int (5)*(6)*(7) | AV4: Crash Severity Distribution from Table 10-5 | AW4: N spf 3ST, 4ST or 4SG by Severity Distribution (2)TOTAL * (4) | AX4: Combined CMFs from (5) of Worksheet 2B | AY4: Calibration Factor, Ci | AZ4: Predicted average crash frequency, N predicted int (5)*(6)*(7) | BA4: (2) Proportion of Collision Type(TOTAL) from Table 10-6 | BB4: (3) Npredicted int (TOTAL) (crashes/year) (8)TOTAL from Worksheet 2C | BC4: (4) Proportion of Collision Type(FI) from Table 10-6 | BD4: (5) Npredicted int (FI) (crashes/year) (8)FI from Worksheet 2C | BE4: (6) Proportion of Collision Type(PDO) from Table 10-6 | BF4: (7) Npredicted int (PDO) (crashes/year) (8)FI from Worksheet 2C | BG4: Collision with Animal | BH4: Collision with bicycle | BI4: Collision with pedestrian | BJ4: Overturned | BK4: Ran off road | BL4: Other single-vehicle collision | BM4: Total single vehicle crashes | BN4: Collision with Animal | BO4: Collision with bicycle | BP4: Collision with pedestrian | BQ4: Overturned | BR4: Ran off road | BS4: Other single-vehicle collision | BT4: Total single vehicle crashes | BU4: Collision with Animal | BV4: Collision with bicycle | BW4: Collision with pedestrian | BX4: Overturned | BY4: Ran off road | BZ4: Other single-vehicle collision | CA4: Total single vehicle crashes | CB4: Collision with Animal | CC4: Collision with bicycle | CD4: Collision with pedestrian | CE4: Overturned | CF4: Ran off road | CG4: Other single-vehicle collision | CH4: Total single vehicle crashes | CI4: Collision with Animal | CJ4: Collision with bicycle | CK4: Collision with pedestrian | CL4: Overturned | CM4: Ran off road | CN4: Other single-vehicle collision | CO4: Total single vehicle crashes | CP4: Collision with Animal | CQ4: Collision with bicycle | CR4: Collision with pedestrian | CS4: Overturned | CT4: Ran off road | CU4: Other single-vehicle collision | CV4: Total single vehicle crashes | CW4: Angle Collision | CX4: Head-on collision | CY4: Rear-end collision | CZ4: Sideswipe collision | DA4: Other multiple-vehicle collision | DB4: Total Multiple vehicle crashes | DC4: Angle Collision | DD4: Head-on collision | DE4: Rear-end collision | DF4: Sideswipe collision | DG4: Other multiple-vehicle collision | DH4: Total Multiple vehicle crashes | DI4: Angle Collision | DJ4: Head-on collision | DK4: Rear-end collision | DL4: Sideswipe collision | DM4: Other multiple-vehicle collision | DN4: Total Multiple vehicle crashes | DO4: Angle Collision | DP4: Head-on collision | DQ4: Rear-end collision | DR4: Sideswipe collision | DS4: Other multiple-vehicle collision | DT4: Total Multiple vehicle crashes | DU4: Angle Collision | DV4: Head-on collision | DW4: Rear-end collision | DX4: Sideswipe collision | DY4: Other multiple-vehicle collision | DZ4: Total Multiple vehicle crashes | EA4: Angle Collision | EB4: Head-on collision | EC4: Rear-end collision | ED4: Sideswipe collision | EE4: Other multiple-vehicle collision | EF4: Total Multiple vehicle crashes | EG4: Total | EH4: Fatal and Injury (FI) | EI4: Property Damage Only (PDO) | EJ4: Property Damage Only (PDO) | EK4: Fatal and Injury (FI) | EL4: Total
A5: 1 | B5: Apple | C5: Heikki | D5: Heritage County | E5: 4ST | F5: 3300 | G5: 2400 | H5: N | I5: 0 | K5: 2 | L5: 0 | M5: P | N5: N/A (1.000) | O5: N/A (1.000) | P5: N/A (1.000) | Q5: 1 | R5: 1 | S5: =AVERAGE(INDIRECT(ADDRESS(MATCH(sYear,'Calibration Factors'!$A:$A,0),CHOOSE(MATCH(E5,{"3ST","4ST","4SG"},0),14,18,20),,,"Calibration Factors")&":"&ADDRESS(MATCH(eYear,'Calibration Factors'!$A:$A,0),CHOOSE(MATCH(E5,{"3ST","4ST","4SG"},0),14,18,20)))) -> 1.6480646 | T5: =7/5 -> 1.4 | U5: =AK5 -> 0.24 | V5: =1/(1+U5*EL5) -> 0.6490820206 | W5: =IF(T5=0,0,V5*EL5+((1-V5)*T5)) -> 1.953443418 | X5: =IF(T5="","",T5-W5) -> -0.5534434185 | Y5: =U5*EL5^2 -> 1.217869738 | Z5: =SQRT(U5*EL5) -> 0.7352804523 | AA5: =IF(+$E5="3ST",(EXP(0.004*$I5)),(IF(+$E5="4ST",(IF($H5="N",(EXP(0.0054*$I5)),(((EXP(0.0054*$I5))+(EXP(0.0054*$J5)))/2))),1))) -> 1 | AB5: =IF($E5="3ST",(IF($K5=0,1,(HLOOKUP($K5,Tables!$AC$20:$AF$26,3,FALSE)))),(IF($E5="4ST",(IF($K5=0,1,(HLOOKUP($K5,Tables!$AC$20:$AF$26,5,FALSE)))),(IF($K5=0,1,(HLOOKUP($K5,Tables!$AC$20:$AF$26,7,FALSE))))))) -> 0.52 | AC5: =IF($E5="3ST",(IF($L5=0,1,(HLOOKUP($L5,Tables!$AC$36:$AF$42,3,FALSE)))),(IF($E5="4ST",(IF($L5=0,1,(HLOOKUP($L5,Tables!$AC$36:$AF$42,5,FALSE)))),(IF($L5=0,1,(HLOOKUP($L5,Tables!$AC$36:$AF$42,7,FALSE))))))) -> 1 | AD5: =IF(($M5="NP"),1,(1-0.38*(IF(Inputs!$B$3="HSM",(VLOOKUP( $E5,Tables!$B$97:$F$99,4,FALSE)),(VLOOKUP($E5,Tables!$B$97:$H$99,6,FALSE)))))) -> 0.92096 | AE5: =OFFSET(Tables!$AO$1,MATCH(N5,Tables!$AO:$AO,0)-1,1) -> 1 | AF5: =OFFSET(Tables!$AO$1,MATCH(O5,Tables!$AO:$AO,0)-1,1) -> 1 | AG5: =OFFSET(Tables!$AO$1,MATCH(P5,Tables!$AO:$AO,0)-1,1) -> 1 | AH5: =IF(Q5="",1,Q5) -> 1 | AI5: =+AA5*AB5*AC5*AD5*AE5*AF5*AG5*AH5 -> 0.4788992 | AJ5: =IF($E5="3ST",(EXP(-9.86+0.79*(LN($F5))+(0.49*(LN($G5))))),IF($E5="4ST",(EXP(-8.56+0.6*(LN($F5))+(0.61*(LN($G5))))),(EXP(-5.13+(0.6*(LN($F5)))+(0.2*(LN($G5))))))) -> 2.854147782 | AK5: =IF($E5="3ST",0.54,(IF($E5="4ST",0.24,0.11))) -> 0.24 | AL5: =IF($E5="3ST",IF(Inputs!$B$3="HSM",Tables!$E$55,Tables!$K$55),(IF($E5="4ST",(IF(Inputs!$B$3="HSM",Tables!$G$55,Tables!$M$55)),(IF(Inputs!$B$3="HSM",Tables!$I$55,Tables!$O$55)))))/100 -> 1 | AM5: =+AJ5*AL5 -> 2.854147782 | AN5: =+$AI5 -> 0.4788992 | AO5: =IF(Inputs!$B$3<>"HSM",$S5,$R5) -> 1.6480646 | AP5: =+AM5*AN5*AO5 -> 2.252655598 | AQ5: =IF($E5="3ST",IF(Inputs!$B$3="HSM",Tables!$E$53,Tables!$K$53),(IF($E5="4ST",(IF(Inputs!$B$3="HSM",Tables!$G$53,Tables!$M$53)),(IF(Inputs!$B$3="HSM",Tables!$I$53,Tables!$O$53)))))/100 -> 0.235 | AR5: =+AJ5*AQ5 -> 0.6707247288 | AS5: =+$AI5 -> 0.4788992 | AT5: =IF(Inputs!$B$3<>"HSM",$S5,$R5) -> 1.6480646 | AU5: =+AR5*AS5*AT5 -> 0.5293740655 | AV5: =IF($E5="3ST",IF(Inputs!$B$3="HSM",Tables!$E$54,Tables!$K$54),(IF($E5="4ST",(IF(Inputs!$B$3="HSM",Tables!$G$54,Tables!$M$54)),(IF(Inputs!$B$3="HSM",Tables!$I$54,Tables!$O$54)))))/100 -> 0.765 | AW5: =+AJ5*AV5 -> 2.183423053 | AX5: =+$AI5 -> 0.4788992 | AY5: =IF(Inputs!$B$3<>"HSM",$S5,$R5) -> 1.6480646 | AZ5: =+AW5*AX5*AY5 -> 1.723281533 | BA5: =IF(Inputs!$B$3="HSM",(IF($E5="3ST",Tables!$G$80,(IF($E5="4ST",Tables!$J$80,Tables!$M$80)))/100),(IF($E5="3ST",Tables!$P$80,(IF($E5="4ST",+Tables!$S$80,+Tables!$V$80)))/100)) -> 1 | BB5: =+AP5 -> 2.252655598 | BC5: =IF(Inputs!$B$3="HSM",(IF($E5="3ST",Tables!$E$80,(IF($E5="4ST",Tables!$H$80,Tables!$K$80)))/100),(IF($E5="3ST",Tables!$N$80,(IF($E5="4ST",+Tables!$Q$80,+Tables!$T$80)))/100)) -> 1 | BD5: =+AU5 -> 0.5293740655 | BE5: =IF(Inputs!$B$3="HSM",(IF($E5="3ST",Tables!$F$80,(IF($E5="4ST",Tables!$I$80,Tables!$L$80)))/100),(IF($E5="3ST",Tables!$O$80,(IF($E5="4ST",+Tables!$R$80,+Tables!$U$80)))/100)) -> 1 | BF5: =+AZ5 -> 1.723281533 | BG5: =IF(Inputs!$B$3="HSM",(IF($E5="3ST",Tables!$G$66,(IF($E5="4ST",Tables!$J$66,Tables!$M$66)))/100),(IF($E5="3ST",Tables!$P$66,(IF($E5="4ST",+Tables!$S$66,+Tables!$V$66)))/100)) -> 0.223 | BH5: =IF(Inputs!$B$3="HSM",(IF($E5="3ST",Tables!$G$67,(IF($E5="4ST",Tables!$J$67,Tables!$M$67)))/100),(IF($E5="3ST",Tables!$P$67,(IF($E5="4ST",+Tables!$S$67,+Tables!$V$67)))/100)) -> 0.004 | BI5: =IF(Inputs!$B$3="HSM",(IF($E5="3ST",Tables!$G$68,(IF($E5="4ST",Tables!$J$68,Tables!$M$68)))/100),(IF($E5="3ST",Tables!$P$68,(IF($E5="4ST",+Tables!$S$68,+Tables!$V$68)))/100)) -> 0.004 | BJ5: =IF(Inputs!$B$3="HSM",(IF($E5="3ST",Tables!$G$69,(IF($E5="4ST",Tables!$J$69,Tables!$M$69)))/100),(IF($E5="3ST",Tables!$P$69,(IF($E5="4ST",+Tables!$S$69,+Tables!$V$69)))/100)) -> 0.018 | BK5: =IF(Inputs!$B$3="HSM",(IF($E5="3ST",Tables!$G$70,(IF($E5="4ST",Tables!$J$70,Tables!$M$70)))/100),(IF($E5="3ST",Tables!$P$70,(IF($E5="4ST",+Tables!$S$70,+Tables!$V$70)))/100)) -> 0.11 | BL5: =IF(Inputs!$B$3="HSM",(IF($E5="3ST",Tables!$G$71,(IF($E5="4ST",Tables!$J$71,Tables!$M$71)))/100),(IF($E5="3ST",Tables!$P$71,(IF($E5="4ST",+Tables!$S$71,+Tables!$V$71)))/100)) -> 0.016 | BM5: =IF(Inputs!$B$3="HSM",(IF($E5="3ST",Tables!$G$72,(IF($E5="4ST",Tables!$J$72,Tables!$M$72)))/100),(IF($E5="3ST",Tables!$P$72,(IF($E5="4ST",+Tables!$S$72,+Tables!$V$72)))/100)) -> 0.375 | BN5: =BG5*$BB5 -> 0.5023421984 | BO5: 0.009010622392 | BP5: 0.009010622392 | BQ5: 0.04054780077 | BR5: 0.2477921158 | BS5: 0.03604248957 | BT5: 0.8447458493 | BU5: =IF(Inputs!$B$3="HSM",(IF($E5="3ST",Tables!$E$66,(IF($E5="4ST",Tables!$H$66,Tables!$K$66)))/100),(IF($E5="3ST",Tables!$N$66,(IF($E5="4ST",+Tables!$Q$66,+Tables!$T$66)))/100)) -> 0.015 | BV5: =IF(Inputs!$B$3="HSM",(IF($E5="3ST",Tables!$E$67,(IF($E5="4ST",Tables!$H$67,Tables!$K$67)))/100),(IF($E5="3ST",Tables!$N$67,(IF($E5="4ST",+Tables!$Q$67,+Tables!$T$67)))/100)) -> 0.012 | BW5: =IF(Inputs!$B$3="HSM",(IF($E5="3ST",Tables!$E$68,(IF($E5="4ST",Tables!$H$68,Tables!$K$68)))/100),(IF($E5="3ST",Tables!$N$68,(IF($E5="4ST",+Tables!$Q$68,+Tables!$T$68)))/100)) -> 0.015 | BX5: =IF(Inputs!$B$3="HSM",(IF($E5="3ST",Tables!$E$69,(IF($E5="4ST",Tables!$H$69,Tables!$K$69)))/100),(IF($E5="3ST",Tables!$N$69,(IF($E5="4ST",+Tables!$Q$69,+Tables!$T$69)))/100)) -> 0.031 | BY5: =IF(Inputs!$B$3="HSM",(IF($E5="3ST",Tables!$E$70,(IF($E5="4ST",Tables!$H$70,Tables!$K$70)))/100),(IF($E5="3ST",Tables!$N$70,(IF($E5="4ST",+Tables!$Q$70,+Tables!$T$70)))/100)) -> 0.085 | BZ5: =IF(Inputs!$B$3="HSM",(IF($E5="3ST",Tables!$E$71,(IF($E5="4ST",Tables!$H$71,Tables!$K$71)))/100),(IF($E5="3ST",Tables!$N$71,(IF($E5="4ST",+Tables!$Q$71,+Tables!$T$71)))/100)) -> 0.015 | CA5: =IF(Inputs!$B$3="HSM",(IF($E5="3ST",Tables!$E$72,(IF($E5="4ST",Tables!$H$72,Tables!$K$72)))/100),(IF($E5="3ST",Tables!$N$72,(IF($E5="4ST",+Tables!$Q$72,+Tables!$T$72)))/100)) -> 0.173 | CB5: =BU5*$BD5 -> 0.007940610983 | CC5: 0.006352488787 | CD5: 0.007940610983 | CE5: 0.01641059603 | CF5: 0.04499679557 | CG5: 0.007940610983 | CH5: 0.09158171334 | CI5: =IF(Inputs!$B$3="HSM",(IF($E5="3ST",Tables!$F$66,(IF($E5="4ST",Tables!$I$66,Tables!$L$66)))/100),(IF($E5="3ST",Tables!$O$66,(IF($E5="4ST",+Tables!$R$66,+Tables!$U$66)))/100)) -> 0.288 | CJ5: =IF(Inputs!$B$3="HSM",(IF($E5="3ST",Tables!$F$67,(IF($E5="4ST",Tables!$I$67,Tables!$L$67)))/100),(IF($E5="3ST",Tables!$O$67,(IF($E5="4ST",+Tables!$R$67,+Tables!$U$67)))/100)) -> 0.001 | CK5: =IF(Inputs!$B$3="HSM",(IF($E5="3ST",Tables!$F$68,(IF($E5="4ST",Tables!$I$68,Tables!$L$68)))/100),(IF($E5="3ST",Tables!$O$68,(IF($E5="4ST",+Tables!$R$68,+Tables!$U$68)))/100)) -> 0 | CL5: =IF(Inputs!$B$3="HSM",(IF($E5="3ST",Tables!$F$69,(IF($E5="4ST",Tables!$I$69,Tables!$L$69)))/100),(IF($E5="3ST",Tables!$O$69,(IF($E5="4ST",+Tables!$R$69,+Tables!$U$69)))/100)) -> 0.014 | CM5: =IF(Inputs!$B$3="HSM",(IF($E5="3ST",Tables!$F$70,(IF($E5="4ST",Tables!$I$70,Tables!$L$70)))/100),(IF($E5="3ST",Tables!$O$70,(IF($E5="4ST",+Tables!$R$70,+Tables!$U$70)))/100)) -> 0.118 | CN5: =IF(Inputs!$B$3="HSM",(IF($E5="3ST",Tables!$F$71,(IF($E5="4ST",Tables!$I$71,Tables!$L$71)))/100),(IF($E5="3ST",Tables!$O$71,(IF($E5="4ST",+Tables!$R$71,+Tables!$U$71)))/100)) -> 0.017 | CO5: =IF(Inputs!$B$3="HSM",(IF($E5="3ST",Tables!$F$72,(IF($E5="4ST",Tables!$I$72,Tables!$L$72)))/100),(IF($E5="3ST",Tables!$O$72,(IF($E5="4ST",+Tables!$R$72,+Tables!$U$72)))/100)) -> 0.438 | CP5: =CI5*$BF5 -> 0.4963050814 | CQ5: 0.001723281533 | CR5: 0 | CS5: 0.02412594146 | CT5: 0.2033472208 | CU5: 0.02929578605 | CV5: 0.7547973112 | CW5: =IF(Inputs!$B$3="HSM",(IF($E5="3ST",Tables!$G$74,(IF($E5="4ST",Tables!$J$74,Tables!$M$74)))/100),(IF($E5="3ST",Tables!$P$74,(IF($E5="4ST",+Tables!$S$74,+Tables!$V$74)))/100)) -> 0.238 | CX5: =IF(Inputs!$B$3="HSM",(IF($E5="3ST",Tables!$G$75,(IF($E5="4ST",Tables!$J$75,Tables!$M$75)))/100),(IF($E5="3ST",Tables!$P$75,(IF($E5="4ST",+Tables!$S$75,+Tables!$V$75)))/100)) -> 0.041 | CY5: =IF(Inputs!$B$3="HSM",(IF($E5="3ST",Tables!$G$76,(IF($E5="4ST",Tables!$J$76,Tables!$M$76)))/100),(IF($E5="3ST",Tables!$P$76,(IF($E5="4ST",+Tables!$S$76,+Tables!$V$76)))/100)) -> 0.181 | CZ5: =IF(Inputs!$B$3="HSM",(IF($E5="3ST",Tables!$G$77,(IF($E5="4ST",Tables!$J$77,Tables!$M$77)))/100),(IF($E5="3ST",Tables!$P$77,(IF($E5="4ST",+Tables!$S$77,+Tables!$V$77)))/100)) -> 0.074 | DA5: =IF(Inputs!$B$3="HSM",(IF($E5="3ST",Tables!$G$78,(IF($E5="4ST",Tables!$J$78,Tables!$M$78)))/100),(IF($E5="3ST",Tables!$P$78,(IF($E5="4ST",+Tables!$S$78,+Tables!$V$78)))/100)) -> 0.091 | DB5: =IF(Inputs!$B$3="HSM",(IF($E5="3ST",Tables!$G$79,(IF($E5="4ST",Tables!$J$79,Tables!$M$79)))/100),(IF($E5="3ST",Tables!$P$79,(IF($E5="4ST",+Tables!$S$79,+Tables!$V$79)))/100)) -> 0.625 | DC5: =+$CW5*$BB5 -> 0.5361320323 | DD5: =+$CX5*$BB5 -> 0.09235887952 | DE5: =+$CY5*$BB5 -> 0.4077306632 | DF5: =+$CZ5*$BB5 -> 0.1666965143 | DG5: =+$DA5*$BB5 -> 0.2049916594 | DH5: =+$DB5*$BB5 -> 1.407909749 | DI5: =IF(Inputs!$B$3="HSM",(IF($E5="3ST",Tables!$E$74,(IF($E5="4ST",Tables!$H$74,Tables!$K$74)))/100),(IF($E5="3ST",Tables!$N$74,(IF($E5="4ST",+Tables!$Q$74,+Tables!$T$74)))/100)) -> 0.416 | DJ5: =IF(Inputs!$B$3="HSM",(IF($E5="3ST",Tables!$E$75,(IF($E5="4ST",Tables!$H$75,Tables!$K$75)))/100),(IF($E5="3ST",Tables!$N$75,(IF($E5="4ST",+Tables!$Q$75,+Tables!$T$75)))/100)) -> 0.09 | DK5: =IF(Inputs!$B$3="HSM",(IF($E5="3ST",Tables!$E$76,(IF($E5="4ST",Tables!$H$76,Tables!$K$76)))/100),(IF($E5="3ST",Tables!$N$76,(IF($E5="4ST",+Tables!$Q$76,+Tables!$T$76)))/100)) -> 0.207 | DL5: =IF(Inputs!$B$3="HSM",(IF($E5="3ST",Tables!$E$77,(IF($E5="4ST",Tables!$H$77,Tables!$K$77)))/100),(IF($E5="3ST",Tables!$N$77,(IF($E5="4ST",+Tables!$Q$77,+Tables!$T$77)))/100)) -> 0.047 | DM5: =IF(Inputs!$B$3="HSM",(IF($E5="3ST",Tables!$E$78,(IF($E5="4ST",Tables!$H$78,Tables!$K$78)))/100),(IF($E5="3ST",Tables!$N$78,(IF($E5="4ST",+Tables!$Q$78,+Tables!$T$78)))/100)) -> 0.067 | DN5: =IF(Inputs!$B$3="HSM",(IF($E5="3ST",Tables!$E$79,(IF($E5="4ST",Tables!$H$79,Tables!$K$79)))/100),(IF($E5="3ST",Tables!$N$79,(IF($E5="4ST",+Tables!$Q$79,+Tables!$T$79)))/100)) -> 0.827 | DO5: =+$BD5*$DI5 -> 0.2202196113 | DP5: =+$BD5*$DJ5 -> 0.0476436659 | DQ5: =+$BD5*$DK5 -> 0.1095804316 | DR5: =+$BD5*$DL5 -> 0.02488058108 | DS5: =+$BD5*$DM5 -> 0.03546806239 | DT5: =+$BD5*$DN5 -> 0.4377923522 | DU5: =IF(Inputs!$B$3="HSM",(IF($E5="3ST",Tables!$F$74,(IF($E5="4ST",Tables!$I$74,Tables!$L$74)))/100),(IF($E5="3ST",Tables!$O$74,(IF($E5="4ST",+Tables!$R$74,+Tables!$U$74)))/100)) -> 0.181 | DV5: =IF(Inputs!$B$3="HSM",(IF($E5="3ST",Tables!$F$75,(IF($E5="4ST",Tables!$I$75,Tables!$L$75)))/100),(IF($E5="3ST",Tables!$O$75,(IF($E5="4ST",+Tables!$R$75,+Tables!$U$75)))/100)) -> 0.026 | DW5: =IF(Inputs!$B$3="HSM",(IF($E5="3ST",Tables!$F$76,(IF($E5="4ST",Tables!$I$76,Tables!$L$76)))/100),(IF($E5="3ST",Tables!$O$76,(IF($E5="4ST",+Tables!$R$76,+Tables!$U$76)))/100)) -> 0.174 | DX5: =IF(Inputs!$B$3="HSM",(IF($E5="3ST",Tables!$F$77,(IF($E5="4ST",Tables!$I$77,Tables!$L$77)))/100),(IF($E5="3ST",Tables!$O$77,(IF($E5="4ST",+Tables!$R$77,+Tables!$U$77)))/100)) -> 0.083 | DY5: =IF(Inputs!$B$3="HSM",(IF($E5="3ST",Tables!$F$78,(IF($E5="4ST",Tables!$I$78,Tables!$L$78)))/100),(IF($E5="3ST",Tables!$O$78,(IF($E5="4ST",+Tables!$R$78,+Tables!$U$78)))/100)) -> 0.098 | DZ5: =IF(Inputs!$B$3="HSM",(IF($E5="3ST",Tables!$F$79,(IF($E5="4ST",Tables!$I$79,Tables!$L$79)))/100),(IF($E5="3ST",Tables!$O$79,(IF($E5="4ST",+Tables!$R$79,+Tables!$U$79)))/100)) -> 0.562 | EA5: =+$BF5*$DU5 -> 0.3119139574 | EB5: =+$BF5*$DV5 -> 0.04480531985 | EC5: =+$BF5*$DW5 -> 0.2998509867 | ED5: =+$BF5*$DX5 -> 0.1430323672 | EE5: =+$BF5*$DY5 -> 0.1688815902 | EF5: =+$BF5*$DZ5 -> 0.9684842213 | EG5: =+$AL5 -> 1 | EH5: =+$AQ5 -> 0.235 | EI5: =+$AV5 -> 0.765 | EJ5: =+$AZ5 -> 1.723281533 | EK5: =+$AU5 -> 0.5293740655 | EL5: =+$AP5 -> 2.252655598
A6: 2 | B6: Banana | C6: Toivo | D6: Heritage County | E6: 4ST | F6: 2100 | G6: 2000 | H6: Y | I6: 0 | J6: 5 | K6: 0 | L6: 0 | M6: NP | N6: N/A (1.000) | O6: N/A (1.000) | P6: N/A (1.000) | Q6: 1 | R6: 1 | S6: =AVERAGE(INDIRECT(ADDRESS(MATCH(sYear,'Calibration Factors'!$A:$A,0),CHOOSE(MATCH(E6,{"3ST","4ST","4SG"},0),14,18,20),,,"Calibration Factors")&":"&ADDRESS(MATCH(eYear,'Calibration Factors'!$A:$A,0),CHOOSE(MATCH(E6,{"3ST","4ST","4SG"},0),14,18,20)))) -> 1.6480646 | T6: =4/5 -> 0.8 | U6: 0.24 | V6: 0.5615752345 | W6: 2.177509668 | X6: -1.377509668 | Y6: 2.539586563 | Z6: 0.8835752974 | AA6: 1.013683901 | AB6: =IF($E6="3ST",(IF($K6=0,1,(HLOOKUP($K6,Tables!$AC$20:$AF$26,3,FALSE)))),(IF($E6="4ST",(IF($K6=0,1,(HLOOKUP($K6,Tables!$AC$20:$AF$26,5,FALSE)))),(IF($K6=0,1,(HLOOKUP($K6,Tables!$AC$20:$AF$26,7,FALSE))))))) -> 1 | AC6: =IF($E6="3ST",(IF($L6=0,1,(HLOOKUP($L6,Tables!$AC$36:$AF$42,3,FALSE)))),(IF($E6="4ST",(IF($L6=0,1,(HLOOKUP($L6,Tables!$AC$36:$AF$42,5,FALSE)))),(IF($L6=0,1,(HLOOKUP($L6,Tables!$AC$36:$AF$42,7,FALSE))))))) -> 1 | AD6: =IF(($M6="NP"),1,(1-0.38*(IF(Inputs!$B$3="HSM",(VLOOKUP( $E6,Tables!$B$97:$F$99,4,FALSE)),(VLOOKUP($E6,Tables!$B$97:$H$99,6,FALSE)))))) -> 1 | AE6: =OFFSET(Tables!$AO$1,MATCH(N6,Tables!$AO:$AO,0)-1,1) -> 1 | AF6: =OFFSET(Tables!$AO$1,MATCH(O6,Tables!$AO:$AO,0)-1,1) -> 1 | AG6: =OFFSET(Tables!$AO$1,MATCH(P6,Tables!$AO:$AO,0)-1,1) -> 1 | AH6: 1 | AI6: 1.013683901 | AJ6: 1.947148656 | AK6: 0.24 | AL6: =IF($E6="3ST",IF(Inputs!$B$3="HSM",Tables!$E$55,Tables!$K$55),(IF($E6="4ST",(IF(Inputs!$B$3="HSM",Tables!$G$55,Tables!$M$55)),(IF(Inputs!$B$3="HSM",Tables!$I$55,Tables!$O$55)))))/100 -> 1 | AM6: 1.947148656 | AN6: 1.013683901 | AO6: =IF(Inputs!$B$3<>"HSM",$S6,$R6) -> 1.6480646 | AP6: 3.252938776 | AQ6: =IF($E6="3ST",IF(Inputs!$B$3="HSM",Tables!$E$53,Tables!$K$53),(IF($E6="4ST",(IF(Inputs!$B$3="HSM",Tables!$G$53,Tables!$M$53)),(IF(Inputs!$B$3="HSM",Tables!$I$53,Tables!$O$53)))))/100 -> 0.235 | AR6: 0.4575799341 | AS6: 1.013683901 | AT6: =IF(Inputs!$B$3<>"HSM",$S6,$R6) -> 1.6480646 | AU6: 0.7644406124 | AV6: =IF($E6="3ST",IF(Inputs!$B$3="HSM",Tables!$E$54,Tables!$K$54),(IF($E6="4ST",(IF(Inputs!$B$3="HSM",Tables!$G$54,Tables!$M$54)),(IF(Inputs!$B$3="HSM",Tables!$I$54,Tables!$O$54)))))/100 -> 0.765 | AW6: 1.489568721 | AX6: 1.013683901 | AY6: =IF(Inputs!$B$3<>"HSM",$S6,$R6) -> 1.6480646 | AZ6: 2.488498164 | BA6: =IF(Inputs!$B$3="HSM",(IF($E6="3ST",Tables!$G$80,(IF($E6="4ST",Tables!$J$80,Tables!$M$80)))/100),(IF($E6="3ST",Tables!$P$80,(IF($E6="4ST",+Tables!$S$80,+Tables!$V$80)))/100)) -> 1 | BB6: 3.252938776 | BC6: =IF(Inputs!$B$3="HSM",(IF($E6="3ST",Tables!$E$80,(IF($E6="4ST",Tables!$H$80,Tables!$K$80)))/100),(IF($E6="3ST",Tables!$N$80,(IF($E6="4ST",+Tables!$Q$80,+Tables!$T$80)))/100)) -> 1 | BD6: 0.7644406124 | BE6: =IF(Inputs!$B$3="HSM",(IF($E6="3ST",Tables!$F$80,(IF($E6="4ST",Tables!$I$80,Tables!$L$80)))/100),(IF($E6="3ST",Tables!$O$80,(IF($E6="4ST",+Tables!$R$80,+Tables!$U$80)))/100)) -> 1 | BF6: 2.488498164 | BG6: =IF(Inputs!$B$3="HSM",(IF($E6="3ST",Tables!$G$66,(IF($E6="4ST",Tables!$J$66,Tables!$M$66)))/100),(IF($E6="3ST",Tables!$P$66,(IF($E6="4ST",+Tables!$S$66,+Tables!$V$66)))/100)) -> 0.223 | BH6: =IF(Inputs!$B$3="HSM",(IF($E6="3ST",Tables!$G$67,(IF($E6="4ST",Tables!$J$67,Tables!$M$67)))/100),(IF($E6="3ST",Tables!$P$67,(IF($E6="4ST",+Tables!$S$67,+Tables!$V$67)))/100)) -> 0.004 | BI6: =IF(Inputs!$B$3="HSM",(IF($E6="3ST",Tables!$G$68,(IF($E6="4ST",Tables!$J$68,Tables!$M$68)))/100),(IF($E6="3ST",Tables!$P$68,(IF($E6="4ST",+Tables!$S$68,+Tables!$V$68)))/100)) -> 0.004 | BJ6: =IF(Inputs!$B$3="HSM",(IF($E6="3ST",Tables!$G$69,(IF($E6="4ST",Tables!$J$69,Tables!$M$69)))/100),(IF($E6="3ST",Tables!$P$69,(IF($E6="4ST",+Tables!$S$69,+Tables!$V$69)))/100)) -> 0.018 | BK6: =IF(Inputs!$B$3="HSM",(IF($E6="3ST",Tables!$G$70,(IF($E6="4ST",Tables!$J$70,Tables!$M$70)))/100),(IF($E6="3ST",Tables!$P$70,(IF($E6="4ST",+Tables!$S$70,+Tables!$V$70)))/100)) -> 0.11 | BL6: =IF(Inputs!$B$3="HSM",(IF($E6="3ST",Tables!$G$71,(IF($E6="4ST",Tables!$J$71,Tables!$M$71)))/100),(IF($E6="3ST",Tables!$P$71,(IF($E6="4ST",+Tables!$S$71,+Tables!$V$71)))/100)) -> 0.016 | BM6: =IF(Inputs!$B$3="HSM",(IF($E6="3ST",Tables!$G$72,(IF($E6="4ST",Tables!$J$72,Tables!$M$72)))/100),(IF($E6="3ST",Tables!$P$72,(IF($E6="4ST",+Tables!$S$72,+Tables!$V$72)))/100)) -> 0.375 | BN6: 0.725405347 | BO6: 0.0130117551 | BP6: 0.0130117551 | BQ6: 0.05855289797 | BR6: 0.3578232654 | BS6: 0.05204702042 | BT6: 1.219852041 | BU6: =IF(Inputs!$B$3="HSM",(IF($E6="3ST",Tables!$E$66,(IF($E6="4ST",Tables!$H$66,Tables!$K$66)))/100),(IF($E6="3ST",Tables!$N$66,(IF($E6="4ST",+Tables!$Q$66,+Tables!$T$66)))/100)) -> 0.015 | BV6: =IF(Inputs!$B$3="HSM",(IF($E6="3ST",Tables!$E$67,(IF($E6="4ST",Tables!$H$67,Tables!$K$67)))/100),(IF($E6="3ST",Tables!$N$67,(IF($E6="4ST",+Tables!$Q$67,+Tables!$T$67)))/100)) -> 0.012 | BW6: =IF(Inputs!$B$3="HSM",(IF($E6="3ST",Tables!$E$68,(IF($E6="4ST",Tables!$H$68,Tables!$K$68)))/100),(IF($E6="3ST",Tables!$N$68,(IF($E6="4ST",+Tables!$Q$68,+Tables!$T$68)))/100)) -> 0.015 | BX6: =IF(Inputs!$B$3="HSM",(IF($E6="3ST",Tables!$E$69,(IF($E6="4ST",Tables!$H$69,Tables!$K$69)))/100),(IF($E6="3ST",Tables!$N$69,(IF($E6="4ST",+Tables!$Q$69,+Tables!$T$69)))/100)) -> 0.031 | BY6: =IF(Inputs!$B$3="HSM",(IF($E6="3ST",Tables!$E$70,(IF($E6="4ST",Tables!$H$70,Tables!$K$70)))/100),(IF($E6="3ST",Tables!$N$70,(IF($E6="4ST",+Tables!$Q$70,+Tables!$T$70)))/100)) -> 0.085 | BZ6: =IF(Inputs!$B$3="HSM",(IF($E6="3ST",Tables!$E$71,(IF($E6="4ST",Tables!$H$71,Tables!$K$71)))/100),(IF($E6="3ST",Tables!$N$71,(IF($E6="4ST",+Tables!$Q$71,+Tables!$T$71)))/100)) -> 0.015 | CA6: =IF(Inputs!$B$3="HSM",(IF($E6="3ST",Tables!$E$72,(IF($E6="4ST",Tables!$H$72,Tables!$K$72)))/100),(IF($E6="3ST",Tables!$N$72,(IF($E6="4ST",+Tables!$Q$72,+Tables!$T$72)))/100)) -> 0.173 | CB6: 0.01146660919 | CC6: 0.009173287348 | CD6: 0.01146660919 | CE6: 0.02369765898 | CF6: 0.06497745205 | CG6: 0.01146660919 | CH6: 0.1322482259 | CI6: =IF(Inputs!$B$3="HSM",(IF($E6="3ST",Tables!$F$66,(IF($E6="4ST",Tables!$I$66,Tables!$L$66)))/100),(IF($E6="3ST",Tables!$O$66,(IF($E6="4ST",+Tables!$R$66,+Tables!$U$66)))/100)) -> 0.288 | CJ6: =IF(Inputs!$B$3="HSM",(IF($E6="3ST",Tables!$F$67,(IF($E6="4ST",Tables!$I$67,Tables!$L$67)))/100),(IF($E6="3ST",Tables!$O$67,(IF($E6="4ST",+Tables!$R$67,+Tables!$U$67)))/100)) -> 0.001 | CK6: =IF(Inputs!$B$3="HSM",(IF($E6="3ST",Tables!$F$68,(IF($E6="4ST",Tables!$I$68,Tables!$L$68)))/100),(IF($E6="3ST",Tables!$O$68,(IF($E6="4ST",+Tables!$R$68,+Tables!$U$68)))/100)) -> 0 | CL6: =IF(Inputs!$B$3="HSM",(IF($E6="3ST",Tables!$F$69,(IF($E6="4ST",Tables!$I$69,Tables!$L$69)))/100),(IF($E6="3ST",Tables!$O$69,(IF($E6="4ST",+Tables!$R$69,+Tables!$U$69)))/100)) -> 0.014 | CM6: =IF(Inputs!$B$3="HSM",(IF($E6="3ST",Tables!$F$70,(IF($E6="4ST",Tables!$I$70,Tables!$L$70)))/100),(IF($E6="3ST",Tables!$O$70,(IF($E6="4ST",+Tables!$R$70,+Tables!$U$70)))/100)) -> 0.118 | CN6: =IF(Inputs!$B$3="HSM",(IF($E6="3ST",Tables!$F$71,(IF($E6="4ST",Tables!$I$71,Tables!$L$71)))/100),(IF($E6="3ST",Tables!$O$71,(IF($E6="4ST",+Tables!$R$71,+Tables!$U$71)))/100)) -> 0.017 | CO6: =IF(Inputs!$B$3="HSM",(IF($E6="3ST",Tables!$F$72,(IF($E6="4ST",Tables!$I$72,Tables!$L$72)))/100),(IF($E6="3ST",Tables!$O$72,(IF($E6="4ST",+Tables!$R$72,+Tables!$U$72)))/100)) -> 0.438 | CP6: 0.7166874711 | CQ6: 0.002488498164 | CR6: 0 | CS6: 0.03483897429 | CT6: 0.2936427833 | CU6: 0.04230446878 | CV6: 1.089962196 | CW6: =IF(Inputs!$B$3="HSM",(IF($E6="3ST",Tables!$G$74,(IF($E6="4ST",Tables!$J$74,Tables!$M$74)))/100),(IF($E6="3ST",Tables!$P$74,(IF($E6="4ST",+Tables!$S$74,+Tables!$V$74)))/100)) -> 0.238 | CX6: =IF(Inputs!$B$3="HSM",(IF($E6="3ST",Tables!$G$75,(IF($E6="4ST",Tables!$J$75,Tables!$M$75)))/100),(IF($E6="3ST",Tables!$P$75,(IF($E6="4ST",+Tables!$S$75,+Tables!$V$75)))/100)) -> 0.041 | CY6: =IF(Inputs!$B$3="HSM",(IF($E6="3ST",Tables!$G$76,(IF($E6="4ST",Tables!$J$76,Tables!$M$76)))/100),(IF($E6="3ST",Tables!$P$76,(IF($E6="4ST",+Tables!$S$76,+Tables!$V$76)))/100)) -> 0.181 | CZ6: =IF(Inputs!$B$3="HSM",(IF($E6="3ST",Tables!$G$77,(IF($E6="4ST",Tables!$J$77,Tables!$M$77)))/100),(IF($E6="3ST",Tables!$P$77,(IF($E6="4ST",+Tables!$S$77,+Tables!$V$77)))/100)) -> 0.074 | DA6: =IF(Inputs!$B$3="HSM",(IF($E6="3ST",Tables!$G$78,(IF($E6="4ST",Tables!$J$78,Tables!$M$78)))/100),(IF($E6="3ST",Tables!$P$78,(IF($E6="4ST",+Tables!$S$78,+Tables!$V$78)))/100)) -> 0.091 | DB6: =IF(Inputs!$B$3="HSM",(IF($E6="3ST",Tables!$G$79,(IF($E6="4ST",Tables!$J$79,Tables!$M$79)))/100),(IF($E6="3ST",Tables!$P$79,(IF($E6="4ST",+Tables!$S$79,+Tables!$V$79)))/100)) -> 0.625 | DC6: 0.7741994287 | DD6: 0.1333704898 | DE6: 0.5887819185 | DF6: 0.2407174694 | DG6: 0.2960174286 | DH6: 2.033086735 | DI6: =IF(Inputs!$B$3="HSM",(IF($E6="3ST",Tables!$E$74,(IF($E6="4ST",Tables!$H$74,Tables!$K$74)))/100),(IF($E6="3ST",Tables!$N$74,(IF($E6="4ST",+Tables!$Q$74,+Tables!$T$74)))/100)) -> 0.416 | DJ6: =IF(Inputs!$B$3="HSM",(IF($E6="3ST",Tables!$E$75,(IF($E6="4ST",Tables!$H$75,Tables!$K$75)))/100),(IF($E6="3ST",Tables!$N$75,(IF($E6="4ST",+Tables!$Q$75,+Tables!$T$75)))/100)) -> 0.09 | DK6: =IF(Inputs!$B$3="HSM",(IF($E6="3ST",Tables!$E$76,(IF($E6="4ST",Tables!$H$76,Tables!$K$76)))/100),(IF($E6="3ST",Tables!$N$76,(IF($E6="4ST",+Tables!$Q$76,+Tables!$T$76)))/100)) -> 0.207 | DL6: =IF(Inputs!$B$3="HSM",(IF($E6="3ST",Tables!$E$77,(IF($E6="4ST",Tables!$H$77,Tables!$K$77)))/100),(IF($E6="3ST",Tables!$N$77,(IF($E6="4ST",+Tables!$Q$77,+Tables!$T$77)))/100)) -> 0.047 | DM6: =IF(Inputs!$B$3="HSM",(IF($E6="3ST",Tables!$E$78,(IF($E6="4ST",Tables!$H$78,Tables!$K$78)))/100),(IF($E6="3ST",Tables!$N$78,(IF($E6="4ST",+Tables!$Q$78,+Tables!$T$78)))/100)) -> 0.067 | DN6: =IF(Inputs!$B$3="HSM",(IF($E6="3ST",Tables!$E$79,(IF($E6="4ST",Tables!$H$79,Tables!$K$79)))/100),(IF($E6="3ST",Tables!$N$79,(IF($E6="4ST",+Tables!$Q$79,+Tables!$T$79)))/100)) -> 0.827 | DO6: 0.3180072947 | DP6: 0.06879965511 | DQ6: 0.1582392068 | DR6: 0.03592870878 | DS6: 0.05121752103 | DT6: 0.6321923864 | DU6: =IF(Inputs!$B$3="HSM",(IF($E6="3ST",Tables!$F$74,(IF($E6="4ST",Tables!$I$74,Tables!$L$74)))/100),(IF($E6="3ST",Tables!$O$74,(IF($E6="4ST",+Tables!$R$74,+Tables!$U$74)))/100)) -> 0.181 | DV6: =IF(Inputs!$B$3="HSM",(IF($E6="3ST",Tables!$F$75,(IF($E6="4ST",Tables!$I$75,Tables!$L$75)))/100),(IF($E6="3ST",Tables!$O$75,(IF($E6="4ST",+Tables!$R$75,+Tables!$U$75)))/100)) -> 0.026 | DW6: =IF(Inputs!$B$3="HSM",(IF($E6="3ST",Tables!$F$76,(IF($E6="4ST",Tables!$I$76,Tables!$L$76)))/100),(IF($E6="3ST",Tables!$O$76,(IF($E6="4ST",+Tables!$R$76,+Tables!$U$76)))/100)) -> 0.174 | DX6: =IF(Inputs!$B$3="HSM",(IF($E6="3ST",Tables!$F$77,(IF($E6="4ST",Tables!$I$77,Tables!$L$77)))/100),(IF($E6="3ST",Tables!$O$77,(IF($E6="4ST",+Tables!$R$77,+Tables!$U$77)))/100)) -> 0.083 | DY6: =IF(Inputs!$B$3="HSM",(IF($E6="3ST",Tables!$F$78,(IF($E6="4ST",Tables!$I$78,Tables!$L$78)))/100),(IF($E6="3ST",Tables!$O$78,(IF($E6="4ST",+Tables!$R$78,+Tables!$U$78)))/100)) -> 0.098 | DZ6: =IF(Inputs!$B$3="HSM",(IF($E6="3ST",Tables!$F$79,(IF($E6="4ST",Tables!$I$79,Tables!$L$79)))/100),(IF($E6="3ST",Tables!$O$79,(IF($E6="4ST",+Tables!$R$79,+Tables!$U$79)))/100)) -> 0.562 | EA6: 0.4504181676 | EB6: 0.06470095225 | EC6: 0.4329986805 | ED6: 0.2065453476 | EE6: 0.24387282 | EF6: 1.398535968 | EG6: 1 | EH6: 0.235 | EI6: 0.765 | EJ6: 2.488498164 | EK6: 0.7644406124 | EL6: 3.252938776
A7: 3 | B7: Mango | C7: Aili | D7: Heritage County | E7: 4ST | F7: 3200 | G7: 1150 | H7: N | I7: 10 | K7: 0 | L7: 0 | M7: NP | N7: N/A (1.000) | O7: N/A (1.000) | P7: N/A (1.000) | Q7: 1 | R7: 1 | S7: =AVERAGE(INDIRECT(ADDRESS(MATCH(sYear,'Calibration Factors'!$A:$A,0),CHOOSE(MATCH(E7,{"3ST","4ST","4SG"},0),14,18,20),,,"Calibration Factors")&":"&ADDRESS(MATCH(eYear,'Calibration Factors'!$A:$A,0),CHOOSE(MATCH(E7,{"3ST","4ST","4SG"},0),14,18,20)))) -> 1.6480646 | T7: =5/5 -> 1 | U7: 0.24 | V7: 0.5724821631 | W7: 2.208842157 | X7: -1.208842157 | Y7: 2.323663931 | Z7: 0.8641639391 | AA7: 1.055484602 | AB7: =IF($E7="3ST",(IF($K7=0,1,(HLOOKUP($K7,Tables!$AC$20:$AF$26,3,FALSE)))),(IF($E7="4ST",(IF($K7=0,1,(HLOOKUP($K7,Tables!$AC$20:$AF$26,5,FALSE)))),(IF($K7=0,1,(HLOOKUP($K7,Tables!$AC$20:$AF$26,7,FALSE))))))) -> 1 | AC7: =IF($E7="3ST",(IF($L7=0,1,(HLOOKUP($L7,Tables!$AC$36:$AF$42,3,FALSE)))),(IF($E7="4ST",(IF($L7=0,1,(HLOOKUP($L7,Tables!$AC$36:$AF$42,5,FALSE)))),(IF($L7=0,1,(HLOOKUP($L7,Tables!$AC$36:$AF$42,7,FALSE))))))) -> 1 | AD7: =IF(($M7="NP"),1,(1-0.38*(IF(Inputs!$B$3="HSM",(VLOOKUP( $E7,Tables!$B$97:$F$99,4,FALSE)),(VLOOKUP($E7,Tables!$B$97:$H$99,6,FALSE)))))) -> 1 | AE7: =OFFSET(Tables!$AO$1,MATCH(N7,Tables!$AO:$AO,0)-1,1) -> 1 | AF7: =OFFSET(Tables!$AO$1,MATCH(O7,Tables!$AO:$AO,0)-1,1) -> 1 | AG7: =OFFSET(Tables!$AO$1,MATCH(P7,Tables!$AO:$AO,0)-1,1) -> 1 | AH7: 1 | AI7: 1.055484602 | AJ7: 1.788771655 | AK7: 0.24 | AL7: =IF($E7="3ST",IF(Inputs!$B$3="HSM",Tables!$E$55,Tables!$K$55),(IF($E7="4ST",(IF(Inputs!$B$3="HSM",Tables!$G$55,Tables!$M$55)),(IF(Inputs!$B$3="HSM",Tables!$I$55,Tables!$O$55)))))/100 -> 1 | AM7: 1.788771655 | AN7: 1.055484602 | AO7: =IF(Inputs!$B$3<>"HSM",$S7,$R7) -> 1.6480646 | AP7: 3.111580474 | AQ7: =IF($E7="3ST",IF(Inputs!$B$3="HSM",Tables!$E$53,Tables!$K$53),(IF($E7="4ST",(IF(Inputs!$B$3="HSM",Tables!$G$53,Tables!$M$53)),(IF(Inputs!$B$3="HSM",Tables!$I$53,Tables!$O$53)))))/100 -> 0.235 | AR7: 0.420361339 | AS7: 1.055484602 | AT7: =IF(Inputs!$B$3<>"HSM",$S7,$R7) -> 1.6480646 | AU7: 0.7312214114 | AV7: =IF($E7="3ST",IF(Inputs!$B$3="HSM",Tables!$E$54,Tables!$K$54),(IF($E7="4ST",(IF(Inputs!$B$3="HSM",Tables!$G$54,Tables!$M$54)),(IF(Inputs!$B$3="HSM",Tables!$I$54,Tables!$O$54)))))/100 -> 0.765 | AW7: 1.368410316 | AX7: 1.055484602 | AY7: =IF(Inputs!$B$3<>"HSM",$S7,$R7) -> 1.6480646 | AZ7: 2.380359062 | BA7: =IF(Inputs!$B$3="HSM",(IF($E7="3ST",Tables!$G$80,(IF($E7="4ST",Tables!$J$80,Tables!$M$80)))/100),(IF($E7="3ST",Tables!$P$80,(IF($E7="4ST",+Tables!$S$80,+Tables!$V$80)))/100)) -> 1 | BB7: 3.111580474 | BC7: =IF(Inputs!$B$3="HSM",(IF($E7="3ST",Tables!$E$80,(IF($E7="4ST",Tables!$H$80,Tables!$K$80)))/100),(IF($E7="3ST",Tables!$N$80,(IF($E7="4ST",+Tables!$Q$80,+Tables!$T$80)))/100)) -> 1 | BD7: 0.7312214114 | BE7: =IF(Inputs!$B$3="HSM",(IF($E7="3ST",Tables!$F$80,(IF($E7="4ST",Tables!$I$80,Tables!$L$80)))/100),(IF($E7="3ST",Tables!$O$80,(IF($E7="4ST",+Tables!$R$80,+Tables!$U$80)))/100)) -> 1 | BF7: 2.380359062 | BG7: =IF(Inputs!$B$3="HSM",(IF($E7="3ST",Tables!$G$66,(IF($E7="4ST",Tables!$J$66,Tables!$M$66)))/100),(IF($E7="3ST",Tables!$P$66,(IF($E7="4ST",+Tables!$S$66,+Tables!$V$66)))/100)) -> 0.223 | BH7: =IF(Inputs!$B$3="HSM",(IF($E7="3ST",Tables!$G$67,(IF($E7="4ST",Tables!$J$67,Tables!$M$67)))/100),(IF($E7="3ST",Tables!$P$67,(IF($E7="4ST",+Tables!$S$67,+Tables!$V$67)))/100)) -> 0.004 | BI7: =IF(Inputs!$B$3="HSM",(IF($E7="3ST",Tables!$G$68,(IF($E7="4ST",Tables!$J$68,Tables!$M$68)))/100),(IF($E7="3ST",Tables!$P$68,(IF($E7="4ST",+Tables!$S$68,+Tables!$V$68)))/100)) -> 0.004 | BJ7: =IF(Inputs!$B$3="HSM",(IF($E7="3ST",Tables!$G$69,(IF($E7="4ST",Tables!$J$69,Tables!$M$69)))/100),(IF($E7="3ST",Tables!$P$69,(IF($E7="4ST",+Tables!$S$69,+Tables!$V$69)))/100)) -> 0.018 | BK7: =IF(Inputs!$B$3="HSM",(IF($E7="3ST",Tables!$G$70,(IF($E7="4ST",Tables!$J$70,Tables!$M$70)))/100),(IF($E7="3ST",Tables!$P$70,(IF($E7="4ST",+Tables!$S$70,+Tables!$V$70)))/100)) -> 0.11 | BL7: =IF(Inputs!$B$3="HSM",(IF($E7="3ST",Tables!$G$71,(IF($E7="4ST",Tables!$J$71,Tables!$M$71)))/100),(IF($E7="3ST",Tables!$P$71,(IF($E7="4ST",+Tables!$S$71,+Tables!$V$71)))/100)) -> 0.016 | BM7: =IF(Inputs!$B$3="HSM",(IF($E7="3ST",Tables!$G$72,(IF($E7="4ST",Tables!$J$72,Tables!$M$72)))/100),(IF($E7="3ST",Tables!$P$72,(IF($E7="4ST",+Tables!$S$72,+Tables!$V$72)))/100)) -> 0.375 | BN7: 0.6938824457 | BO7: 0.0124463219 | BP7: 0.0124463219 | BQ7: 0.05600844853 | BR7: 0.3422738521 | BS7: 0.04978528758 | BT7: 1.166842678 | BU7: =IF(Inputs!$B$3="HSM",(IF($E7="3ST",Tables!$E$66,(IF($E7="4ST",Tables!$H$66,Tables!$K$66)))/100),(IF($E7="3ST",Tables!$N$66,(IF($E7="4ST",+Tables!$Q$66,+Tables!$T$66)))/100)) -> 0.015 | BV7: =IF(Inputs!$B$3="HSM",(IF($E7="3ST",Tables!$E$67,(IF($E7="4ST",Tables!$H$67,Tables!$K$67)))/100),(IF($E7="3ST",Tables!$N$67,(IF($E7="4ST",+Tables!$Q$67,+Tables!$T$67)))/100)) -> 0.012 | BW7: =IF(Inputs!$B$3="HSM",(IF($E7="3ST",Tables!$E$68,(IF($E7="4ST",Tables!$H$68,Tables!$K$68)))/100),(IF($E7="3ST",Tables!$N$68,(IF($E7="4ST",+Tables!$Q$68,+Tables!$T$68)))/100)) -> 0.015 | BX7: =IF(Inputs!$B$3="HSM",(IF($E7="3ST",Tables!$E$69,(IF($E7="4ST",Tables!$H$69,Tables!$K$69)))/100),(IF($E7="3ST",Tables!$N$69,(IF($E7="4ST",+Tables!$Q$69,+Tables!$T$69)))/100)) -> 0.031 | BY7: =IF(Inputs!$B$3="HSM",(IF($E7="3ST",Tables!$E$70,(IF($E7="4ST",Tables!$H$70,Tables!$K$70)))/100),(IF($E7="3ST",Tables!$N$70,(IF($E7="4ST",+Tables!$Q$70,+Tables!$T$70)))/100)) -> 0.085 | BZ7: =IF(Inputs!$B$3="HSM",(IF($E7="3ST",Tables!$E$71,(IF($E7="4ST",Tables!$H$71,Tables!$K$71)))/100),(IF($E7="3ST",Tables!$N$71,(IF($E7="4ST",+Tables!$Q$71,+Tables!$T$71)))/100)) -> 0.015 | CA7: =IF(Inputs!$B$3="HSM",(IF($E7="3ST",Tables!$E$72,(IF($E7="4ST",Tables!$H$72,Tables!$K$72)))/100),(IF($E7="3ST",Tables!$N$72,(IF($E7="4ST",+Tables!$Q$72,+Tables!$T$72)))/100)) -> 0.173 | CB7: 0.01096832117 | CC7: 0.008774656936 | CD7: 0.01096832117 | CE7: 0.02266786375 | CF7: 0.06215381996 | CG7: 0.01096832117 | CH7: 0.1265013042 | CI7: =IF(Inputs!$B$3="HSM",(IF($E7="3ST",Tables!$F$66,(IF($E7="4ST",Tables!$I$66,Tables!$L$66)))/100),(IF($E7="3ST",Tables!$O$66,(IF($E7="4ST",+Tables!$R$66,+Tables!$U$66)))/100)) -> 0.288 | CJ7: =IF(Inputs!$B$3="HSM",(IF($E7="3ST",Tables!$F$67,(IF($E7="4ST",Tables!$I$67,Tables!$L$67)))/100),(IF($E7="3ST",Tables!$O$67,(IF($E7="4ST",+Tables!$R$67,+Tables!$U$67)))/100)) -> 0.001 | CK7: =IF(Inputs!$B$3="HSM",(IF($E7="3ST",Tables!$F$68,(IF($E7="4ST",Tables!$I$68,Tables!$L$68)))/100),(IF($E7="3ST",Tables!$O$68,(IF($E7="4ST",+Tables!$R$68,+Tables!$U$68)))/100)) -> 0 | CL7: =IF(Inputs!$B$3="HSM",(IF($E7="3ST",Tables!$F$69,(IF($E7="4ST",Tables!$I$69,Tables!$L$69)))/100),(IF($E7="3ST",Tables!$O$69,(IF($E7="4ST",+Tables!$R$69,+Tables!$U$69)))/100)) -> 0.014 | CM7: =IF(Inputs!$B$3="HSM",(IF($E7="3ST",Tables!$F$70,(IF($E7="4ST",Tables!$I$70,Tables!$L$70)))/100),(IF($E7="3ST",Tables!$O$70,(IF($E7="4ST",+Tables!$R$70,+Tables!$U$70)))/100)) -> 0.118 | CN7: =IF(Inputs!$B$3="HSM",(IF($E7="3ST",Tables!$F$71,(IF($E7="4ST",Tables!$I$71,Tables!$L$71)))/100),(IF($E7="3ST",Tables!$O$71,(IF($E7="4ST",+Tables!$R$71,+Tables!$U$71)))/100)) -> 0.017 | CO7: =IF(Inputs!$B$3="HSM",(IF($E7="3ST",Tables!$F$72,(IF($E7="4ST",Tables!$I$72,Tables!$L$72)))/100),(IF($E7="3ST",Tables!$O$72,(IF($E7="4ST",+Tables!$R$72,+Tables!$U$72)))/100)) -> 0.438 | CP7: 0.68554341 | CQ7: 0.002380359062 | CR7: 0 | CS7: 0.03332502687 | CT7: 0.2808823694 | CU7: 0.04046610406 | CV7: 1.042597269 | CW7: =IF(Inputs!$B$3="HSM",(IF($E7="3ST",Tables!$G$74,(IF($E7="4ST",Tables!$J$74,Tables!$M$74)))/100),(IF($E7="3ST",Tables!$P$74,(IF($E7="4ST",+Tables!$S$74,+Tables!$V$74)))/100)) -> 0.238 | CX7: =IF(Inputs!$B$3="HSM",(IF($E7="3ST",Tables!$G$75,(IF($E7="4ST",Tables!$J$75,Tables!$M$75)))/100),(IF($E7="3ST",Tables!$P$75,(IF($E7="4ST",+Tables!$S$75,+Tables!$V$75)))/100)) -> 0.041 | CY7: =IF(Inputs!$B$3="HSM",(IF($E7="3ST",Tables!$G$76,(IF($E7="4ST",Tables!$J$76,Tables!$M$76)))/100),(IF($E7="3ST",Tables!$P$76,(IF($E7="4ST",+Tables!$S$76,+Tables!$V$76)))/100)) -> 0.181 | CZ7: =IF(Inputs!$B$3="HSM",(IF($E7="3ST",Tables!$G$77,(IF($E7="4ST",Tables!$J$77,Tables!$M$77)))/100),(IF($E7="3ST",Tables!$P$77,(IF($E7="4ST",+Tables!$S$77,+Tables!$V$77)))/100)) -> 0.074 | DA7: =IF(Inputs!$B$3="HSM",(IF($E7="3ST",Tables!$G$78,(IF($E7="4ST",Tables!$J$78,Tables!$M$78)))/100),(IF($E7="3ST",Tables!$P$78,(IF($E7="4ST",+Tables!$S$78,+Tables!$V$78)))/100)) -> 0.091 | DB7: =IF(Inputs!$B$3="HSM",(IF($E7="3ST",Tables!$G$79,(IF($E7="4ST",Tables!$J$79,Tables!$M$79)))/100),(IF($E7="3ST",Tables!$P$79,(IF($E7="4ST",+Tables!$S$79,+Tables!$V$79)))/100)) -> 0.625 | DC7: 0.7405561528 | DD7: 0.1275747994 | DE7: 0.5631960658 | DF7: 0.2302569551 | DG7: 0.2831538231 | DH7: 1.944737796 | DI7: =IF(Inputs!$B$3="HSM",(IF($E7="3ST",Tables!$E$74,(IF($E7="4ST",Tables!$H$74,Tables!$K$74)))/100),(IF($E7="3ST",Tables!$N$74,(IF($E7="4ST",+Tables!$Q$74,+Tables!$T$74)))/100)) -> 0.416 | DJ7: =IF(Inputs!$B$3="HSM",(IF($E7="3ST",Tables!$E$75,(IF($E7="4ST",Tables!$H$75,Tables!$K$75)))/100),(IF($E7="3ST",Tables!$N$75,(IF($E7="4ST",+Tables!$Q$75,+Tables!$T$75)))/100)) -> 0.09 | DK7: =IF(Inputs!$B$3="HSM",(IF($E7="3ST",Tables!$E$76,(IF($E7="4ST",Tables!$H$76,Tables!$K$76)))/100),(IF($E7="3ST",Tables!$N$76,(IF($E7="4ST",+Tables!$Q$76,+Tables!$T$76)))/100)) -> 0.207 | DL7: =IF(Inputs!$B$3="HSM",(IF($E7="3ST",Tables!$E$77,(IF($E7="4ST",Tables!$H$77,Tables!$K$77)))/100),(IF($E7="3ST",Tables!$N$77,(IF($E7="4ST",+Tables!$Q$77,+Tables!$T$77)))/100)) -> 0.047 | DM7: =IF(Inputs!$B$3="HSM",(IF($E7="3ST",Tables!$E$78,(IF($E7="4ST",Tables!$H$78,Tables!$K$78)))/100),(IF($E7="3ST",Tables!$N$78,(IF($E7="4ST",+Tables!$Q$78,+Tables!$T$78)))/100)) -> 0.067 | DN7: =IF(Inputs!$B$3="HSM",(IF($E7="3ST",Tables!$E$79,(IF($E7="4ST",Tables!$H$79,Tables!$K$79)))/100),(IF($E7="3ST",Tables!$N$79,(IF($E7="4ST",+Tables!$Q$79,+Tables!$T$79)))/100)) -> 0.827 | DO7: 0.3041881071 | DP7: 0.06580992702 | DQ7: 0.1513628321 | DR7: 0.03436740633 | DS7: 0.04899183456 | DT7: 0.6047201072 | DU7: =IF(Inputs!$B$3="HSM",(IF($E7="3ST",Tables!$F$74,(IF($E7="4ST",Tables!$I$74,Tables!$L$74)))/100),(IF($E7="3ST",Tables!$O$74,(IF($E7="4ST",+Tables!$R$74,+Tables!$U$74)))/100)) -> 0.181 | DV7: =IF(Inputs!$B$3="HSM",(IF($E7="3ST",Tables!$F$75,(IF($E7="4ST",Tables!$I$75,Tables!$L$75)))/100),(IF($E7="3ST",Tables!$O$75,(IF($E7="4ST",+Tables!$R$75,+Tables!$U$75)))/100)) -> 0.026 | DW7: =IF(Inputs!$B$3="HSM",(IF($E7="3ST",Tables!$F$76,(IF($E7="4ST",Tables!$I$76,Tables!$L$76)))/100),(IF($E7="3ST",Tables!$O$76,(IF($E7="4ST",+Tables!$R$76,+Tables!$U$76)))/100)) -> 0.174 | DX7: =IF(Inputs!$B$3="HSM",(IF($E7="3ST",Tables!$F$77,(IF($E7="4ST",Tables!$I$77,Tables!$L$77)))/100),(IF($E7="3ST",Tables!$O$77,(IF($E7="4ST",+Tables!$R$77,+Tables!$U$77)))/100)) -> 0.083 | DY7: =IF(Inputs!$B$3="HSM",(IF($E7="3ST",Tables!$F$78,(IF($E7="4ST",Tables!$I$78,Tables!$L$78)))/100),(IF($E7="3ST",Tables!$O$78,(IF($E7="4ST",+Tables!$R$78,+Tables!$U$78)))/100)) -> 0.098 | DZ7: =IF(Inputs!$B$3="HSM",(IF($E7="3ST",Tables!$F$79,(IF($E7="4ST",Tables!$I$79,Tables!$L$79)))/100),(IF($E7="3ST",Tables!$O$79,(IF($E7="4ST",+Tables!$R$79,+Tables!$U$79)))/100)) -> 0.562 | EA7: 0.4308449903 | EB7: 0.06188933562 | EC7: 0.4141824769 | ED7: 0.1975698022 | EE7: 0.2332751881 | EF7: 1.337761793 | EG7: 1 | EH7: 0.235 | EI7: 0.765 | EJ7: 2.380359062 | EK7: 0.7312214114 | EL7: 3.111580474
A8: 4 | B8: Pineapple | C8: Emil | D8: Heritage County | E8: 4ST | F8: 3500 | G8: 3300 | H8: N | I8: 0 | K8: 2 | L8: 0 | M8: NP | N8: N/A (1.000) | O8: N/A (1.000) | P8: N/A (1.000) | Q8: 1 | R8: 1 | S8: =AVERAGE(INDIRECT(ADDRESS(MATCH(sYear,'Calibration Factors'!$A:$A,0),CHOOSE(MATCH(E8,{"3ST","4ST","4SG"},0),14,18,20),,,"Calibration Factors")&":"&ADDRESS(MATCH(eYear,'Calibration Factors'!$A:$A,0),CHOOSE(MATCH(E8,{"3ST","4ST","4SG"},0),14,18,20)))) -> 1.6480646 | T8: =25/5 -> 5 | U8: 0.24 | V8: 0.5752018283 | W8: 3.893983241 | X8: 1.106016759 | Y8: 2.272550384 | Z8: 0.8593719825 | AA8: 1 | AB8: =IF($E8="3ST",(IF($K8=0,1,(HLOOKUP($K8,Tables!$AC$20:$AF$26,3,FALSE)))),(IF($E8="4ST",(IF($K8=0,1,(HLOOKUP($K8,Tables!$AC$20:$AF$26,5,FALSE)))),(IF($K8=0,1,(HLOOKUP($K8,Tables!$AC$20:$AF$26,7,FALSE))))))) -> 0.52 | AC8: =IF($E8="3ST",(IF($L8=0,1,(HLOOKUP($L8,Tables!$AC$36:$AF$42,3,FALSE)))),(IF($E8="4ST",(IF($L8=0,1,(HLOOKUP($L8,Tables!$AC$36:$AF$42,5,FALSE)))),(IF($L8=0,1,(HLOOKUP($L8,Tables!$AC$36:$AF$42,7,FALSE))))))) -> 1 | AD8: =IF(($M8="NP"),1,(1-0.38*(IF(Inputs!$B$3="HSM",(VLOOKUP( $E8,Tables!$B$97:$F$99,4,FALSE)),(VLOOKUP($E8,Tables!$B$97:$H$99,6,FALSE)))))) -> 1 | AE8: =OFFSET(Tables!$AO$1,MATCH(N8,Tables!$AO:$AO,0)-1,1) -> 1 | AF8: =OFFSET(Tables!$AO$1,MATCH(O8,Tables!$AO:$AO,0)-1,1) -> 1 | AG8: =OFFSET(Tables!$AO$1,MATCH(P8,Tables!$AO:$AO,0)-1,1) -> 1 | AH8: 1 | AI8: 0.52 | AJ8: 3.590654057 | AK8: 0.24 | AL8: =IF($E8="3ST",IF(Inputs!$B$3="HSM",Tables!$E$55,Tables!$K$55),(IF($E8="4ST",(IF(Inputs!$B$3="HSM",Tables!$G$55,Tables!$M$55)),(IF(Inputs!$B$3="HSM",Tables!$I$55,Tables!$O$55)))))/100 -> 1 | AM8: 3.590654057 | AN8: 0.52 | AO8: =IF(Inputs!$B$3<>"HSM",$S8,$R8) -> 1.6480646 | AP8: 3.077167518 | AQ8: =IF($E8="3ST",IF(Inputs!$B$3="HSM",Tables!$E$53,Tables!$K$53),(IF($E8="4ST",(IF(Inputs!$B$3="HSM",Tables!$G$53,Tables!$M$53)),(IF(Inputs!$B$3="HSM",Tables!$I$53,Tables!$O$53)))))/100 -> 0.235 | AR8: 0.8438037034 | AS8: 0.52 | AT8: =IF(Inputs!$B$3<>"HSM",$S8,$R8) -> 1.6480646 | AU8: 0.7231343667 | AV8: =IF($E8="3ST",IF(Inputs!$B$3="HSM",Tables!$E$54,Tables!$K$54),(IF($E8="4ST",(IF(Inputs!$B$3="HSM",Tables!$G$54,Tables!$M$54)),(IF(Inputs!$B$3="HSM",Tables!$I$54,Tables!$O$54)))))/100 -> 0.765 | AW8: 2.746850353 | AX8: 0.52 | AY8: =IF(Inputs!$B$3<>"HSM",$S8,$R8) -> 1.6480646 | AZ8: 2.354033151 | BA8: =IF(Inputs!$B$3="HSM",(IF($E8="3ST",Tables!$G$80,(IF($E8="4ST",Tables!$J$80,Tables!$M$80)))/100),(IF($E8="3ST",Tables!$P$80,(IF($E8="4ST",+Tables!$S$80,+Tables!$V$80)))/100)) -> 1 | BB8: 3.077167518 | BC8: =IF(Inputs!$B$3="HSM",(IF($E8="3ST",Tables!$E$80,(IF($E8="4ST",Tables!$H$80,Tables!$K$80)))/100),(IF($E8="3ST",Tables!$N$80,(IF($E8="4ST",+Tables!$Q$80,+Tables!$T$80)))/100)) -> 1 | BD8: 0.7231343667 | BE8: =IF(Inputs!$B$3="HSM",(IF($E8="3ST",Tables!$F$80,(IF($E8="4ST",Tables!$I$80,Tables!$L$80)))/100),(IF($E8="3ST",Tables!$O$80,(IF($E8="4ST",+Tables!$R$80,+Tables!$U$80)))/100)) -> 1 | BF8: 2.354033151 | BG8: =IF(Inputs!$B$3="HSM",(IF($E8="3ST",Tables!$G$66,(IF($E8="4ST",Tables!$J$66,Tables!$M$66)))/100),(IF($E8="3ST",Tables!$P$66,(IF($E8="4ST",+Tables!$S$66,+Tables!$V$66)))/100)) -> 0.223 | BH8: =IF(Inputs!$B$3="HSM",(IF($E8="3ST",Tables!$G$67,(IF($E8="4ST",Tables!$J$67,Tables!$M$67)))/100),(IF($E8="3ST",Tables!$P$67,(IF($E8="4ST",+Tables!$S$67,+Tables!$V$67)))/100)) -> 0.004 | BI8: =IF(Inputs!$B$3="HSM",(IF($E8="3ST",Tables!$G$68,(IF($E8="4ST",Tables!$J$68,Tables!$M$68)))/100),(IF($E8="3ST",Tables!$P$68,(IF($E8="4ST",+Tables!$S$68,+Tables!$V$68)))/100)) -> 0.004 | BJ8: =IF(Inputs!$B$3="HSM",(IF($E8="3ST",Tables!$G$69,(IF($E8="4ST",Tables!$J$69,Tables!$M$69)))/100),(IF($E8="3ST",Tables!$P$69,(IF($E8="4ST",+Tables!$S$69,+Tables!$V$69)))/100)) -> 0.018 | BK8: =IF(Inputs!$B$3="HSM",(IF($E8="3ST",Tables!$G$70,(IF($E8="4ST",Tables!$J$70,Tables!$M$70)))/100),(IF($E8="3ST",Tables!$P$70,(IF($E8="4ST",+Tables!$S$70,+Tables!$V$70)))/100)) -> 0.11 | BL8: =IF(Inputs!$B$3="HSM",(IF($E8="3ST",Tables!$G$71,(IF($E8="4ST",Tables!$J$71,Tables!$M$71)))/100),(IF($E8="3ST",Tables!$P$71,(IF($E8="4ST",+Tables!$S$71,+Tables!$V$71)))/100)) -> 0.016 | BM8: =IF(Inputs!$B$3="HSM",(IF($E8="3ST",Tables!$G$72,(IF($E8="4ST",Tables!$J$72,Tables!$M$72)))/100),(IF($E8="3ST",Tables!$P$72,(IF($E8="4ST",+Tables!$S$72,+Tables!$V$72)))/100)) -> 0.375 | BN8: 0.6862083565 | BO8: 0.01230867007 | BP8: 0.01230867007 | BQ8: 0.05538901532 | BR8: 0.338488427 | BS8: 0.04923468028 | BT8: 1.153937819 | BU8: =IF(Inputs!$B$3="HSM",(IF($E8="3ST",Tables!$E$66,(IF($E8="4ST",Tables!$H$66,Tables!$K$66)))/100),(IF($E8="3ST",Tables!$N$66,(IF($E8="4ST",+Tables!$Q$66,+Tables!$T$66)))/100)) -> 0.015 | BV8: =IF(Inputs!$B$3="HSM",(IF($E8="3ST",Tables!$E$67,(IF($E8="4ST",Tables!$H$67,Tables!$K$67)))/100),(IF($E8="3ST",Tables!$N$67,(IF($E8="4ST",+Tables!$Q$67,+Tables!$T$67)))/100)) -> 0.012 | BW8: =IF(Inputs!$B$3="HSM",(IF($E8="3ST",Tables!$E$68,(IF($E8="4ST",Tables!$H$68,Tables!$K$68)))/100),(IF($E8="3ST",Tables!$N$68,(IF($E8="4ST",+Tables!$Q$68,+Tables!$T$68)))/100)) -> 0.015 | BX8: =IF(Inputs!$B$3="HSM",(IF($E8="3ST",Tables!$E$69,(IF($E8="4ST",Tables!$H$69,Tables!$K$69)))/100),(IF($E8="3ST",Tables!$N$69,(IF($E8="4ST",+Tables!$Q$69,+Tables!$T$69)))/100)) -> 0.031 | BY8: =IF(Inputs!$B$3="HSM",(IF($E8="3ST",Tables!$E$70,(IF($E8="4ST",Tables!$H$70,Tables!$K$70)))/100),(IF($E8="3ST",Tables!$N$70,(IF($E8="4ST",+Tables!$Q$70,+Tables!$T$70)))/100)) -> 0.085 | BZ8: =IF(Inputs!$B$3="HSM",(IF($E8="3ST",Tables!$E$71,(IF($E8="4ST",Tables!$H$71,Tables!$K$71)))/100),(IF($E8="3ST",Tables!$N$71,(IF($E8="4ST",+Tables!$Q$71,+Tables!$T$71)))/100)) -> 0.015 | CA8: =IF(Inputs!$B$3="HSM",(IF($E8="3ST",Tables!$E$72,(IF($E8="4ST",Tables!$H$72,Tables!$K$72)))/100),(IF($E8="3ST",Tables!$N$72,(IF($E8="4ST",+Tables!$Q$72,+Tables!$T$72)))/100)) -> 0.173 | CB8: 0.0108470155 | CC8: 0.0086776124 | CD8: 0.0108470155 | CE8: 0.02241716537 | CF8: 0.06146642117 | CG8: 0.0108470155 | CH8: 0.1251022454 | CI8: =IF(Inputs!$B$3="HSM",(IF($E8="3ST",Tables!$F$66,(IF($E8="4ST",Tables!$I$66,Tables!$L$66)))/100),(IF($E8="3ST",Tables!$O$66,(IF($E8="4ST",+Tables!$R$66,+Tables!$U$66)))/100)) -> 0.288 | CJ8: =IF(Inputs!$B$3="HSM",(IF($E8="3ST",Tables!$F$67,(IF($E8="4ST",Tables!$I$67,Tables!$L$67)))/100),(IF($E8="3ST",Tables!$O$67,(IF($E8="4ST",+Tables!$R$67,+Tables!$U$67)))/100)) -> 0.001 | CK8: =IF(Inputs!$B$3="HSM",(IF($E8="3ST",Tables!$F$68,(IF($E8="4ST",Tables!$I$68,Tables!$L$68)))/100),(IF($E8="3ST",Tables!$O$68,(IF($E8="4ST",+Tables!$R$68,+Tables!$U$68)))/100)) -> 0 | CL8: =IF(Inputs!$B$3="HSM",(IF($E8="3ST",Tables!$F$69,(IF($E8="4ST",Tables!$I$69,Tables!$L$69)))/100),(IF($E8="3ST",Tables!$O$69,(IF($E8="4ST",+Tables!$R$69,+Tables!$U$69)))/100)) -> 0.014 | CM8: =IF(Inputs!$B$3="HSM",(IF($E8="3ST",Tables!$F$70,(IF($E8="4ST",Tables!$I$70,Tables!$L$70)))/100),(IF($E8="3ST",Tables!$O$70,(IF($E8="4ST",+Tables!$R$70,+Tables!$U$70)))/100)) -> 0.118 | CN8: =IF(Inputs!$B$3="HSM",(IF($E8="3ST",Tables!$F$71,(IF($E8="4ST",Tables!$I$71,Tables!$L$71)))/100),(IF($E8="3ST",Tables!$O$71,(IF($E8="4ST",+Tables!$R$71,+Tables!$U$71)))/100)) -> 0.017 | CO8: =IF(Inputs!$B$3="HSM",(IF($E8="3ST",Tables!$F$72,(IF($E8="4ST",Tables!$I$72,Tables!$L$72)))/100),(IF($E8="3ST",Tables!$O$72,(IF($E8="4ST",+Tables!$R$72,+Tables!$U$72)))/100)) -> 0.438 | CP8: 0.6779615475 | CQ8: 0.002354033151 | CR8: 0 | CS8: 0.03295646412 | CT8: 0.2777759118 | CU8: 0.04001856357 | CV8: 1.03106652 | CW8: =IF(Inputs!$B$3="HSM",(IF($E8="3ST",Tables!$G$74,(IF($E8="4ST",Tables!$J$74,Tables!$M$74)))/100),(IF($E8="3ST",Tables!$P$74,(IF($E8="4ST",+Tables!$S$74,+Tables!$V$74)))/100)) -> 0.238 | CX8: =IF(Inputs!$B$3="HSM",(IF($E8="3ST",Tables!$G$75,(IF($E8="4ST",Tables!$J$75,Tables!$M$75)))/100),(IF($E8="3ST",Tables!$P$75,(IF($E8="4ST",+Tables!$S$75,+Tables!$V$75)))/100)) -> 0.041 | CY8: =IF(Inputs!$B$3="HSM",(IF($E8="3ST",Tables!$G$76,(IF($E8="4ST",Tables!$J$76,Tables!$M$76)))/100),(IF($E8="3ST",Tables!$P$76,(IF($E8="4ST",+Tables!$S$76,+Tables!$V$76)))/100)) -> 0.181 | CZ8: =IF(Inputs!$B$3="HSM",(IF($E8="3ST",Tables!$G$77,(IF($E8="4ST",Tables!$J$77,Tables!$M$77)))/100),(IF($E8="3ST",Tables!$P$77,(IF($E8="4ST",+Tables!$S$77,+Tables!$V$77)))/100)) -> 0.074 | DA8: =IF(Inputs!$B$3="HSM",(IF($E8="3ST",Tables!$G$78,(IF($E8="4ST",Tables!$J$78,Tables!$M$78)))/100),(IF($E8="3ST",Tables!$P$78,(IF($E8="4ST",+Tables!$S$78,+Tables!$V$78)))/100)) -> 0.091 | DB8: =IF(Inputs!$B$3="HSM",(IF($E8="3ST",Tables!$G$79,(IF($E8="4ST",Tables!$J$79,Tables!$M$79)))/100),(IF($E8="3ST",Tables!$P$79,(IF($E8="4ST",+Tables!$S$79,+Tables!$V$79)))/100)) -> 0.625 | DC8: 0.7323658692 | DD8: 0.1261638682 | DE8: 0.5569673207 | DF8: 0.2277103963 | DG8: 0.2800222441 | DH8: 1.923229699 | DI8: =IF(Inputs!$B$3="HSM",(IF($E8="3ST",Tables!$E$74,(IF($E8="4ST",Tables!$H$74,Tables!$K$74)))/100),(IF($E8="3ST",Tables!$N$74,(IF($E8="4ST",+Tables!$Q$74,+Tables!$T$74)))/100)) -> 0.416 | DJ8: =IF(Inputs!$B$3="HSM",(IF($E8="3ST",Tables!$E$75,(IF($E8="4ST",Tables!$H$75,Tables!$K$75)))/100),(IF($E8="3ST",Tables!$N$75,(IF($E8="4ST",+Tables!$Q$75,+Tables!$T$75)))/100)) -> 0.09 | DK8: =IF(Inputs!$B$3="HSM",(IF($E8="3ST",Tables!$E$76,(IF($E8="4ST",Tables!$H$76,Tables!$K$76)))/100),(IF($E8="3ST",Tables!$N$76,(IF($E8="4ST",+Tables!$Q$76,+Tables!$T$76)))/100)) -> 0.207 | DL8: =IF(Inputs!$B$3="HSM",(IF($E8="3ST",Tables!$E$77,(IF($E8="4ST",Tables!$H$77,Tables!$K$77)))/100),(IF($E8="3ST",Tables!$N$77,(IF($E8="4ST",+Tables!$Q$77,+Tables!$T$77)))/100)) -> 0.047 | DM8: =IF(Inputs!$B$3="HSM",(IF($E8="3ST",Tables!$E$78,(IF($E8="4ST",Tables!$H$78,Tables!$K$78)))/100),(IF($E8="3ST",Tables!$N$78,(IF($E8="4ST",+Tables!$Q$78,+Tables!$T$78)))/100)) -> 0.067 | DN8: =IF(Inputs!$B$3="HSM",(IF($E8="3ST",Tables!$E$79,(IF($E8="4ST",Tables!$H$79,Tables!$K$79)))/100),(IF($E8="3ST",Tables!$N$79,(IF($E8="4ST",+Tables!$Q$79,+Tables!$T$79)))/100)) -> 0.827 | DO8: 0.3008238965 | DP8: 0.065082093 | DQ8: 0.1496888139 | DR8: 0.03398731523 | DS8: 0.04845000257 | DT8: 0.5980321212 | DU8: =IF(Inputs!$B$3="HSM",(IF($E8="3ST",Tables!$F$74,(IF($E8="4ST",Tables!$I$74,Tables!$L$74)))/100),(IF($E8="3ST",Tables!$O$74,(IF($E8="4ST",+Tables!$R$74,+Tables!$U$74)))/100)) -> 0.181 | DV8: =IF(Inputs!$B$3="HSM",(IF($E8="3ST",Tables!$F$75,(IF($E8="4ST",Tables!$I$75,Tables!$L$75)))/100),(IF($E8="3ST",Tables!$O$75,(IF($E8="4ST",+Tables!$R$75,+Tables!$U$75)))/100)) -> 0.026 | DW8: =IF(Inputs!$B$3="HSM",(IF($E8="3ST",Tables!$F$76,(IF($E8="4ST",Tables!$I$76,Tables!$L$76)))/100),(IF($E8="3ST",Tables!$O$76,(IF($E8="4ST",+Tables!$R$76,+Tables!$U$76)))/100)) -> 0.174 | DX8: =IF(Inputs!$B$3="HSM",(IF($E8="3ST",Tables!$F$77,(IF($E8="4ST",Tables!$I$77,Tables!$L$77)))/100),(IF($E8="3ST",Tables!$O$77,(IF($E8="4ST",+Tables!$R$77,+Tables!$U$77)))/100)) -> 0.083 | DY8: =IF(Inputs!$B$3="HSM",(IF($E8="3ST",Tables!$F$78,(IF($E8="4ST",Tables!$I$78,Tables!$L$78)))/100),(IF($E8="3ST",Tables!$O$78,(IF($E8="4ST",+Tables!$R$78,+Tables!$U$78)))/100)) -> 0.098 | DZ8: =IF(Inputs!$B$3="HSM",(IF($E8="3ST",Tables!$F$79,(IF($E8="4ST",Tables!$I$79,Tables!$L$79)))/100),(IF($E8="3ST",Tables!$O$79,(IF($E8="4ST",+Tables!$R$79,+Tables!$U$79)))/100)) -> 0.562 | EA8: 0.4260800003 | EB8: 0.06120486193 | EC8: 0.4096017683 | ED8: 0.1953847515 | EE8: 0.2306952488 | EF8: 1.322966631 | EG8: 1 | EH8: 0.235 | EI8: 0.765 | EJ8: 2.354033151 | EK8: 0.7231343667 | EL8: 3.077167518
A9: 5 | B9: Orange | C9: Jaakko | D9: Heritage County | E9: 4ST | F9: 2750 | G9: 2500 | H9: N | I9: 0 | K9: 0 | L9: 0 | M9: NP | N9: N/A (1.000) | O9: N/A (1.000) | P9: N/A (1.000) | Q9: 1 | R9: 1 | S9: =AVERAGE(INDIRECT(ADDRESS(MATCH(sYear,'Calibration Factors'!$A:$A,0),CHOOSE(MATCH(E9,{"3ST","4ST","4SG"},0),14,18,20),,,"Calibration Factors")&":"&ADDRESS(MATCH(eYear,'Calibration Factors'!$A:$A,0),CHOOSE(MATCH(E9,{"3ST","4ST","4SG"},0),14,18,20)))) -> 1.6480646 | T9: =5/5 -> 1 | U9: 0.24 | V9: 0.4908092715 | W9: 2.630818764 | X9: -1.630818764 | Y9: 4.484605205 | Z9: 1.018553545 | AA9: 1 | AB9: =IF($E9="3ST",(IF($K9=0,1,(HLOOKUP($K9,Tables!$AC$20:$AF$26,3,FALSE)))),(IF($E9="4ST",(IF($K9=0,1,(HLOOKUP($K9,Tables!$AC$20:$AF$26,5,FALSE)))),(IF($K9=0,1,(HLOOKUP($K9,Tables!$AC$20:$AF$26,7,FALSE))))))) -> 1 | AC9: =IF($E9="3ST",(IF($L9=0,1,(HLOOKUP($L9,Tables!$AC$36:$AF$42,3,FALSE)))),(IF($E9="4ST",(IF($L9=0,1,(HLOOKUP($L9,Tables!$AC$36:$AF$42,5,FALSE)))),(IF($L9=0,1,(HLOOKUP($L9,Tables!$AC$36:$AF$42,7,FALSE))))))) -> 1 | AD9: =IF(($M9="NP"),1,(1-0.38*(IF(Inputs!$B$3="HSM",(VLOOKUP( $E9,Tables!$B$97:$F$99,4,FALSE)),(VLOOKUP($E9,Tables!$B$97:$H$99,6,FALSE)))))) -> 1 | AE9: =OFFSET(Tables!$AO$1,MATCH(N9,Tables!$AO:$AO,0)-1,1) -> 1 | AF9: =OFFSET(Tables!$AO$1,MATCH(O9,Tables!$AO:$AO,0)-1,1) -> 1 | AG9: =OFFSET(Tables!$AO$1,MATCH(P9,Tables!$AO:$AO,0)-1,1) -> 1 | AH9: 1 | AI9: 1 | AJ9: 2.622903161 | AK9: 0.24 | AL9: =IF($E9="3ST",IF(Inputs!$B$3="HSM",Tables!$E$55,Tables!$K$55),(IF($E9="4ST",(IF(Inputs!$B$3="HSM",Tables!$G$55,Tables!$M$55)),(IF(Inputs!$B$3="HSM",Tables!$I$55,Tables!$O$55)))))/100 -> 1 | AM9: 2.622903161 | AN9: 1 | AO9: =IF(Inputs!$B$3<>"HSM",$S9,$R9) -> 1.6480646 | AP9: 4.322713849 | AQ9: =IF($E9="3ST",IF(Inputs!$B$3="HSM",Tables!$E$53,Tables!$K$53),(IF($E9="4ST",(IF(Inputs!$B$3="HSM",Tables!$G$53,Tables!$M$53)),(IF(Inputs!$B$3="HSM",Tables!$I$53,Tables!$O$53)))))/100 -> 0.235 | AR9: 0.6163822428 | AS9: 1 | AT9: =IF(Inputs!$B$3<>"HSM",$S9,$R9) -> 1.6480646 | AU9: 1.015837754 | AV9: =IF($E9="3ST",IF(Inputs!$B$3="HSM",Tables!$E$54,Tables!$K$54),(IF($E9="4ST",(IF(Inputs!$B$3="HSM",Tables!$G$54,Tables!$M$54)),(IF(Inputs!$B$3="HSM",Tables!$I$54,Tables!$O$54)))))/100 -> 0.765 | AW9: 2.006520918 | AX9: 1 | AY9: =IF(Inputs!$B$3<>"HSM",$S9,$R9) -> 1.6480646 | AZ9: 3.306876094 | BA9: =IF(Inputs!$B$3="HSM",(IF($E9="3ST",Tables!$G$80,(IF($E9="4ST",Tables!$J$80,Tables!$M$80)))/100),(IF($E9="3ST",Tables!$P$80,(IF($E9="4ST",+Tables!$S$80,+Tables!$V$80)))/100)) -> 1 | BB9: 4.322713849 | BC9: =IF(Inputs!$B$3="HSM",(IF($E9="3ST",Tables!$E$80,(IF($E9="4ST",Tables!$H$80,Tables!$K$80)))/100),(IF($E9="3ST",Tables!$N$80,(IF($E9="4ST",+Tables!$Q$80,+Tables!$T$80)))/100)) -> 1 | BD9: 1.015837754 | BE9: =IF(Inputs!$B$3="HSM",(IF($E9="3ST",Tables!$F$80,(IF($E9="4ST",Tables!$I$80,Tables!$L$80)))/100),(IF($E9="3ST",Tables!$O$80,(IF($E9="4ST",+Tables!$R$80,+Tables!$U$80)))/100)) -> 1 | BF9: 3.306876094 | BG9: =IF(Inputs!$B$3="HSM",(IF($E9="3ST",Tables!$G$66,(IF($E9="4ST",Tables!$J$66,Tables!$M$66)))/100),(IF($E9="3ST",Tables!$P$66,(IF($E9="4ST",+Tables!$S$66,+Tables!$V$66)))/100)) -> 0.223 | BH9: =IF(Inputs!$B$3="HSM",(IF($E9="3ST",Tables!$G$67,(IF($E9="4ST",Tables!$J$67,Tables!$M$67)))/100),(IF($E9="3ST",Tables!$P$67,(IF($E9="4ST",+Tables!$S$67,+Tables!$V$67)))/100)) -> 0.004 | BI9: =IF(Inputs!$B$3="HSM",(IF($E9="3ST",Tables!$G$68,(IF($E9="4ST",Tables!$J$68,Tables!$M$68)))/100),(IF($E9="3ST",Tables!$P$68,(IF($E9="4ST",+Tables!$S$68,+Tables!$V$68)))/100)) -> 0.004 | BJ9: =IF(Inputs!$B$3="HSM",(IF($E9="3ST",Tables!$G$69,(IF($E9="4ST",Tables!$J$69,Tables!$M$69)))/100),(IF($E9="3ST",Tables!$P$69,(IF($E9="4ST",+Tables!$S$69,+Tables!$V$69)))/100)) -> 0.018 | BK9: =IF(Inputs!$B$3="HSM",(IF($E9="3ST",Tables!$G$70,(IF($E9="4ST",Tables!$J$70,Tables!$M$70)))/100),(IF($E9="3ST",Tables!$P$70,(IF($E9="4ST",+Tables!$S$70,+Tables!$V$70)))/100)) -> 0.11 | BL9: =IF(Inputs!$B$3="HSM",(IF($E9="3ST",Tables!$G$71,(IF($E9="4ST",Tables!$J$71,Tables!$M$71)))/100),(IF($E9="3ST",Tables!$P$71,(IF($E9="4ST",+Tables!$S$71,+Tables!$V$71)))/100)) -> 0.016 | BM9: =IF(Inputs!$B$3="HSM",(IF($E9="3ST",Tables!$G$72,(IF($E9="4ST",Tables!$J$72,Tables!$M$72)))/100),(IF($E9="3ST",Tables!$P$72,(IF($E9="4ST",+Tables!$S$72,+Tables!$V$72)))/100)) -> 0.375 | BN9: 0.9639651883 | BO9: 0.0172908554 | BP9: 0.0172908554 | BQ9: 0.07780884928 | BR9: 0.4754985234 | BS9: 0.06916342158 | BT9: 1.621017693 | BU9: =IF(Inputs!$B$3="HSM",(IF($E9="3ST",Tables!$E$66,(IF($E9="4ST",Tables!$H$66,Tables!$K$66)))/100),(IF($E9="3ST",Tables!$N$66,(IF($E9="4ST",+Tables!$Q$66,+Tables!$T$66)))/100)) -> 0.015 | BV9: =IF(Inputs!$B$3="HSM",(IF($E9="3ST",Tables!$E$67,(IF($E9="4ST",Tables!$H$67,Tables!$K$67)))/100),(IF($E9="3ST",Tables!$N$67,(IF($E9="4ST",+Tables!$Q$67,+Tables!$T$67)))/100)) -> 0.012 | BW9: =IF(Inputs!$B$3="HSM",(IF($E9="3ST",Tables!$E$68,(IF($E9="4ST",Tables!$H$68,Tables!$K$68)))/100),(IF($E9="3ST",Tables!$N$68,(IF($E9="4ST",+Tables!$Q$68,+Tables!$T$68)))/100)) -> 0.015 | BX9: =IF(Inputs!$B$3="HSM",(IF($E9="3ST",Tables!$E$69,(IF($E9="4ST",Tables!$H$69,Tables!$K$69)))/100),(IF($E9="3ST",Tables!$N$69,(IF($E9="4ST",+Tables!$Q$69,+Tables!$T$69)))/100)) -> 0.031 | BY9: =IF(Inputs!$B$3="HSM",(IF($E9="3ST",Tables!$E$70,(IF($E9="4ST",Tables!$H$70,Tables!$K$70)))/100),(IF($E9="3ST",Tables!$N$70,(IF($E9="4ST",+Tables!$Q$70,+Tables!$T$70)))/100)) -> 0.085 | BZ9: =IF(Inputs!$B$3="HSM",(IF($E9="3ST",Tables!$E$71,(IF($E9="4ST",Tables!$H$71,Tables!$K$71)))/100),(IF($E9="3ST",Tables!$N$71,(IF($E9="4ST",+Tables!$Q$71,+Tables!$T$71)))/100)) -> 0.015 | CA9: =IF(Inputs!$B$3="HSM",(IF($E9="3ST",Tables!$E$72,(IF($E9="4ST",Tables!$H$72,Tables!$K$72)))/100),(IF($E9="3ST",Tables!$N$72,(IF($E9="4ST",+Tables!$Q$72,+Tables!$T$72)))/100)) -> 0.173 | CB9: 0.01523756632 | CC9: 0.01219005305 | CD9: 0.01523756632 | CE9: 0.03149097039 | CF9: 0.08634620913 | CG9: 0.01523756632 | CH9: 0.1757399315 | CI9: =IF(Inputs!$B$3="HSM",(IF($E9="3ST",Tables!$F$66,(IF($E9="4ST",Tables!$I$66,Tables!$L$66)))/100),(IF($E9="3ST",Tables!$O$66,(IF($E9="4ST",+Tables!$R$66,+Tables!$U$66)))/100)) -> 0.288 | CJ9: =IF(Inputs!$B$3="HSM",(IF($E9="3ST",Tables!$F$67,(IF($E9="4ST",Tables!$I$67,Tables!$L$67)))/100),(IF($E9="3ST",Tables!$O$67,(IF($E9="4ST",+Tables!$R$67,+Tables!$U$67)))/100)) -> 0.001 | CK9: =IF(Inputs!$B$3="HSM",(IF($E9="3ST",Tables!$F$68,(IF($E9="4ST",Tables!$I$68,Tables!$L$68)))/100),(IF($E9="3ST",Tables!$O$68,(IF($E9="4ST",+Tables!$R$68,+Tables!$U$68)))/100)) -> 0 | CL9: =IF(Inputs!$B$3="HSM",(IF($E9="3ST",Tables!$F$69,(IF($E9="4ST",Tables!$I$69,Tables!$L$69)))/100),(IF($E9="3ST",Tables!$O$69,(IF($E9="4ST",+Tables!$R$69,+Tables!$U$69)))/100)) -> 0.014 | CM9: =IF(Inputs!$B$3="HSM",(IF($E9="3ST",Tables!$F$70,(IF($E9="4ST",Tables!$I$70,Tables!$L$70)))/100),(IF($E9="3ST",Tables!$O$70,(IF($E9="4ST",+Tables!$R$70,+Tables!$U$70)))/100)) -> 0.118 | CN9: =IF(Inputs!$B$3="HSM",(IF($E9="3ST",Tables!$F$71,(IF($E9="4ST",Tables!$I$71,Tables!$L$71)))/100),(IF($E9="3ST",Tables!$O$71,(IF($E9="4ST",+Tables!$R$71,+Tables!$U$71)))/100)) -> 0.017 | CO9: =IF(Inputs!$B$3="HSM",(IF($E9="3ST",Tables!$F$72,(IF($E9="4ST",Tables!$I$72,Tables!$L$72)))/100),(IF($E9="3ST",Tables!$O$72,(IF($E9="4ST",+Tables!$R$72,+Tables!$U$72)))/100)) -> 0.438 | CP9: 0.9523803152 | CQ9: 0.003306876094 | CR9: 0 | CS9: 0.04629626532 | CT9: 0.3902113791 | CU9: 0.0562168936 | CV9: 1.448411729 | CW9: =IF(Inputs!$B$3="HSM",(IF($E9="3ST",Tables!$G$74,(IF($E9="4ST",Tables!$J$74,Tables!$M$74)))/100),(IF($E9="3ST",Tables!$P$74,(IF($E9="4ST",+Tables!$S$74,+Tables!$V$74)))/100)) -> 0.238 | CX9: =IF(Inputs!$B$3="HSM",(IF($E9="3ST",Tables!$G$75,(IF($E9="4ST",Tables!$J$75,Tables!$M$75)))/100),(IF($E9="3ST",Tables!$P$75,(IF($E9="4ST",+Tables!$S$75,+Tables!$V$75)))/100)) -> 0.041 | CY9: =IF(Inputs!$B$3="HSM",(IF($E9="3ST",Tables!$G$76,(IF($E9="4ST",Tables!$J$76,Tables!$M$76)))/100),(IF($E9="3ST",Tables!$P$76,(IF($E9="4ST",+Tables!$S$76,+Tables!$V$76)))/100)) -> 0.181 | CZ9: =IF(Inputs!$B$3="HSM",(IF($E9="3ST",Tables!$G$77,(IF($E9="4ST",Tables!$J$77,Tables!$M$77)))/100),(IF($E9="3ST",Tables!$P$77,(IF($E9="4ST",+Tables!$S$77,+Tables!$V$77)))/100)) -> 0.074 | DA9: =IF(Inputs!$B$3="HSM",(IF($E9="3ST",Tables!$G$78,(IF($E9="4ST",Tables!$J$78,Tables!$M$78)))/100),(IF($E9="3ST",Tables!$P$78,(IF($E9="4ST",+Tables!$S$78,+Tables!$V$78)))/100)) -> 0.091 | DB9: =IF(Inputs!$B$3="HSM",(IF($E9="3ST",Tables!$G$79,(IF($E9="4ST",Tables!$J$79,Tables!$M$79)))/100),(IF($E9="3ST",Tables!$P$79,(IF($E9="4ST",+Tables!$S$79,+Tables!$V$79)))/100)) -> 0.625 | DC9: 1.028805896 | DD9: 0.1772312678 | DE9: 0.7824112066 | DF9: 0.3198808248 | DG9: 0.3933669602 | DH9: 2.701696156 | DI9: =IF(Inputs!$B$3="HSM",(IF($E9="3ST",Tables!$E$74,(IF($E9="4ST",Tables!$H$74,Tables!$K$74)))/100),(IF($E9="3ST",Tables!$N$74,(IF($E9="4ST",+Tables!$Q$74,+Tables!$T$74)))/100)) -> 0.416 | DJ9: =IF(Inputs!$B$3="HSM",(IF($E9="3ST",Tables!$E$75,(IF($E9="4ST",Tables!$H$75,Tables!$K$75)))/100),(IF($E9="3ST",Tables!$N$75,(IF($E9="4ST",+Tables!$Q$75,+Tables!$T$75)))/100)) -> 0.09 | DK9: =IF(Inputs!$B$3="HSM",(IF($E9="3ST",Tables!$E$76,(IF($E9="4ST",Tables!$H$76,Tables!$K$76)))/100),(IF($E9="3ST",Tables!$N$76,(IF($E9="4ST",+Tables!$Q$76,+Tables!$T$76)))/100)) -> 0.207 | DL9: =IF(Inputs!$B$3="HSM",(IF($E9="3ST",Tables!$E$77,(IF($E9="4ST",Tables!$H$77,Tables!$K$77)))/100),(IF($E9="3ST",Tables!$N$77,(IF($E9="4ST",+Tables!$Q$77,+Tables!$T$77)))/100)) -> 0.047 | DM9: =IF(Inputs!$B$3="HSM",(IF($E9="3ST",Tables!$E$78,(IF($E9="4ST",Tables!$H$78,Tables!$K$78)))/100),(IF($E9="3ST",Tables!$N$78,(IF($E9="4ST",+Tables!$Q$78,+Tables!$T$78)))/100)) -> 0.067 | DN9: =IF(Inputs!$B$3="HSM",(IF($E9="3ST",Tables!$E$79,(IF($E9="4ST",Tables!$H$79,Tables!$K$79)))/100),(IF($E9="3ST",Tables!$N$79,(IF($E9="4ST",+Tables!$Q$79,+Tables!$T$79)))/100)) -> 0.827 | DO9: 0.4225885059 | DP9: 0.0914253979 | DQ9: 0.2102784152 | DR9: 0.04774437446 | DS9: 0.06806112955 | DT9: 0.840097823 | DU9: =IF(Inputs!$B$3="HSM",(IF($E9="3ST",Tables!$F$74,(IF($E9="4ST",Tables!$I$74,Tables!$L$74)))/100),(IF($E9="3ST",Tables!$O$74,(IF($E9="4ST",+Tables!$R$74,+Tables!$U$74)))/100)) -> 0.181 | DV9: =IF(Inputs!$B$3="HSM",(IF($E9="3ST",Tables!$F$75,(IF($E9="4ST",Tables!$I$75,Tables!$L$75)))/100),(IF($E9="3ST",Tables!$O$75,(IF($E9="4ST",+Tables!$R$75,+Tables!$U$75)))/100)) -> 0.026 | DW9: =IF(Inputs!$B$3="HSM",(IF($E9="3ST",Tables!$F$76,(IF($E9="4ST",Tables!$I$76,Tables!$L$76)))/100),(IF($E9="3ST",Tables!$O$76,(IF($E9="4ST",+Tables!$R$76,+Tables!$U$76)))/100)) -> 0.174 | DX9: =IF(Inputs!$B$3="HSM",(IF($E9="3ST",Tables!$F$77,(IF($E9="4ST",Tables!$I$77,Tables!$L$77)))/100),(IF($E9="3ST",Tables!$O$77,(IF($E9="4ST",+Tables!$R$77,+Tables!$U$77)))/100)) -> 0.083 | DY9: =IF(Inputs!$B$3="HSM",(IF($E9="3ST",Tables!$F$78,(IF($E9="4ST",Tables!$I$78,Tables!$L$78)))/100),(IF($E9="3ST",Tables!$O$78,(IF($E9="4ST",+Tables!$R$78,+Tables!$U$78)))/100)) -> 0.098 | DZ9: =IF(Inputs!$B$3="HSM",(IF($E9="3ST",Tables!$F$79,(IF($E9="4ST",Tables!$I$79,Tables!$L$79)))/100),(IF($E9="3ST",Tables!$O$79,(IF($E9="4ST",+Tables!$R$79,+Tables!$U$79)))/100)) -> 0.562 | EA9: 0.5985445731 | EB9: 0.08597877845 | EC9: 0.5753964404 | ED9: 0.2744707158 | EE9: 0.3240738572 | EF9: 1.858464365 | EG9: 1 | EH9: 0.235 | EI9: 0.765 | EJ9: 3.306876094 | EK9: 1.015837754 | EL9: 4.322713849
A10: 6 | B10: Blueberry | C10: Matti | D10: Heritage County | E10: 3ST | F10: 1800 | G10: 700 | H10: N | I10: 8 | K10: 0 | L10: 0 | M10: NP | N10: N/A (1.000) | O10: N/A (1.000) | P10: N/A (1.000) | Q10: 1 | R10: 1 | S10: =AVERAGE(INDIRECT(ADDRESS(MATCH(sYear,'Calibration Factors'!$A:$A,0),CHOOSE(MATCH(E10,{"3ST","4ST","4SG"},0),14,18,20),,,"Calibration Factors")&":"&ADDRESS(MATCH(eYear,'Calibration Factors'!$A:$A,0),CHOOSE(MATCH(E10,{"3ST","4ST","4SG"},0),14,18,20)))) -> 1.8383938 | T10: =9/5 -> 1.8 | U10: 0.54 | V10: 0.669026727 | W10: 1.20866536 | X10: 0.59133464 | Y10: 0.4532159173 | Z10: 0.7033552419 | AA10: 1.032517505 | AB10: =IF($E10="3ST",(IF($K10=0,1,(HLOOKUP($K10,Tables!$AC$20:$AF$26,3,FALSE)))),(IF($E10="4ST",(IF($K10=0,1,(HLOOKUP($K10,Tables!$AC$20:$AF$26,5,FALSE)))),(IF($K10=0,1,(HLOOKUP($K10,Tables!$AC$20:$AF$26,7,FALSE))))))) -> 1 | AC10: =IF($E10="3ST",(IF($L10=0,1,(HLOOKUP($L10,Tables!$AC$36:$AF$42,3,FALSE)))),(IF($E10="4ST",(IF($L10=0,1,(HLOOKUP($L10,Tables!$AC$36:$AF$42,5,FALSE)))),(IF($L10=0,1,(HLOOKUP($L10,Tables!$AC$36:$AF$42,7,FALSE))))))) -> 1 | AD10: =IF(($M10="NP"),1,(1-0.38*(IF(Inputs!$B$3="HSM",(VLOOKUP( $E10,Tables!$B$97:$F$99,4,FALSE)),(VLOOKUP($E10,Tables!$B$97:$H$99,6,FALSE)))))) -> 1 | AE10: =OFFSET(Tables!$AO$1,MATCH(N10,Tables!$AO:$AO,0)-1,1) -> 1 | AF10: =OFFSET(Tables!$AO$1,MATCH(O10,Tables!$AO:$AO,0)-1,1) -> 1 | AG10: =OFFSET(Tables!$AO$1,MATCH(P10,Tables!$AO:$AO,0)-1,1) -> 1 | AH10: 1 | AI10: 1.032517505 | AJ10: 0.4826360157 | AK10: 0.54 | AL10: =IF($E10="3ST",IF(Inputs!$B$3="HSM",Tables!$E$55,Tables!$K$55),(IF($E10="4ST",(IF(Inputs!$B$3="HSM",Tables!$G$55,Tables!$M$55)),(IF(Inputs!$B$3="HSM",Tables!$I$55,Tables!$O$55)))))/100 -> 1 | AM10: 0.4826360157 | AN10: 1.032517505 | AO10: =IF(Inputs!$B$3<>"HSM",$S10,$R10) -> 1.8383938 | AP10: 0.9161270303 | AQ10: =IF($E10="3ST",IF(Inputs!$B$3="HSM",Tables!$E$53,Tables!$K$53),(IF($E10="4ST",(IF(Inputs!$B$3="HSM",Tables!$G$53,Tables!$M$53)),(IF(Inputs!$B$3="HSM",Tables!$I$53,Tables!$O$53)))))/100 -> 0.186 | AR10: 0.08977029892 | AS10: 1.032517505 | AT10: =IF(Inputs!$B$3<>"HSM",$S10,$R10) -> 1.8383938 | AU10: 0.1703996276 | AV10: =IF($E10="3ST",IF(Inputs!$B$3="HSM",Tables!$E$54,Tables!$K$54),(IF($E10="4ST",(IF(Inputs!$B$3="HSM",Tables!$G$54,Tables!$M$54)),(IF(Inputs!$B$3="HSM",Tables!$I$54,Tables!$O$54)))))/100 -> 0.814 | AW10: 0.3928657168 | AX10: 1.032517505 | AY10: =IF(Inputs!$B$3<>"HSM",$S10,$R10) -> 1.8383938 | AZ10: 0.7457274027 | BA10: =IF(Inputs!$B$3="HSM",(IF($E10="3ST",Tables!$G$80,(IF($E10="4ST",Tables!$J$80,Tables!$M$80)))/100),(IF($E10="3ST",Tables!$P$80,(IF($E10="4ST",+Tables!$S$80,+Tables!$V$80)))/100)) -> 1 | BB10: 0.9161270303 | BC10: =IF(Inputs!$B$3="HSM",(IF($E10="3ST",Tables!$E$80,(IF($E10="4ST",Tables!$H$80,Tables!$K$80)))/100),(IF($E10="3ST",Tables!$N$80,(IF($E10="4ST",+Tables!$Q$80,+Tables!$T$80)))/100)) -> 1 | BD10: 0.1703996276 | BE10: =IF(Inputs!$B$3="HSM",(IF($E10="3ST",Tables!$F$80,(IF($E10="4ST",Tables!$I$80,Tables!$L$80)))/100),(IF($E10="3ST",Tables!$O$80,(IF($E10="4ST",+Tables!$R$80,+Tables!$U$80)))/100)) -> 1 | BF10: 0.7457274027 | BG10: =IF(Inputs!$B$3="HSM",(IF($E10="3ST",Tables!$G$66,(IF($E10="4ST",Tables!$J$66,Tables!$M$66)))/100),(IF($E10="3ST",Tables!$P$66,(IF($E10="4ST",+Tables!$S$66,+Tables!$V$66)))/100)) -> 0.328 | BH10: =IF(Inputs!$B$3="HSM",(IF($E10="3ST",Tables!$G$67,(IF($E10="4ST",Tables!$J$67,Tables!$M$67)))/100),(IF($E10="3ST",Tables!$P$67,(IF($E10="4ST",+Tables!$S$67,+Tables!$V$67)))/100)) -> 0.003 | BI10: =IF(Inputs!$B$3="HSM",(IF($E10="3ST",Tables!$G$68,(IF($E10="4ST",Tables!$J$68,Tables!$M$68)))/100),(IF($E10="3ST",Tables!$P$68,(IF($E10="4ST",+Tables!$S$68,+Tables!$V$68)))/100)) -> 0.003 | BJ10: =IF(Inputs!$B$3="HSM",(IF($E10="3ST",Tables!$G$69,(IF($E10="4ST",Tables!$J$69,Tables!$M$69)))/100),(IF($E10="3ST",Tables!$P$69,(IF($E10="4ST",+Tables!$S$69,+Tables!$V$69)))/100)) -> 0.039 | BK10: =IF(Inputs!$B$3="HSM",(IF($E10="3ST",Tables!$G$70,(IF($E10="4ST",Tables!$J$70,Tables!$M$70)))/100),(IF($E10="3ST",Tables!$P$70,(IF($E10="4ST",+Tables!$S$70,+Tables!$V$70)))/100)) -> 0.179 | BL10: =IF(Inputs!$B$3="HSM",(IF($E10="3ST",Tables!$G$71,(IF($E10="4ST",Tables!$J$71,Tables!$M$71)))/100),(IF($E10="3ST",Tables!$P$71,(IF($E10="4ST",+Tables!$S$71,+Tables!$V$71)))/100)) -> 0.026 | BM10: =IF(Inputs!$B$3="HSM",(IF($E10="3ST",Tables!$G$72,(IF($E10="4ST",Tables!$J$72,Tables!$M$72)))/100),(IF($E10="3ST",Tables!$P$72,(IF($E10="4ST",+Tables!$S$72,+Tables!$V$72)))/100)) -> 0.578 | BN10: 0.3004896659 | BO10: 0.002748381091 | BP10: 0.002748381091 | BQ10: 0.03572895418 | BR10: 0.1639867384 | BS10: 0.02381930279 | BT10: 0.5295214235 | BU10: =IF(Inputs!$B$3="HSM",(IF($E10="3ST",Tables!$E$66,(IF($E10="4ST",Tables!$H$66,Tables!$K$66)))/100),(IF($E10="3ST",Tables!$N$66,(IF($E10="4ST",+Tables!$Q$66,+Tables!$T$66)))/100)) -> 0.039 | BV10: =IF(Inputs!$B$3="HSM",(IF($E10="3ST",Tables!$E$67,(IF($E10="4ST",Tables!$H$67,Tables!$K$67)))/100),(IF($E10="3ST",Tables!$N$67,(IF($E10="4ST",+Tables!$Q$67,+Tables!$T$67)))/100)) -> 0.01 | BW10: =IF(Inputs!$B$3="HSM",(IF($E10="3ST",Tables!$E$68,(IF($E10="4ST",Tables!$H$68,Tables!$K$68)))/100),(IF($E10="3ST",Tables!$N$68,(IF($E10="4ST",+Tables!$Q$68,+Tables!$T$68)))/100)) -> 0.015 | BX10: =IF(Inputs!$B$3="HSM",(IF($E10="3ST",Tables!$E$69,(IF($E10="4ST",Tables!$H$69,Tables!$K$69)))/100),(IF($E10="3ST",Tables!$N$69,(IF($E10="4ST",+Tables!$Q$69,+Tables!$T$69)))/100)) -> 0.096 | BY10: =IF(Inputs!$B$3="HSM",(IF($E10="3ST",Tables!$E$70,(IF($E10="4ST",Tables!$H$70,Tables!$K$70)))/100),(IF($E10="3ST",Tables!$N$70,(IF($E10="4ST",+Tables!$Q$70,+Tables!$T$70)))/100)) -> 0.188 | BZ10: =IF(Inputs!$B$3="HSM",(IF($E10="3ST",Tables!$E$71,(IF($E10="4ST",Tables!$H$71,Tables!$K$71)))/100),(IF($E10="3ST",Tables!$N$71,(IF($E10="4ST",+Tables!$Q$71,+Tables!$T$71)))/100)) -> 0.029 | CA10: =IF(Inputs!$B$3="HSM",(IF($E10="3ST",Tables!$E$72,(IF($E10="4ST",Tables!$H$72,Tables!$K$72)))/100),(IF($E10="3ST",Tables!$N$72,(IF($E10="4ST",+Tables!$Q$72,+Tables!$T$72)))/100)) -> 0.377 | CB10: 0.006645585478 | CC10: 0.001703996276 | CD10: 0.002555994415 | CE10: 0.01635836425 | CF10: 0.03203513 | CG10: 0.004941589201 | CH10: 0.06424065962 | CI10: =IF(Inputs!$B$3="HSM",(IF($E10="3ST",Tables!$F$66,(IF($E10="4ST",Tables!$I$66,Tables!$L$66)))/100),(IF($E10="3ST",Tables!$O$66,(IF($E10="4ST",+Tables!$R$66,+Tables!$U$66)))/100)) -> 0.394 | CJ10: =IF(Inputs!$B$3="HSM",(IF($E10="3ST",Tables!$F$67,(IF($E10="4ST",Tables!$I$67,Tables!$L$67)))/100),(IF($E10="3ST",Tables!$O$67,(IF($E10="4ST",+Tables!$R$67,+Tables!$U$67)))/100)) -> 0.001 | CK10: =IF(Inputs!$B$3="HSM",(IF($E10="3ST",Tables!$F$68,(IF($E10="4ST",Tables!$I$68,Tables!$L$68)))/100),(IF($E10="3ST",Tables!$O$68,(IF($E10="4ST",+Tables!$R$68,+Tables!$U$68)))/100)) -> 0 | CL10: =IF(Inputs!$B$3="HSM",(IF($E10="3ST",Tables!$F$69,(IF($E10="4ST",Tables!$I$69,Tables!$L$69)))/100),(IF($E10="3ST",Tables!$O$69,(IF($E10="4ST",+Tables!$R$69,+Tables!$U$69)))/100)) -> 0.026 | CM10: =IF(Inputs!$B$3="HSM",(IF($E10="3ST",Tables!$F$70,(IF($E10="4ST",Tables!$I$70,Tables!$L$70)))/100),(IF($E10="3ST",Tables!$O$70,(IF($E10="4ST",+Tables!$R$70,+Tables!$U$70)))/100)) -> 0.177 | CN10: =IF(Inputs!$B$3="HSM",(IF($E10="3ST",Tables!$F$71,(IF($E10="4ST",Tables!$I$71,Tables!$L$71)))/100),(IF($E10="3ST",Tables!$O$71,(IF($E10="4ST",+Tables!$R$71,+Tables!$U$71)))/100)) -> 0.025 | CO10: =IF(Inputs!$B$3="HSM",(IF($E10="3ST",Tables!$F$72,(IF($E10="4ST",Tables!$I$72,Tables!$L$72)))/100),(IF($E10="3ST",Tables!$O$72,(IF($E10="4ST",+Tables!$R$72,+Tables!$U$72)))/100)) -> 0.623 | CP10: 0.2938165967 | CQ10: 0.0007457274027 | CR10: 0 | CS10: 0.01938891247 | CT10: 0.1319937503 | CU10: 0.01864318507 | CV10: 0.4645881719 | CW10: =IF(Inputs!$B$3="HSM",(IF($E10="3ST",Tables!$G$74,(IF($E10="4ST",Tables!$J$74,Tables!$M$74)))/100),(IF($E10="3ST",Tables!$P$74,(IF($E10="4ST",+Tables!$S$74,+Tables!$V$74)))/100)) -> 0.094 | CX10: =IF(Inputs!$B$3="HSM",(IF($E10="3ST",Tables!$G$75,(IF($E10="4ST",Tables!$J$75,Tables!$M$75)))/100),(IF($E10="3ST",Tables!$P$75,(IF($E10="4ST",+Tables!$S$75,+Tables!$V$75)))/100)) -> 0.029 | CY10: =IF(Inputs!$B$3="HSM",(IF($E10="3ST",Tables!$G$76,(IF($E10="4ST",Tables!$J$76,Tables!$M$76)))/100),(IF($E10="3ST",Tables!$P$76,(IF($E10="4ST",+Tables!$S$76,+Tables!$V$76)))/100)) -> 0.177 | CZ10: =IF(Inputs!$B$3="HSM",(IF($E10="3ST",Tables!$G$77,(IF($E10="4ST",Tables!$J$77,Tables!$M$77)))/100),(IF($E10="3ST",Tables!$P$77,(IF($E10="4ST",+Tables!$S$77,+Tables!$V$77)))/100)) -> 0.064 | DA10: =IF(Inputs!$B$3="HSM",(IF($E10="3ST",Tables!$G$78,(IF($E10="4ST",Tables!$J$78,Tables!$M$78)))/100),(IF($E10="3ST",Tables!$P$78,(IF($E10="4ST",+Tables!$S$78,+Tables!$V$78)))/100)) -> 0.058 | DB10: =IF(Inputs!$B$3="HSM",(IF($E10="3ST",Tables!$G$79,(IF($E10="4ST",Tables!$J$79,Tables!$M$79)))/100),(IF($E10="3ST",Tables!$P$79,(IF($E10="4ST",+Tables!$S$79,+Tables!$V$79)))/100)) -> 0.422 | DC10: 0.08611594085 | DD10: 0.02656768388 | DE10: 0.1621544844 | DF10: 0.05863212994 | DG10: 0.05313536776 | DH10: 0.3866056068 | DI10: =IF(Inputs!$B$3="HSM",(IF($E10="3ST",Tables!$E$74,(IF($E10="4ST",Tables!$H$74,Tables!$K$74)))/100),(IF($E10="3ST",Tables!$N$74,(IF($E10="4ST",+Tables!$Q$74,+Tables!$T$74)))/100)) -> 0.167 | DJ10: =IF(Inputs!$B$3="HSM",(IF($E10="3ST",Tables!$E$75,(IF($E10="4ST",Tables!$H$75,Tables!$K$75)))/100),(IF($E10="3ST",Tables!$N$75,(IF($E10="4ST",+Tables!$Q$75,+Tables!$T$75)))/100)) -> 0.089 | DK10: =IF(Inputs!$B$3="HSM",(IF($E10="3ST",Tables!$E$76,(IF($E10="4ST",Tables!$H$76,Tables!$K$76)))/100),(IF($E10="3ST",Tables!$N$76,(IF($E10="4ST",+Tables!$Q$76,+Tables!$T$76)))/100)) -> 0.266 | DL10: =IF(Inputs!$B$3="HSM",(IF($E10="3ST",Tables!$E$77,(IF($E10="4ST",Tables!$H$77,Tables!$K$77)))/100),(IF($E10="3ST",Tables!$N$77,(IF($E10="4ST",+Tables!$Q$77,+Tables!$T$77)))/100)) -> 0.045 | DM10: =IF(Inputs!$B$3="HSM",(IF($E10="3ST",Tables!$E$78,(IF($E10="4ST",Tables!$H$78,Tables!$K$78)))/100),(IF($E10="3ST",Tables!$N$78,(IF($E10="4ST",+Tables!$Q$78,+Tables!$T$78)))/100)) -> 0.056 | DN10: =IF(Inputs!$B$3="HSM",(IF($E10="3ST",Tables!$E$79,(IF($E10="4ST",Tables!$H$79,Tables!$K$79)))/100),(IF($E10="3ST",Tables!$N$79,(IF($E10="4ST",+Tables!$Q$79,+Tables!$T$79)))/100)) -> 0.623 | DO10: 0.02845673782 | DP10: 0.01516556686 | DQ10: 0.04532630095 | DR10: 0.007667983244 | DS10: 0.009542379148 | DT10: 0.106158968 | DU10: =IF(Inputs!$B$3="HSM",(IF($E10="3ST",Tables!$F$74,(IF($E10="4ST",Tables!$I$74,Tables!$L$74)))/100),(IF($E10="3ST",Tables!$O$74,(IF($E10="4ST",+Tables!$R$74,+Tables!$U$74)))/100)) -> 0.077 | DV10: =IF(Inputs!$B$3="HSM",(IF($E10="3ST",Tables!$F$75,(IF($E10="4ST",Tables!$I$75,Tables!$L$75)))/100),(IF($E10="3ST",Tables!$O$75,(IF($E10="4ST",+Tables!$R$75,+Tables!$U$75)))/100)) -> 0.015 | DW10: =IF(Inputs!$B$3="HSM",(IF($E10="3ST",Tables!$F$76,(IF($E10="4ST",Tables!$I$76,Tables!$L$76)))/100),(IF($E10="3ST",Tables!$O$76,(IF($E10="4ST",+Tables!$R$76,+Tables!$U$76)))/100)) -> 0.157 | DX10: =IF(Inputs!$B$3="HSM",(IF($E10="3ST",Tables!$F$77,(IF($E10="4ST",Tables!$I$77,Tables!$L$77)))/100),(IF($E10="3ST",Tables!$O$77,(IF($E10="4ST",+Tables!$R$77,+Tables!$U$77)))/100)) -> 0.069 | DY10: =IF(Inputs!$B$3="HSM",(IF($E10="3ST",Tables!$F$78,(IF($E10="4ST",Tables!$I$78,Tables!$L$78)))/100),(IF($E10="3ST",Tables!$O$78,(IF($E10="4ST",+Tables!$R$78,+Tables!$U$78)))/100)) -> 0.059 | DZ10: =IF(Inputs!$B$3="HSM",(IF($E10="3ST",Tables!$F$79,(IF($E10="4ST",Tables!$I$79,Tables!$L$79)))/100),(IF($E10="3ST",Tables!$O$79,(IF($E10="4ST",+Tables!$R$79,+Tables!$U$79)))/100)) -> 0.377 | EA10: 0.05742101001 | EB10: 0.01118591104 | EC10: 0.1170792022 | ED10: 0.05145519078 | EE10: 0.04399791676 | EF10: 0.2811392308 | EG10: 1 | EH10: 0.186 | EI10: 0.814 | EJ10: 0.7457274027 | EK10: 0.1703996276 | EL10: 0.9161270303
A11: 7 | B11: Raspberry | C11: Arvo | D11: Heritage County | E11: 3ST | F11: 2350 | G11: 900 | H11: N | I11: 0 | K11: 2 | L11: 0 | M11: NP | N11: N/A (1.000) | O11: N/A (1.000) | P11: N/A (1.000) | Q11: 1 | R11: 1 | S11: =AVERAGE(INDIRECT(ADDRESS(MATCH(sYear,'Calibration Factors'!$A:$A,0),CHOOSE(MATCH(E11,{"3ST","4ST","4SG"},0),14,18,20),,,"Calibration Factors")&":"&ADDRESS(MATCH(eYear,'Calibration Factors'!$A:$A,0),CHOOSE(MATCH(E11,{"3ST","4ST","4SG"},0),14,18,20)))) -> 1.8383938 | T11: =3/5 -> 0.6 | U11: 0.54 | V11: 0.8282377008 | W11: 0.4211357114 | X11: 0.1788642886 | Y11: 0.07964379381 | Z11: 0.4553930778 | AA11: 1 | AB11: =IF($E11="3ST",(IF($K11=0,1,(HLOOKUP($K11,Tables!$AC$20:$AF$26,3,FALSE)))),(IF($E11="4ST",(IF($K11=0,1,(HLOOKUP($K11,Tables!$AC$20:$AF$26,5,FALSE)))),(IF($K11=0,1,(HLOOKUP($K11,Tables!$AC$20:$AF$26,7,FALSE))))))) -> 0.31 | AC11: =IF($E11="3ST",(IF($L11=0,1,(HLOOKUP($L11,Tables!$AC$36:$AF$42,3,FALSE)))),(IF($E11="4ST",(IF($L11=0,1,(HLOOKUP($L11,Tables!$AC$36:$AF$42,5,FALSE)))),(IF($L11=0,1,(HLOOKUP($L11,Tables!$AC$36:$AF$42,7,FALSE))))))) -> 1 | AD11: =IF(($M11="NP"),1,(1-0.38*(IF(Inputs!$B$3="HSM",(VLOOKUP( $E11,Tables!$B$97:$F$99,4,FALSE)),(VLOOKUP($E11,Tables!$B$97:$H$99,6,FALSE)))))) -> 1 | AE11: =OFFSET(Tables!$AO$1,MATCH(N11,Tables!$AO:$AO,0)-1,1) -> 1 | AF11: =OFFSET(Tables!$AO$1,MATCH(O11,Tables!$AO:$AO,0)-1,1) -> 1 | AG11: =OFFSET(Tables!$AO$1,MATCH(P11,Tables!$AO:$AO,0)-1,1) -> 1 | AH11: 1 | AI11: 0.31 | AJ11: 0.673874231 | AK11: 0.54 | AL11: =IF($E11="3ST",IF(Inputs!$B$3="HSM",Tables!$E$55,Tables!$K$55),(IF($E11="4ST",(IF(Inputs!$B$3="HSM",Tables!$G$55,Tables!$M$55)),(IF(Inputs!$B$3="HSM",Tables!$I$55,Tables!$O$55)))))/100 -> 1 | AM11: 0.673874231 | AN11: 0.31 | AO11: =IF(Inputs!$B$3<>"HSM",$S11,$R11) -> 1.8383938 | AP11: 0.3840423246 | AQ11: =IF($E11="3ST",IF(Inputs!$B$3="HSM",Tables!$E$53,Tables!$K$53),(IF($E11="4ST",(IF(Inputs!$B$3="HSM",Tables!$G$53,Tables!$M$53)),(IF(Inputs!$B$3="HSM",Tables!$I$53,Tables!$O$53)))))/100 -> 0.186 | AR11: 0.125340607 | AS11: 0.31 | AT11: =IF(Inputs!$B$3<>"HSM",$S11,$R11) -> 1.8383938 | AU11: 0.07143187237 | AV11: =IF($E11="3ST",IF(Inputs!$B$3="HSM",Tables!$E$54,Tables!$K$54),(IF($E11="4ST",(IF(Inputs!$B$3="HSM",Tables!$G$54,Tables!$M$54)),(IF(Inputs!$B$3="HSM",Tables!$I$54,Tables!$O$54)))))/100 -> 0.814 | AW11: 0.5485336241 | AX11: 0.31 | AY11: =IF(Inputs!$B$3<>"HSM",$S11,$R11) -> 1.8383938 | AZ11: 0.3126104522 | BA11: =IF(Inputs!$B$3="HSM",(IF($E11="3ST",Tables!$G$80,(IF($E11="4ST",Tables!$J$80,Tables!$M$80)))/100),(IF($E11="3ST",Tables!$P$80,(IF($E11="4ST",+Tables!$S$80,+Tables!$V$80)))/100)) -> 1 | BB11: 0.3840423246 | BC11: =IF(Inputs!$B$3="HSM",(IF($E11="3ST",Tables!$E$80,(IF($E11="4ST",Tables!$H$80,Tables!$K$80)))/100),(IF($E11="3ST",Tables!$N$80,(IF($E11="4ST",+Tables!$Q$80,+Tables!$T$80)))/100)) -> 1 | BD11: 0.07143187237 | BE11: =IF(Inputs!$B$3="HSM",(IF($E11="3ST",Tables!$F$80,(IF($E11="4ST",Tables!$I$80,Tables!$L$80)))/100),(IF($E11="3ST",Tables!$O$80,(IF($E11="4ST",+Tables!$R$80,+Tables!$U$80)))/100)) -> 1 | BF11: 0.3126104522 | BG11: =IF(Inputs!$B$3="HSM",(IF($E11="3ST",Tables!$G$66,(IF($E11="4ST",Tables!$J$66,Tables!$M$66)))/100),(IF($E11="3ST",Tables!$P$66,(IF($E11="4ST",+Tables!$S$66,+Tables!$V$66)))/100)) -> 0.328 | BH11: =IF(Inputs!$B$3="HSM",(IF($E11="3ST",Tables!$G$67,(IF($E11="4ST",Tables!$J$67,Tables!$M$67)))/100),(IF($E11="3ST",Tables!$P$67,(IF($E11="4ST",+Tables!$S$67,+Tables!$V$67)))/100)) -> 0.003 | BI11: =IF(Inputs!$B$3="HSM",(IF($E11="3ST",Tables!$G$68,(IF($E11="4ST",Tables!$J$68,Tables!$M$68)))/100),(IF($E11="3ST",Tables!$P$68,(IF($E11="4ST",+Tables!$S$68,+Tables!$V$68)))/100)) -> 0.003 | BJ11: =IF(Inputs!$B$3="HSM",(IF($E11="3ST",Tables!$G$69,(IF($E11="4ST",Tables!$J$69,Tables!$M$69)))/100),(IF($E11="3ST",Tables!$P$69,(IF($E11="4ST",+Tables!$S$69,+Tables!$V$69)))/100)) -> 0.039 | BK11: =IF(Inputs!$B$3="HSM",(IF($E11="3ST",Tables!$G$70,(IF($E11="4ST",Tables!$J$70,Tables!$M$70)))/100),(IF($E11="3ST",Tables!$P$70,(IF($E11="4ST",+Tables!$S$70,+Tables!$V$70)))/100)) -> 0.179 | BL11: =IF(Inputs!$B$3="HSM",(IF($E11="3ST",Tables!$G$71,(IF($E11="4ST",Tables!$J$71,Tables!$M$71)))/100),(IF($E11="3ST",Tables!$P$71,(IF($E11="4ST",+Tables!$S$71,+Tables!$V$71)))/100)) -> 0.026 | BM11: =IF(Inputs!$B$3="HSM",(IF($E11="3ST",Tables!$G$72,(IF($E11="4ST",Tables!$J$72,Tables!$M$72)))/100),(IF($E11="3ST",Tables!$P$72,(IF($E11="4ST",+Tables!$S$72,+Tables!$V$72)))/100)) -> 0.578 | BN11: 0.1259658825 | BO11: 0.001152126974 | BP11: 0.001152126974 | BQ11: 0.01497765066 | BR11: 0.0687435761 | BS11: 0.009985100439 | BT11: 0.2219764636 | BU11: =IF(Inputs!$B$3="HSM",(IF($E11="3ST",Tables!$E$66,(IF($E11="4ST",Tables!$H$66,Tables!$K$66)))/100),(IF($E11="3ST",Tables!$N$66,(IF($E11="4ST",+Tables!$Q$66,+Tables!$T$66)))/100)) -> 0.039 | BV11: =IF(Inputs!$B$3="HSM",(IF($E11="3ST",Tables!$E$67,(IF($E11="4ST",Tables!$H$67,Tables!$K$67)))/100),(IF($E11="3ST",Tables!$N$67,(IF($E11="4ST",+Tables!$Q$67,+Tables!$T$67)))/100)) -> 0.01 | BW11: =IF(Inputs!$B$3="HSM",(IF($E11="3ST",Tables!$E$68,(IF($E11="4ST",Tables!$H$68,Tables!$K$68)))/100),(IF($E11="3ST",Tables!$N$68,(IF($E11="4ST",+Tables!$Q$68,+Tables!$T$68)))/100)) -> 0.015 | BX11: =IF(Inputs!$B$3="HSM",(IF($E11="3ST",Tables!$E$69,(IF($E11="4ST",Tables!$H$69,Tables!$K$69)))/100),(IF($E11="3ST",Tables!$N$69,(IF($E11="4ST",+Tables!$Q$69,+Tables!$T$69)))/100)) -> 0.096 | BY11: =IF(Inputs!$B$3="HSM",(IF($E11="3ST",Tables!$E$70,(IF($E11="4ST",Tables!$H$70,Tables!$K$70)))/100),(IF($E11="3ST",Tables!$N$70,(IF($E11="4ST",+Tables!$Q$70,+Tables!$T$70)))/100)) -> 0.188 | BZ11: =IF(Inputs!$B$3="HSM",(IF($E11="3ST",Tables!$E$71,(IF($E11="4ST",Tables!$H$71,Tables!$K$71)))/100),(IF($E11="3ST",Tables!$N$71,(IF($E11="4ST",+Tables!$Q$71,+Tables!$T$71)))/100)) -> 0.029 | CA11: =IF(Inputs!$B$3="HSM",(IF($E11="3ST",Tables!$E$72,(IF($E11="4ST",Tables!$H$72,Tables!$K$72)))/100),(IF($E11="3ST",Tables!$N$72,(IF($E11="4ST",+Tables!$Q$72,+Tables!$T$72)))/100)) -> 0.377 | CB11: 0.002785843022 | CC11: 0.0007143187237 | CD11: 0.001071478086 | CE11: 0.006857459748 | CF11: 0.01342919201 | CG11: 0.002071524299 | CH11: 0.02692981588 | CI11: =IF(Inputs!$B$3="HSM",(IF($E11="3ST",Tables!$F$66,(IF($E11="4ST",Tables!$I$66,Tables!$L$66)))/100),(IF($E11="3ST",Tables!$O$66,(IF($E11="4ST",+Tables!$R$66,+Tables!$U$66)))/100)) -> 0.394 | CJ11: =IF(Inputs!$B$3="HSM",(IF($E11="3ST",Tables!$F$67,(IF($E11="4ST",Tables!$I$67,Tables!$L$67)))/100),(IF($E11="3ST",Tables!$O$67,(IF($E11="4ST",+Tables!$R$67,+Tables!$U$67)))/100)) -> 0.001 | CK11: =IF(Inputs!$B$3="HSM",(IF($E11="3ST",Tables!$F$68,(IF($E11="4ST",Tables!$I$68,Tables!$L$68)))/100),(IF($E11="3ST",Tables!$O$68,(IF($E11="4ST",+Tables!$R$68,+Tables!$U$68)))/100)) -> 0 | CL11: =IF(Inputs!$B$3="HSM",(IF($E11="3ST",Tables!$F$69,(IF($E11="4ST",Tables!$I$69,Tables!$L$69)))/100),(IF($E11="3ST",Tables!$O$69,(IF($E11="4ST",+Tables!$R$69,+Tables!$U$69)))/100)) -> 0.026 | CM11: =IF(Inputs!$B$3="HSM",(IF($E11="3ST",Tables!$F$70,(IF($E11="4ST",Tables!$I$70,Tables!$L$70)))/100),(IF($E11="3ST",Tables!$O$70,(IF($E11="4ST",+Tables!$R$70,+Tables!$U$70)))/100)) -> 0.177 | CN11: =IF(Inputs!$B$3="HSM",(IF($E11="3ST",Tables!$F$71,(IF($E11="4ST",Tables!$I$71,Tables!$L$71)))/100),(IF($E11="3ST",Tables!$O$71,(IF($E11="4ST",+Tables!$R$71,+Tables!$U$71)))/100)) -> 0.025 | CO11: =IF(Inputs!$B$3="HSM",(IF($E11="3ST",Tables!$F$72,(IF($E11="4ST",Tables!$I$72,Tables!$L$72)))/100),(IF($E11="3ST",Tables!$O$72,(IF($E11="4ST",+Tables!$R$72,+Tables!$U$72)))/100)) -> 0.623 | CP11: 0.1231685182 | CQ11: 0.0003126104522 | CR11: 0 | CS11: 0.008127871757 | CT11: 0.05533205004 | CU11: 0.007815261305 | CV11: 0.1947563117 | CW11: =IF(Inputs!$B$3="HSM",(IF($E11="3ST",Tables!$G$74,(IF($E11="4ST",Tables!$J$74,Tables!$M$74)))/100),(IF($E11="3ST",Tables!$P$74,(IF($E11="4ST",+Tables!$S$74,+Tables!$V$74)))/100)) -> 0.094 | CX11: =IF(Inputs!$B$3="HSM",(IF($E11="3ST",Tables!$G$75,(IF($E11="4ST",Tables!$J$75,Tables!$M$75)))/100),(IF($E11="3ST",Tables!$P$75,(IF($E11="4ST",+Tables!$S$75,+Tables!$V$75)))/100)) -> 0.029 | CY11: =IF(Inputs!$B$3="HSM",(IF($E11="3ST",Tables!$G$76,(IF($E11="4ST",Tables!$J$76,Tables!$M$76)))/100),(IF($E11="3ST",Tables!$P$76,(IF($E11="4ST",+Tables!$S$76,+Tables!$V$76)))/100)) -> 0.177 | CZ11: =IF(Inputs!$B$3="HSM",(IF($E11="3ST",Tables!$G$77,(IF($E11="4ST",Tables!$J$77,Tables!$M$77)))/100),(IF($E11="3ST",Tables!$P$77,(IF($E11="4ST",+Tables!$S$77,+Tables!$V$77)))/100)) -> 0.064 | DA11: =IF(Inputs!$B$3="HSM",(IF($E11="3ST",Tables!$G$78,(IF($E11="4ST",Tables!$J$78,Tables!$M$78)))/100),(IF($E11="3ST",Tables!$P$78,(IF($E11="4ST",+Tables!$S$78,+Tables!$V$78)))/100)) -> 0.058 | DB11: =IF(Inputs!$B$3="HSM",(IF($E11="3ST",Tables!$G$79,(IF($E11="4ST",Tables!$J$79,Tables!$M$79)))/100),(IF($E11="3ST",Tables!$P$79,(IF($E11="4ST",+Tables!$S$79,+Tables!$V$79)))/100)) -> 0.422 | DC11: 0.03609997851 | DD11: 0.01113722741 | DE11: 0.06797549145 | DF11: 0.02457870877 | DG11: 0.02227445483 | DH11: 0.162065861 | DI11: =IF(Inputs!$B$3="HSM",(IF($E11="3ST",Tables!$E$74,(IF($E11="4ST",Tables!$H$74,Tables!$K$74)))/100),(IF($E11="3ST",Tables!$N$74,(IF($E11="4ST",+Tables!$Q$74,+Tables!$T$74)))/100)) -> 0.167 | DJ11: =IF(Inputs!$B$3="HSM",(IF($E11="3ST",Tables!$E$75,(IF($E11="4ST",Tables!$H$75,Tables!$K$75)))/100),(IF($E11="3ST",Tables!$N$75,(IF($E11="4ST",+Tables!$Q$75,+Tables!$T$75)))/100)) -> 0.089 | DK11: =IF(Inputs!$B$3="HSM",(IF($E11="3ST",Tables!$E$76,(IF($E11="4ST",Tables!$H$76,Tables!$K$76)))/100),(IF($E11="3ST",Tables!$N$76,(IF($E11="4ST",+Tables!$Q$76,+Tables!$T$76)))/100)) -> 0.266 | DL11: =IF(Inputs!$B$3="HSM",(IF($E11="3ST",Tables!$E$77,(IF($E11="4ST",Tables!$H$77,Tables!$K$77)))/100),(IF($E11="3ST",Tables!$N$77,(IF($E11="4ST",+Tables!$Q$77,+Tables!$T$77)))/100)) -> 0.045 | DM11: =IF(Inputs!$B$3="HSM",(IF($E11="3ST",Tables!$E$78,(IF($E11="4ST",Tables!$H$78,Tables!$K$78)))/100),(IF($E11="3ST",Tables!$N$78,(IF($E11="4ST",+Tables!$Q$78,+Tables!$T$78)))/100)) -> 0.056 | DN11: =IF(Inputs!$B$3="HSM",(IF($E11="3ST",Tables!$E$79,(IF($E11="4ST",Tables!$H$79,Tables!$K$79)))/100),(IF($E11="3ST",Tables!$N$79,(IF($E11="4ST",+Tables!$Q$79,+Tables!$T$79)))/100)) -> 0.623 | DO11: 0.01192912269 | DP11: 0.006357436641 | DQ11: 0.01900087805 | DR11: 0.003214434257 | DS11: 0.004000184853 | DT11: 0.04450205649 | DU11: =IF(Inputs!$B$3="HSM",(IF($E11="3ST",Tables!$F$74,(IF($E11="4ST",Tables!$I$74,Tables!$L$74)))/100),(IF($E11="3ST",Tables!$O$74,(IF($E11="4ST",+Tables!$R$74,+Tables!$U$74)))/100)) -> 0.077 | DV11: =IF(Inputs!$B$3="HSM",(IF($E11="3ST",Tables!$F$75,(IF($E11="4ST",Tables!$I$75,Tables!$L$75)))/100),(IF($E11="3ST",Tables!$O$75,(IF($E11="4ST",+Tables!$R$75,+Tables!$U$75)))/100)) -> 0.015 | DW11: =IF(Inputs!$B$3="HSM",(IF($E11="3ST",Tables!$F$76,(IF($E11="4ST",Tables!$I$76,Tables!$L$76)))/100),(IF($E11="3ST",Tables!$O$76,(IF($E11="4ST",+Tables!$R$76,+Tables!$U$76)))/100)) -> 0.157 | DX11: =IF(Inputs!$B$3="HSM",(IF($E11="3ST",Tables!$F$77,(IF($E11="4ST",Tables!$I$77,Tables!$L$77)))/100),(IF($E11="3ST",Tables!$O$77,(IF($E11="4ST",+Tables!$R$77,+Tables!$U$77)))/100)) -> 0.069 | DY11: =IF(Inputs!$B$3="HSM",(IF($E11="3ST",Tables!$F$78,(IF($E11="4ST",Tables!$I$78,Tables!$L$78)))/100),(IF($E11="3ST",Tables!$O$78,(IF($E11="4ST",+Tables!$R$78,+Tables!$U$78)))/100)) -> 0.059 | DZ11: =IF(Inputs!$B$3="HSM",(IF($E11="3ST",Tables!$F$79,(IF($E11="4ST",Tables!$I$79,Tables!$L$79)))/100),(IF($E11="3ST",Tables!$O$79,(IF($E11="4ST",+Tables!$R$79,+Tables!$U$79)))/100)) -> 0.377 | EA11: 0.02407100482 | EB11: 0.004689156783 | EC11: 0.049079841 | ED11: 0.0215701212 | EE11: 0.01844401668 | EF11: 0.1178541405 | EG11: 1 | EH11: 0.186 | EI11: 0.814 | EJ11: 0.3126104522 | EK11: 0.07143187237 | EL11: 0.3840423246
A12: 8 | B12: Kiwi | C12: Hilma | D12: Heritage County | E12: 3ST | F12: 1200 | G12: 1150 | H12: N | I12: 0 | K12: 0 | L12: 0 | M12: NP | N12: N/A (1.000) | O12: N/A (1.000) | P12: N/A (1.000) | Q12: 1 | R12: 1 | S12: =AVERAGE(INDIRECT(ADDRESS(MATCH(sYear,'Calibration Factors'!$A:$A,0),CHOOSE(MATCH(E12,{"3ST","4ST","4SG"},0),14,18,20),,,"Calibration Factors")&":"&ADDRESS(MATCH(eYear,'Calibration Factors'!$A:$A,0),CHOOSE(MATCH(E12,{"3ST","4ST","4SG"},0),14,18,20)))) -> 1.8383938 | T12: =1/5 -> 0.2 | U12: 0.54 | V12: 0.692716435 | W12: 0.6305003518 | X12: -0.4305003518 | Y12: 0.3643962696 | Z12: 0.6660271307 | AA12: 1 | AB12: =IF($E12="3ST",(IF($K12=0,1,(HLOOKUP($K12,Tables!$AC$20:$AF$26,3,FALSE)))),(IF($E12="4ST",(IF($K12=0,1,(HLOOKUP($K12,Tables!$AC$20:$AF$26,5,FALSE)))),(IF($K12=0,1,(HLOOKUP($K12,Tables!$AC$20:$AF$26,7,FALSE))))))) -> 1 | AC12: =IF($E12="3ST",(IF($L12=0,1,(HLOOKUP($L12,Tables!$AC$36:$AF$42,3,FALSE)))),(IF($E12="4ST",(IF($L12=0,1,(HLOOKUP($L12,Tables!$AC$36:$AF$42,5,FALSE)))),(IF($L12=0,1,(HLOOKUP($L12,Tables!$AC$36:$AF$42,7,FALSE))))))) -> 1 | AD12: =IF(($M12="NP"),1,(1-0.38*(IF(Inputs!$B$3="HSM",(VLOOKUP( $E12,Tables!$B$97:$F$99,4,FALSE)),(VLOOKUP($E12,Tables!$B$97:$H$99,6,FALSE)))))) -> 1 | AE12: =OFFSET(Tables!$AO$1,MATCH(N12,Tables!$AO:$AO,0)-1,1) -> 1 | AF12: =OFFSET(Tables!$AO$1,MATCH(O12,Tables!$AO:$AO,0)-1,1) -> 1 | AG12: =OFFSET(Tables!$AO$1,MATCH(P12,Tables!$AO:$AO,0)-1,1) -> 1 | AH12: 1 | AI12: 1 | AJ12: 0.4468394768 | AK12: 0.54 | AL12: =IF($E12="3ST",IF(Inputs!$B$3="HSM",Tables!$E$55,Tables!$K$55),(IF($E12="4ST",(IF(Inputs!$B$3="HSM",Tables!$G$55,Tables!$M$55)),(IF(Inputs!$B$3="HSM",Tables!$I$55,Tables!$O$55)))))/100 -> 1 | AM12: 0.4468394768 | AN12: 1 | AO12: =IF(Inputs!$B$3<>"HSM",$S12,$R12) -> 1.8383938 | AP12: 0.8214669237 | AQ12: =IF($E12="3ST",IF(Inputs!$B$3="HSM",Tables!$E$53,Tables!$K$53),(IF($E12="4ST",(IF(Inputs!$B$3="HSM",Tables!$G$53,Tables!$M$53)),(IF(Inputs!$B$3="HSM",Tables!$I$53,Tables!$O$53)))))/100 -> 0.186 | AR12: 0.08311214268 | AS12: 1 | AT12: =IF(Inputs!$B$3<>"HSM",$S12,$R12) -> 1.8383938 | AU12: 0.1527928478 | AV12: =IF($E12="3ST",IF(Inputs!$B$3="HSM",Tables!$E$54,Tables!$K$54),(IF($E12="4ST",(IF(Inputs!$B$3="HSM",Tables!$G$54,Tables!$M$54)),(IF(Inputs!$B$3="HSM",Tables!$I$54,Tables!$O$54)))))/100 -> 0.814 | AW12: 0.3637273341 | AX12: 1 | AY12: =IF(Inputs!$B$3<>"HSM",$S12,$R12) -> 1.8383938 | AZ12: 0.6686740759 | BA12: =IF(Inputs!$B$3="HSM",(IF($E12="3ST",Tables!$G$80,(IF($E12="4ST",Tables!$J$80,Tables!$M$80)))/100),(IF($E12="3ST",Tables!$P$80,(IF($E12="4ST",+Tables!$S$80,+Tables!$V$80)))/100)) -> 1 | BB12: 0.8214669237 | BC12: =IF(Inputs!$B$3="HSM",(IF($E12="3ST",Tables!$E$80,(IF($E12="4ST",Tables!$H$80,Tables!$K$80)))/100),(IF($E12="3ST",Tables!$N$80,(IF($E12="4ST",+Tables!$Q$80,+Tables!$T$80)))/100)) -> 1 | BD12: 0.1527928478 | BE12: =IF(Inputs!$B$3="HSM",(IF($E12="3ST",Tables!$F$80,(IF($E12="4ST",Tables!$I$80,Tables!$L$80)))/100),(IF($E12="3ST",Tables!$O$80,(IF($E12="4ST",+Tables!$R$80,+Tables!$U$80)))/100)) -> 1 | BF12: 0.6686740759 | BG12: =IF(Inputs!$B$3="HSM",(IF($E12="3ST",Tables!$G$66,(IF($E12="4ST",Tables!$J$66,Tables!$M$66)))/100),(IF($E12="3ST",Tables!$P$66,(IF($E12="4ST",+Tables!$S$66,+Tables!$V$66)))/100)) -> 0.328 | BH12: =IF(Inputs!$B$3="HSM",(IF($E12="3ST",Tables!$G$67,(IF($E12="4ST",Tables!$J$67,Tables!$M$67)))/100),(IF($E12="3ST",Tables!$P$67,(IF($E12="4ST",+Tables!$S$67,+Tables!$V$67)))/100)) -> 0.003 | BI12: =IF(Inputs!$B$3="HSM",(IF($E12="3ST",Tables!$G$68,(IF($E12="4ST",Tables!$J$68,Tables!$M$68)))/100),(IF($E12="3ST",Tables!$P$68,(IF($E12="4ST",+Tables!$S$68,+Tables!$V$68)))/100)) -> 0.003 | BJ12: =IF(Inputs!$B$3="HSM",(IF($E12="3ST",Tables!$G$69,(IF($E12="4ST",Tables!$J$69,Tables!$M$69)))/100),(IF($E12="3ST",Tables!$P$69,(IF($E12="4ST",+Tables!$S$69,+Tables!$V$69)))/100)) -> 0.039 | BK12: =IF(Inputs!$B$3="HSM",(IF($E12="3ST",Tables!$G$70,(IF($E12="4ST",Tables!$J$70,Tables!$M$70)))/100),(IF($E12="3ST",Tables!$P$70,(IF($E12="4ST",+Tables!$S$70,+Tables!$V$70)))/100)) -> 0.179 | BL12: =IF(Inputs!$B$3="HSM",(IF($E12="3ST",Tables!$G$71,(IF($E12="4ST",Tables!$J$71,Tables!$M$71)))/100),(IF($E12="3ST",Tables!$P$71,(IF($E12="4ST",+Tables!$S$71,+Tables!$V$71)))/100)) -> 0.026 | BM12: =IF(Inputs!$B$3="HSM",(IF($E12="3ST",Tables!$G$72,(IF($E12="4ST",Tables!$J$72,Tables!$M$72)))/100),(IF($E12="3ST",Tables!$P$72,(IF($E12="4ST",+Tables!$S$72,+Tables!$V$72)))/100)) -> 0.578 | BN12: 0.269441151 | BO12: 0.002464400771 | BP12: 0.002464400771 | BQ12: 0.03203721002 | BR12: 0.1470425793 | BS12: 0.02135814002 | BT12: 0.4748078819 | BU12: =IF(Inputs!$B$3="HSM",(IF($E12="3ST",Tables!$E$66,(IF($E12="4ST",Tables!$H$66,Tables!$K$66)))/100),(IF($E12="3ST",Tables!$N$66,(IF($E12="4ST",+Tables!$Q$66,+Tables!$T$66)))/100)) -> 0.039 | BV12: =IF(Inputs!$B$3="HSM",(IF($E12="3ST",Tables!$E$67,(IF($E12="4ST",Tables!$H$67,Tables!$K$67)))/100),(IF($E12="3ST",Tables!$N$67,(IF($E12="4ST",+Tables!$Q$67,+Tables!$T$67)))/100)) -> 0.01 | BW12: =IF(Inputs!$B$3="HSM",(IF($E12="3ST",Tables!$E$68,(IF($E12="4ST",Tables!$H$68,Tables!$K$68)))/100),(IF($E12="3ST",Tables!$N$68,(IF($E12="4ST",+Tables!$Q$68,+Tables!$T$68)))/100)) -> 0.015 | BX12: =IF(Inputs!$B$3="HSM",(IF($E12="3ST",Tables!$E$69,(IF($E12="4ST",Tables!$H$69,Tables!$K$69)))/100),(IF($E12="3ST",Tables!$N$69,(IF($E12="4ST",+Tables!$Q$69,+Tables!$T$69)))/100)) -> 0.096 | BY12: =IF(Inputs!$B$3="HSM",(IF($E12="3ST",Tables!$E$70,(IF($E12="4ST",Tables!$H$70,Tables!$K$70)))/100),(IF($E12="3ST",Tables!$N$70,(IF($E12="4ST",+Tables!$Q$70,+Tables!$T$70)))/100)) -> 0.188 | BZ12: =IF(Inputs!$B$3="HSM",(IF($E12="3ST",Tables!$E$71,(IF($E12="4ST",Tables!$H$71,Tables!$K$71)))/100),(IF($E12="3ST",Tables!$N$71,(IF($E12="4ST",+Tables!$Q$71,+Tables!$T$71)))/100)) -> 0.029 | CA12: =IF(Inputs!$B$3="HSM",(IF($E12="3ST",Tables!$E$72,(IF($E12="4ST",Tables!$H$72,Tables!$K$72)))/100),(IF($E12="3ST",Tables!$N$72,(IF($E12="4ST",+Tables!$Q$72,+Tables!$T$72)))/100)) -> 0.377 | CB12: 0.005958921064 | CC12: 0.001527928478 | CD12: 0.002291892717 | CE12: 0.01466811339 | CF12: 0.02872505539 | CG12: 0.004430992586 | CH12: 0.05760290362 | CI12: =IF(Inputs!$B$3="HSM",(IF($E12="3ST",Tables!$F$66,(IF($E12="4ST",Tables!$I$66,Tables!$L$66)))/100),(IF($E12="3ST",Tables!$O$66,(IF($E12="4ST",+Tables!$R$66,+Tables!$U$66)))/100)) -> 0.394 | CJ12: =IF(Inputs!$B$3="HSM",(IF($E12="3ST",Tables!$F$67,(IF($E12="4ST",Tables!$I$67,Tables!$L$67)))/100),(IF($E12="3ST",Tables!$O$67,(IF($E12="4ST",+Tables!$R$67,+Tables!$U$67)))/100)) -> 0.001 | CK12: =IF(Inputs!$B$3="HSM",(IF($E12="3ST",Tables!$F$68,(IF($E12="4ST",Tables!$I$68,Tables!$L$68)))/100),(IF($E12="3ST",Tables!$O$68,(IF($E12="4ST",+Tables!$R$68,+Tables!$U$68)))/100)) -> 0 | CL12: =IF(Inputs!$B$3="HSM",(IF($E12="3ST",Tables!$F$69,(IF($E12="4ST",Tables!$I$69,Tables!$L$69)))/100),(IF($E12="3ST",Tables!$O$69,(IF($E12="4ST",+Tables!$R$69,+Tables!$U$69)))/100)) -> 0.026 | CM12: =IF(Inputs!$B$3="HSM",(IF($E12="3ST",Tables!$F$70,(IF($E12="4ST",Tables!$I$70,Tables!$L$70)))/100),(IF($E12="3ST",Tables!$O$70,(IF($E12="4ST",+Tables!$R$70,+Tables!$U$70)))/100)) -> 0.177 | CN12: =IF(Inputs!$B$3="HSM",(IF($E12="3ST",Tables!$F$71,(IF($E12="4ST",Tables!$I$71,Tables!$L$71)))/100),(IF($E12="3ST",Tables!$O$71,(IF($E12="4ST",+Tables!$R$71,+Tables!$U$71)))/100)) -> 0.025 | CO12: =IF(Inputs!$B$3="HSM",(IF($E12="3ST",Tables!$F$72,(IF($E12="4ST",Tables!$I$72,Tables!$L$72)))/100),(IF($E12="3ST",Tables!$O$72,(IF($E12="4ST",+Tables!$R$72,+Tables!$U$72)))/100)) -> 0.623 | CP12: 0.2634575859 | CQ12: 0.0006686740759 | CR12: 0 | CS12: 0.01738552597 | CT12: 0.1183553114 | CU12: 0.0167168519 | CV12: 0.4165839493 | CW12: =IF(Inputs!$B$3="HSM",(IF($E12="3ST",Tables!$G$74,(IF($E12="4ST",Tables!$J$74,Tables!$M$74)))/100),(IF($E12="3ST",Tables!$P$74,(IF($E12="4ST",+Tables!$S$74,+Tables!$V$74)))/100)) -> 0.094 | CX12: =IF(Inputs!$B$3="HSM",(IF($E12="3ST",Tables!$G$75,(IF($E12="4ST",Tables!$J$75,Tables!$M$75)))/100),(IF($E12="3ST",Tables!$P$75,(IF($E12="4ST",+Tables!$S$75,+Tables!$V$75)))/100)) -> 0.029 | CY12: =IF(Inputs!$B$3="HSM",(IF($E12="3ST",Tables!$G$76,(IF($E12="4ST",Tables!$J$76,Tables!$M$76)))/100),(IF($E12="3ST",Tables!$P$76,(IF($E12="4ST",+Tables!$S$76,+Tables!$V$76)))/100)) -> 0.177 | CZ12: =IF(Inputs!$B$3="HSM",(IF($E12="3ST",Tables!$G$77,(IF($E12="4ST",Tables!$J$77,Tables!$M$77)))/100),(IF($E12="3ST",Tables!$P$77,(IF($E12="4ST",+Tables!$S$77,+Tables!$V$77)))/100)) -> 0.064 | DA12: =IF(Inputs!$B$3="HSM",(IF($E12="3ST",Tables!$G$78,(IF($E12="4ST",Tables!$J$78,Tables!$M$78)))/100),(IF($E12="3ST",Tables!$P$78,(IF($E12="4ST",+Tables!$S$78,+Tables!$V$78)))/100)) -> 0.058 | DB12: =IF(Inputs!$B$3="HSM",(IF($E12="3ST",Tables!$G$79,(IF($E12="4ST",Tables!$J$79,Tables!$M$79)))/100),(IF($E12="3ST",Tables!$P$79,(IF($E12="4ST",+Tables!$S$79,+Tables!$V$79)))/100)) -> 0.422 | DC12: 0.07721789082 | DD12: 0.02382254079 | DE12: 0.1453996455 | DF12: 0.05257388311 | DG12: 0.04764508157 | DH12: 0.3466590418 | DI12: =IF(Inputs!$B$3="HSM",(IF($E12="3ST",Tables!$E$74,(IF($E12="4ST",Tables!$H$74,Tables!$K$74)))/100),(IF($E12="3ST",Tables!$N$74,(IF($E12="4ST",+Tables!$Q$74,+Tables!$T$74)))/100)) -> 0.167 | DJ12: =IF(Inputs!$B$3="HSM",(IF($E12="3ST",Tables!$E$75,(IF($E12="4ST",Tables!$H$75,Tables!$K$75)))/100),(IF($E12="3ST",Tables!$N$75,(IF($E12="4ST",+Tables!$Q$75,+Tables!$T$75)))/100)) -> 0.089 | DK12: =IF(Inputs!$B$3="HSM",(IF($E12="3ST",Tables!$E$76,(IF($E12="4ST",Tables!$H$76,Tables!$K$76)))/100),(IF($E12="3ST",Tables!$N$76,(IF($E12="4ST",+Tables!$Q$76,+Tables!$T$76)))/100)) -> 0.266 | DL12: =IF(Inputs!$B$3="HSM",(IF($E12="3ST",Tables!$E$77,(IF($E12="4ST",Tables!$H$77,Tables!$K$77)))/100),(IF($E12="3ST",Tables!$N$77,(IF($E12="4ST",+Tables!$Q$77,+Tables!$T$77)))/100)) -> 0.045 | DM12: =IF(Inputs!$B$3="HSM",(IF($E12="3ST",Tables!$E$78,(IF($E12="4ST",Tables!$H$78,Tables!$K$78)))/100),(IF($E12="3ST",Tables!$N$78,(IF($E12="4ST",+Tables!$Q$78,+Tables!$T$78)))/100)) -> 0.056 | DN12: =IF(Inputs!$B$3="HSM",(IF($E12="3ST",Tables!$E$79,(IF($E12="4ST",Tables!$H$79,Tables!$K$79)))/100),(IF($E12="3ST",Tables!$N$79,(IF($E12="4ST",+Tables!$Q$79,+Tables!$T$79)))/100)) -> 0.623 | DO12: 0.02551640558 | DP12: 0.01359856345 | DQ12: 0.04064289752 | DR12: 0.006875678151 | DS12: 0.008556399477 | DT12: 0.09518994418 | DU12: =IF(Inputs!$B$3="HSM",(IF($E12="3ST",Tables!$F$74,(IF($E12="4ST",Tables!$I$74,Tables!$L$74)))/100),(IF($E12="3ST",Tables!$O$74,(IF($E12="4ST",+Tables!$R$74,+Tables!$U$74)))/100)) -> 0.077 | DV12: =IF(Inputs!$B$3="HSM",(IF($E12="3ST",Tables!$F$75,(IF($E12="4ST",Tables!$I$75,Tables!$L$75)))/100),(IF($E12="3ST",Tables!$O$75,(IF($E12="4ST",+Tables!$R$75,+Tables!$U$75)))/100)) -> 0.015 | DW12: =IF(Inputs!$B$3="HSM",(IF($E12="3ST",Tables!$F$76,(IF($E12="4ST",Tables!$I$76,Tables!$L$76)))/100),(IF($E12="3ST",Tables!$O$76,(IF($E12="4ST",+Tables!$R$76,+Tables!$U$76)))/100)) -> 0.157 | DX12: =IF(Inputs!$B$3="HSM",(IF($E12="3ST",Tables!$F$77,(IF($E12="4ST",Tables!$I$77,Tables!$L$77)))/100),(IF($E12="3ST",Tables!$O$77,(IF($E12="4ST",+Tables!$R$77,+Tables!$U$77)))/100)) -> 0.069 | DY12: =IF(Inputs!$B$3="HSM",(IF($E12="3ST",Tables!$F$78,(IF($E12="4ST",Tables!$I$78,Tables!$L$78)))/100),(IF($E12="3ST",Tables!$O$78,(IF($E12="4ST",+Tables!$R$78,+Tables!$U$78)))/100)) -> 0.059 | DZ12: =IF(Inputs!$B$3="HSM",(IF($E12="3ST",Tables!$F$79,(IF($E12="4ST",Tables!$I$79,Tables!$L$79)))/100),(IF($E12="3ST",Tables!$O$79,(IF($E12="4ST",+Tables!$R$79,+Tables!$U$79)))/100)) -> 0.377 | EA12: 0.05148790384 | EB12: 0.01003011114 | EC12: 0.1049818299 | ED12: 0.04613851123 | EE12: 0.03945177048 | EF12: 0.2520901266 | EG12: 1 | EH12: 0.186 | EI12: 0.814 | EJ12: 0.6686740759 | EK12: 0.1527928478 | EL12: 0.8214669237
A13: 9 | B13: Lemon | C13: Tuula | D13: Heritage County | E13: 4ST | F13: 3700 | G13: 2100 | H13: Y | I13: 10 | J13: 15 | K13: 2 | L13: 0 | M13: P | N13: N/A (1.000) | O13: N/A (1.000) | P13: N/A (1.000) | Q13: 1 | R13: 1 | S13: =AVERAGE(INDIRECT(ADDRESS(MATCH(sYear,'Calibration Factors'!$A:$A,0),CHOOSE(MATCH(E13,{"3ST","4ST","4SG"},0),14,18,20),,,"Calibration Factors")&":"&ADDRESS(MATCH(eYear,'Calibration Factors'!$A:$A,0),CHOOSE(MATCH(E13,{"3ST","4ST","4SG"},0),14,18,20)))) -> 1.6480646 | T13: =7/5 -> 1.4 | U13: 0.24 | V13: 0.6365042259 | W13: 2.023459809 | X13: -0.6234598089 | Y13: 1.358891893 | Z13: 0.7556993304 | AA13: 1.069927749 | AB13: =IF($E13="3ST",(IF($K13=0,1,(HLOOKUP($K13,Tables!$AC$20:$AF$26,3,FALSE)))),(IF($E13="4ST",(IF($K13=0,1,(HLOOKUP($K13,Tables!$AC$20:$AF$26,5,FALSE)))),(IF($K13=0,1,(HLOOKUP($K13,Tables!$AC$20:$AF$26,7,FALSE))))))) -> 0.52 | AC13: =IF($E13="3ST",(IF($L13=0,1,(HLOOKUP($L13,Tables!$AC$36:$AF$42,3,FALSE)))),(IF($E13="4ST",(IF($L13=0,1,(HLOOKUP($L13,Tables!$AC$36:$AF$42,5,FALSE)))),(IF($L13=0,1,(HLOOKUP($L13,Tables!$AC$36:$AF$42,7,FALSE))))))) -> 1 | AD13: =IF(($M13="NP"),1,(1-0.38*(IF(Inputs!$B$3="HSM",(VLOOKUP( $E13,Tables!$B$97:$F$99,4,FALSE)),(VLOOKUP($E13,Tables!$B$97:$H$99,6,FALSE)))))) -> 0.92096 | AE13: =OFFSET(Tables!$AO$1,MATCH(N13,Tables!$AO:$AO,0)-1,1) -> 1 | AF13: =OFFSET(Tables!$AO$1,MATCH(O13,Tables!$AO:$AO,0)-1,1) -> 1 | AG13: =OFFSET(Tables!$AO$1,MATCH(P13,Tables!$AO:$AO,0)-1,1) -> 1 | AH13: 1 | AI13: 0.5123875432 | AJ13: 2.817825138 | AK13: 0.24 | AL13: =IF($E13="3ST",IF(Inputs!$B$3="HSM",Tables!$E$55,Tables!$K$55),(IF($E13="4ST",(IF(Inputs!$B$3="HSM",Tables!$G$55,Tables!$M$55)),(IF(Inputs!$B$3="HSM",Tables!$I$55,Tables!$O$55)))))/100 -> 1 | AM13: 2.817825138 | AN13: 0.5123875432 | AO13: =IF(Inputs!$B$3<>"HSM",$S13,$R13) -> 1.6480646 | AP13: 2.379506158 | AQ13: =IF($E13="3ST",IF(Inputs!$B$3="HSM",Tables!$E$53,Tables!$K$53),(IF($E13="4ST",(IF(Inputs!$B$3="HSM",Tables!$G$53,Tables!$M$53)),(IF(Inputs!$B$3="HSM",Tables!$I$53,Tables!$O$53)))))/100 -> 0.235 | AR13: 0.6621889074 | AS13: 0.5123875432 | AT13: =IF(Inputs!$B$3<>"HSM",$S13,$R13) -> 1.6480646 | AU13: 0.5591839471 | AV13: =IF($E13="3ST",IF(Inputs!$B$3="HSM",Tables!$E$54,Tables!$K$54),(IF($E13="4ST",(IF(Inputs!$B$3="HSM",Tables!$G$54,Tables!$M$54)),(IF(Inputs!$B$3="HSM",Tables!$I$54,Tables!$O$54)))))/100 -> 0.765 | AW13: 2.15563623 | AX13: 0.5123875432 | AY13: =IF(Inputs!$B$3<>"HSM",$S13,$R13) -> 1.6480646 | AZ13: 1.820322211 | BA13: =IF(Inputs!$B$3="HSM",(IF($E13="3ST",Tables!$G$80,(IF($E13="4ST",Tables!$J$80,Tables!$M$80)))/100),(IF($E13="3ST",Tables!$P$80,(IF($E13="4ST",+Tables!$S$80,+Tables!$V$80)))/100)) -> 1 | BB13: 2.379506158 | BC13: =IF(Inputs!$B$3="HSM",(IF($E13="3ST",Tables!$E$80,(IF($E13="4ST",Tables!$H$80,Tables!$K$80)))/100),(IF($E13="3ST",Tables!$N$80,(IF($E13="4ST",+Tables!$Q$80,+Tables!$T$80)))/100)) -> 1 | BD13: 0.5591839471 | BE13: =IF(Inputs!$B$3="HSM",(IF($E13="3ST",Tables!$F$80,(IF($E13="4ST",Tables!$I$80,Tables!$L$80)))/100),(IF($E13="3ST",Tables!$O$80,(IF($E13="4ST",+Tables!$R$80,+Tables!$U$80)))/100)) -> 1 | BF13: 1.820322211 | BG13: =IF(Inputs!$B$3="HSM",(IF($E13="3ST",Tables!$G$66,(IF($E13="4ST",Tables!$J$66,Tables!$M$66)))/100),(IF($E13="3ST",Tables!$P$66,(IF($E13="4ST",+Tables!$S$66,+Tables!$V$66)))/100)) -> 0.223 | BH13: =IF(Inputs!$B$3="HSM",(IF($E13="3ST",Tables!$G$67,(IF($E13="4ST",Tables!$J$67,Tables!$M$67)))/100),(IF($E13="3ST",Tables!$P$67,(IF($E13="4ST",+Tables!$S$67,+Tables!$V$67)))/100)) -> 0.004 | BI13: =IF(Inputs!$B$3="HSM",(IF($E13="3ST",Tables!$G$68,(IF($E13="4ST",Tables!$J$68,Tables!$M$68)))/100),(IF($E13="3ST",Tables!$P$68,(IF($E13="4ST",+Tables!$S$68,+Tables!$V$68)))/100)) -> 0.004 | BJ13: =IF(Inputs!$B$3="HSM",(IF($E13="3ST",Tables!$G$69,(IF($E13="4ST",Tables!$J$69,Tables!$M$69)))/100),(IF($E13="3ST",Tables!$P$69,(IF($E13="4ST",+Tables!$S$69,+Tables!$V$69)))/100)) -> 0.018 | BK13: =IF(Inputs!$B$3="HSM",(IF($E13="3ST",Tables!$G$70,(IF($E13="4ST",Tables!$J$70,Tables!$M$70)))/100),(IF($E13="3ST",Tables!$P$70,(IF($E13="4ST",+Tables!$S$70,+Tables!$V$70)))/100)) -> 0.11 | BL13: =IF(Inputs!$B$3="HSM",(IF($E13="3ST",Tables!$G$71,(IF($E13="4ST",Tables!$J$71,Tables!$M$71)))/100),(IF($E13="3ST",Tables!$P$71,(IF($E13="4ST",+Tables!$S$71,+Tables!$V$71)))/100)) -> 0.016 | BM13: =IF(Inputs!$B$3="HSM",(IF($E13="3ST",Tables!$G$72,(IF($E13="4ST",Tables!$J$72,Tables!$M$72)))/100),(IF($E13="3ST",Tables!$P$72,(IF($E13="4ST",+Tables!$S$72,+Tables!$V$72)))/100)) -> 0.375 | BN13: 0.5306298732 | BO13: 0.009518024632 | BP13: 0.009518024632 | BQ13: 0.04283111084 | BR13: 0.2617456774 | BS13: 0.03807209853 | BT13: 0.8923148092 | BU13: =IF(Inputs!$B$3="HSM",(IF($E13="3ST",Tables!$E$66,(IF($E13="4ST",Tables!$H$66,Tables!$K$66)))/100),(IF($E13="3ST",Tables!$N$66,(IF($E13="4ST",+Tables!$Q$66,+Tables!$T$66)))/100)) -> 0.015 | BV13: =IF(Inputs!$B$3="HSM",(IF($E13="3ST",Tables!$E$67,(IF($E13="4ST",Tables!$H$67,Tables!$K$67)))/100),(IF($E13="3ST",Tables!$N$67,(IF($E13="4ST",+Tables!$Q$67,+Tables!$T$67)))/100)) -> 0.012 | BW13: =IF(Inputs!$B$3="HSM",(IF($E13="3ST",Tables!$E$68,(IF($E13="4ST",Tables!$H$68,Tables!$K$68)))/100),(IF($E13="3ST",Tables!$N$68,(IF($E13="4ST",+Tables!$Q$68,+Tables!$T$68)))/100)) -> 0.015 | BX13: =IF(Inputs!$B$3="HSM",(IF($E13="3ST",Tables!$E$69,(IF($E13="4ST",Tables!$H$69,Tables!$K$69)))/100),(IF($E13="3ST",Tables!$N$69,(IF($E13="4ST",+Tables!$Q$69,+Tables!$T$69)))/100)) -> 0.031 | BY13: =IF(Inputs!$B$3="HSM",(IF($E13="3ST",Tables!$E$70,(IF($E13="4ST",Tables!$H$70,Tables!$K$70)))/100),(IF($E13="3ST",Tables!$N$70,(IF($E13="4ST",+Tables!$Q$70,+Tables!$T$70)))/100)) -> 0.085 | BZ13: =IF(Inputs!$B$3="HSM",(IF($E13="3ST",Tables!$E$71,(IF($E13="4ST",Tables!$H$71,Tables!$K$71)))/100),(IF($E13="3ST",Tables!$N$71,(IF($E13="4ST",+Tables!$Q$71,+Tables!$T$71)))/100)) -> 0.015 | CA13: =IF(Inputs!$B$3="HSM",(IF($E13="3ST",Tables!$E$72,(IF($E13="4ST",Tables!$H$72,Tables!$K$72)))/100),(IF($E13="3ST",Tables!$N$72,(IF($E13="4ST",+Tables!$Q$72,+Tables!$T$72)))/100)) -> 0.173 | CB13: 0.008387759207 | CC13: 0.006710207365 | CD13: 0.008387759207 | CE13: 0.01733470236 | CF13: 0.04753063551 | CG13: 0.008387759207 | CH13: 0.09673882285 | CI13: =IF(Inputs!$B$3="HSM",(IF($E13="3ST",Tables!$F$66,(IF($E13="4ST",Tables!$I$66,Tables!$L$66)))/100),(IF($E13="3ST",Tables!$O$66,(IF($E13="4ST",+Tables!$R$66,+Tables!$U$66)))/100)) -> 0.288 | CJ13: =IF(Inputs!$B$3="HSM",(IF($E13="3ST",Tables!$F$67,(IF($E13="4ST",Tables!$I$67,Tables!$L$67)))/100),(IF($E13="3ST",Tables!$O$67,(IF($E13="4ST",+Tables!$R$67,+Tables!$U$67)))/100)) -> 0.001 | CK13: =IF(Inputs!$B$3="HSM",(IF($E13="3ST",Tables!$F$68,(IF($E13="4ST",Tables!$I$68,Tables!$L$68)))/100),(IF($E13="3ST",Tables!$O$68,(IF($E13="4ST",+Tables!$R$68,+Tables!$U$68)))/100)) -> 0 | CL13: =IF(Inputs!$B$3="HSM",(IF($E13="3ST",Tables!$F$69,(IF($E13="4ST",Tables!$I$69,Tables!$L$69)))/100),(IF($E13="3ST",Tables!$O$69,(IF($E13="4ST",+Tables!$R$69,+Tables!$U$69)))/100)) -> 0.014 | CM13: =IF(Inputs!$B$3="HSM",(IF($E13="3ST",Tables!$F$70,(IF($E13="4ST",Tables!$I$70,Tables!$L$70)))/100),(IF($E13="3ST",Tables!$O$70,(IF($E13="4ST",+Tables!$R$70,+Tables!$U$70)))/100)) -> 0.118 | CN13: =IF(Inputs!$B$3="HSM",(IF($E13="3ST",Tables!$F$71,(IF($E13="4ST",Tables!$I$71,Tables!$L$71)))/100),(IF($E13="3ST",Tables!$O$71,(IF($E13="4ST",+Tables!$R$71,+Tables!$U$71)))/100)) -> 0.017 | CO13: =IF(Inputs!$B$3="HSM",(IF($E13="3ST",Tables!$F$72,(IF($E13="4ST",Tables!$I$72,Tables!$L$72)))/100),(IF($E13="3ST",Tables!$O$72,(IF($E13="4ST",+Tables!$R$72,+Tables!$U$72)))/100)) -> 0.438 | CP13: 0.5242527967 | CQ13: 0.001820322211 | CR13: 0 | CS13: 0.02548451095 | CT13: 0.2147980209 | CU13: 0.03094547758 | CV13: 0.7973011283 | CW13: =IF(Inputs!$B$3="HSM",(IF($E13="3ST",Tables!$G$74,(IF($E13="4ST",Tables!$J$74,Tables!$M$74)))/100),(IF($E13="3ST",Tables!$P$74,(IF($E13="4ST",+Tables!$S$74,+Tables!$V$74)))/100)) -> 0.238 | CX13: =IF(Inputs!$B$3="HSM",(IF($E13="3ST",Tables!$G$75,(IF($E13="4ST",Tables!$J$75,Tables!$M$75)))/100),(IF($E13="3ST",Tables!$P$75,(IF($E13="4ST",+Tables!$S$75,+Tables!$V$75)))/100)) -> 0.041 | CY13: =IF(Inputs!$B$3="HSM",(IF($E13="3ST",Tables!$G$76,(IF($E13="4ST",Tables!$J$76,Tables!$M$76)))/100),(IF($E13="3ST",Tables!$P$76,(IF($E13="4ST",+Tables!$S$76,+Tables!$V$76)))/100)) -> 0.181 | CZ13: =IF(Inputs!$B$3="HSM",(IF($E13="3ST",Tables!$G$77,(IF($E13="4ST",Tables!$J$77,Tables!$M$77)))/100),(IF($E13="3ST",Tables!$P$77,(IF($E13="4ST",+Tables!$S$77,+Tables!$V$77)))/100)) -> 0.074 | DA13: =IF(Inputs!$B$3="HSM",(IF($E13="3ST",Tables!$G$78,(IF($E13="4ST",Tables!$J$78,Tables!$M$78)))/100),(IF($E13="3ST",Tables!$P$78,(IF($E13="4ST",+Tables!$S$78,+Tables!$V$78)))/100)) -> 0.091 | DB13: =IF(Inputs!$B$3="HSM",(IF($E13="3ST",Tables!$G$79,(IF($E13="4ST",Tables!$J$79,Tables!$M$79)))/100),(IF($E13="3ST",Tables!$P$79,(IF($E13="4ST",+Tables!$S$79,+Tables!$V$79)))/100)) -> 0.625 | DC13: 0.5663224656 | DD13: 0.09755975248 | DE13: 0.4306906146 | DF13: 0.1760834557 | DG13: 0.2165350604 | DH13: 1.487191349 | DI13: =IF(Inputs!$B$3="HSM",(IF($E13="3ST",Tables!$E$74,(IF($E13="4ST",Tables!$H$74,Tables!$K$74)))/100),(IF($E13="3ST",Tables!$N$74,(IF($E13="4ST",+Tables!$Q$74,+Tables!$T$74)))/100)) -> 0.416 | DJ13: =IF(Inputs!$B$3="HSM",(IF($E13="3ST",Tables!$E$75,(IF($E13="4ST",Tables!$H$75,Tables!$K$75)))/100),(IF($E13="3ST",Tables!$N$75,(IF($E13="4ST",+Tables!$Q$75,+Tables!$T$75)))/100)) -> 0.09 | DK13: =IF(Inputs!$B$3="HSM",(IF($E13="3ST",Tables!$E$76,(IF($E13="4ST",Tables!$H$76,Tables!$K$76)))/100),(IF($E13="3ST",Tables!$N$76,(IF($E13="4ST",+Tables!$Q$76,+Tables!$T$76)))/100)) -> 0.207 | DL13: =IF(Inputs!$B$3="HSM",(IF($E13="3ST",Tables!$E$77,(IF($E13="4ST",Tables!$H$77,Tables!$K$77)))/100),(IF($E13="3ST",Tables!$N$77,(IF($E13="4ST",+Tables!$Q$77,+Tables!$T$77)))/100)) -> 0.047 | DM13: =IF(Inputs!$B$3="HSM",(IF($E13="3ST",Tables!$E$78,(IF($E13="4ST",Tables!$H$78,Tables!$K$78)))/100),(IF($E13="3ST",Tables!$N$78,(IF($E13="4ST",+Tables!$Q$78,+Tables!$T$78)))/100)) -> 0.067 | DN13: =IF(Inputs!$B$3="HSM",(IF($E13="3ST",Tables!$E$79,(IF($E13="4ST",Tables!$H$79,Tables!$K$79)))/100),(IF($E13="3ST",Tables!$N$79,(IF($E13="4ST",+Tables!$Q$79,+Tables!$T$79)))/100)) -> 0.827 | DO13: 0.232620522 | DP13: 0.05032655524 | DQ13: 0.1157510771 | DR13: 0.02628164551 | DS13: 0.03746532446 | DT13: 0.4624451243 | DU13: =IF(Inputs!$B$3="HSM",(IF($E13="3ST",Tables!$F$74,(IF($E13="4ST",Tables!$I$74,Tables!$L$74)))/100),(IF($E13="3ST",Tables!$O$74,(IF($E13="4ST",+Tables!$R$74,+Tables!$U$74)))/100)) -> 0.181 | DV13: =IF(Inputs!$B$3="HSM",(IF($E13="3ST",Tables!$F$75,(IF($E13="4ST",Tables!$I$75,Tables!$L$75)))/100),(IF($E13="3ST",Tables!$O$75,(IF($E13="4ST",+Tables!$R$75,+Tables!$U$75)))/100)) -> 0.026 | DW13: =IF(Inputs!$B$3="HSM",(IF($E13="3ST",Tables!$F$76,(IF($E13="4ST",Tables!$I$76,Tables!$L$76)))/100),(IF($E13="3ST",Tables!$O$76,(IF($E13="4ST",+Tables!$R$76,+Tables!$U$76)))/100)) -> 0.174 | DX13: =IF(Inputs!$B$3="HSM",(IF($E13="3ST",Tables!$F$77,(IF($E13="4ST",Tables!$I$77,Tables!$L$77)))/100),(IF($E13="3ST",Tables!$O$77,(IF($E13="4ST",+Tables!$R$77,+Tables!$U$77)))/100)) -> 0.083 | DY13: =IF(Inputs!$B$3="HSM",(IF($E13="3ST",Tables!$F$78,(IF($E13="4ST",Tables!$I$78,Tables!$L$78)))/100),(IF($E13="3ST",Tables!$O$78,(IF($E13="4ST",+Tables!$R$78,+Tables!$U$78)))/100)) -> 0.098 | DZ13: =IF(Inputs!$B$3="HSM",(IF($E13="3ST",Tables!$F$79,(IF($E13="4ST",Tables!$I$79,Tables!$L$79)))/100),(IF($E13="3ST",Tables!$O$79,(IF($E13="4ST",+Tables!$R$79,+Tables!$U$79)))/100)) -> 0.562 | EA13: 0.3294783202 | EB13: 0.04732837748 | EC13: 0.3167360647 | ED13: 0.1510867435 | EE13: 0.1783915767 | EF13: 1.023021082 | EG13: 1 | EH13: 0.235 | EI13: 0.765 | EJ13: 1.820322211 | EK13: 0.5591839471 | EL13: 2.379506158
A14: 10 | B14: Starfruit | C14: Alma | D14: Heritage County | E14: 4ST | F14: 1900 | G14: 500 | H14: Y | I14: 0 | J14: 10 | K14: 0 | L14: 0 | M14: NP | N14: N/A (1.000) | O14: N/A (1.000) | P14: N/A (1.000) | Q14: 1 | R14: 1 | S14: =AVERAGE(INDIRECT(ADDRESS(MATCH(sYear,'Calibration Factors'!$A:$A,0),CHOOSE(MATCH(E13,{"3ST","4ST","4SG"},0),14,18,20),,,"Calibration Factors")&":"&ADDRESS(MATCH(eYear,'Calibration Factors'!$A:$A,0),CHOOSE(MATCH(E13,{"3ST","4ST","4SG"},0),14,18,20)))) -> 1.6480646 | T14: =15/5 -> 3 | U14: 0.24 | V14: 0.7575830207 | W14: 1.737321685 | X14: 1.262678315 | Y14: 0.4266329205 | Z14: 0.5656742392 | AA14: 1.027742301 | AB14: =IF($E14="3ST",(IF($K14=0,1,(HLOOKUP($K14,Tables!$AC$20:$AF$26,3,FALSE)))),(IF($E14="4ST",(IF($K14=0,1,(HLOOKUP($K14,Tables!$AC$20:$AF$26,5,FALSE)))),(IF($K14=0,1,(HLOOKUP($K14,Tables!$AC$20:$AF$26,7,FALSE))))))) -> 1 | AC14: =IF($E14="3ST",(IF($L14=0,1,(HLOOKUP($L14,Tables!$AC$36:$AF$42,3,FALSE)))),(IF($E14="4ST",(IF($L14=0,1,(HLOOKUP($L14,Tables!$AC$36:$AF$42,5,FALSE)))),(IF($L14=0,1,(HLOOKUP($L14,Tables!$AC$36:$AF$42,7,FALSE))))))) -> 1 | AD14: =IF(($M14="NP"),1,(1-0.38*(IF(Inputs!$B$3="HSM",(VLOOKUP( $E14,Tables!$B$97:$F$99,4,FALSE)),(VLOOKUP($E14,Tables!$B$97:$H$99,6,FALSE)))))) -> 1 | AE14: =OFFSET(Tables!$AO$1,MATCH(N14,Tables!$AO:$AO,0)-1,1) -> 1 | AF14: =OFFSET(Tables!$AO$1,MATCH(O14,Tables!$AO:$AO,0)-1,1) -> 1 | AG14: =OFFSET(Tables!$AO$1,MATCH(P14,Tables!$AO:$AO,0)-1,1) -> 1 | AH14: 1 | AI14: 1.027742301 | AJ14: 0.7871601469 | AK14: 0.24 | AL14: =IF($E14="3ST",IF(Inputs!$B$3="HSM",Tables!$E$55,Tables!$K$55),(IF($E14="4ST",(IF(Inputs!$B$3="HSM",Tables!$G$55,Tables!$M$55)),(IF(Inputs!$B$3="HSM",Tables!$I$55,Tables!$O$55)))))/100 -> 1 | AM14: 0.7871601469 | AN14: 1.027742301 | AO14: =IF(Inputs!$B$3<>"HSM",$S14,$R14) -> 1.6480646 | AP14: 1.333280604 | AQ14: =IF($E14="3ST",IF(Inputs!$B$3="HSM",Tables!$E$53,Tables!$K$53),(IF($E14="4ST",(IF(Inputs!$B$3="HSM",Tables!$G$53,Tables!$M$53)),(IF(Inputs!$B$3="HSM",Tables!$I$53,Tables!$O$53)))))/100 -> 0.235 | AR14: 0.1849826345 | AS14: 1.027742301 | AT14: =IF(Inputs!$B$3<>"HSM",$S14,$R14) -> 1.6480646 | AU14: 0.3133209419 | AV14: =IF($E14="3ST",IF(Inputs!$B$3="HSM",Tables!$E$54,Tables!$K$54),(IF($E14="4ST",(IF(Inputs!$B$3="HSM",Tables!$G$54,Tables!$M$54)),(IF(Inputs!$B$3="HSM",Tables!$I$54,Tables!$O$54)))))/100 -> 0.765 | AW14: 0.6021775124 | AX14: 1.027742301 | AY14: =IF(Inputs!$B$3<>"HSM",$S14,$R14) -> 1.6480646 | AZ14: 1.019959662 | BA14: =IF(Inputs!$B$3="HSM",(IF($E14="3ST",Tables!$G$80,(IF($E14="4ST",Tables!$J$80,Tables!$M$80)))/100),(IF($E14="3ST",Tables!$P$80,(IF($E14="4ST",+Tables!$S$80,+Tables!$V$80)))/100)) -> 1 | BB14: 1.333280604 | BC14: =IF(Inputs!$B$3="HSM",(IF($E14="3ST",Tables!$E$80,(IF($E14="4ST",Tables!$H$80,Tables!$K$80)))/100),(IF($E14="3ST",Tables!$N$80,(IF($E14="4ST",+Tables!$Q$80,+Tables!$T$80)))/100)) -> 1 | BD14: 0.3133209419 | BE14: =IF(Inputs!$B$3="HSM",(IF($E14="3ST",Tables!$F$80,(IF($E14="4ST",Tables!$I$80,Tables!$L$80)))/100),(IF($E14="3ST",Tables!$O$80,(IF($E14="4ST",+Tables!$R$80,+Tables!$U$80)))/100)) -> 1 | BF14: 1.019959662 | BG14: =IF(Inputs!$B$3="HSM",(IF($E14="3ST",Tables!$G$66,(IF($E14="4ST",Tables!$J$66,Tables!$M$66)))/100),(IF($E14="3ST",Tables!$P$66,(IF($E14="4ST",+Tables!$S$66,+Tables!$V$66)))/100)) -> 0.223 | BH14: =IF(Inputs!$B$3="HSM",(IF($E14="3ST",Tables!$G$67,(IF($E14="4ST",Tables!$J$67,Tables!$M$67)))/100),(IF($E14="3ST",Tables!$P$67,(IF($E14="4ST",+Tables!$S$67,+Tables!$V$67)))/100)) -> 0.004 | BI14: =IF(Inputs!$B$3="HSM",(IF($E14="3ST",Tables!$G$68,(IF($E14="4ST",Tables!$J$68,Tables!$M$68)))/100),(IF($E14="3ST",Tables!$P$68,(IF($E14="4ST",+Tables!$S$68,+Tables!$V$68)))/100)) -> 0.004 | BJ14: =IF(Inputs!$B$3="HSM",(IF($E14="3ST",Tables!$G$69,(IF($E14="4ST",Tables!$J$69,Tables!$M$69)))/100),(IF($E14="3ST",Tables!$P$69,(IF($E14="4ST",+Tables!$S$69,+Tables!$V$69)))/100)) -> 0.018 | BK14: =IF(Inputs!$B$3="HSM",(IF($E14="3ST",Tables!$G$70,(IF($E14="4ST",Tables!$J$70,Tables!$M$70)))/100),(IF($E14="3ST",Tables!$P$70,(IF($E14="4ST",+Tables!$S$70,+Tables!$V$70)))/100)) -> 0.11 | BL14: =IF(Inputs!$B$3="HSM",(IF($E14="3ST",Tables!$G$71,(IF($E14="4ST",Tables!$J$71,Tables!$M$71)))/100),(IF($E14="3ST",Tables!$P$71,(IF($E14="4ST",+Tables!$S$71,+Tables!$V$71)))/100)) -> 0.016 | BM14: =IF(Inputs!$B$3="HSM",(IF($E14="3ST",Tables!$G$72,(IF($E14="4ST",Tables!$J$72,Tables!$M$72)))/100),(IF($E14="3ST",Tables!$P$72,(IF($E14="4ST",+Tables!$S$72,+Tables!$V$72)))/100)) -> 0.375 | BN14: 0.2973215747 | BO14: 0.005333122416 | BP14: 0.005333122416 | BQ14: 0.02399905087 | BR14: 0.1466608664 | BS14: 0.02133248966 | BT14: 0.4999802265 | BU14: =IF(Inputs!$B$3="HSM",(IF($E14="3ST",Tables!$E$66,(IF($E14="4ST",Tables!$H$66,Tables!$K$66)))/100),(IF($E14="3ST",Tables!$N$66,(IF($E14="4ST",+Tables!$Q$66,+Tables!$T$66)))/100)) -> 0.015 | BV14: =IF(Inputs!$B$3="HSM",(IF($E14="3ST",Tables!$E$67,(IF($E14="4ST",Tables!$H$67,Tables!$K$67)))/100),(IF($E14="3ST",Tables!$N$67,(IF($E14="4ST",+Tables!$Q$67,+Tables!$T$67)))/100)) -> 0.012 | BW14: =IF(Inputs!$B$3="HSM",(IF($E14="3ST",Tables!$E$68,(IF($E14="4ST",Tables!$H$68,Tables!$K$68)))/100),(IF($E14="3ST",Tables!$N$68,(IF($E14="4ST",+Tables!$Q$68,+Tables!$T$68)))/100)) -> 0.015 | BX14: =IF(Inputs!$B$3="HSM",(IF($E14="3ST",Tables!$E$69,(IF($E14="4ST",Tables!$H$69,Tables!$K$69)))/100),(IF($E14="3ST",Tables!$N$69,(IF($E14="4ST",+Tables!$Q$69,+Tables!$T$69)))/100)) -> 0.031 | BY14: =IF(Inputs!$B$3="HSM",(IF($E14="3ST",Tables!$E$70,(IF($E14="4ST",Tables!$H$70,Tables!$K$70)))/100),(IF($E14="3ST",Tables!$N$70,(IF($E14="4ST",+Tables!$Q$70,+Tables!$T$70)))/100)) -> 0.085 | BZ14: =IF(Inputs!$B$3="HSM",(IF($E14="3ST",Tables!$E$71,(IF($E14="4ST",Tables!$H$71,Tables!$K$71)))/100),(IF($E14="3ST",Tables!$N$71,(IF($E14="4ST",+Tables!$Q$71,+Tables!$T$71)))/100)) -> 0.015 | CA14: =IF(Inputs!$B$3="HSM",(IF($E14="3ST",Tables!$E$72,(IF($E14="4ST",Tables!$H$72,Tables!$K$72)))/100),(IF($E14="3ST",Tables!$N$72,(IF($E14="4ST",+Tables!$Q$72,+Tables!$T$72)))/100)) -> 0.173 | CB14: 0.004699814129 | CC14: 0.003759851303 | CD14: 0.004699814129 | CE14: 0.009712949199 | CF14: 0.02663228006 | CG14: 0.004699814129 | CH14: 0.05420452295 | CI14: =IF(Inputs!$B$3="HSM",(IF($E14="3ST",Tables!$F$66,(IF($E14="4ST",Tables!$I$66,Tables!$L$66)))/100),(IF($E14="3ST",Tables!$O$66,(IF($E14="4ST",+Tables!$R$66,+Tables!$U$66)))/100)) -> 0.288 | CJ14: =IF(Inputs!$B$3="HSM",(IF($E14="3ST",Tables!$F$67,(IF($E14="4ST",Tables!$I$67,Tables!$L$67)))/100),(IF($E14="3ST",Tables!$O$67,(IF($E14="4ST",+Tables!$R$67,+Tables!$U$67)))/100)) -> 0.001 | CK14: =IF(Inputs!$B$3="HSM",(IF($E14="3ST",Tables!$F$68,(IF($E14="4ST",Tables!$I$68,Tables!$L$68)))/100),(IF($E14="3ST",Tables!$O$68,(IF($E14="4ST",+Tables!$R$68,+Tables!$U$68)))/100)) -> 0 | CL14: =IF(Inputs!$B$3="HSM",(IF($E14="3ST",Tables!$F$69,(IF($E14="4ST",Tables!$I$69,Tables!$L$69)))/100),(IF($E14="3ST",Tables!$O$69,(IF($E14="4ST",+Tables!$R$69,+Tables!$U$69)))/100)) -> 0.014 | CM14: =IF(Inputs!$B$3="HSM",(IF($E14="3ST",Tables!$F$70,(IF($E14="4ST",Tables!$I$70,Tables!$L$70)))/100),(IF($E14="3ST",Tables!$O$70,(IF($E14="4ST",+Tables!$R$70,+Tables!$U$70)))/100)) -> 0.118 | CN14: =IF(Inputs!$B$3="HSM",(IF($E14="3ST",Tables!$F$71,(IF($E14="4ST",Tables!$I$71,Tables!$L$71)))/100),(IF($E14="3ST",Tables!$O$71,(IF($E14="4ST",+Tables!$R$71,+Tables!$U$71)))/100)) -> 0.017 | CO14: =IF(Inputs!$B$3="HSM",(IF($E14="3ST",Tables!$F$72,(IF($E14="4ST",Tables!$I$72,Tables!$L$72)))/100),(IF($E14="3ST",Tables!$O$72,(IF($E14="4ST",+Tables!$R$72,+Tables!$U$72)))/100)) -> 0.438 | CP14: 0.2937483827 | CQ14: 0.001019959662 | CR14: 0 | CS14: 0.01427943527 | CT14: 0.1203552401 | CU14: 0.01733931425 | CV14: 0.446742332 | CW14: =IF(Inputs!$B$3="HSM",(IF($E14="3ST",Tables!$G$74,(IF($E14="4ST",Tables!$J$74,Tables!$M$74)))/100),(IF($E14="3ST",Tables!$P$74,(IF($E14="4ST",+Tables!$S$74,+Tables!$V$74)))/100)) -> 0.238 | CX14: =IF(Inputs!$B$3="HSM",(IF($E14="3ST",Tables!$G$75,(IF($E14="4ST",Tables!$J$75,Tables!$M$75)))/100),(IF($E14="3ST",Tables!$P$75,(IF($E14="4ST",+Tables!$S$75,+Tables!$V$75)))/100)) -> 0.041 | CY14: =IF(Inputs!$B$3="HSM",(IF($E14="3ST",Tables!$G$76,(IF($E14="4ST",Tables!$J$76,Tables!$M$76)))/100),(IF($E14="3ST",Tables!$P$76,(IF($E14="4ST",+Tables!$S$76,+Tables!$V$76)))/100)) -> 0.181 | CZ14: =IF(Inputs!$B$3="HSM",(IF($E14="3ST",Tables!$G$77,(IF($E14="4ST",Tables!$J$77,Tables!$M$77)))/100),(IF($E14="3ST",Tables!$P$77,(IF($E14="4ST",+Tables!$S$77,+Tables!$V$77)))/100)) -> 0.074 | DA14: =IF(Inputs!$B$3="HSM",(IF($E14="3ST",Tables!$G$78,(IF($E14="4ST",Tables!$J$78,Tables!$M$78)))/100),(IF($E14="3ST",Tables!$P$78,(IF($E14="4ST",+Tables!$S$78,+Tables!$V$78)))/100)) -> 0.091 | DB14: =IF(Inputs!$B$3="HSM",(IF($E14="3ST",Tables!$G$79,(IF($E14="4ST",Tables!$J$79,Tables!$M$79)))/100),(IF($E14="3ST",Tables!$P$79,(IF($E14="4ST",+Tables!$S$79,+Tables!$V$79)))/100)) -> 0.625 | DC14: 0.3173207837 | DD14: 0.05466450476 | DE14: 0.2413237893 | DF14: 0.09866276469 | DG14: 0.121328535 | DH14: 0.8333003774 | DI14: =IF(Inputs!$B$3="HSM",(IF($E14="3ST",Tables!$E$74,(IF($E14="4ST",Tables!$H$74,Tables!$K$74)))/100),(IF($E14="3ST",Tables!$N$74,(IF($E14="4ST",+Tables!$Q$74,+Tables!$T$74)))/100)) -> 0.416 | DJ14: =IF(Inputs!$B$3="HSM",(IF($E14="3ST",Tables!$E$75,(IF($E14="4ST",Tables!$H$75,Tables!$K$75)))/100),(IF($E14="3ST",Tables!$N$75,(IF($E14="4ST",+Tables!$Q$75,+Tables!$T$75)))/100)) -> 0.09 | DK14: =IF(Inputs!$B$3="HSM",(IF($E14="3ST",Tables!$E$76,(IF($E14="4ST",Tables!$H$76,Tables!$K$76)))/100),(IF($E14="3ST",Tables!$N$76,(IF($E14="4ST",+Tables!$Q$76,+Tables!$T$76)))/100)) -> 0.207 | DL14: =IF(Inputs!$B$3="HSM",(IF($E14="3ST",Tables!$E$77,(IF($E14="4ST",Tables!$H$77,Tables!$K$77)))/100),(IF($E14="3ST",Tables!$N$77,(IF($E14="4ST",+Tables!$Q$77,+Tables!$T$77)))/100)) -> 0.047 | DM14: =IF(Inputs!$B$3="HSM",(IF($E14="3ST",Tables!$E$78,(IF($E14="4ST",Tables!$H$78,Tables!$K$78)))/100),(IF($E14="3ST",Tables!$N$78,(IF($E14="4ST",+Tables!$Q$78,+Tables!$T$78)))/100)) -> 0.067 | DN14: =IF(Inputs!$B$3="HSM",(IF($E14="3ST",Tables!$E$79,(IF($E14="4ST",Tables!$H$79,Tables!$K$79)))/100),(IF($E14="3ST",Tables!$N$79,(IF($E14="4ST",+Tables!$Q$79,+Tables!$T$79)))/100)) -> 0.827 | DO14: 0.1303415118 | DP14: 0.02819888477 | DQ14: 0.06485743498 | DR14: 0.01472608427 | DS14: 0.02099250311 | DT14: 0.259116419 | DU14: =IF(Inputs!$B$3="HSM",(IF($E14="3ST",Tables!$F$74,(IF($E14="4ST",Tables!$I$74,Tables!$L$74)))/100),(IF($E14="3ST",Tables!$O$74,(IF($E14="4ST",+Tables!$R$74,+Tables!$U$74)))/100)) -> 0.181 | DV14: =IF(Inputs!$B$3="HSM",(IF($E14="3ST",Tables!$F$75,(IF($E14="4ST",Tables!$I$75,Tables!$L$75)))/100),(IF($E14="3ST",Tables!$O$75,(IF($E14="4ST",+Tables!$R$75,+Tables!$U$75)))/100)) -> 0.026 | DW14: =IF(Inputs!$B$3="HSM",(IF($E14="3ST",Tables!$F$76,(IF($E14="4ST",Tables!$I$76,Tables!$L$76)))/100),(IF($E14="3ST",Tables!$O$76,(IF($E14="4ST",+Tables!$R$76,+Tables!$U$76)))/100)) -> 0.174 | DX14: =IF(Inputs!$B$3="HSM",(IF($E14="3ST",Tables!$F$77,(IF($E14="4ST",Tables!$I$77,Tables!$L$77)))/100),(IF($E14="3ST",Tables!$O$77,(IF($E14="4ST",+Tables!$R$77,+Tables!$U$77)))/100)) -> 0.083 | DY14: =IF(Inputs!$B$3="HSM",(IF($E14="3ST",Tables!$F$78,(IF($E14="4ST",Tables!$I$78,Tables!$L$78)))/100),(IF($E14="3ST",Tables!$O$78,(IF($E14="4ST",+Tables!$R$78,+Tables!$U$78)))/100)) -> 0.098 | DZ14: =IF(Inputs!$B$3="HSM",(IF($E14="3ST",Tables!$F$79,(IF($E14="4ST",Tables!$I$79,Tables!$L$79)))/100),(IF($E14="3ST",Tables!$O$79,(IF($E14="4ST",+Tables!$R$79,+Tables!$U$79)))/100)) -> 0.562 | EA14: 0.1846126988 | EB14: 0.02651895121 | EC14: 0.1774729812 | ED14: 0.08465665195 | EE14: 0.09995604687 | EF14: 0.57321733 | EG14: 1 | EH14: 0.235 | EI14: 0.765 | EJ14: 1.019959662 | EK14: 0.3133209419 | EL14: 1.333280604

Sheet Rural Divided Multilane Seg
A1: Worksheet 1A -- General Information and Input Data for Rural Divided Multilane Roadway Segments | S1: Empirical Bayes Analysis | Z1: Worksheet 1B (a) -- Crash Modification Factors for Rural Multilane Divided Roadway Segments | AJ1: Table 11-16: CMF for Lane Width on Divided Roadway Segments (CMFRA) | BE1: Worksheet 1C (a) -- Roadway Segment Crashes for Rural Multilane Divided Roadway Segments | CK1: Worksheet 1D (a) -- Crashes by Severity Level and Collision Type for Rural Multilane Divided Roadway Segments | EO1: Worksheet 1E -- Summary Results for Rural Multilane Roadway Segments
AJ2: AADT (vehicles/day) < 400 | AQ2: 400 <= AADT (vehicles/day) <= 2,000 | AX2: AADT (vehicles/day) > 2,000 | BE2: Total | BM2: Fatal and Injury (FI) | BU2: Fatal and Injury (FI, KAB only) | CC2: Property Damage Only (PDO) | CK2: Total | CS2: Head-on collision | DA2: Sideswipe collision | DI2: Rear-end collision | DQ2: Angle collision | DY2: Single-vehicle collision | EG2: Other Collision | EO2: Property Damage Only (PDO) | ER2: Fatal and Injurya (FIa, KAB only) | EU2: Fatal and Injury (FI) | EX2: Total
E3: N | F3: N | AJ3: Lane Width (feet)
A4: # | B4: Roadway | C4: Roadway Section | D4: Jurisdiction | E4: Length of segment, L (miles) | F4: AADT (vehicles/day) | G4: Lane width (feet) | H4: Average Shoulder Width (feet) | I4: Shoulder Type | J4: Median Width (feet) | K4: Segment lighting (present/not present) | L4: Auto speed enforcement (present/not present) | M4: Additional CMF - 1 | N4: Additional CMF - 2 | O4: Additional CMF - 3 | P4: Additional CMF - Numeric | Q4: Calibration Factor, Cr | R4: Calibration Factor, Cr | S4: Observed Crashes Nobserved (crashes/year) | T4: Ovedispersion Parameter, k | U4: Weighted Adjustment, w (Equation A-5 from Part C Appendix) | V4: Expected Average Crash Frequency, Nexpected (Equation A-4 from Part C Appendix) | W4: Excess Expected Crashes Nobserved - Nexpected | X4: Nw0 (Equation A-8) | Y4: Nw1 (Equation A-9) | Z4: (1) CMF for Lane Width CMF 1rd from Equation 11-16 | AA4: (2) CMF for Shoulder Width and Type CMF 2rd from Equation 11-17 | AB4: (3) CMF for Median Width CMF 3rd from Equation 11-18 | AC4: (4) CMF for Lighting CMF 4rd from Equation 11-17 | AD4: (5) CMF for Automated Speed Enforcement CMF 12rd from Section 11.7.2 | AE4: Additional CMF - 1 | AF4: Additional CMF - 2 | AG4: Additional CMF - 3 | AH4: Additional CMF - Numeric | AI4: (6) Combined CMF CMF comb (1)x(2)x (3) x(4)x(5) | AJ4: 9 | AK4: 9.5 | AL4: 10 | AM4: 10.5 | AN4: 11 | AO4: 11.5 | AP4: 12 | AQ4: 9 | AR4: 9.5 | AS4: 10 | AT4: 10.5 | AU4: 11 | AV4: 11.5 | AW4: 12 | AX4: 9 | AY4: 9.5 | AZ4: 10 | BA4: 10.5 | BB4: 11 | BC4: 11.5 | BD4: 12 | BE4: (2) SPF Coefficient, a (from Table 11-5 | BF4: (2) SPF Coefficient, b (from Table 11-5 | BG4: (2) SPF Coefficient, c (from Table 11-5 | BH4: (3) N spf rd (from Equation 11-9) | BI4: (4) Overdispersion Parameter, k (from Equation 11-10) | BJ4: (5) Combined CMFs (6) from Worksheet 1B (a) | BK4: (6) Calibration Factor, Cr | BL4: (7) Predicted average crash frequency, N predicted rs (d) (crashes/year) (3)x(5)x(6) | BM4: (2) SPF Coefficient, a (from Table 11-5 | BN4: (2) SPF Coefficient, b (from Table 11-5 | BO4: (2) SPF Coefficient, c (from Table 11-5 | BP4: (3) N spf rd (from Equation 11-9) | BQ4: (4) Overdispersion Parameter, k (from Equation 11-10) | BR4: (5) Combined CMFs (6) from Worksheet 1B (a) | BS4: (6) Calibration Factor, Cr | BT4: (7) Predicted average crash frequency, N predicted rs (d) (crashes/year) (3)x(5)x(6) | BU4: (2) SPF Coefficient, a (from Table 11-5 | BV4: (2) SPF Coefficient, b (from Table 11-5 | BW4: (2) SPF Coefficient, c (from Table 11-5 | BX4: (3) N spf rd (from Equation 11-9) | BY4: (4) Overdispersion Parameter, k (from Equation 11-10) | BZ4: (5) Combined CMFs (6) from Worksheet 1B (a) | CA4: (6) Calibration Factor, Cr | CB4: (7) Predicted average crash frequency, N predicted rs (d) (crashes/year) (3)x(5)x(6) | CC4: (2) SPF Coefficient, a (from Table 11-5 | CD4: (2) SPF Coefficient, b (from Table 11-5 | CE4: (2) SPF Coefficient, c (from Table 11-5 | CF4: (3) N spf rd (from Equation 11-9) | CG4: (4) Overdispersion Parameter, k (from Equation 11-10) | CH4: (5) Combined CMFs (6) from Worksheet 1B (a) | CI4: (6) Calibration Factor, Cr | CJ4: (7) Predicted average crash frequency, N predicted rs (d) (crashes/year) (3)x(5)x(6) | CK4: (2) Proportion of Collision Type(TOTAL) from Table 11-5 | CL4: (3) N predicted rs(d) (TOTAL) (crashes/year) (7)TOTAL from Worksheet 1C (a) | CM4: (4) Proportion of Collision Type(FI) from Table 11-6 | CN4: (5) N predicted rs(d) (FI) (crashes/year) (7)FI from Worksheet 1C (a) | CO4: (6) Proportion of Collision Type(FIa) from Table 11-6 | CP4: (7) N predicted rs(d) (FIa) (crashes/year) (7)FI from Worksheet 1C (a) | CQ4: (8) Proportion of Collision Type(PDO) from Table 11-6 | CR4: (8) N predicted rs(d) (PDO) (crashes/year) (7)PDO from Worksheet 1C (a) | CS4: (2) Proportion of Collision Type(TOTAL) from Table 11-5 | CT4: (3) N predicted rs(d) (TOTAL) (crashes/year) (7)TOTAL from Worksheet 1C (a) | CU4: (4) Proportion of Collision Type(FI) from Table 11-6 | CV4: (5) N predicted rs(d) (FI) (crashes/year) (7)FI from Worksheet 1C (a) | CW4: (6) Proportion of Collision Type(FIa) from Table 11-6 | CX4: (7) N predicted rs(d) (FIa) (crashes/year) (7)FI from Worksheet 1C (a) | CY4: (8) Proportion of Collision Type(PDO) from Table 11-6 | CZ4: (8) N predicted rs(d) (PDO) (crashes/year) (7)PDO from Worksheet 1C (a) | DA4: (2) Proportion of Collision Type(TOTAL) from Table 11-5 | DB4: (3) N predicted rs(d) (TOTAL) (crashes/year) (7)TOTAL from Worksheet 1C (a) | DC4: (4) Proportion of Collision Type(FI) from Table 11-6 | DD4: (5) N predicted rs(d) (FI) (crashes/year) (7)FI from Worksheet 1C (a) | DE4: (6) Proportion of Collision Type(FIa) from Table 11-6 | DF4: (7) N predicted rs(d) (FIa) (crashes/year) (7)FI from Worksheet 1C (a) | DG4: (8) Proportion of Collision Type(PDO) from Table 11-6 | DH4: (8) N predicted rs(d) (PDO) (crashes/year) (7)PDO from Worksheet 1C (a) | DI4: (2) Proportion of Collision Type(TOTAL) from Table 11-5 | DJ4: (3) N predicted rs(d) (TOTAL) (crashes/year) (7)TOTAL from Worksheet 1C (a) | DK4: (4) Proportion of Collision Type(FI) from Table 11-6 | DL4: (5) N predicted rs(d) (FI) (crashes/year) (7)FI from Worksheet 1C (a) | DM4: (6) Proportion of Collision Type(FIa) from Table 11-6 | DN4: (7) N predicted rs(d) (FIa) (crashes/year) (7)FI from Worksheet 1C (a) | DO4: (8) Proportion of Collision Type(PDO) from Table 11-6 | DP4: (8) N predicted rs(d) (PDO) (crashes/year) (7)PDO from Worksheet 1C (a) | DQ4: (2) Proportion of Collision Type(TOTAL) from Table 11-5 | DR4: (3) N predicted rs(d) (TOTAL) (crashes/year) (7)TOTAL from Worksheet 1C (a) | DS4: (4) Proportion of Collision Type(FI) from Table 11-6 | DT4: (5) N predicted rs(d) (FI) (crashes/year) (7)FI from Worksheet 1C (a) | DU4: (6) Proportion of Collision Type(FIa) from Table 11-6 | DV4: (7) N predicted rs(d) (FIa) (crashes/year) (7)FI from Worksheet 1C (a) | DW4: (8) Proportion of Collision Type(PDO) from Table 11-6 | DX4: (8) N predicted rs(d) (PDO) (crashes/year) (7)PDO from Worksheet 1C (a) | DY4: (2) Proportion of Collision Type(TOTAL) from Table 11-5 | DZ4: (3) N predicted rs(d) (TOTAL) (crashes/year) (7)TOTAL from Worksheet 1C (a) | EA4: (4) Proportion of Collision Type(FI) from Table 11-6 | EB4: (5) N predicted rs(d) (FI) (crashes/year) (7)FI from Worksheet 1C (a) | EC4: (6) Proportion of Collision Type(FIa) from Table 11-6 | ED4: (7) N predicted rs(d) (FIa) (crashes/year) (7)FI from Worksheet 1C (a) | EE4: (8) Proportion of Collision Type(PDO) from Table 11-6 | EF4: (8) N predicted rs(d) (PDO) (crashes/year) (7)PDO from Worksheet 1C (a) | EG4: (2) Proportion of Collision Type(TOTAL) from Table 11-5 | EH4: (3) N predicted rs(d) (TOTAL) (crashes/year) (7)TOTAL from Worksheet 1C (a) | EI4: (4) Proportion of Collision Type(FI) from Table 11-6 | EJ4: (5) N predicted rs(d) (FI) (crashes/year) (7)FI from Worksheet 1C (a) | EK4: (6) Proportion of Collision Type(FIa) from Table 11-6 | EL4: (7) N predicted rs(d) (FIa) (crashes/year) (7)FI from Worksheet 1C (a) | EM4: (8) Proportion of Collision Type(PDO) from Table 11-6 | EN4: (8) N predicted rs(d) (PDO) (crashes/year) (7)PDO from Worksheet 1C (a) | EO4: Predicted average crash frequency (crashes/year) | EP4: Roadway segment length (miles) | EQ4: Crash rate (crashes/mile/year) | ER4: Predicted average crash frequency (crashes/year) | ES4: Roadway segment length (miles) | ET4: Crash rate (crashes/mile/year) | EU4: Predicted average crash frequency (crashes/year) | EV4: Roadway segment length (miles) | EW4: Crash rate (crashes/mile/year) | EX4: Predicted average crash frequency (crashes/year) | EY4: Roadway segment length (miles) | EZ4: Crash rate (crashes/mile/year)

Sheet Rural Undivided Multilane Seg
A1: Worksheet 1A -- General Information and Input Data for Rural Undivided Multilane Roadway Segments | S1: Empirical Bayes Analysis | Z1: Worksheet 1B (b) -- Crash Modification Factors for Rural Multilane Undivided Roadway Segments | AJ1: Calculations for the CMF for Shoulder Type and Widths | AL1: Table 11-16: CMF for Lane Width on Divided Roadway Segments (CMFRA) | BG1: Table 11-12: CMF for Collision Types Related to Shoulder Width (CMFWRA) | CH1: Worksheet 1C (b) -- Roadway Segment Crashes for Rural Multilane Undivided Roadway Segments | DN1: Worksheet 1D (b) -- Crashes by Severity Level and Collision Type for Rural Multilane Undivided Roadway Segments | FR1: Worksheet 1E -- Summary Results for Rural Multilane Roadway Segments
AL2: AADT (vehicles/day) < 400 | AS2: 400 <= AADT (vehicles/day) <= 2,000 | AZ2: AADT (vehicles/day) > 2,000 | BG2: AADT (vehicles/day) < 400 | BP2: 400 <= AADT (vehicles/day) <= 2,000 | BY2: AADT (vehicles/day) > 2,000 | CH2: Total | CP2: Fatal and Injury (FI) | CX2: Fatal and Injury (FI, KAB only) | DF2: Property Damage Only (PDO) | DN2: Total | DV2: Head-on collision | ED2: Sideswipe collision | EL2: Rear-end collision | ET2: Angle collision | FB2: Single-vehicle collision | FJ2: Other Collision | FR2: Property Damage Only (PDO) | FU2: Fatal and Injurya (FIa, KAB only) | FX2: Fatal and Injury (FI) | GA2: Total
E3: N | F3: N | AL3: Lane Width (feet) | BG3: Shoulder Width (feet)
A4: # | B4: Roadway | C4: Roadway Section | D4: Jurisdiction | E4: Length of segment, L (miles) | F4: AADT (vehicles/day) | G4: Lane width (feet) | H4: Average Shoulder Width (feet) | I4: Shoulder Type | J4: Side Slopes | K4: Segment lighting (present/not present) | L4: Auto speed enforcement (present/not present) | M4: Additional CMF - 1 | N4: Additional CMF - 2 | O4: Additional CMF - 3 | P4: Additional CMF - Numeric | Q4: Calibration Factor, Cr | R4: Calibration Factor, Cr | S4: Observed Crashes Nobserved (crashes/year) | T4: Ovedispersion Parameter, k | U4: Weighted Adjustment, w (Equation A-5 from Part C Appendix) | V4: Expected Average Crash Frequency, Nexpected (Equation A-4 from Part C Appendix) | W4: Excess Expected Crashes Nobserved - Nexpected | X4: Nw0 (Equation A-8) | Y4: Nw1 (Equation A-9) | Z4: (1) CMF for Lane Width CMF 1ru from Equation 11-13 | AA4: (2) CMF for Shoulder Width and Type CMF 2ru from Equation 11-14 | AB4: (3) CMF for Side Slopes CMF 3ru from Table 11-14 | AC4: (4) CMF for Lighting CMF 4ru from Equation 11-15 | AD4: (5) CMF for Automated Speed Enforcement CMF 12ru from Section 11.7.1 | AE4: Additional CMF - 1 | AF4: Additional CMF - 2 | AG4: Additional CMF - 3 | AH4: Additional CMF - Numeric | AI4: (6) Combined CMF CMF comb (1)x(2)x(3)x(4)x(5) | AJ4: Calculated Shoulder Width (CMFwrc) | AK4: Calculated Shoulder Type (CMF trc) | AL4: 9 | AM4: 9.5 | AN4: 10 | AO4: 10.5 | AP4: 11 | AQ4: 11.5 | AR4: 12 | AS4: 9 | AT4: 9.5 | AU4: 10 | AV4: 10.5 | AW4: 11 | AX4: 11.5 | AY4: 12 | AZ4: 9 | BA4: 9.5 | BB4: 10 | BC4: 10.5 | BD4: 11 | BE4: 11.5 | BF4: 12 | BG4: 0 | BH4: 1 | BI4: 2 | BJ4: 3 | BK4: 4 | BL4: 5 | BM4: 6 | BN4: 7 | BO4: 8 | BP4: 0 | BQ4: 1 | BR4: 2 | BS4: 3 | BT4: 4 | BU4: 5 | BV4: 6 | BW4: 7 | BX4: 8 | BY4: 0 | BZ4: 1 | CA4: 2 | CB4: 3 | CC4: 4 | CD4: 5 | CE4: 6 | CF4: 7 | CG4: 8 | CH4: (2) SPF Coefficient, a (from Table 11-5 | CI4: (2) SPF Coefficient, b (from Table 11-5 | CJ4: (2) SPF Coefficient, c (from Table 11-5 | CK4: (3) N spf rd (from Equation 11-9) | CL4: (4) Overdispersion Parameter, k (from Equation 11-10) | CM4: (5) Combined CMFs (6) from Worksheet 1B (a) | CN4: (6) Calibration Factor, Cr | CO4: (7) Predicted average crash frequency, N predicted rs (d) (crashes/year) (3)x(5)x(6) | CP4: (2) SPF Coefficient, a (from Table 11-5 | CQ4: (2) SPF Coefficient, b (from Table 11-5 | CR4: (2) SPF Coefficient, c (from Table 11-5 | CS4: (3) N spf rd (from Equation 11-9) | CT4: (4) Overdispersion Parameter, k (from Equation 11-10) | CU4: (5) Combined CMFs (6) from Worksheet 1B (a) | CV4: (6) Calibration Factor, Cr | CW4: (7) Predicted average crash frequency, N predicted rs (d) (crashes/year) (3)x(5)x(6) | CX4: (2) SPF Coefficient, a (from Table 11-5 | CY4: (2) SPF Coefficient, b (from Table 11-5 | CZ4: (2) SPF Coefficient, c (from Table 11-5 | DA4: (3) N spf rd (from Equation 11-9) | DB4: (4) Overdispersion Parameter, k (from Equation 11-10) | DC4: (5) Combined CMFs (6) from Worksheet 1B (a) | DD4: (6) Calibration Factor, Cr | DE4: (7) Predicted average crash frequency, N predicted rs (d) (crashes/year) (3)x(5)x(6) | DF4: (2) SPF Coefficient, a (from Table 11-5 | DG4: (2) SPF Coefficient, b (from Table 11-5 | DH4: (2) SPF Coefficient, c (from Table 11-5 | DI4: (3) N spf rd (from Equation 11-9) | DJ4: (4) Overdispersion Parameter, k (from Equation 11-10) | DK4: (5) Combined CMFs (6) from Worksheet 1B (a) | DL4: (6) Calibration Factor, Cr | DM4: (7) Predicted average crash frequency, N predicted rs (d) (crashes/year) (3)x(5)x(6) | DN4: (2) Proportion of Collision Type(TOTAL) from Table 11-5 | DO4: (3) N predicted rs(d) (TOTAL) (crashes/year) (7)TOTAL from Worksheet 1C (a) | DP4: (4) Proportion of Collision Type(FI) from Table 11-6 | DQ4: (5) N predicted rs(d) (FI) (crashes/year) (7)FI from Worksheet 1C (a) | DR4: (6) Proportion of Collision Type(FIa) from Table 11-6 | DS4: (7) N predicted rs(d) (FIa) (crashes/year) (7)FI from Worksheet 1C (a) | DT4: (8) Proportion of Collision Type(PDO) from Table 11-6 | DU4: (8) N predicted rs(d) (PDO) (crashes/year) (7)PDO from Worksheet 1C (a) | DV4: (2) Proportion of Collision Type(TOTAL) from Table 11-5 | DW4: (3) N predicted rs(d) (TOTAL) (crashes/year) (7)TOTAL from Worksheet 1C (a) | DX4: (4) Proportion of Collision Type(FI) from Table 11-6 | DY4: (5) N predicted rs(d) (FI) (crashes/year) (7)FI from Worksheet 1C (a) | DZ4: (6) Proportion of Collision Type(FIa) from Table 11-6 | EA4: (7) N predicted rs(d) (FIa) (crashes/year) (7)FI from Worksheet 1C (a) | EB4: (8) Proportion of Collision Type(PDO) from Table 11-6 | EC4: (8) N predicted rs(d) (PDO) (crashes/year) (7)PDO from Worksheet 1C (a) | ED4: (2) Proportion of Collision Type(TOTAL) from Table 11-5 | EE4: (3) N predicted rs(d) (TOTAL) (crashes/year) (7)TOTAL from Worksheet 1C (a) | EF4: (4) Proportion of Collision Type(FI) from Table 11-6 | EG4: (5) N predicted rs(d) (FI) (crashes/year) (7)FI from Worksheet 1C (a) | EH4: (6) Proportion of Collision Type(FIa) from Table 11-6 | EI4: (7) N predicted rs(d) (FIa) (crashes/year) (7)FI from Worksheet 1C (a) | EJ4: (8) Proportion of Collision Type(PDO) from Table 11-6 | EK4: (8) N predicted rs(d) (PDO) (crashes/year) (7)PDO from Worksheet 1C (a) | EL4: (2) Proportion of Collision Type(TOTAL) from Table 11-5 | EM4: (3) N predicted rs(d) (TOTAL) (crashes/year) (7)TOTAL from Worksheet 1C (a) | EN4: (4) Proportion of Collision Type(FI) from Table 11-6 | EO4: (5) N predicted rs(d) (FI) (crashes/year) (7)FI from Worksheet 1C (a) | EP4: (6) Proportion of Collision Type(FIa) from Table 11-6 | EQ4: (7) N predicted rs(d) (FIa) (crashes/year) (7)FI from Worksheet 1C (a) | ER4: (8) Proportion of Collision Type(PDO) from Table 11-6 | ES4: (8) N predicted rs(d) (PDO) (crashes/year) (7)PDO from Worksheet 1C (a) | ET4: (2) Proportion of Collision Type(TOTAL) from Table 11-5 | EU4: (3) N predicted rs(d) (TOTAL) (crashes/year) (7)TOTAL from Worksheet 1C (a) | EV4: (4) Proportion of Collision Type(FI) from Table 11-6 | EW4: (5) N predicted rs(d) (FI) (crashes/year) (7)FI from Worksheet 1C (a) | EX4: (6) Proportion of Collision Type(FIa) from Table 11-6 | EY4: (7) N predicted rs(d) (FIa) (crashes/year) (7)FI from Worksheet 1C (a) | EZ4: (8) Proportion of Collision Type(PDO) from Table 11-6 | FA4: (8) N predicted rs(d) (PDO) (crashes/year) (7)PDO from Worksheet 1C (a) | FB4: (2) Proportion of Collision Type(TOTAL) from Table 11-5 | FC4: (3) N predicted rs(d) (TOTAL) (crashes/year) (7)TOTAL from Worksheet 1C (a) | FD4: (4) Proportion of Collision Type(FI) from Table 11-6 | FE4: (5) N predicted rs(d) (FI) (crashes/year) (7)FI from Worksheet 1C (a) | FF4: (6) Proportion of Collision Type(FIa) from Table 11-6 | FG4: (7) N predicted rs(d) (FIa) (crashes/year) (7)FI from Worksheet 1C (a) | FH4: (8) Proportion of Collision Type(PDO) from Table 11-6 | FI4: (8) N predicted rs(d) (PDO) (crashes/year) (7)PDO from Worksheet 1C (a) | FJ4: (2) Proportion of Collision Type(TOTAL) from Table 11-5 | FK4: (3) N predicted rs(d) (TOTAL) (crashes/year) (7)TOTAL from Worksheet 1C (a) | FL4: (4) Proportion of Collision Type(FI) from Table 11-6 | FM4: (5) N predicted rs(d) (FI) (crashes/year) (7)FI from Worksheet 1C (a) | FN4: (6) Proportion of Collision Type(FIa) from Table 11-6 | FO4: (7) N predicted rs(d) (FIa) (crashes/year) (7)FI from Worksheet 1C (a) | FP4: (8) Proportion of Collision Type(PDO) from Table 11-6 | FQ4: (8) N predicted rs(d) (PDO) (crashes/year) (7)PDO from Worksheet 1C (a) | FR4: Predicted average crash frequency (crashes/year) | FS4: Roadway segment length (miles) | FT4: Crash rate (crashes/mile/year) | FU4: Predicted average crash frequency (crashes/year) | FV4: Roadway segment length (miles) | FW4: Crash rate (crashes/mile/year) | FX4: Predicted average crash frequency (crashes/year) | FY4: Roadway segment length (miles) | FZ4: Crash rate (crashes/mile/year) | GA4: Predicted average crash frequency (crashes/year) | GB4: Roadway segment length (miles) | GC4: Crash rate (crashes/mile/year)

Sheet Rural Multilane Intersections
A1: Worksheet 2A -- General Information and Input Data for Rural Multilane Intersections | S1: Empirical Bayes Analysis | Z1: Worksheet 2B -- Crash Modification Factors for Rural Multilane Highway Intersections | AR1: Worksheet 2C -- Intersection Crashes for Rural Multilane Highway Intersections | BX1: Worksheet 2D -- Crashes by Severity Level and Collision Type for Rural Multilane Highway Intersections | EB1: Worksheet 2E -- Summary Results for Rural Multilane Highway Intersections
AR2: Total | AZ2: Fatal and Injury (FI) | BH2: Fatal and Injury (FI, KAB only) | BP2: Property Damage Only (PDO) | BX2: Total | CF2: Head-on collision | CN2: Sideswipe collision | CV2: Rear-end collision | DD2: Angle collision | DL2: Single-vehicle collision | DT2: Other Collision | EB2: Predicted average crash frequency (crashes/year)
E3: N | F3: N | Z3: Total | AI3: Fatal and Injury (FI)
A4: # | B4: Major Roadway | C4: Minor Roadway | D4: Jurisdiction | E4: Intersection Type (3ST, 4ST, 4SG) | F4: AADTmajor (vehicles/day) | G4: AADTminor (vehicles/day) | H4: Intersection skew angle (degrees) | I4: Number of non-STOP-controlled approaches with left-turn lanes (0, 1, 2) | J4: Number of non-STOP-controlled approaches with right-turn lanes (0, 1, 2, 3, or 4) | K4: Intersection lighting (present/not present) | L4: Additional CMF - 1 | M4: Additional CMF - 2 | N4: Additional CMF - 3 | O4: Additional CMF, numeric (Total) | P4: Additional CMF, numeric, (Fatal and Injury) | Q4: Calibration Factor, Cr | R4: Calibration Factor, Cr | S4: Observed Crashes Nobserved (crashes/year) | T4: Ovedispersion Parameter, k | U4: Weighted Adjustment, w (Equation A-5 from Part C Appendix) | V4: Expected Average Crash Frequency, Nexpected (Equation A-4 from Part C Appendix) | W4: Excess Expected Crashes Nobserved - Nexpected | X4: Nw0 (Equation A-8) | Y4: Nw1 (Equation A-9) | Z4: (2) CMF for Intersection Skew Angle (CMF 1I) from Equations 11-18 or 11-20 and 11-19 or 11-21 | AA4: (3) CMF for Left-Turn Lanes (CMF 2I) from Table 11-22 | AB4: (4) CMF for Right-Turn Lanes (CMF 3I) from Table 11-23 | AC4: (5) CMF for Lighting (CMF 4I) from Equation 11-22 | AD4: Additional CMF - 1 | AE4: Additional CMF - 2 | AF4: Additional CMF - 3 | AG4: Additional CMF, numeric (Total) | AH4: (6) Combined CMF CMF comb (2)x (3) x(4)x(5) | AI4: (2) CMF for Intersection Skew Angle (CMF 1I) from Equations 11-18 or 11-20 and 11-19 or 11-21 | AJ4: (3) CMF for Left-Turn Lanes (CMF 2I) from Table 11-22 | AK4: (4) CMF for Right-Turn Lanes (CMF 3I) from Table 11-23 | AL4: (5) CMF for Lighting (CMF 4I) from Equation 11-22 | AM4: Additional CMF - 1 | AN4: Additional CMF - 2 | AO4: Additional CMF - 3 | AP4: Additional CMF, numeric, (Fatal and Injury) | AQ4: (6) Combined CMF CMF comb (2)x (3) x(4)x(5) | AR4: (2) SPF Coefficient, a (from Table 11-7 or 11-8) | AS4: (2) SPF Coefficient, b (from Table 11-7 or 11-8) | AT4: (2) SPF Coefficient, c or d (4SG) (from Table 11-7 or 11-8) | AU4: (3) N spf int (from Equation 11-11 or 11-12) | AV4: (4) Overdispersion Parameter, k (from Equation 11-7 or 11-8) | AW4: (5) Combined CMFs (6) from Worksheet 2B | AX4: (6) Calibration Factor, Ci | AY4: (7) Predicted average crash frequency, N predicted int (crashes/year) (3)x(5)x(6) | AZ4: (2) SPF Coefficient, a (from Table 11-7 or 11-8) | BA4: (2) SPF Coefficient, b (from Table 11-7 or 11-8) | BB4: (2) SPF Coefficient, c or d (4SG) (from Table 11-7 or 11-8) | BC4: (3) N spf int (from Equation 11-11 or 11-12) | BD4: (4) Overdispersion Parameter, k (from Equation 11-7 or 11-8) | BE4: (5) Combined CMFs (6) from Worksheet 2B | BF4: (6) Calibration Factor, Ci | BG4: (7) Predicted average crash frequency, N predicted int (crashes/year) (3)x(5)x(6) | BH4: (2) SPF Coefficient, a (from Table 11-7 or 11-8) | BI4: (2) SPF Coefficient, b (from Table 11-7 or 11-8) | BJ4: (2) SPF Coefficient, c or d (4SG) (from Table 11-7 or 11-8) | BK4: (3) N spf int (from Equation 11-11 or 11-12) | BL4: (4) Overdispersion Parameter, k (from Equation 11-7 or 11-8) | BM4: (5) Combined CMFs (6) from Worksheet 2B | BN4: (6) Calibration Factor, Ci | BO4: (7) Predicted average crash frequency, N predicted int (crashes/year) (3)x(5)x(6) | BP4: (2) SPF Coefficient, a (from Table 11-7 or 11-8) | BQ4: (2) SPF Coefficient, b (from Table 11-7 or 11-8) | BR4: (2) SPF Coefficient, c or d (4SG) (from Table 11-7 or 11-8) | BS4: (3) N spf int (from Equation 11-11 or 11-12) | BT4: (4) Overdispersion Parameter, k (from Equation 11-7 or 11-8) | BU4: (5) Combined CMFs (6) from Worksheet 2B | BV4: (6) Calibration Factor, Ci | BW4: (7) Predicted average crash frequency, N predicted int (crashes/year) (3)x(5)x(6) | BX4: (2) Proportion of Collision Type(TOTAL) from Table 11-9 | BY4: (3) N predicted int (TOTAL) (crashes/year) (7)TOTAL from Worksheet 2C | BZ4: (4) Proportion of Collision Type(FI) from Table 11-9 | CA4: (5) N predicted int (FI) (crashes/year) (7)FI from Worksheet 2C | CB4: (6) Proportion of Collision Type(FIa) from Table 11-9 | CC4: (7) N predicted int (FIa) (crashes/year) (7)FIa from Worksheet 2C | CD4: (8) Proportion of Collision Type(PDO) from Table 11-9 | CE4: (8) N predicted int (PDO) (crashes/year) (7)PDO from Worksheet 2C | CF4: (2) Proportion of Collision Type(TOTAL) from Table 11-9 | CG4: (3) N predicted int (TOTAL) (crashes/year) (7)TOTAL from Worksheet 2C | CH4: (4) Proportion of Collision Type(FI) from Table 11-9 | CI4: (5) N predicted int (FI) (crashes/year) (7)FI from Worksheet 2C | CJ4: (6) Proportion of Collision Type(FIa) from Table 11-9 | CK4: (7) N predicted int (FIa) (crashes/year) (7)FIa from Worksheet 2C | CL4: (8) Proportion of Collision Type(PDO) from Table 11-9 | CM4: (8) N predicted int (PDO) (crashes/year) (7)PDO from Worksheet 2C | CN4: (2) Proportion of Collision Type(TOTAL) from Table 11-9 | CO4: (3) N predicted int (TOTAL) (crashes/year) (7)TOTAL from Worksheet 2C | CP4: (4) Proportion of Collision Type(FI) from Table 11-9 | CQ4: (5) N predicted int (FI) (crashes/year) (7)FI from Worksheet 2C | CR4: (6) Proportion of Collision Type(FIa) from Table 11-9 | CS4: (7) N predicted int (FIa) (crashes/year) (7)FIa from Worksheet 2C | CT4: (8) Proportion of Collision Type(PDO) from Table 11-9 | CU4: (8) N predicted int (PDO) (crashes/year) (7)PDO from Worksheet 2C | CV4: (2) Proportion of Collision Type(TOTAL) from Table 11-9 | CW4: (3) N predicted int (TOTAL) (crashes/year) (7)TOTAL from Worksheet 2C | CX4: (4) Proportion of Collision Type(FI) from Table 11-9 | CY4: (5) N predicted int (FI) (crashes/year) (7)FI from Worksheet 2C | CZ4: (6) Proportion of Collision Type(FIa) from Table 11-9 | DA4: (7) N predicted int (FIa) (crashes/year) (7)FIa from Worksheet 2C | DB4: (8) Proportion of Collision Type(PDO) from Table 11-9 | DC4: (8) N predicted int (PDO) (crashes/year) (7)PDO from Worksheet 2C | DD4: (2) Proportion of Collision Type(TOTAL) from Table 11-9 | DE4: (3) N predicted int (TOTAL) (crashes/year) (7)TOTAL from Worksheet 2C | DF4: (4) Proportion of Collision Type(FI) from Table 11-9 | DG4: (5) N predicted int (FI) (crashes/year) (7)FI from Worksheet 2C | DH4: (6) Proportion of Collision Type(FIa) from Table 11-9 | DI4: (7) N predicted int (FIa) (crashes/year) (7)FIa from Worksheet 2C | DJ4: (8) Proportion of Collision Type(PDO) from Table 11-9 | DK4: (8) N predicted int (PDO) (crashes/year) (7)PDO from Worksheet 2C | DL4: (2) Proportion of Collision Type(TOTAL) from Table 11-9 | DM4: (3) N predicted int (TOTAL) (crashes/year) (7)TOTAL from Worksheet 2C | DN4: (4) Proportion of Collision Type(FI) from Table 11-9 | DO4: (5) N predicted int (FI) (crashes/year) (7)FI from Worksheet 2C | DP4: (6) Proportion of Collision Type(FIa) from Table 11-9 | DQ4: (7) N predicted int (FIa) (crashes/year) (7)FIa from Worksheet 2C | DR4: (8) Proportion of Collision Type(PDO) from Table 11-9 | DS4: (8) N predicted int (PDO) (crashes/year) (7)PDO from Worksheet 2C | DT4: (2) Proportion of Collision Type(TOTAL) from Table 11-9 | DU4: (3) N predicted int (TOTAL) (crashes/year) (7)TOTAL from Worksheet 2C | DV4: (4) Proportion of Collision Type(FI) from Table 11-9 | DW4: (5) N predicted int (FI) (crashes/year) (7)FI from Worksheet 2C | DX4: (6) Proportion of Collision Type(FIa) from Table 11-9 | DY4: (7) N predicted int (FIa) (crashes/year) (7)FIa from Worksheet 2C | DZ4: (8) Proportion of Collision Type(PDO) from Table 11-9 | EA4: (8) N predicted int (PDO) (crashes/year) (7)PDO from Worksheet 2C | EB4: Property Damage Only (PDO) | EC4: Fatal and Injurya (FIa, KAB only) | ED4: Fatal and Injury (FI) | EE4: Total

Sheet Urban & Suburban Segments
